Workbook

Sheet Pipeline_BA
B1: Pipeline Distances Inputs
B2: =Model_Name -> VTS Tariff Model
B3: Go to Table of Contents
A4: é | B4: ç | C4: è
C7: Zone # | D7: Zones | G7: Tariff Zones | H7: Start Location | I7: End Location | K7: Pipeline length (kms) | M7: Allocation % | O7: Compressor Switches | P7: CG & Regulator Switch | Q7: Pipeline Switch | S7: Comments
C9: 1 | D9: 1 Longford to Tyers (loop end) | G9: LaTrobe | H9: Longford | I9: Tyers (end loop) | K9: ='Asset Groups'!Q8 -> 64.7847 | M9: 1 | O9: 1 | P9: 1 | Q9: 1
C10: 2 | D10: 2 Tyers (loop end) to Bunyip | G10: West Gippsland | H10: Tyers (end loop) | I10: Bunyip | K10: =+'Asset Groups'!Q13 -> 62.0923 | M10: 1 | O10: 1 | P10: 1 | Q10: 1
C11: 3 | D11: 3 Tyers to Morwell & Maryvale lateral | G11: Maryvale | H11: Maryvale lateral | K11: =+'Asset Groups'!Q16 -> 5.4 | M11: 1 | O11: 0 | P11: 0 | Q11: 1
C12: 3 | D12: 3 Tyers to Morwell & Maryvale lateral | G12: Tyers | H12: Tyers | I12: Morwell | K12: =+SUM('Asset Groups'!Q17:Q19) -> 20.63046 | M12: 1 | O12: 1 | P12: 1 | Q12: 1
C13: 3 | D13: 3 Tyers to Morwell & Maryvale lateral | G13: LaTrobe | H13: Latrobe | I13: Morwell | K13: 0 | M13: 1 | O13: 0 | P13: 0 | Q13: 0
C14: 4 | D14: 4 Lurgi pipeline plus laterals | G14: Lurgi | H14: Morwell | I14: Healsville - Koo Wee Rup Rd | K14: 97.74857 | M14: 1 | O14: 1 | P14: 0 | Q14: 1
C15: 4 | D15: 4 Lurgi pipeline plus laterals | G15: Metro | H15: Healsville - Koo Wee Rup Rd | I15: Dandenong | K15: 30.62093 | M15: 1 | O15: 0 | P15: 1 | Q15: 1
C16: 5 | D16: 5 Bunyip to Pakenham | G16: Metro | H16: Bunyip | I16: Pakenham | K16: =+'Asset Groups'!Q29 -> 18.6693 | M16: 1 | O16: 1 | P16: 1 | Q16: 1
C17: 6 | D17: 6 Pakenham to Wollert | G17: Metro | H17: Pakenham | I17: Wollert | K17: =+'Asset Groups'!Q31 -> 92.4117 | M17: 1 | O17: 1 | P17: 1 | Q17: 1
C18: 7 | D18: 7 Pakenham to Dandenong | G18: Metro | H18: Pakenham | I18: Dandenong | K18: =+'Asset Groups'!Q33 -> 27.9937 | M18: 1 | O18: 1 | P18: 1 | Q18: 1
C19: 8 | D19: 8 Dandenong to St. Kilda | G19: Metro | H19: Dandenong | I19: St Kilda | K19: =+SUM('Asset Groups'!Q35:Q38) -> 36.1183 | M19: 1 | O19: 1 | P19: 1 | Q19: 1
C20: 9 | D20: 9 St. Kilda to Werribee | G20: Metro | H20: St Kilda | I20: Werribee | K20: =+SUM('Asset Groups'!Q40:Q47) -> 37.5682 | M20: 0.85 | O20: 0.85 | P20: 1 | Q20: 1 | R20: Brooklyn Compressor costs split - (estimate)
C21: 10 | D21: 10 Werribee to Geelong | G21: Metro | H21: Werribee | I21: Little River | K21: =+'Asset Groups'!Q49 -> 17.5975 | M21: 1 | O21: 0 | P21: 0 | Q21: 1
C22: 10 | D22: 10 Werribee to Geelong | G22: Metro | H22: Little River | I22: Geelong | K22: =+'Asset Groups'!Q50 -> 18.1277 | M22: 1 | O22: 1 | P22: 1 | Q22: 1
C23: 11 | D23: 11 Brooklyn to Ballan Junction | G23: Metro | H23: Brooklyn | I23: Melton South City Gate | K23: 26.245 | M23: 0.15 | O23: 1 | P23: 1 | Q23: 1 | R23: Brooklyn Compressor costs split - (estimate)
C24: 11 | D24: 11 Brooklyn to Ballan Junction | G24: Calder | H24: Melton South City Gate | I24: Ballan Junction | K24: 40.3542 | M24: 1 | O24: 0 | P24: 1 | Q24: 1
C25: 12 | D25: 12 Ballan Junction to Ballarat | G25: Calder | H25: Ballan Jctn | I25: Ballarat | K25: =+'Asset Groups'!Q55 -> 22.6004 | M25: 1 | O25: 1 | P25: 1 | Q25: 1
C26: 13 | D26: 13 Wollert to Euroa | G26: South Hume | H26: Wollert | I26: Euroa | K26: =+'Asset Groups'!Q57 -> 124.3139 | M26: 1 | O26: 1 | P26: 1 | Q26: 1
C27: 14 | D27: 14 Ballan Junction to Daylesford Jctn | G27: Calder | H27: Ballan Junction | I27: Daylesford Junction | K27: =+'Asset Groups'!Q60 -> 39.9597 | M27: 1 | O27: 1 | P27: 1 | Q27: 1
C28: 15 | D28: 15 Daylesford Junction to Bendigo | G28: Calder | H28: Daylesford Junction | I28: Bendigo | K28: =+'Asset Groups'!Q62 -> 50.7336 | M28: 1 | O28: 1 | P28: 1 | Q28: 1
C29: 16 | D29: 16 Guilford to Maryborough | G29: Calder | H29: Guildford | I29: Maryborough | K29: =+'Asset Groups'!Q65 -> 31.3668 | M29: 1 | O29: 1 | P29: 1 | Q29: 1
C30: 17 | D30: 17 Wandong to Daylesford Junction | G30: Calder | H30: Wandong | I30: Daylesford Junction | K30: =+SUM('Asset Groups'!Q67:Q68) -> 84.0628 | M30: 1 | O30: 1 | P30: 1 | Q30: 1
C31: 18 | D31: 18 Euroa to Wodonga | G31: North Hume | H31: Euroa | I31: Barnawartha City Gate | K31: =+'Asset Groups'!Q70 -> 134.1846 | M31: 0.85 | O31: 0.85 | P31: 1 | Q31: 1 | R31: Euroa Compressor costs split - (estimate)
C32: 18 | D32: 18 Euroa to Wodonga | G32: Wodonga | H32: Barnawartha City Gate | I32: Wodonga | K32: =+'Asset Groups'!Q72 -> 10.6693 | M32: 1 | O32: 0 | P32: 0 | Q32: 1
C33: 19 | D33: 19 Euroa to Kyabram | G33: Echuca | H33: Euroa | I33: Kyabram | K33: =+SUM('Asset Groups'!Q74:Q76) -> 71.9217 | M33: 0.15 | O33: 0.15 | P33: 1 | Q33: 1 | R33: Euroa Compressor costs split - (estimate)
C34: 20 | D34: 20 Kyabram to Echuca | G34: Echuca | H34: Kyabram | I34: Echuca | K34: =+'Asset Groups'!Q78 -> 30.6476 | M34: 1 | O34: 1 | P34: 1 | Q34: 1
C35: 21 | D35: 21 Wollert to Keon Park | G35: Metro | H35: Wollert | I35: Keon Park | K35: =SUM('Asset Groups'!Q80:Q82) -> 18.8452 | M35: 1 | O35: 1 | P35: 1 | Q35: 1
C36: 22 | D36: 22 Deer Park to Sunbury | G36: Metro | H36: Deer Park | I36: Sunbury | K36: =+'Asset Groups'!Q84 -> 24.0279 | M36: 1 | O36: 1 | P36: 1 | Q36: 1
C37: 23 | D37: 23 Paaratte to Portland | G37: Western | H37: North Paaratte | I37: Portland | K37: =+SUM('Asset Groups'!Q87:Q91) -> 216.9792 | M37: 1 | O37: 1 | P37: 1 | Q37: 1
C38: 29 | D38: 29 WORM | G38: Metro | H38: Plumpton | I38: Wollert | K38: =+'Asset Groups'!Q106 -> 51.2 | M38: 1 | O38: 1 | P38: 1 | Q38: 1
C39: 30 | D39: 30 Anglesea | G39: Geelong | K39: 15 | M39: 1 | O39: 1 | P39: 1 | Q39: 1
C40: 31 | D40: 31 Kalkallo | G40: Metro | K40: 9.5 | M40: 1 | O40: 1 | P40: 1 | Q40: 1
C41: 51 | D41: 51 Interconnect | G41: Interconnect | H41: Barnawartha | I41: Culcairn | K41: =+SUM('Asset Groups'!Q93:Q94) -> 63.22397 | M41: 1 | O41: 1 | P41: 1 | Q41: 1
C42: 52 | D42: 52 South West Pipeline | G42: South West | H42: Iona | I42: North Paaratte | K42: ='Asset Groups'!Q102 -> 7.7534 | M42: 1 | O42: 1 | P42: 1 | Q42: 1
C43: 28 | D43: 28 Brooklyn Corio Loop | G43: Metro | H43: Brooklyn | I43: Lara | K43: =+'Asset Groups'!Q104 -> 58 | M43: 1 | O43: 1 | P43: 1 | Q43: 1
C44: 28 | D44: 28 Brooklyn Corio Loop | G44: Metro | H44: Brooklyn | I44: Lara | K44: =+'Asset Groups'!Q104 -> 58 | M44: 0 | O44: 0 | P44: 0 | Q44: 0 | R44: Longford Injection Tariff | T44: =[1]Injection_Tariffs_BO!G8 -> 1.593356791
C45: 24 | D45: 24 Barnawartha to Culcairn | G45: Interconnect | H45: Barnawartha | I45: Culcairn | K45: =+'Asset Groups'!Q93+'Asset Groups'!Q94 -> 63.22397 | M45: 0.24 | R45: Culcairn Injection Tariff | T45: =[1]Injection_Tariffs_BO!G13 -> 1.284267079
C46: 25 | D46: 25 Chiltern Valley to Koonoomoo | G46: Murray Valley | H46: Chiltern Valley | I46: Koonoomoo | K46: =+'Asset Groups'!Q96+'Asset Groups'!Q97 -> 103.5502 | M46: 1 | O46: 1 | P46: 0 | Q46: 1 | R46: Port Campbell Injection Tariff | T46: =[1]Injection_Tariffs_BO!G16 -> 1.801220662
C47: 26 | D47: 26 Lara to Port Campbell | G47: South West | H47: Iona | I47: Lara | K47: =+'Asset Groups'!Q99 -> 143.9791 | M47: 0.7735 | O47: 1 | P47: 1 | Q47: 1
C48: 27 | D48: 27 Port Campbell to Paaratte | G48: South West | H48: Iona | I48: North Paaratte | K48: =+'Asset Groups'!Q102 -> 7.7534 | M48: =M47 -> 0.7735 | O48: 1 | P48: 1 | Q48: 1
C49: 4 | D49: 4 Lurgi pipeline plus laterals | G49: Lurgi | H49: Morwell | I49: Healsville - Koo Wee Rup Rd | K49: 97.74857 | M49: 0 | O49: 0 | P49: 0 | Q49: 1
C50: 13 | D50: 13 Wollert to Euroa | G50: South Hume | H50: Wollert | I50: Euroa | K50: =+'Asset Groups'!Q57 -> 124.3139 | M50: 1 | O50: 1 | P50: 1 | Q50: 1
C51: 18 | D51: 18 Euroa to Wodonga | G51: North Hume | H51: Euroa | I51: Barnawartha City Gate | K51: =+'Asset Groups'!Q70+'Asset Groups'!Q72 -> 144.8539 | M51: 0.85 | O51: 0 | P51: 0 | Q51: 0
C52: 19 | D52: 19 Euroa to Kyabram | G52: Echuca | H52: Euroa | I52: Kyabram | K52: =+'Asset Groups'!Q74+'Asset Groups'!Q75+'Asset Groups'!Q76 -> 71.9217 | M52: 0.15 | O52: 0 | P52: 0 | Q52: 0

Sheet Info
A2: Workbook Information
A4: [Pipeline Distances12.xls]
A7: The output of this file are tables of distances through each asset group between each injection point and each off-take. This information is used in [Flow Paths12.xls] to assist in forecasting the flow of gas, and to generate the distance-based rates.
A10: Pipe Details (information)
A12: Describes each section of pipe, displaying its location, licence #, DWG #, year of construction, current age, diameter, MAOP and lengths. Duplicated piping is detailed, as are the recorded kilometre differences between what is used in the model for calculating tariffs (based on map readings) and GasNet records.
A15: Asset Groups (information)
A17: The information in Pipe Details (above) is re-ordered into asset groups … currently 30 asset groups across the system
A20: Dist Table
A22: Contains the output of this workbook, as described in the introduction above. The four tables use information taken from the ‘Master Map’ worksheets (following).
A24: This table is linked to [Flow Paths 2010.xls], where it is referenced for the purpose of allocating injection points to withdrawal meters and calculating TJ-kilometres.
A27: Master Map
A29: The meters and the distances between each are visually depicted in this worksheet. This worksheet is an input into the Dist Table worksheet as well as the 5 individual maps for the 5 injection points ie. Map Port Campbell, Map Longford, Map Dandenong, Map Culcairn & Map Pakenham
A32: Map Port Campbell/Map Longford/Map Dandenong/Map Culcairn/Map Pakenham
A34: These individual map are based on the Master Map to reflect the cumulative distances radiating from the respective injection points. VicHub injection gas flow & distances is identical to the Longford injection gas flow. SEAGas injection gas flow is identical to the injection from Port Campbell
A37: Dist. Data (information)
A39: The distances between each meter are read from GasNet maps and grouped by licences. The raw readings are recorded and summarised in this worksheet.

Sheet Pipe Details
B2: Pipeline Details
F4: Year | G4: Age to | H4: Pipe | J4: Recorded | L4: Lengths in | N4: Variance to
C5: Route / Location | D5: Licence # | E5: DWG # | F5: Built | G5: 2022 | H5: Diameter | I5: MAOP | J5: Lengths | L5: Tariff model | N5: Record
G6: (years) | H6: (mm) | I6: (kpa) | J6: (kms) | L6: (kms) | N6: (kms)
C8: Total | G8: =SUMPRODUCT(G26:G117,J26:J117)/$J$8 -> 40.1276521 | J8: =J39+J63+J74+J84+J98+J110+J120+J128 -> 1993.7 | L8: =L39+L63+L74+L84+L98+L110+L120+L128 -> 2018.02093 | N8: =N39+N63+N74+N84+N98+N110+N120 -> 0.17907 | O8: =N8/J8 -> 8.981792647e-05
G9: (ave km years)
C10: less Duplicated piping
C12: Ballan to Ballarat | D12: Vic: 078 | E12: T057 | F12: 1973 | G12: =$G$5-F12 -> 49 | H12: 150 | I12: 7390 | J12: =J70 -> 22.7 | L12: =Dist.Data!B66 -> 22.6863 | M12: (north pipe) | N12: =J12-L12 -> 0.0137
C13: Rosedale to Tyers (& to loop end) | D13: Vic: 117 | E13: T060 | F13: 1978 | G13: =$G$5-F13 -> 44 | H13: 750 | I13: 7070 | J13: =J33 -> 34.3 | L13: =Dist.Data!I90-Dist.Data!E90 -> 34.3954 | M13: (south pipe) | N13: =J13-L13 -> -0.0954
C14: Longford to Rosedale | D14: Vic: 120 | E14: T060 | F14: 1978 | G14: =$G$5-F14 -> 44 | H14: 750 | I14: 7070 | J14: =J34 -> 30.5 | L14: =Dist.Data!E90 -> 30.5497 | M14: (south pipe) | N14: =J14-L14 -> -0.0497
C15: Mt Franklin to Bendigo | D15: Vic: 131 | E15: T070 | F15: 1981 | G15: =$G$5-F15 -> 41 | H15: 300 | I15: 7390 | J15: =J51 -> 50.8 | L15: =Dist.Data!B141 -> 50.6946 | M15: (east pipe) | N15: =J15-L15 -> 0.1054
C16: Bunyip to Pakenham | D16: Vic: 135 | E16: T060 | F16: 1982 | G16: =$G$5-F16 -> 40 | H16: 750 | I16: 7070 | J16: =J36 -> 18.7 | L16: =Dist.Data!L90 -> 18.6693 | M16: (south pipe) | N16: =J16-L16 -> 0.0307
J18: =SUM(J12:J17) -> 157 | L18: =SUM(L12:L17) -> 156.9953 | N18: =J18-L18 -> 0.0047
C20: Total length excluding looping | J20: =J8-J18 -> 1836.7 | L20: =L8-L18 -> 1861.02563 | N20: =J20-L20 -> -24.32563
C24: Longford to Dandenong & Wollert System
C26: Supply to Jeeralang | D26: Vic: 050 | E26: T001 | F26: 1978 | G26: =$G$5-F26 -> 44 | H26: 300 | I26: 2760 | J26: 0.4 | L26: =Dist.Data!N9 -> 0.2979 | N26: =J26-L26 -> 0.1021
C27: Dandenong to Morwell | D27: Vic: 050 | E27: T001 | F27: 1956 | G27: 66 | H27: 450 | I27: 2760 | J27: 127 | L27: =Dist.Data!M8 -> 127.009 | N27: -0.009
C28: Maryvale | D28: Vic: 067 | E28: T037 | F28: 1980 | G28: 42 | H28: 150 | I28: 7390 | J28: 5.4 | L28: 5.4 | N28: 0
C29: Healesville-Koo-Wee-Rup Rd | D29: Vic: 068 | E29: T038 | F29: 1972 | G29: 50 | H29: 80 | I29: 2760 | J29: 1.2 | L29: =Dist.Data!B48 -> 1.1555 | N29: =J29-L29 -> 0.0445
C30: Longford to Dandenong | D30: Vic: 075 | E30: T060 | F30: 1969 | G30: 53 | H30: 750 | I30: 6890 | J30: 174.2 | L30: =Dist.Data!P85 -> 174.2278 | N30: -0.0278
C31: Anderson St, Warrigal | D31: Vic: 091 | E31: T044 | F31: 1975 | G31: 47 | H31: 100 | I31: 2760 | J31: 4.8 | L31: =Dist.Data!B54 -> 4.78787 | N31: 0.01213
C32: Pound Rd to Tuckers Rd | D32: Vic: 107 | E32: T032 | F32: 1976 | G32: 46 | H32: 100 | I32: 2760 | J32: 2 | L32: =Dist.Data!B30 -> 2.01193 | N32: -0.01193
C33: Rosedale to Tyers (& to loop end) | D33: Vic: 117 | E33: T060 | F33: 1978 | G33: 44 | H33: 750 | I33: 7070 | J33: 34.3 | L33: =Dist.Data!I90-Dist.Data!E90 -> 34.3954 | M33: (south pipe) | N33: -0.0954
C34: Longford to Rosedale | D34: Vic: 120 | E34: T060 | F34: 1978 | G34: 44 | H34: 750 | I34: 7070 | J34: 30.5 | L34: =Dist.Data!E90 -> 30.5497 | M34: (south pipe) | N34: -0.0497
C35: Tyers to Morwell | D35: Vic: 121 | E35: T063 | F35: 1979 | G35: 43 | H35: 500 | I35: 7070 | J35: 15.7 | L35: =Dist.Data!B106 -> 15.63776 | N35: 0.06224
C36: Bunyip to Pakenham | D36: Vic: 135 | E36: T060 | F36: 1982 | G36: 40 | H36: 750 | I36: 7070 | J36: 18.7 | L36: =Dist.Data!L90 -> 18.6693 | M36: (south pipe) | N36: 0.0307
C37: Pakenham to Wollert | D37: Vic: 141 | E37: T061 | F37: 1984 | G37: 38 | H37: 750 | I37: 6890 | J37: 93.1 | L37: =Dist.Data!B94 -> 93.1117 | N37: -0.0117
J39: =SUM(J26:J37) -> 507.3 | L39: =SUM(L26:L37) -> 507.25386 | N39: =SUM(N26:N37) -> 0.04614
C43: Wollert to Wodonga / Koonoomoo / Echuca / Bendigo System
C45: Ballan to Bendigo | D45: Vic: 078 | E45: T070 | F45: 1973 | G45: =$G$5-F45 -> 49 | H45: 150 | I45: 7390 | J45: 90.8 | L45: =Dist.Data!B136 -> 90.6933 | M45: (west pipe) | N45: =J45-L45 -> 0.1067
C46: Keon Park to Wollert | D46: Vic: 101 | E46: T074 | F46: 1976 | G46: 46 | H46: 600 | I46: 2760 | J46: 14.1 | L46: =Dist.Data!H155 -> 14.4152 | N46: -0.3152
C47: Wollert to Wodonga | D47: Vic: 101 | E47: T074 | F47: 1976 | G47: 46 | H47: 300 | I47: 7400 | J47: 269.4 | L47: =Dist.Data!T155 -> 269.3 | N47: 0.1
C48: Euroa to Shepparton | D48: Vic: 101 | E48: T059 | F48: 1976 | G48: 46 | H48: 200 | I48: 7400 | J48: 34.5 | L48: =Dist.Data!B77 -> 34.4569 | N48: 0.0431
C49: Guildford to Maryborough | D49: Vic: 125 | E49: T067 | F49: 1980 | G49: 42 | H49: 150 | I49: 7390 | J49: 31.4 | L49: =Dist.Data!B130 -> 31.3668 | N49: 0.0332
C50: Mt Franklin to Kyneton | D50: Vic: 128 | E50: T066 | F50: 1981 | G50: 41 | H50: 300 | I50: 7390 | J50: 24.5 | L50: =Dist.Data!B124 -> 24.5628 | N50: -0.0628
C51: Mt Franklin to Bendigo | D51: Vic: 131 | E51: T070 | F51: 1981 | G51: 41 | H51: 300 | I51: 7390 | J51: 50.8 | L51: =Dist.Data!B141 -> 50.6946 | M51: (east pipe) | N51: 0.1054
C52: Shepparton to Tatura | D52: Vic: 132 | E52: T071 | F52: 1981 | G52: 41 | H52: 200 | I52: 7390 | J52: 16.2 | L52: =Dist.Data!C150 -> 16.2426 | N52: -0.0426
C53: Tatura to Kyabram | D53: Vic: 136 | E53: T071 | F53: 1982 | G53: 40 | H53: 200 | I53: 7390 | J53: 21.3 | L53: =Dist.Data!E149-Dist.Data!C149 -> 21.2222 | N53: 0.0778
C54: Wandong to Kyneton | D54: Vic: 143 | E54: T075 | F54: 1986 | G54: 36 | H54: 300 | I54: 7390 | J54: 59.5 | L54: =Dist.Data!B159 -> 59.5 | N54: 0
C55: Kyabram to Echuca | D55: Vic: 152 | E55: T085 | F55: 1991 | G55: 31 | H55: 150 | I55: 7390 | J55: 30.7 | L55: =Dist.Data!B171 -> 30.6476 | N55: 0.0524
C56: Chiltern Valley to Rutherglen | D56: Vic: 176 | E56: T096 | F56: 1998 | G56: 24 | H56: 200 | I56: 7400 | J56: 14.7 | L56: =Dist.Data!B213 -> 14.7152 | N56: -0.0152
C57: Barnawartha to Murray River | D57: Vic: 178 | E57: T099 | F57: 1998 | G57: 24 | H57: 450 | I57: 10200 | J57: 5.5 | L57: 5.5 | N57: 0
C58: Murray River to Culcairn | D58: NSW: 024 | E58: T099 | F58: 1998 | G58: =$G$5-F58 -> 24 | H58: 450 | I58: 10200 | J58: 57 | L58: =Dist.Data!B224-L57 -> 57.02397 | N58: =J58-L58 -> -0.02397
C59: Rutherglen to Koonoomoo | D59: Vic: 182 | E59: T098 | F59: 1998 | G59: 24 | H59: 200 | I59: 7400 | J59: 88.8 | L59: =Dist.Data!B219 -> 88.835 | N59: -0.035
C60: Keon Park East to Keon Park West | D60: Vic: 202 | E60: T018 | F60: 1968 | G60: 54 | H60: 450 | I60: 2760 | J60: 0.6 | L60: =+Dist.Data!D155 -> 0.63 | N60: -0.03
C61: Somerton Pipeline | D61: Vic: 238 | E61: T074 | F61: 2001 | G61: 21 | H61: 250 | I61: 2760 | J61: 3.4 | L61: =Dist.Data!F156 -> 3.4 | N61: 0
C62: Kalkallo Pipeline | F62: 2015 | G62: 7 | L62: =Dist.Data!B255 -> 9.5
J63: =SUM(J45:J61) -> 813.2 | L63: =SUM(L45:L62) -> 822.70617 | N63: =SUM(N45:N61) -> -0.00617
C67: Brooklyn to Ballarat System
C69: Brooklyn to Ballan | D69: Vic: 078 | E69: T056 | F69: 1972 | G69: =$G$5-F69 -> 50 | H69: 200 | I69: 7390 | J69: 66.6 | L69: =Dist.Data!B60 -> 66.5992 | N69: =J69-L69 -> 0.0008
C70: Ballan to Ballarat | D70: Vic: 078 | E70: T057 | F70: 1973 | G70: =$G$5-F70 -> 49 | H70: 150 | I70: 7390 | J70: 22.7 | L70: =Dist.Data!B66 -> 22.6863 | M70: (north pipe) | N70: =J70-L70 -> 0.0137
C71: Derimut to Sunbury | D71: Vic: 122 | E71: T062 | F71: 1979 | G71: =$G$5-F71 -> 43 | H71: 150 | I71: 7390 | J71: 24 | L71: =Dist.Data!B100 -> 24.0279 | N71: =J71-L71 -> -0.0279
C72: Ballan to Ballarat | D72: Vic: 134 | E72: T057 | F72: 1982 | G72: =$G$5-F72 -> 40 | H72: 300 | I72: 7390 | J72: 22.8 | L72: =Dist.Data!B71 -> 22.8004 | M72: (south pipe) | N72: =J72-L72 -> -0.0004
J74: =SUM(J69:J72) -> 136.1 | L74: =SUM(L69:L72) -> 136.1138 | N74: =SUM(N69:N72) -> -0.0138
C78: Brooklyn to Geelong System
C80: Brooklyn to Corio | D80: Vic: 081 | E80: T024 | F80: 1971 | G80: =$G$5-F80 -> 51 | H80: 350 | I80: 7390 | J80: 50.7 | L80: =Dist.Data!B24 -> 50.66 | N80: =J80-L80 -> 0.04
C81: Laverton to BHP | D81: Vic: 162 | E81: T088 | F81: 1994 | G81: =$G$5-F81 -> 28 | H81: 150 | I81: 2760 | J81: 1.6 | L81: =Dist.Data!B183 -> 1.6051 | N81: =J81-L81 -> -0.0051
C82: Supply to Snowy Hydro Power Station | D82: Vic: 253 | E82: T110 | F82: 2005 | G82: =$G$5-F82 -> 17 | H82: 350 | I82: 10200 | J82: 1.6 | L82: =+Dist.Data!B239 -> 1.6 | N82: =J82-L82 -> 0
J84: =SUM(J80:J82) -> 53.9 | L84: =SUM(L80:L82) -> 53.8651 | N84: =SUM(N80:N82) -> 0.0349
C88: Dandenong to West Melbourne / Brooklyn System
C90: Dandenong to West Melbourne | D90: Vic: 036 | E90: T016 | F90: 1969 | G90: =$G$5-F90 -> 53 | H90: 750 | I90: 2760 | J90: 36.2 | L90: =Dist.Data!B18 -> 36.1786 | N90: =J90-L90 -> 0.0214
C91: Princess Highway to Regent St | D91: Vic: 036 | E91: T015 | F91: 1966 | G91: 56 | H91: 200 | I91: 2760 | J91: 0.8 | L91: =Dist.Data!B12 -> 0.75 | N91: 0.05
C92: South Melbourne to Brooklyn | D92: Vic: 108 | E92: T033 | F92: 1977 | G92: 45 | H92: 750 | I92: 2760 | J92: 12.8 | L92: =Dist.Data!B36 -> 12.8 | N92: 0
C93: Supply to Newport Power Station | D93: Vic: 124 | E93: T064 | F93: 1980 | G93: 42 | H93: 450 | I93: 2760 | J93: 1 | L93: =Dist.Data!B112 -> 0.9917 | N93: 0.0083
C94: Princes Highway to Henty St | D94: Vic: 129 | E94: T065 | F94: 1981 | G94: 41 | H94: 500 | I94: 2760 | J94: 0.2 | L94: 0 | N94: 0.2
C95: Dandenong to Princes Highway | D95: Vic: 129 | E95: T065 | F95: 1981 | G95: 41 | H95: 750 | I95: 2760 | J95: 5 | L95: =Dist.Data!B118 -> 5.2 | N95: -0.2
C96: Supply - Bay St to Unichema | D96: Vic: 164 | E96: T089 | F96: 1993 | G96: 29 | H96: 150 | I96: 2760 | J96: 0.4 | L96: =Dist.Data!B189 -> 0.45 | N96: -0.05
J98: =SUM(J90:J96) -> 56.4 | L98: =SUM(L90:L96) -> 56.3703 | N98: =SUM(N90:N96) -> 0.0297
C102: Western Network
C104: Paaratte to Allansford | D104: Vic: 145 | E104: T081 | F104: 1986 | G104: =$G$5-F104 -> 36 | H104: 150 | I104: 7400 | J104: 33.3 | L104: =Dist.Data!B165 -> 33.2573 | N104: =J104-L104 -> 0.0427
C105: Allansford to Portland | D105: Vic: 155 | E105: T086 | F105: 1993 | G105: =$G$5-F105 -> 29 | H105: 150 | I105: 9890 | J105: 100.4 | L105: =Dist.Data!B177 -> 100.3716 | N105: =J105-L105 -> 0.0284
C106: Curdievale to Cobden | D106: Vic: 168 | E106: T091 | F106: 1994 | G106: =$G$5-F106 -> 28 | H106: 150 | I106: 9890 | J106: 27.7 | L106: =Dist.Data!B195 -> 27.7155 | N106: =J106-L106 -> -0.0155
C107: Codrington to Hamilton | D107: Vic: 171 | E107: T093 | F107: 1995 | G107: =$G$5-F107 -> 27 | H107: 150 | I107: 9890 | J107: 54.6 | L107: =Dist.Data!B207 -> 54.5348 | N107: =J107-L107 -> 0.0652
C108: Iluka supply lateral | D108: Vic: 252 | E108: T109 | F108: 2005 | G108: =$G$5-F108 -> 17 | H108: 100 | I108: 9890 | J108: 1.1 | L108: =+Dist.Data!B234 -> 1.1 | N108: =J108-L108 -> 0
J110: =SUM(J104:J108) -> 217.1 | L110: =SUM(L104:L108) -> 216.9792 | N110: =SUM(N104:N108) -> 0.1208
C114: South West Pipeline
C116: Port Campbell to Paaratte | D116: Vic: 227 | E116: T100 | F116: 1992 | G116: =$G$5-F116 -> 30 | H116: 150 | I116: 7400 | J116: 7.8 | L116: =Dist.Data!B229 -> 7.7534 | N116: =J116-L116 -> 0.0466
C117: Port Campbell to Lara | D117: Vic: 231 | E117: T092 | F117: 1999 | G117: =$G$5-F117 -> 23 | H117: 500 | I117: 10200 | J117: 143.9 | L117: =Dist.Data!B201 -> 143.9791 | N117: =J117-L117 -> -0.0791
C118: Anglesea Pipeline | F118: 2016 | G118: =$G$5-F118 -> 6 | L118: =Dist.Data!B260 -> 15
J120: =SUM(J116:J118) -> 151.7 | L120: =SUM(L116:L118) -> 166.7325 | N120: =SUM(N116:N118) -> -0.0325
C124: Brooklyn Corio Loop
C126: Brooklyn to Corio | D126: Vic: 266 | E126: T112 | F126: 2008 | G126: =$G$5-F126 -> 14 | H126: 500 | I126: 10200 | J126: 58 | L126: =+Dist.Data!B244 -> 58 | N126: =J126-L126 -> 0
J128: =SUM(J126:J126) -> 58 | L128: =SUM(L126:L126) -> 58 | N128: =SUM(N126:N126) -> 0

Sheet Asset Groups
B2: Asset Group Descriptions | Q2: Link this colmn to Tariff model
B4: Asset Group # | C4: Asset Group name / location | D4: Pipelines in Group | E4: DWG # | F4: Licence # | G4: Year Built | H4: Pipe Diameter | I4: MAOP | K4: Pipeline Kms | L4: Pipe kms in Group | N4: Total Group kms | P4: Tariff Model Lengths | Q4: Pipe kms in Group | S4: Total Group kms
H5: (mm) | I5: (kpa) | K5: (kms) | L5: (kms) | N5: (kms) | P5: (kms) | Q5: (kms) | S5: (kms)
N6: =SUM(N7:N106) -> 2586.68075 | S6: =SUM(S7:S106) -> 2041.15273
B8: 1 | C8: Longford to Tyers (loop end) | D8: Longford to Dandenong | E8: T060 | F8: Vic: 075 | G8: 1969 | H8: 750 | I8: 6890 | K8: 174.2 | L8: 65.02902547 | N8: 130.4290255 | P8: 173.5278 | Q8: 64.7847 | S8: 129.4998
D9: TGP Interconnect | E9: T121 | F9: Vic: 075 | G9: 2017 | H9: 300 | I9: 6890 | K9: 0.6 | L9: 0.6
D10: Longford to Rosedale | E10: T060 | F10: Vic: 120 | G10: 1978 | H10: 750 | I10: 7070 | K10: 30.5 | L10: 30.5 | M10: (south pipe) | P10: 33.6497 | Q10: 33.6497 | R10: (south pipe)
D11: Rosedale to Tyers (loop end) | E11: T060 | F11: Vic: 117 | G11: 1978 | H11: 750 | I11: 7070 | K11: 34.3 | L11: 34.3 | M11: (south pipe) | P11: 31.0654 | Q11: 31.0654 | R11: (south pipe)
B13: 2 | C13: Tyers (loop end) to Bunyip | D13: Longford to Dandenong | E13: T060 | F13: Vic: 075 | G13: 1969 | H13: 750 | I13: 6890 | K13: 174.2 | L13: =K13*(Q13/(Q$8+Q$13+Q$28+Q$33)) -> 62.3264715 | N13: =L13 -> 62.3264715 | P13: =Dist.Data!P85 -> 174.2278 | Q13: ='Master Map'!$AW$68+'Master Map'!$AU$70 -> 62.0923 | S13: =Q13 -> 62.0923
B15: 3 | C15: Tyers to Morwell & Maryvale lateral | D15: MORWELL - TRAMWAY ROAD | E15: T0A | F15: Vic: 121 | G15: Vic: 121 | K15: 0.68 | L15: 0.68 | N15: 26.25825592 | S15: 26.03046
D16: Maryvale | E16: T037 | F16: Vic: 067 | G16: 1980 | H16: 150 | I16: 7390 | K16: 5.4 | L16: 5.4 | P16: 5.4 | Q16: 5.4
D17: Dandenong to Morwell | E17: T001 | F17: Vic: 050 | G17: 1956 | H17: 450 | I17: 2760 | K17: 126.8 | L17: 4.758255921 | P17: 125.109 | Q17: 4.6948
D18: Supply to Jeeralang | E18: T001 | F18: Vic: 050 | G18: 1978 | H18: 300 | I18: 2760 | K18: 0.4 | L18: 0.4 | P18: 0.2979 | Q18: 0.2979
D19: Tyers to Morwell | E19: T063 | F19: Vic: 121 | G19: 1979 | H19: 500 | I19: 7070 | K19: 15.02 | L19: 15.02 | P19: 15.63776 | Q19: 15.63776
B21: 4 | C21: Lurgi pipeline plus laterals | D21: Dandenong to Morwell | E21: T001 | F21: Vic: 050 | G21: 1956 | H21: 450 | I21: 2760 | K21: 126.8 | L21: =K21*(Q21/(Q$17+Q$21)) -> 122.0417441 | N21: =SUM(L21:L26) -> 135.3417441 | P21: =Dist.Data!M8 -> 127.009 | Q21: 120.4142 | S21: =SUM(Q21:Q26) -> 128.3695
D22: Pound Rd to Tuckers Rd | E22: T032 | F22: Vic: 107 | G22: 1976 | H22: 100 | I22: 2760 | K22: 2 | L22: =K22 -> 2 | P22: =Dist.Data!B30 -> 2.01193 | Q22: =P22 -> 2.01193
D23: Healesville-Koo-Wee-Rup Rd | E23: T038 | F23: Vic: 068 | G23: 1972 | H23: 80 | I23: 2760 | K23: 1.2 | L23: =K23 -> 1.2 | P23: =Dist.Data!B48 -> 1.1555 | Q23: =P23 -> 1.1555
D24: Peet St to Pakenham CTM | E24: T116 | F24: Vic: 068 | G24: 2010 | H24: 150 | I24: 2760 | K24: 0.5 | L24: 0.5
D25: Anderson St, Warrigal | E25: T044 | F25: Vic: 091 | G25: 2019 | H25: 150 | I25: 2760 | K25: 0.5 | L25: 4.8 | U25: Warrigul Loop
D26: Anderson St, Warrigal | E26: T044 | F26: Vic: 091 | G26: 1975 | H26: 100 | I26: 2760 | K26: 4.8 | L26: =K26 -> 4.8 | P26: =Dist.Data!B54 -> 4.78787 | Q26: =P26 -> 4.78787
B28: 5 | C28: Bunyip to Pakenham | D28: Longford to Dandenong | E28: T060 | F28: Vic: 075 | G28: 1969 | H28: 750 | I28: 6890 | K28: 174.2 | L28: =K28*(Q28/(Q$8+Q$13+Q$28+Q$33)) -> 18.74522912 | N28: =SUM(L28:L29) -> 37.44522912 | P28: 173.5278 | Q28: ='Master Map'!$AR$70 -> 18.6748 | S28: =SUM(Q28:Q29) -> 37.3441
D29: Bunyip to Pakenham | E29: T060 | F29: Vic: 135 | G29: 1982 | H29: 750 | I29: 7070 | K29: 18.7 | L29: =K29 -> 18.7 | M29: (south pipe) | P29: =Dist.Data!L90 -> 18.6693 | Q29: =P29 -> 18.6693 | R29: (south pipe)
B31: 6 | C31: Pakenham to Wollert | D31: Pakenham to Wollert | E31: T061 | F31: Vic: 141 | G31: 1984 | H31: 750 | I31: 6890 | K31: 93.1 | L31: =K31 -> 93.1 | N31: =L31 -> 93.1 | P31: 92.4117 | Q31: 92.4117 | S31: 92.4117
B33: 7 | C33: Pakenham to Dandenong | D33: Longford to Dandenong | E33: T060 | F33: Vic: 075 | G33: 1969 | H33: 750 | I33: 6890 | K33: 174.2 | L33: =K33*(Q33/(Q$8+Q$13+Q$28+Q$33)) -> 28.09927391 | N33: =L33 -> 28.09927391 | P33: 173.5278 | Q33: 27.9937 | S33: =Q33 -> 27.9937
B35: 8 | C35: Dandenong to St. Kilda | D35: Princess Highway to Regent St | E35: T015 | F35: Vic: 036 | G35: 1966 | H35: 200 | I35: 2760 | K35: 0.8 | L35: 0.8 | N35: 36.71063495 | P35: 0.65 | Q35: 0.65 | S35: 36.1183
D36: Dandenong to West Melbourne | E36: T016 | F36: Vic: 036 | G36: 1969 | H36: 750 | I36: 2760 | K36: 36.2 | L36: 30.71063495 | P36: 35.6786 | Q36: 30.2683
D37: Princess Highway to Henty St | E37: T065 | F37: Vic: 129 | G37: 1981 | H37: 500 | I37: 2760 | K37: 0.2 | L37: 0.2 | P37: 0 | Q37: 0
D38: Dandenong to Princess Highway | E38: T065 | F38: Vic: 129 | G38: 1981 | H38: 750 | I38: 2760 | K38: 5 | L38: 5 | P38: 5.2 | Q38: 5.2
B40: 9 | C40: St. Kilda to Werribee | D40: Dandenong to West Melbourne | E40: T016 | F40: Vic: 036 | G40: 1969 | H40: 750 | I40: 2760 | K40: 36.2 | L40: 5.489365054 | N40: =SUM(L40:L47) -> 37.67738023 | P40: 35.6786 | Q40: 5.4103 | S40: 37.5682
D41: Brooklyn to Werribee | E41: T024 | F41: Vic: 081 | G41: 1971 | H41: 350 | I41: 7390 | K41: 50.7 | L41: 14.78801518 | P41: 50.44 | Q41: 14.7111
D42: South Melbourne to Brooklyn | E42: T033 | F42: Vic: 108 | G42: 1977 | H42: 750 | I42: 2760 | K42: 12.8 | L42: 12.8 | P42: 12.8 | Q42: 12.8
D43: Supply to Newport Power Station | E43: T064 | F43: Vic: 124 | G43: 1980 | H43: 450 | I43: 2760 | K43: 1 | L43: 1 | P43: 0.9917 | Q43: 0.9917
D44: Laverton to BHP | E44: T088 | F44: Vic: 162 | G44: 1994 | H44: 150 | I44: 2760 | K44: 1.6 | L44: 1.6 | P44: 1.6051 | Q44: 1.6051
D45: Supply - Bay St to Unichema | E45: T089 | F45: Vic: 164 | G45: 1993 | H45: 150 | I45: 2760 | K45: 0.4 | L45: 0.4 | P45: 0.45 | Q45: 0.45
D46: Supply to Qenos | E46: T120 | F46: Vic: 112 | G46: 1976 | H46: 250 | I46: 5100 | K46: 0 | L46: 0 | U46: Non-Scheme pipeline
D47: Snowy Hydro Pipeline | E47: T110 | F47: Vic: 253 | G47: 2005 | H47: 350 | I47: 10200 | K47: 1.6 | L47: 1.6 | P47: 1.6 | Q47: 1.6
B49: 10 | C49: Werribee to Geelong | D49: Werribee to Little River | E49: T024 | F49: Vic: 081 | G49: 1971 | H49: 350 | I49: 7390 | K49: 50.7 | L49: 17.68950637 | N49: 17.68950637 | P49: 50.44 | Q49: 17.5975 | S49: 35.7252
D50: Little River to Geelong | E50: T024 | F50: Vic: 081 | G50: 1971 | H50: 350 | I50: 7390 | K50: 50.7 | L50: 18.22247845 | N50: 18.22247845 | P50: 50.44 | Q50: 18.1277
B52: 11 | C52: Brooklyn to Ballan Junction | D52: Brooklyn to Ballan | E52: T056 | F52: Vic: 078 | G52: 1972 | H52: 200 | I52: 7390 | K52: 66.6 | L52: 66.6 | N52: 66.6 | P52: 66.5992 | Q52: 66.5992 | S52: 66.5992
B54: 12 | C54: Ballan Junction to Ballarat | D54: Ballan to Ballarat | E54: T057 | F54: Vic: 078 | G54: 1973 | H54: 150 | I54: 7390 | K54: 22.7 | L54: 22.7 | M54: (north pipe) | N54: 45.5 | P54: 22.6863 | Q54: 22.6863 | R54: (north pipe) | S54: 45.2867
D55: Ballan to Ballarat | E55: T057 | F55: Vic: 134 | G55: 1982 | H55: 300 | I55: 7390 | K55: 22.8 | L55: 22.8 | M55: (south pipe) | P55: 22.6004 | Q55: 22.6004 | R55: (south pipe)
B57: 13 | C57: Wollert to Euroa | D57: Wollert to Euroa | E57: T074 | F57: Vic: 101 | G57: 1976 | H57: 300 | I57: 7400 | K57: 269.4 | L57: 129.5565145 | N57: =SUM(L57:L58) -> 259.1565145 | P57: 269.3 | Q57: 124.3139 | S57: 124.3139 | U57: Summed
D58: Wollert to Barnwartha (VNIE) | E58: T119 | F58: Vic: 101 | G58: 2015 | H58: 400 | I58: 15300 | K58: 258.3 | L58: 129.6 | N58: =L58 -> 129.6
B60: 14 | C60: Ballan Junction to Daylesford Jctn | D60: Ballan to Bendigo | E60: T070 | F60: Vic: 078 | G60: 1973 | H60: 150 | I60: 7390 | K60: 90.8 | L60: 40.00671229 | M60: (west pipe) | N60: 40.00671229 | P60: 90.6933 | Q60: 39.9597 | R60: (west pipe) | S60: =Q60 -> 39.9597
B62: 15 | C62: Daylesford Junction to Bendigo | D62: Ballan to Bendigo | E62: T070 | F62: Vic: 078 | G62: 1973 | H62: 150 | I62: 7390 | K62: 90.8 | L62: 50.79328771 | M62: (west pipe) | N62: 101.5932877 | P62: 90.6933 | Q62: 50.7336 | R62: (west pipe) | S62: =SUM(Q62:Q63) -> 101.4282
D63: Mt Franklin to Bendigo | E63: T070 | F63: Vic: 131 | G63: 1981 | H63: 300 | I63: 7390 | K63: 50.8 | L63: 50.8 | M63: (east pipe) | P63: 50.6946 | Q63: 50.6946 | R63: (east pipe)
B65: 16 | C65: Guilford to Maryborough | D65: Guilford to Maryborough | E65: T067 | F65: Vic: 125 | G65: 1980 | H65: 150 | I65: 7390 | K65: 31.4 | L65: 31.4 | N65: 31.4 | P65: 31.3668 | Q65: 31.3668 | S65: 31.3668
B67: 17 | C67: Wandong to Daylesford Junction | D67: Mt Franklin to Kyneton | E67: T066 | F67: Vic: 128 | G67: 1981 | H67: 300 | I67: 7390 | K67: 24.5 | L67: 24.5 | N67: 84 | P67: 24.5628 | Q67: 24.5628 | S67: 84.0628
D68: Wandong to Kyneton | E68: T075 | F68: Vic: 143 | G68: 1986 | H68: 300 | I68: 7390 | K68: 59.5 | L68: 59.5 | P68: 59.5 | Q68: 59.5
B70: 18 | C70: Euroa to Wodonga | D70: Wollert to Barnawartha City Gate | E70: T074 | F70: Vic: 101 | G70: 1976 | H70: 300 | I70: 7400 | K70: 269.4 | L70: 139.8434855 | N70: =SUM(L70:L71) -> 268.5242356 | P70: 269.3 | Q70: 134.1846 | S70: 144.8539 | U70: Summed
D71: Wollert to Barnwartha (VNIE) | E71: T119 | F71: Vic: 101 | G71: 2015 | H71: 400 | I71: 15300 | K71: 258.3 | L71: 128.6807501 | N71: =L71 -> 128.6807501
D72: Barnawartha City Gate to Wodonga | E72: T074 | F72: Vic: 101 | G72: 1976 | H72: 300 | I72: 7400 | K72: 269.4 | L72: 11.1192499 | N72: 11.1192499 | P72: 269.3 | Q72: 10.6693
B74: 19 | C74: Euroa to Kyabram | D74: Euroa to Shepparton | E74: T059 | F74: Vic: 101 | G74: 1976 | H74: 200 | I74: 7400 | K74: 34.5 | L74: 34.5 | N74: 72 | P74: 34.4569 | Q74: 34.4569 | S74: 71.9217
D75: Shepparton to Tatura | E75: T071 | F75: Vic: 132 | G75: 1981 | H75: 200 | I75: 7390 | K75: 16.2 | L75: 16.2 | P75: 16.2426 | Q75: 16.2426
D76: Tatura to Kyabram | E76: T071 | F76: Vic: 136 | G76: 1982 | H76: 200 | I76: 7390 | K76: 21.3 | L76: 21.3 | P76: 21.2222 | Q76: 21.2222
B78: 20 | C78: Shepparton to Echuca | D78: Kyabram to Echuca | E78: T085 | F78: Vic: 152 | G78: 1991 | H78: 150 | I78: 7390 | K78: 30.7 | L78: 30.7 | N78: 30.7 | P78: 30.6476 | Q78: 30.6476 | S78: 30.6476
B80: 21 | C80: Wollert to Keon Park | D80: Keon Park East to Keon Park West | E80: T018 | F80: Vic: 202 | G80: 1968 | H80: 450 | I80: 2760 | K80: 0.6 | L80: 0.6 | N80: 18.1 | P80: 0.63 | Q80: 0.63 | S80: 18.8452
D81: Keon Park to Wollert & Somerton | E81: T074 | F81: Vic: 101 | G81: 1976 | H81: 600 | I81: 2760 | K81: 14.1 | L81: 14.1 | P81: 14.4152 | Q81: 14.4152
D82: Somerton Pipeline | E82: T074 | F82: Vic: 238 | G82: 2001 | H82: 250 | I82: 2760 | K82: 3.4 | L82: 3.4 | P82: 3.8 | Q82: 3.8
B84: 22 | C84: Deer Park to Sunbury | D84: Derimut to Sunbury | E84: T062 | F84: Vic: 122 | G84: 1979 | H84: 150 | I84: 7390 | K84: 24 | L84: 24 | N84: 32.4 | P84: 24.0279 | Q84: 24.0279 | S84: 24.0279
D85: Derimut to Plumption | E85: T118 | F85: Vic: 122 | G85: 2012 | H85: 500 | I85: 10200 | K85: 8.4 | L85: 8.4
B87: 23 | C87: Paaratte to Portland | D87: Paaratte to Allansford | E87: T081 | F87: Vic: 145 | G87: 1986 | H87: 150 | I87: 7400 | K87: 33.3 | L87: 33.3 | N87: 217.1 | P87: 33.2573 | Q87: 33.2573 | S87: 216.9792
D88: Allansford to Portland | E88: T086 | F88: Vic: 155 | G88: 1993 | H88: 150 | I88: 9890 | K88: 100.4 | L88: 100.4 | P88: 100.3716 | Q88: 100.3716
D89: Curdievale to Cobden | E89: T091 | F89: Vic: 168 | G89: 1994 | H89: 150 | I89: 9890 | K89: 27.7 | L89: 27.7 | P89: 27.7155 | Q89: 27.7155
D90: Codrington to Hamilton | E90: T093 | F90: Vic: 171 | G90: 1995 | H90: 150 | I90: 9890 | K90: 54.6 | L90: 54.6 | P90: 54.5348 | Q90: 54.5348
D91: Iluka Offtake | E91: T109 | F91: Vic: 252 | G91: 2005 | H91: 100 | I91: 9890 | K91: 1.1 | L91: 1.1 | P91: 1.1 | Q91: 1.1
B93: 24 | C93: Barnawartha to Culcairn | D93: Barnawartha to Murray River | E93: T099 | F93: Vic: 178 | G93: 1998 | H93: 450 | I93: 10200 | K93: 5.5 | L93: 5.5 | N93: 62.5 | P93: 5.5 | Q93: 5.5 | S93: 63.22397
D94: Murray River to Culcairn | E94: T099 | F94: NSW: 024 | G94: 1998 | H94: 450 | I94: 10200 | K94: 57 | L94: 57 | P94: 57.72397 | Q94: 57.72397
B96: 25 | C96: Chiltern Valley to Koonoomoo | D96: Chiltern Valley to Rutherglen | E96: T096 | F96: Vic: 176 | G96: 1998 | H96: 200 | I96: 7400 | K96: 14.7 | L96: 14.7 | N96: 103.5 | P96: 14.3152 | Q96: 14.3152 | S96: 103.5502
D97: Rutherglen to Koonoomoo | E97: T098 | F97: Vic: 182 | G97: 1998 | H97: 200 | I97: 7400 | K97: 88.8 | L97: 88.8 | P97: 89.235 | Q97: 89.235
B99: 26 | C99: Lara to Port Campbell | D99: Port Campbell to Lara | E99: T092 | F99: Vic: 231 | G99: 1999 | H99: 500 | I99: 10200 | K99: 143.9 | L99: 143.9 | N99: 143.9 | P99: 143.9791 | Q99: 143.9791 | S99: 143.9791
D100: Lateral to Golden Plahns (not built yet) | K100: 0 | L100: 0 | P100: (Stonehaven Compressor Station) | Q100: (Stonehaven Compressor Station)
B102: 27 | C102: Port Campbell to Paaratte | D102: Port Campbell to Paaratte | E102: T100 | F102: Vic: 227 | G102: 1992 | H102: 150 | I102: 7400 | K102: 7.8 | L102: 7.8 | N102: 7.8 | P102: 7.7534 | Q102: 7.7534 | S102: 7.7534
B104: 28 | C104: Brooklyn Lara Loop | D104: Brooklyn Lara Loop | E104: T112 | F104: Vic: 266 | G104: 2006 | H104: 500 | I104: 10200 | K104: 58 | L104: 58 | N104: 58 | P104: 58 | Q104: 58 | S104: 58
B106: 29 | C106: WORM | D106: Brooklyn Cario Loop | E106: T???? | G106: 2015 | K106: 51.2 | L106: =+K106 -> 51.2 | N106: =+L106 -> 51.2 | P106: =+N106 -> 51.2 | Q106: =+N106 -> 51.2 | S106: =+N106 -> 51.2 | U106: No Information
B108: 30 | C108: Anglesea Pipeline | D108: Anglesea Pipeline | E108: T???? | G108: 2015
B110: 31 | C110: Kalkallo Pipeline | D110: Kalkallo Pipeline | E110: T???? | G110: 2014

Sheet Dist Table
B2: Flow Path Distance Table for Annual & Peak Flows (exception to the rules from rows 140) | AK2: To be apportioned bet Gr 10 & 9 | BW2: To be apportioned bet Gr 10 & 9 | DI2: To be apportioned bet Gr 10 & 9 | EU2: To be apportioned bet Gr 10 & 9 | GG2: To be apportioned bet Gr 10 & 9
B3: (distances from each injection point to each meter) | O3: To be apportioned bet Gr 10 & 9 | P3: To be apportioned bet Gr 10 & 9 | AL3: WORM | AM3: Anglesea | AN3: Kalkallo
E4: From Port Campbell via asset group…(Port Campbell-WUGS & SEAGas) | AQ4: From Culcairn via asset group… | BX4: WORM | CC4: From Longford via asset group…(VicHub & Longford - Esso BHP) | DJ4: WORM | DO4: From Dandenong via asset group… | EV4: WORM | FA4: From Pakenham via asset group… (Bass Gas) | GH4: WORM
G5: Maryvale | H5: Tyers | I5: Latrobe | J5: Metro | K5: Lurgi | Q5: Metro | R5: Geelong | S5: Metro | T5: Calder | AS5: Maryvale | AT5: Tyers | AU5: Latrobe | AV5: Metro | AW5: Lurgi | BC5: Metro | BD5: Geelong | BE5: Metro | BF5: Calder | CE5: Maryvale | CF5: Tyers | CG5: Latrobe | CH5: Metro | CI5: Lurgi | CO5: Metro | CP5: Geelong | CQ5: Metro | CR5: Calder | DQ5: Maryvale | DR5: Tyers | DS5: Latrobe | DT5: Metro | DU5: Lurgi | EA5: Metro | EB5: Geelong | EC5: Metro | ED5: Calder | FC5: Maryvale | FD5: Tyers | FE5: Latrobe | FF5: Metro | FG5: Lurgi | FM5: Metro | FN5: Geelong | FO5: Metro | FP5: Calder
B6: Asset Group | D6: Total | E6: 1 | F6: 2 | G6: 3 | H6: 3 | I6: 3 | J6: 4 | K6: 4 | L6: 5 | M6: 6 | N6: 7 | O6: 8 | P6: 9 | Q6: 10 | R6: 10 | S6: 11 | T6: 11 | U6: 12 | V6: 13 | W6: 14 | X6: 15 | Y6: 16 | Z6: 17 | AA6: 18 | AB6: 19 | AC6: 20 | AD6: 21 | AE6: 22 | AF6: 23 | AG6: 24 | AH6: 25 | AI6: 26 | AJ6: 27 | AK6: 28 | AL6: 29 | AM6: 30 | AN6: 31 | AP6: Total | AQ6: 1 | AR6: 2 | AS6: 3 | AT6: 3 | AU6: 3 | AV6: 4 | AW6: 4 | AX6: 5 | AY6: 6 | AZ6: 7 | BA6: 8 | BB6: 9 | BC6: 10 | BD6: 10 | BE6: 11 | BF6: 11 | BG6: 12 | BH6: 13 | BI6: 14 | BJ6: 15 | BK6: 16 | BL6: 17 | BM6: 18 | BN6: 19 | BO6: 20 | BP6: 21 | BQ6: 22 | BR6: 23 | BS6: 24 | BT6: 25 | BU6: 26 | BV6: 27 | BW6: 28 | BX6: 29 | BY6: 30 | BZ6: 31 | CB6: Total | CC6: 1 | CD6: 2 | CE6: 3 | CF6: 3 | CG6: 3 | CH6: 4 | CI6: 4 | CJ6: 5 | CK6: 6 | CL6: 7 | CM6: 8 | CN6: 9 | CO6: 10 | CP6: 10 | CQ6: 11 | CR6: 11 | CS6: 12 | CT6: 13 | CU6: 14 | CV6: 15 | CW6: 16 | CX6: 17 | CY6: 18 | CZ6: 19 | DA6: 20 | DB6: 21 | DC6: 22 | DD6: 23 | DE6: 24 | DF6: 25 | DG6: 26 | DH6: 27 | DI6: 28 | DJ6: 29 | DK6: 30 | DL6: 31 | DN6: Total | DO6: 1 | DP6: 2 | DQ6: 3 | DR6: 3 | DS6: 3 | DT6: 4 | DU6: 4 | DV6: 5 | DW6: 6 | DX6: 7 | DY6: 8 | DZ6: 9 | EA6: 10 | EB6: 10 | EC6: 11 | ED6: 11 | EE6: 12 | EF6: 13 | EG6: 14 | EH6: 15 | EI6: 16 | EJ6: 17 | EK6: 18 | EL6: 19 | EM6: 20 | EN6: 21 | EO6: 22 | EP6: 23 | EQ6: 24 | ER6: 25 | ES6: 26 | ET6: 27 | EU6: 28 | EV6: 29 | EW6: 30 | EX6: 31 | EZ6: Total | FA6: 1 | FB6: 2 | FC6: 3 | FD6: 3 | FE6: 3 | FF6: 4 | FG6: 4 | FH6: 5 | FI6: 6 | FJ6: 7 | FK6: 8 | FL6: 9 | FM6: 10 | FN6: 10 | FO6: 11 | FP6: 11 | FQ6: 12 | FR6: 13 | FS6: 14 | FT6: 15 | FU6: 16 | FV6: 17 | FW6: 18 | FX6: 19 | FY6: 20 | FZ6: 21 | GA6: 22 | GB6: 23 | GC6: 24 | GD6: 25 | GE6: 26 | GF6: 27 | GG6: 28 | GH6: 29 | GI6: 30 | GJ6: 31
B8: 1 | C8: =+B8+1 -> 2 | D8: =+C8+1 -> 3 | E8: 4 | F8: 5 | G8: 6 | H8: 7 | I8: 8 | J8: =+I8+1 -> 9 | K8: 10 | L8: 11 | M8: 12 | N8: 13 | O8: 14 | P8: 15 | Q8: 16 | R8: 17 | S8: 18 | T8: 19 | U8: 20 | V8: 21 | W8: 22 | X8: 23 | Y8: 24 | Z8: 25 | AA8: 26 | AB8: 27 | AC8: 28 | AD8: 29 | AE8: 30 | AF8: 31 | AG8: 32 | AH8: 33 | AI8: 34 | AJ8: 35 | AK8: 36 | AL8: =+AK8+1 -> 37 | AM8: =+AL8+1 -> 38 | AN8: =+AM8+1 -> 39 | AO8: =+AK8+1 -> 37 | AP8: 38 | AQ8: 39 | AR8: 40 | AS8: 41 | AT8: 42 | AU8: =+AT8+1 -> 43 | AV8: =+AU8+1 -> 44 | AW8: 45 | AX8: 46 | AY8: 47 | AZ8: 48 | BA8: 49 | BB8: 50 | BC8: 51 | BD8: 52 | BE8: 53 | BF8: 54 | BG8: 55 | BH8: 56 | BI8: 57 | BJ8: 58 | BK8: 59 | BL8: 60 | BM8: 61 | BN8: 62 | BO8: 63 | BP8: 64 | BQ8: 65 | BR8: 66 | BS8: 67 | BT8: 68 | BU8: =+BT8+1 -> 69 | BV8: 70 | BW8: 71 | BX8: =+BW8+1 -> 72 | BY8: =+BX8+1 -> 73 | BZ8: =+BY8+1 -> 74 | CA8: =+BW8+1 -> 72 | CB8: 73 | CC8: 74 | CD8: 75 | CE8: 76 | CF8: 77 | CG8: =+CF8+1 -> 78 | CH8: =+CG8+1 -> 79 | CI8: 80 | CJ8: 81 | CK8: 82 | CL8: 83 | CM8: 84 | CN8: 85 | CO8: 86 | CP8: 87 | CQ8: 88 | CR8: 89 | CS8: 90 | CT8: 91 | CU8: 92 | CV8: 93 | CW8: 94 | CX8: 95 | CY8: 96 | CZ8: 97 | DA8: 98 | DB8: 99 | DC8: 100 | DD8: 101 | DE8: 102 | DF8: 103 | DG8: 104 | DH8: 105 | DI8: 106 | DJ8: =+DI8+1 -> 107 | DK8: =+DJ8+1 -> 108 | DL8: =+DK8+1 -> 109 | DM8: =+DI8+1 -> 107 | DN8: 108 | DO8: 109 | DP8: 110 | DQ8: 111 | DR8: 112 | DS8: 113 | DT8: 114 | DU8: 115 | DV8: 116 | DW8: 117 | DX8: 118 | DY8: 119 | DZ8: 120 | EA8: 121 | EB8: 122 | EC8: 123 | ED8: 124 | EE8: 125 | EF8: 126 | EG8: 127 | EH8: 128 | EI8: 129 | EJ8: 130 | EK8: 131 | EL8: 132 | EM8: 133 | EN8: 134 | EO8: =+EN8+1 -> 135 | EP8: 136 | EQ8: 137 | ER8: 138 | ES8: 139 | ET8: 140 | EU8: 141 | EV8: =+EU8+1 -> 142 | EW8: =+EV8+1 -> 143 | EX8: =+EW8+1 -> 144 | EY8: =+EU8+1 -> 142 | EZ8: 143 | FA8: 144 | FB8: 145 | FC8: 146 | FD8: 147 | FE8: 148 | FF8: 149 | FG8: 150 | FH8: 151 | FI8: 152 | FJ8: 153 | FK8: 154 | FL8: 155 | FM8: 156 | FN8: 157 | FO8: 158 | FP8: 159 | FQ8: 160 | FR8: 161 | FS8: 162 | FT8: 163 | FU8: 164 | FV8: 165 | FW8: 166 | FX8: 167 | FY8: 168 | FZ8: 169 | GA8: 170 | GB8: 171 | GC8: 172 | GD8: 173 | GE8: 174 | GF8: 175 | GG8: 176 | GH8: =+GG8+1 -> 177 | GI8: =+GH8+1 -> 178 | GJ8: =+GI8+1 -> 179
A9: Longford | B9: M001 | D9: =SUM(E9:AN9) -> 421.7354 | E9: =E76+'Master Map'!$BN$68 -> 64.7151 | F9: ='Master Map'!$AU$70+'Master Map'!$AW$68 -> 62.0923 | L9: ='Master Map'!$AR$72 -> 18.6693 | N9: ='Master Map'!$AJ$75+'Master Map'!$AL$73+'Master Map'!$AN$71+'Master Map'!$AP$71 -> 27.9937 | O9: ='Master Map'!$AF$56+'Master Map'!$AF$58+'Master Map'!$AF$60+'Master Map'!$AF$62+'Master Map'!$AF$64+'Master Map'!$AF$66+'Master Map'!$AH$68+'Master Map'!$AJ$72 -> 30.2683 | P9: ='Master Map'!$Y$44+'Master Map'!$Y$46+'Master Map'!$AA$48+'Master Map'!$AB$50+'Master Map'!$AC$52+'Master Map'!$AE$53+'Master Map'!$AF$54 -> 16.0967 | AI9: ='Master Map'!$N$61 -> 143.9 | AK9: =+'Master Map'!$Q$50+'Master Map'!$Q$43+'Master Map'!$T$41 -> 58 | AP9: =SUM(AQ9:BZ9) -> 818.65077 | AQ9: =AQ76+'Master Map'!$BN$68 -> 64.7151 | AR9: ='Master Map'!$AU$70+'Master Map'!$AW$68 -> 62.0923 | AS9: 0 | AT9: 0 | AV9: 0 | AW9: 0 | AX9: ='Master Map'!$AR$72 -> 18.6693 | AY9: =+$AY$37+'Master Map'!$AQ$66 -> 92.9531 | AZ9: 0 | BA9: 0 | BB9: 0 | BC9: 0 | BD9: 0 | BE9: 0 | BF9: 0 | BG9: 0 | BH9: ='Master Map'!$AC$23+'Master Map'!$AC$25+'Master Map'!$AC$27+'Master Map'!$AC$29+'Master Map'!$AC$31+'Master Map'!$AC$33 -> 248.6278 | BI9: 0 | BJ9: 0 | BK9: 0 | BL9: 0 | BM9: ='Master Map'!$AD$21+'Master Map'!$AF$19+'Master Map'!$AH$17+'Master Map'!$AJ$15+'Master Map'!$AL$13+'Master Map'!$AN$11+'Master Map'!$AP$9+'Master Map'!$AR$7 -> 268.3692 | BN9: 0 | BO9: 0 | BP9: 0 | BQ9: 0 | BR9: 0 | BS9: ='Master Map'!$AT$1 -> 63.22397 | BT9: 0 | BU9: 0 | BV9: 0 | CB9: =SUM(CC9:DH9) -> 0 | CC9: 0 | CD9: 0 | CE9: 0 | CF9: 0 | CH9: 0 | CI9: 0 | CJ9: 0 | CK9: 0 | CL9: 0 | CM9: 0 | CN9: 0 | CO9: 0 | CP9: 0 | CQ9: 0 | CR9: 0 | CS9: 0 | CT9: 0 | CU9: 0 | CV9: 0 | CW9: 0 | CX9: 0 | CY9: 0 | CZ9: 0 | DA9: 0 | DB9: 0 | DC9: 0 | DD9: 0 | DE9: 0 | DF9: 0 | DG9: 0 | DH9: 0 | DN9: =SUM(DO9:EX9) -> 173.4704 | DO9: =DO76+'Master Map'!$BN$68 -> 64.7151 | DP9: ='Master Map'!$AU$70+'Master Map'!$AW$68 -> 62.0923 | DQ9: 0 | DR9: 0 | DT9: 0 | DU9: 0 | DV9: ='Master Map'!$AR$72 -> 18.6693 | DW9: 0 | DX9: ='Master Map'!$AJ$75+'Master Map'!$AL$73+'Master Map'!$AN$71+'Master Map'!$AP$71 -> 27.9937 | DY9: 0 | DZ9: 0 | EA9: 0 | EB9: 0 | EC9: 0 | ED9: 0 | EE9: 0 | EF9: 0 | EG9: 0 | EH9: 0 | EI9: 0 | EJ9: 0 | EK9: 0 | EL9: 0 | EM9: 0 | EN9: 0 | EO9: 0 | EP9: 0 | EQ9: 0 | ER9: 0 | ES9: 0 | ET9: 0 | EZ9: =SUM(FA9:GJ9) -> 145.4767 | FA9: =FA76+'Master Map'!$BN$68 -> 64.7151 | FB9: ='Master Map'!$AU$70+'Master Map'!$AW$68 -> 62.0923 | FC9: 0 | FD9: 0 | FF9: 0 | FG9: 0 | FH9: ='Master Map'!$AR$72 -> 18.6693 | FI9: 0 | FJ9: 0 | FK9: 0 | FL9: 0 | FM9: 0 | FN9: 0 | FO9: 0 | FP9: 0 | FQ9: 0 | FR9: 0 | FS9: 0 | FT9: 0 | FU9: 0 | FV9: 0 | FW9: 0 | FX9: 0 | FY9: 0 | FZ9: 0 | GA9: 0 | GB9: 0 | GC9: 0 | GD9: 0 | GE9: 0 | GF9: 0
A10: DTS (Peninsula) | B10: M002 | D10: 248.265 | O10: ='Master Map'!$AF$56+'Master Map'!$AF$58+'Master Map'!$AF$60+'Master Map'!$AF$62+'Master Map'!$AF$64+'Master Map'!$AF$66+'Master Map'!$AH$68+'Master Map'!$AJ$72 -> 30.2683 | P10: ='Master Map'!$Y$44+'Master Map'!$Y$46+'Master Map'!$AA$48+'Master Map'!$AB$50+'Master Map'!$AC$52+'Master Map'!$AE$53+'Master Map'!$AF$54 -> 16.0967 | AI10: ='Master Map'!$N$61 -> 143.9 | AK10: =+'Master Map'!$Q$50+'Master Map'!$Q$43+'Master Map'!$T$41 -> 58 | AP10: 701.16777 | AQ10: 0 | AR10: 0 | AS10: 0 | AT10: 0 | AV10: 0 | AW10: 0 | AX10: 0 | AY10: =+$AY$37+'Master Map'!$AQ$66 -> 92.9531 | AZ10: ='Master Map'!$AJ$75+'Master Map'!$AL$73+'Master Map'!$AN$71+'Master Map'!$AP$71 -> 27.9937 | BA10: 0 | BB10: 0 | BC10: 0 | BD10: 0 | BE10: 0 | BF10: 0 | BG10: 0 | BH10: ='Master Map'!$AC$23+'Master Map'!$AC$25+'Master Map'!$AC$27+'Master Map'!$AC$29+'Master Map'!$AC$31+'Master Map'!$AC$33 -> 248.6278 | BI10: 0 | BJ10: 0 | BK10: 0 | BL10: 0 | BM10: ='Master Map'!$AD$21+'Master Map'!$AF$19+'Master Map'!$AH$17+'Master Map'!$AJ$15+'Master Map'!$AL$13+'Master Map'!$AN$11+'Master Map'!$AP$9+'Master Map'!$AR$7 -> 268.3692 | BN10: 0 | BO10: 0 | BP10: 0 | BQ10: 0 | BR10: 0 | BS10: ='Master Map'!$AT$1 -> 63.22397 | BT10: 0 | BU10: 0 | BV10: 0 | CB10: =SUM(CC10:DL10) -> 173.4704 | CC10: ='Master Map'!$BE$68+'Master Map'!$BH$68+'Master Map'!$BJ$68+'Master Map'!$BL$68+'Master Map'!$BN$68+'Master Map'!$AY$68+'Master Map'!$BB$68 -> 64.7151 | CD10: =+'Master Map'!$AW$68+'Master Map'!$AU$70 -> 62.0923 | CE10: 0 | CF10: 0 | CH10: 0 | CI10: 0 | CJ10: ='Master Map'!$AR$72 -> 18.6693 | CK10: 0 | CL10: ='Master Map'!$AJ$75+'Master Map'!$AL$73+'Master Map'!$AN$71+'Master Map'!$AP$71 -> 27.9937 | CM10: 0 | CN10: 0 | CO10: 0 | CP10: 0 | CQ10: 0 | CR10: 0 | CS10: 0 | CT10: 0 | CU10: 0 | CV10: 0 | CW10: 0 | CX10: 0 | CY10: 0 | CZ10: 0 | DA10: 0 | DB10: 0 | DC10: 0 | DD10: 0 | DE10: 0 | DF10: 0 | DG10: 0 | DH10: 0 | DN10: 0 | DO10: 0 | DP10: 0 | DQ10: 0 | DR10: 0 | DT10: 0 | DU10: 0 | DV10: 0 | DW10: 0 | DX10: 0 | DY10: 0 | DZ10: 0 | EA10: 0 | EB10: 0 | EC10: 0 | ED10: 0 | EE10: 0 | EF10: 0 | EG10: 0 | EH10: 0 | EI10: 0 | EJ10: 0 | EK10: 0 | EL10: 0 | EM10: 0 | EN10: 0 | EO10: 0 | EP10: 0 | EQ10: 0 | ER10: 0 | ES10: 0 | ET10: 0 | EZ10: 27.9937 | FA10: 0 | FB10: 0 | FC10: 0 | FD10: 0 | FF10: 0 | FG10: 0 | FH10: 0 | FI10: 0 | FJ10: ='Master Map'!$AJ$75+'Master Map'!$AL$73+'Master Map'!$AN$71+'Master Map'!$AP$71 -> 27.9937 | FK10: 0 | FL10: 0 | FM10: 0 | FN10: 0 | FO10: 0 | FP10: 0 | FQ10: 0 | FR10: 0 | FS10: 0 | FT10: 0 | FU10: 0 | FV10: 0 | FW10: 0 | FX10: 0 | FY10: 0 | FZ10: 0 | GA10: 0 | GB10: 0 | GC10: 0 | GD10: 0 | GE10: 0 | GF10: 0
A11: Dandenong North | B11: M003 | D11: 244.5477 | O11: ='Master Map'!$AF$56+'Master Map'!$AF$58+'Master Map'!$AF$60+'Master Map'!$AF$62+'Master Map'!$AF$64+'Master Map'!$AF$66+'Master Map'!$AH$68 -> 26.551 | P11: ='Master Map'!$Y$44+'Master Map'!$Y$46+'Master Map'!$AA$48+'Master Map'!$AB$50+'Master Map'!$AC$52+'Master Map'!$AE$53+'Master Map'!$AF$54 -> 16.0967 | AI11: ='Master Map'!$N$61 -> 143.9 | AK11: =+'Master Map'!$Q$50+'Master Map'!$Q$43+'Master Map'!$T$41 -> 58 | AP11: 704.88507 | AQ11: 0 | AR11: 0 | AS11: 0 | AT11: 0 | AV11: 0 | AW11: 0 | AX11: 0 | AY11: =+$AY$37+'Master Map'!$AQ$66 -> 92.9531 | AZ11: ='Master Map'!$AJ$75+'Master Map'!$AL$73+'Master Map'!$AN$71+'Master Map'!$AP$71 -> 27.9937 | BA11: ='Master Map'!$AJ$72 -> 3.7173 | BB11: 0 | BC11: 0 | BD11: 0 | BE11: 0 | BF11: 0 | BG11: 0 | BH11: ='Master Map'!$AC$23+'Master Map'!$AC$25+'Master Map'!$AC$27+'Master Map'!$AC$29+'Master Map'!$AC$31+'Master Map'!$AC$33 -> 248.6278 | BI11: 0 | BJ11: 0 | BK11: 0 | BL11: 0 | BM11: ='Master Map'!$AD$21+'Master Map'!$AF$19+'Master Map'!$AH$17+'Master Map'!$AJ$15+'Master Map'!$AL$13+'Master Map'!$AN$11+'Master Map'!$AP$9+'Master Map'!$AR$7 -> 268.3692 | BN11: 0 | BO11: 0 | BP11: 0 | BQ11: 0 | BR11: 0 | BS11: ='Master Map'!$AT$1 -> 63.22397 | BT11: 0 | BU11: 0 | BV11: 0 | CB11: 177.1877 | CC11: ='Master Map'!$BE$68+'Master Map'!$BH$68+'Master Map'!$BJ$68+'Master Map'!$BL$68+'Master Map'!$BN$68+'Master Map'!$AY$68+'Master Map'!$BB$68 -> 64.7151 | CD11: =+'Master Map'!$AW$68+'Master Map'!$AU$70 -> 62.0923 | CE11: 0 | CF11: 0 | CH11: 0 | CI11: 0 | CJ11: ='Master Map'!$AR$72 -> 18.6693 | CK11: 0 | CL11: ='Master Map'!$AJ$75+'Master Map'!$AL$73+'Master Map'!$AN$71+'Master Map'!$AP$71 -> 27.9937 | CM11: ='Master Map'!$AJ$72 -> 3.7173 | CN11: 0 | CO11: 0 | CP11: 0 | CQ11: 0 | CR11: 0 | CS11: 0 | CT11: 0 | CU11: 0 | CV11: 0 | CW11: 0 | CX11: 0 | CY11: 0 | CZ11: 0 | DA11: 0 | DB11: 0 | DC11: 0 | DD11: 0 | DE11: 0 | DF11: 0 | DG11: 0 | DH11: 0 | DN11: 3.7173 | DO11: 0 | DP11: 0 | DQ11: 0 | DR11: 0 | DT11: 0 | DU11: 0 | DV11: 0 | DW11: 0 | DX11: 0 | DY11: ='Master Map'!$AJ$72 -> 3.7173 | DZ11: 0 | EA11: 0 | EB11: 0 | EC11: 0 | ED11: 0 | EE11: 0 | EF11: 0 | EG11: 0 | EH11: 0 | EI11: 0 | EJ11: 0 | EK11: 0 | EL11: 0 | EM11: 0 | EN11: 0 | EO11: 0 | EP11: 0 | EQ11: 0 | ER11: 0 | ES11: 0 | ET11: 0 | EZ11: 31.711 | FA11: 0 | FB11: 0 | FC11: 0 | FD11: 0 | FF11: 0 | FG11: 0 | FH11: 0 | FI11: 0 | FJ11: ='Master Map'!$AJ$75+'Master Map'!$AL$73+'Master Map'!$AN$71+'Master Map'!$AP$71 -> 27.9937 | FK11: ='Master Map'!$AJ$72 -> 3.7173 | FL11: 0 | FM11: 0 | FN11: 0 | FO11: 0 | FP11: 0 | FQ11: 0 | FR11: 0 | FS11: 0 | FT11: 0 | FU11: 0 | FV11: 0 | FW11: 0 | FX11: 0 | FY11: 0 | FZ11: 0 | GA11: 0 | GB11: 0 | GC11: 0 | GD11: 0 | GE11: 0 | GF11: 0
A12: Murrumbeena | B12: M004 | D12: 227.7981 | O12: ='Master Map'!$AF$56+'Master Map'!$AF$58+'Master Map'!$AF$60 -> 9.8014 | P12: ='Master Map'!$Y$44+'Master Map'!$Y$46+'Master Map'!$AA$48+'Master Map'!$AB$50+'Master Map'!$AC$52+'Master Map'!$AE$53+'Master Map'!$AF$54 -> 16.0967 | AI12: ='Master Map'!$N$61 -> 143.9 | AK12: =+'Master Map'!$Q$50+'Master Map'!$Q$43+'Master Map'!$T$41 -> 58 | AP12: 721.63467 | AQ12: 0 | AR12: 0 | AS12: 0 | AT12: 0 | AV12: 0 | AW12: 0 | AX12: 0 | AY12: =+$AY$37+'Master Map'!$AQ$66 -> 92.9531 | AZ12: ='Master Map'!$AJ$75+'Master Map'!$AL$73+'Master Map'!$AN$71+'Master Map'!$AP$71 -> 27.9937 | BA12: ='Master Map'!$AJ$72+'Master Map'!$AH$68+'Master Map'!$AF$66+'Master Map'!$AF$64+'Master Map'!$AF$62 -> 20.4669 | BB12: 0 | BC12: 0 | BD12: 0 | BE12: 0 | BF12: 0 | BG12: 0 | BH12: ='Master Map'!$AC$23+'Master Map'!$AC$25+'Master Map'!$AC$27+'Master Map'!$AC$29+'Master Map'!$AC$31+'Master Map'!$AC$33 -> 248.6278 | BI12: 0 | BJ12: 0 | BK12: 0 | BL12: 0 | BM12: ='Master Map'!$AD$21+'Master Map'!$AF$19+'Master Map'!$AH$17+'Master Map'!$AJ$15+'Master Map'!$AL$13+'Master Map'!$AN$11+'Master Map'!$AP$9+'Master Map'!$AR$7 -> 268.3692 | BN12: 0 | BO12: 0 | BP12: 0 | BQ12: 0 | BR12: 0 | BS12: ='Master Map'!$AT$1 -> 63.22397 | BT12: 0 | BU12: 0 | BV12: 0 | CB12: 193.9373 | CC12: ='Master Map'!$BE$68+'Master Map'!$BH$68+'Master Map'!$BJ$68+'Master Map'!$BL$68+'Master Map'!$BN$68+'Master Map'!$AY$68+'Master Map'!$BB$68 -> 64.7151 | CD12: =+'Master Map'!$AW$68+'Master Map'!$AU$70 -> 62.0923 | CE12: 0 | CF12: 0 | CH12: 0 | CI12: 0 | CJ12: ='Master Map'!$AR$72 -> 18.6693 | CK12: 0 | CL12: ='Master Map'!$AJ$75+'Master Map'!$AL$73+'Master Map'!$AN$71+'Master Map'!$AP$71 -> 27.9937 | CM12: =CM23+'Master Map'!$AF$64+'Master Map'!$AF$62 -> 20.4669 | CN12: 0 | CO12: 0 | CP12: 0 | CQ12: 0 | CR12: 0 | CS12: 0 | CT12: 0 | CU12: 0 | CV12: 0 | CW12: 0 | CX12: 0 | CY12: 0 | CZ12: 0 | DA12: 0 | DB12: 0 | DC12: 0 | DD12: 0 | DE12: 0 | DF12: 0 | DG12: 0 | DH12: 0 | DN12: 20.4669 | DO12: 0 | DP12: 0 | DQ12: 0 | DR12: 0 | DT12: 0 | DU12: 0 | DV12: 0 | DW12: 0 | DX12: 0 | DY12: =DY23+'Master Map'!$AF$64+'Master Map'!$AF$62 -> 20.4669 | DZ12: 0 | EA12: 0 | EB12: 0 | EC12: 0 | ED12: 0 | EE12: 0 | EF12: 0 | EG12: 0 | EH12: 0 | EI12: 0 | EJ12: 0 | EK12: 0 | EL12: 0 | EM12: 0 | EN12: 0 | EO12: 0 | EP12: 0 | EQ12: 0 | ER12: 0 | ES12: 0 | ET12: 0 | EZ12: 48.4606 | FA12: 0 | FB12: 0 | FC12: 0 | FD12: 0 | FF12: 0 | FG12: 0 | FH12: 0 | FI12: 0 | FJ12: ='Master Map'!$AJ$75+'Master Map'!$AL$73+'Master Map'!$AN$71+'Master Map'!$AP$71 -> 27.9937 | FK12: =FK23+'Master Map'!$AF$64+'Master Map'!$AF$62 -> 20.4669 | FL12: 0 | FM12: 0 | FN12: 0 | FO12: 0 | FP12: 0 | FQ12: 0 | FR12: 0 | FS12: 0 | FT12: 0 | FU12: 0 | FV12: 0 | FW12: 0 | FX12: 0 | FY12: 0 | FZ12: 0 | GA12: 0 | GB12: 0 | GC12: 0 | GD12: 0 | GE12: 0 | GF12: 0
A13: DTS (Lurgi) | B13: M005 | D13: 248.265 | O13: ='Master Map'!$AF$56+'Master Map'!$AF$58+'Master Map'!$AF$60+'Master Map'!$AF$62+'Master Map'!$AF$64+'Master Map'!$AF$66+'Master Map'!$AH$68+'Master Map'!$AJ$72 -> 30.2683 | P13: ='Master Map'!$Y$44+'Master Map'!$Y$46+'Master Map'!$AA$48+'Master Map'!$AB$50+'Master Map'!$AC$52+'Master Map'!$AE$53+'Master Map'!$AF$54 -> 16.0967 | AI13: ='Master Map'!$N$61 -> 143.9 | AK13: =+'Master Map'!$Q$50+'Master Map'!$Q$43+'Master Map'!$T$41 -> 58 | AP13: 701.16777 | AQ13: 0 | AR13: 0 | AS13: 0 | AT13: 0 | AV13: 0 | AW13: 0 | AX13: 0 | AY13: =+$AY$37+'Master Map'!$AQ$66 -> 92.9531 | AZ13: ='Master Map'!$AJ$75+'Master Map'!$AL$73+'Master Map'!$AN$71+'Master Map'!$AP$71 -> 27.9937 | BA13: 0 | BB13: 0 | BC13: 0 | BD13: 0 | BE13: 0 | BF13: 0 | BG13: 0 | BH13: ='Master Map'!$AC$23+'Master Map'!$AC$25+'Master Map'!$AC$27+'Master Map'!$AC$29+'Master Map'!$AC$31+'Master Map'!$AC$33 -> 248.6278 | BI13: 0 | BJ13: 0 | BK13: 0 | BL13: 0 | BM13: ='Master Map'!$AD$21+'Master Map'!$AF$19+'Master Map'!$AH$17+'Master Map'!$AJ$15+'Master Map'!$AL$13+'Master Map'!$AN$11+'Master Map'!$AP$9+'Master Map'!$AR$7 -> 268.3692 | BN13: 0 | BO13: 0 | BP13: 0 | BQ13: 0 | BR13: 0 | BS13: ='Master Map'!$AT$1 -> 63.22397 | BT13: 0 | BU13: 0 | BV13: 0 | CB13: 198.41716 | CC13: ='Master Map'!$BE$68+'Master Map'!$BH$68+'Master Map'!$BJ$68+'Master Map'!$BL$68+'Master Map'!$BN$68 -> 57.6704 | CD13: 0 | CF13: ='Master Map'!$BE$71+'Master Map'!$BI$72+'Master Map'!$BJ$74+'Master Map'!$BJ$76 -> 20.33256 | CH13: =+'Master Map'!$AR$77+'Master Map'!$AP$77+'Master Map'!$AN$77+'Master Map'!$AL$77+'Master Map'!$AJ$77 -> 27.4535 | CI13: ='Master Map'!$AT$77+'Master Map'!$AV$77+'Master Map'!$AX$77+'Master Map'!$AZ$77+'Master Map'!$BB$77+'Master Map'!$BD$77+'Master Map'!$BF$77+'Master Map'!$BH$77 -> 92.9607 | CK13: 0 | CM13: 0 | CN13: 0 | CO13: 0 | CP13: 0 | CQ13: 0 | CR13: 0 | CS13: 0 | CT13: 0 | CU13: 0 | CV13: 0 | CW13: 0 | CX13: 0 | CY13: 0 | CZ13: 0 | DA13: 0 | DB13: 0 | DC13: 0 | DD13: 0 | DE13: 0 | DF13: 0 | DG13: 0 | DH13: 0 | DN13: 0 | DO13: 0 | DP13: 0 | DQ13: 0 | DR13: 0 | DT13: 0 | DU13: 0 | DV13: 0 | DW13: 0 | DX13: 0 | DY13: 0 | DZ13: 0 | EA13: 0 | EB13: 0 | EC13: 0 | ED13: 0 | EE13: 0 | EF13: 0 | EG13: 0 | EH13: 0 | EI13: 0 | EJ13: 0 | EK13: 0 | EL13: 0 | EM13: 0 | EN13: 0 | EO13: 0 | EP13: 0 | EQ13: 0 | ER13: 0 | ES13: 0 | ET13: 0 | EZ13: 27.9937 | FA13: 0 | FB13: 0 | FC13: 0 | FD13: 0 | FF13: 0 | FG13: 0 | FH13: 0 | FI13: 0 | FJ13: ='Master Map'!$AJ$75+'Master Map'!$AL$73+'Master Map'!$AN$71+'Master Map'!$AP$71 -> 27.9937 | FK13: 0 | FL13: 0 | FM13: 0 | FN13: 0 | FO13: 0 | FP13: 0 | FQ13: 0 | FR13: 0 | FS13: 0 | FT13: 0 | FU13: 0 | FV13: 0 | FW13: 0 | FX13: 0 | FY13: 0 | FZ13: 0 | GA13: 0 | GB13: 0 | GC13: 0 | GD13: 0 | GE13: 0 | GF13: 0
A14: LNG Plant Meter 'C3' (700kpa Letdown) | B14: M006 | D14: 248.265 | O14: ='Master Map'!$AF$56+'Master Map'!$AF$58+'Master Map'!$AF$60+'Master Map'!$AF$62+'Master Map'!$AF$64+'Master Map'!$AF$66+'Master Map'!$AH$68+'Master Map'!$AJ$72 -> 30.2683 | P14: ='Master Map'!$Y$44+'Master Map'!$Y$46+'Master Map'!$AA$48+'Master Map'!$AB$50+'Master Map'!$AC$52+'Master Map'!$AE$53+'Master Map'!$AF$54 -> 16.0967 | AI14: ='Master Map'!$N$61 -> 143.9 | AK14: =+'Master Map'!$Q$50+'Master Map'!$Q$43+'Master Map'!$T$41 -> 58 | AP14: 701.16777 | AQ14: 0 | AR14: 0 | AS14: 0 | AT14: 0 | AV14: 0 | AW14: 0 | AX14: 0 | AY14: =+$AY$37+'Master Map'!$AQ$66 -> 92.9531 | AZ14: ='Master Map'!$AJ$75+'Master Map'!$AL$73+'Master Map'!$AN$71+'Master Map'!$AP$71 -> 27.9937 | BA14: 0 | BB14: 0 | BC14: 0 | BD14: 0 | BE14: 0 | BF14: 0 | BG14: 0 | BH14: ='Master Map'!$AC$23+'Master Map'!$AC$25+'Master Map'!$AC$27+'Master Map'!$AC$29+'Master Map'!$AC$31+'Master Map'!$AC$33 -> 248.6278 | BI14: 0 | BJ14: 0 | BK14: 0 | BL14: 0 | BM14: ='Master Map'!$AD$21+'Master Map'!$AF$19+'Master Map'!$AH$17+'Master Map'!$AJ$15+'Master Map'!$AL$13+'Master Map'!$AN$11+'Master Map'!$AP$9+'Master Map'!$AR$7 -> 268.3692 | BN14: 0 | BO14: 0 | BP14: 0 | BQ14: 0 | BR14: 0 | BS14: ='Master Map'!$AT$1 -> 63.22397 | BT14: 0 | BU14: 0 | BV14: 0 | CB14: 173.4704 | CC14: ='Master Map'!$BE$68+'Master Map'!$BH$68+'Master Map'!$BJ$68+'Master Map'!$BL$68+'Master Map'!$BN$68+'Master Map'!$AY$68+'Master Map'!$BB$68 -> 64.7151 | CD14: =+'Master Map'!$AW$68+'Master Map'!$AU$70 -> 62.0923 | CE14: 0 | CF14: 0 | CH14: 0 | CI14: 0 | CJ14: ='Master Map'!$AR$72 -> 18.6693 | CK14: 0 | CL14: ='Master Map'!$AJ$75+'Master Map'!$AL$73+'Master Map'!$AN$71+'Master Map'!$AP$71 -> 27.9937 | CM14: 0 | CN14: 0 | CO14: 0 | CP14: 0 | CQ14: 0 | CR14: 0 | CS14: 0 | CT14: 0 | CU14: 0 | CV14: 0 | CW14: 0 | CX14: 0 | CY14: 0 | CZ14: 0 | DA14: 0 | DB14: 0 | DC14: 0 | DD14: 0 | DE14: 0 | DF14: 0 | DG14: 0 | DH14: 0 | DN14: 0 | DO14: 0 | DP14: 0 | DQ14: 0 | DR14: 0 | DT14: 0 | DU14: 0 | DV14: 0 | DW14: 0 | DX14: 0 | DY14: 0 | DZ14: 0 | EA14: 0 | EB14: 0 | EC14: 0 | ED14: 0 | EE14: 0 | EF14: 0 | EG14: 0 | EH14: 0 | EI14: 0 | EJ14: 0 | EK14: 0 | EL14: 0 | EM14: 0 | EN14: 0 | EO14: 0 | EP14: 0 | EQ14: 0 | ER14: 0 | ES14: 0 | ET14: 0 | EZ14: 27.9937 | FA14: 0 | FB14: 0 | FC14: 0 | FD14: 0 | FF14: 0 | FG14: 0 | FH14: 0 | FI14: 0 | FJ14: ='Master Map'!$AJ$75+'Master Map'!$AL$73+'Master Map'!$AN$71+'Master Map'!$AP$71 -> 27.9937 | FK14: 0 | FL14: 0 | FM14: 0 | FN14: 0 | FO14: 0 | FP14: 0 | FQ14: 0 | FR14: 0 | FS14: 0 | FT14: 0 | FU14: 0 | FV14: 0 | FW14: 0 | FX14: 0 | FY14: 0 | FZ14: 0 | GA14: 0 | GB14: 0 | GC14: 0 | GD14: 0 | GE14: 0 | GF14: 0
A15: DTS (Edithvale) | B15: M007 | D15: 248.265 | O15: ='Master Map'!$AF$56+'Master Map'!$AF$58+'Master Map'!$AF$60+'Master Map'!$AF$62+'Master Map'!$AF$64+'Master Map'!$AF$66+'Master Map'!$AH$68+'Master Map'!$AJ$72 -> 30.2683 | P15: ='Master Map'!$Y$44+'Master Map'!$Y$46+'Master Map'!$AA$48+'Master Map'!$AB$50+'Master Map'!$AC$52+'Master Map'!$AE$53+'Master Map'!$AF$54 -> 16.0967 | AI15: ='Master Map'!$N$61 -> 143.9 | AK15: =+'Master Map'!$Q$50+'Master Map'!$Q$43+'Master Map'!$T$41 -> 58 | AP15: 701.16777 | AQ15: 0 | AR15: 0 | AS15: 0 | AT15: 0 | AV15: 0 | AW15: 0 | AX15: 0 | AY15: =+$AY$37+'Master Map'!$AQ$66 -> 92.9531 | AZ15: ='Master Map'!$AJ$75+'Master Map'!$AL$73+'Master Map'!$AN$71+'Master Map'!$AP$71 -> 27.9937 | BA15: 0 | BB15: 0 | BC15: 0 | BD15: 0 | BE15: 0 | BF15: 0 | BG15: 0 | BH15: ='Master Map'!$AC$23+'Master Map'!$AC$25+'Master Map'!$AC$27+'Master Map'!$AC$29+'Master Map'!$AC$31+'Master Map'!$AC$33 -> 248.6278 | BI15: 0 | BJ15: 0 | BK15: 0 | BL15: 0 | BM15: ='Master Map'!$AD$21+'Master Map'!$AF$19+'Master Map'!$AH$17+'Master Map'!$AJ$15+'Master Map'!$AL$13+'Master Map'!$AN$11+'Master Map'!$AP$9+'Master Map'!$AR$7 -> 268.3692 | BN15: 0 | BO15: 0 | BP15: 0 | BQ15: 0 | BR15: 0 | BS15: ='Master Map'!$AT$1 -> 63.22397 | BT15: 0 | BU15: 0 | BV15: 0 | CB15: 173.4704 | CC15: ='Master Map'!$BE$68+'Master Map'!$BH$68+'Master Map'!$BJ$68+'Master Map'!$BL$68+'Master Map'!$BN$68+'Master Map'!$AY$68+'Master Map'!$BB$68 -> 64.7151 | CD15: =+'Master Map'!$AW$68+'Master Map'!$AU$70 -> 62.0923 | CE15: 0 | CF15: 0 | CH15: 0 | CI15: 0 | CJ15: ='Master Map'!$AR$72 -> 18.6693 | CK15: 0 | CL15: ='Master Map'!$AJ$75+'Master Map'!$AL$73+'Master Map'!$AN$71+'Master Map'!$AP$71 -> 27.9937 | CM15: 0 | CN15: 0 | CO15: 0 | CP15: 0 | CQ15: 0 | CR15: 0 | CS15: 0 | CT15: 0 | CU15: 0 | CV15: 0 | CW15: 0 | CX15: 0 | CY15: 0 | CZ15: 0 | DA15: 0 | DB15: 0 | DC15: 0 | DD15: 0 | DE15: 0 | DF15: 0 | DG15: 0 | DH15: 0 | DN15: 0 | DO15: 0 | DP15: 0 | DQ15: 0 | DR15: 0 | DT15: 0 | DU15: 0 | DV15: 0 | DW15: 0 | DX15: 0 | DY15: 0 | DZ15: 0 | EA15: 0 | EB15: 0 | EC15: 0 | ED15: 0 | EE15: 0 | EF15: 0 | EG15: 0 | EH15: 0 | EI15: 0 | EJ15: 0 | EK15: 0 | EL15: 0 | EM15: 0 | EN15: 0 | EO15: 0 | EP15: 0 | EQ15: 0 | ER15: 0 | ES15: 0 | ET15: 0 | EZ15: 27.9937 | FA15: 0 | FB15: 0 | FC15: 0 | FD15: 0 | FF15: 0 | FG15: 0 | FH15: 0 | FI15: 0 | FJ15: ='Master Map'!$AJ$75+'Master Map'!$AL$73+'Master Map'!$AN$71+'Master Map'!$AP$71 -> 27.9937 | FK15: 0 | FL15: 0 | FM15: 0 | FN15: 0 | FO15: 0 | FP15: 0 | FQ15: 0 | FR15: 0 | FS15: 0 | FT15: 0 | FU15: 0 | FV15: 0 | FW15: 0 | FX15: 0 | FY15: 0 | FZ15: 0 | GA15: 0 | GB15: 0 | GC15: 0 | GD15: 0 | GE15: 0 | GF15: 0
A16: Brooklyn | B16: M008 | D16: 201.9 | AI16: ='Master Map'!$N$61 -> 143.9 | AK16: =+'Master Map'!$Q$50+'Master Map'!$Q$43+'Master Map'!$T$41 -> 58 | AP16: 716.31349 | AQ16: 0 | AR16: 0 | AS16: 0 | AT16: 0 | AV16: 0 | AW16: 0 | AX16: 0 | AY16: 0 | AZ16: 0 | BA16: 0 | BB16: 0 | BC16: 0 | BD16: 0 | BE16: ='Master Map'!$Q$40+'Master Map'!$S$40+'Master Map'!$U$40+'Master Map'!$X$42 -> 26.245 | BF16: ='Master Map'!$K$40+'Master Map'!$M$40+'Master Map'!$O$40 -> 40.3542 | BG16: 0 | BH16: ='Master Map'!$AC$23+'Master Map'!$AC$25+'Master Map'!$AC$27+'Master Map'!$AC$29 -> 194.09202 | BI16: ='Master Map'!$J$37+'Master Map'!$J$33 -> 39.9597 | BJ16: 0 | BK16: 0 | BL16: =+'Master Map'!$AA$30+'Master Map'!$W$30+'Master Map'!$T$30+'Master Map'!$P$30+'Master Map'!$L$30 -> 84.0694 | BM16: ='Master Map'!$AD$21+'Master Map'!$AF$19+'Master Map'!$AH$17+'Master Map'!$AJ$15+'Master Map'!$AL$13+'Master Map'!$AN$11+'Master Map'!$AP$9+'Master Map'!$AR$7 -> 268.3692 | BN16: 0 | BO16: 0 | BP16: 0 | BQ16: 0 | BR16: 0 | BS16: ='Master Map'!$AT$1 -> 63.22397 | BT16: 0 | BU16: 0 | BV16: 0 | CB16: 219.8354 | CC16: ='Master Map'!$BE$68+'Master Map'!$BH$68+'Master Map'!$BJ$68+'Master Map'!$BL$68+'Master Map'!$BN$68+'Master Map'!$AY$68+'Master Map'!$BB$68 -> 64.7151 | CD16: =+'Master Map'!$AW$68+'Master Map'!$AU$70 -> 62.0923 | CE16: 0 | CF16: 0 | CH16: 0 | CI16: 0 | CJ16: ='Master Map'!$AR$72 -> 18.6693 | CK16: 0 | CL16: ='Master Map'!$AJ$75+'Master Map'!$AL$73+'Master Map'!$AN$71+'Master Map'!$AP$71 -> 27.9937 | CM16: ='Master Map'!$AF$56+'Master Map'!$AF$58+'Master Map'!$AF$60+'Master Map'!$AF$62+'Master Map'!$AF$64+'Master Map'!$AF$66+'Master Map'!$AH$68+'Master Map'!$AJ$72 -> 30.2683 | CN16: ='Master Map'!$Y$44+'Master Map'!$Y$46+'Master Map'!$AA$48+'Master Map'!$AB$50+'Master Map'!$AC$52+'Master Map'!$AE$53+'Master Map'!$AF$54 -> 16.0967 | CO16: 0 | CP16: 0 | CQ16: 0 | CR16: 0 | CS16: 0 | CT16: 0 | CU16: 0 | CV16: 0 | CW16: 0 | CX16: 0 | CY16: 0 | CZ16: 0 | DA16: 0 | DB16: 0 | DC16: 0 | DD16: 0 | DE16: 0 | DF16: 0 | DG16: 0 | DH16: 0 | DN16: 46.365 | DO16: 0 | DP16: 0 | DQ16: 0 | DR16: 0 | DT16: 0 | DU16: 0 | DV16: 0 | DW16: 0 | DX16: 0 | DY16: ='Master Map'!$AF$56+'Master Map'!$AF$58+'Master Map'!$AF$60+'Master Map'!$AF$62+'Master Map'!$AF$64+'Master Map'!$AF$66+'Master Map'!$AH$68+'Master Map'!$AJ$72 -> 30.2683 | DZ16: ='Master Map'!$AF$54+'Master Map'!$AE$53+'Master Map'!$AC$52+'Master Map'!$AB$50+'Master Map'!$AA$48+'Master Map'!$Y$46+'Master Map'!$Y$44 -> 16.0967 | EA16: 0 | EB16: 0 | EC16: 0 | ED16: 0 | EE16: 0 | EF16: 0 | EG16: 0 | EH16: 0 | EI16: 0 | EJ16: 0 | EK16: 0 | EL16: 0 | EM16: 0 | EN16: 0 | EO16: 0 | EP16: 0 | EQ16: 0 | ER16: 0 | ES16: 0 | ET16: 0 | EZ16: 74.3587 | FA16: 0 | FB16: 0 | FC16: 0 | FD16: 0 | FF16: 0 | FG16: 0 | FH16: 0 | FI16: 0 | FJ16: ='Master Map'!$AJ$75+'Master Map'!$AL$73+'Master Map'!$AN$71+'Master Map'!$AP$71 -> 27.9937 | FK16: ='Master Map'!$AF$56+'Master Map'!$AF$58+'Master Map'!$AF$60+'Master Map'!$AF$62+'Master Map'!$AF$64+'Master Map'!$AF$66+'Master Map'!$AH$68+'Master Map'!$AJ$72 -> 30.2683 | FL16: ='Master Map'!$AF$54+'Master Map'!$AE$53+'Master Map'!$AC$52+'Master Map'!$AB$50+'Master Map'!$AA$48+'Master Map'!$Y$46+'Master Map'!$Y$44 -> 16.0967 | FM16: 0 | FN16: 0 | FO16: 0 | FP16: 0 | FQ16: 0 | FR16: 0 | FS16: 0 | FT16: 0 | FU16: 0 | FV16: 0 | FW16: 0 | FX16: 0 | FY16: 0 | FZ16: 0 | GA16: 0 | GB16: 0 | GC16: 0 | GD16: 0 | GE16: 0 | GF16: 0
A17: W.Melbourne (Footscray) | B17: M009 | D17: 216.8136 | P17: ='Master Map'!$Y$44+'Master Map'!$Y$46+'Master Map'!$AA$48+'Master Map'!$AB$50+'Master Map'!$AC$52+'Master Map'!$AE$53+'Master Map'!$AF$52+'Master Map'!$AF$50 -> 14.9136 | AI17: ='Master Map'!$N$61 -> 143.9 | AK17: =+'Master Map'!$Q$50+'Master Map'!$Q$43+'Master Map'!$T$41 -> 58 | AP17: 736.84637 | AQ17: 0 | AR17: 0 | AS17: 0 | AT17: 0 | AV17: 0 | AW17: 0 | AX17: 0 | AY17: =+$AY$37+'Master Map'!$AQ$66 -> 92.9531 | AZ17: ='Master Map'!$AJ$75+'Master Map'!$AL$73+'Master Map'!$AN$71+'Master Map'!$AP$71 -> 27.9937 | BA17: ='Master Map'!$AJ$72+'Master Map'!$AH$68+'Master Map'!$AF$66+'Master Map'!$AF$64+'Master Map'!$AF$62+'Master Map'!$AF$60+'Master Map'!$AF$58+'Master Map'!$AF$56 -> 30.2683 | BB17: ='Master Map'!$AF$54+'Master Map'!$AF$52+'Master Map'!$AF$50 -> 5.4103 | BC17: 0 | BD17: 0 | BE17: 0 | BF17: 0 | BG17: 0 | BH17: ='Master Map'!$AC$23+'Master Map'!$AC$25+'Master Map'!$AC$27+'Master Map'!$AC$29+'Master Map'!$AC$31+'Master Map'!$AC$33 -> 248.6278 | BI17: 0 | BJ17: 0 | BK17: 0 | BL17: 0 | BM17: ='Master Map'!$AD$21+'Master Map'!$AF$19+'Master Map'!$AH$17+'Master Map'!$AJ$15+'Master Map'!$AL$13+'Master Map'!$AN$11+'Master Map'!$AP$9+'Master Map'!$AR$7 -> 268.3692 | BN17: 0 | BO17: 0 | BP17: 0 | BQ17: 0 | BR17: 0 | BS17: ='Master Map'!$AT$1 -> 63.22397 | BT17: 0 | BU17: 0 | BV17: 0 | CB17: 209.149 | CC17: ='Master Map'!$BE$68+'Master Map'!$BH$68+'Master Map'!$BJ$68+'Master Map'!$BL$68+'Master Map'!$BN$68+'Master Map'!$AY$68+'Master Map'!$BB$68 -> 64.7151 | CD17: =+'Master Map'!$AW$68+'Master Map'!$AU$70 -> 62.0923 | CE17: 0 | CF17: 0 | CH17: 0 | CI17: 0 | CJ17: ='Master Map'!$AR$72 -> 18.6693 | CK17: 0 | CL17: ='Master Map'!$AJ$75+'Master Map'!$AL$73+'Master Map'!$AN$71+'Master Map'!$AP$71 -> 27.9937 | CM17: ='Master Map'!$AF$56+'Master Map'!$AF$58+'Master Map'!$AF$60+'Master Map'!$AF$62+'Master Map'!$AF$64+'Master Map'!$AF$66+'Master Map'!$AH$68+'Master Map'!$AJ$72 -> 30.2683 | CN17: ='Master Map'!$AF$54+'Master Map'!$AF$52+'Master Map'!$AF$50 -> 5.4103 | CO17: 0 | CP17: 0 | CQ17: 0 | CR17: 0 | CS17: 0 | CT17: 0 | CU17: 0 | CV17: 0 | CW17: 0 | CX17: 0 | CY17: 0 | CZ17: 0 | DA17: 0 | DB17: 0 | DC17: 0 | DD17: 0 | DE17: 0 | DF17: 0 | DG17: 0 | DH17: 0 | DN17: 35.6786 | DO17: 0 | DP17: 0 | DQ17: 0 | DR17: 0 | DT17: 0 | DU17: 0 | DV17: 0 | DW17: 0 | DX17: 0 | DY17: ='Master Map'!$AF$56+'Master Map'!$AF$58+'Master Map'!$AF$60+'Master Map'!$AF$62+'Master Map'!$AF$64+'Master Map'!$AF$66+'Master Map'!$AH$68+'Master Map'!$AJ$72 -> 30.2683 | DZ17: ='Master Map'!$AF$54+'Master Map'!$AF$52+'Master Map'!$AF$50 -> 5.4103 | EA17: 0 | EB17: 0 | EC17: 0 | ED17: 0 | EE17: 0 | EF17: 0 | EG17: 0 | EH17: 0 | EI17: 0 | EJ17: 0 | EK17: 0 | EL17: 0 | EM17: 0 | EN17: 0 | EO17: 0 | EP17: 0 | EQ17: 0 | ER17: 0 | ES17: 0 | ET17: 0 | EZ17: 63.6723 | FA17: 0 | FB17: 0 | FC17: 0 | FD17: 0 | FF17: 0 | FG17: 0 | FH17: 0 | FI17: 0 | FJ17: ='Master Map'!$AJ$75+'Master Map'!$AL$73+'Master Map'!$AN$71+'Master Map'!$AP$71 -> 27.9937 | FK17: ='Master Map'!$AF$56+'Master Map'!$AF$58+'Master Map'!$AF$60+'Master Map'!$AF$62+'Master Map'!$AF$64+'Master Map'!$AF$66+'Master Map'!$AH$68+'Master Map'!$AJ$72 -> 30.2683 | FL17: ='Master Map'!$AF$54+'Master Map'!$AF$52+'Master Map'!$AF$50 -> 5.4103 | FM17: 0 | FN17: 0 | FO17: 0 | FP17: 0 | FQ17: 0 | FR17: 0 | FS17: 0 | FT17: 0 | FU17: 0 | FV17: 0 | FW17: 0 | FX17: 0 | FY17: 0 | FZ17: 0 | GA17: 0 | GB17: 0 | GC17: 0 | GD17: 0 | GE17: 0 | GF17: 0
A18: Melbourne (QWR) | B18: M011 | D18: 215.8221 | P18: ='Master Map'!$Y$44+'Master Map'!$Y$46+'Master Map'!$AA$48+'Master Map'!$AB$50+'Master Map'!$AC$52+'Master Map'!$AE$53+'Master Map'!$AF$52 -> 13.9221 | AI18: ='Master Map'!$N$61 -> 143.9 | AK18: =+'Master Map'!$Q$50+'Master Map'!$Q$43+'Master Map'!$T$41 -> 58 | AP18: 735.85487 | AQ18: 0 | AR18: 0 | AS18: 0 | AT18: 0 | AV18: 0 | AW18: 0 | AX18: 0 | AY18: =+$AY$37+'Master Map'!$AQ$66 -> 92.9531 | AZ18: ='Master Map'!$AJ$75+'Master Map'!$AL$73+'Master Map'!$AN$71+'Master Map'!$AP$71 -> 27.9937 | BA18: ='Master Map'!$AJ$72+'Master Map'!$AH$68+'Master Map'!$AF$66+'Master Map'!$AF$64+'Master Map'!$AF$62+'Master Map'!$AF$60+'Master Map'!$AF$58+'Master Map'!$AF$56 -> 30.2683 | BB18: ='Master Map'!$AF$54+'Master Map'!$AF$52 -> 4.4188 | BC18: 0 | BD18: 0 | BE18: 0 | BF18: 0 | BG18: 0 | BH18: ='Master Map'!$AC$23+'Master Map'!$AC$25+'Master Map'!$AC$27+'Master Map'!$AC$29+'Master Map'!$AC$31+'Master Map'!$AC$33 -> 248.6278 | BI18: 0 | BJ18: 0 | BK18: 0 | BL18: 0 | BM18: ='Master Map'!$AD$21+'Master Map'!$AF$19+'Master Map'!$AH$17+'Master Map'!$AJ$15+'Master Map'!$AL$13+'Master Map'!$AN$11+'Master Map'!$AP$9+'Master Map'!$AR$7 -> 268.3692 | BN18: 0 | BO18: 0 | BP18: 0 | BQ18: 0 | BR18: 0 | BS18: ='Master Map'!$AT$1 -> 63.22397 | BT18: 0 | BU18: 0 | BV18: 0 | CB18: 208.1575 | CC18: ='Master Map'!$BE$68+'Master Map'!$BH$68+'Master Map'!$BJ$68+'Master Map'!$BL$68+'Master Map'!$BN$68+'Master Map'!$AY$68+'Master Map'!$BB$68 -> 64.7151 | CD18: =+'Master Map'!$AW$68+'Master Map'!$AU$70 -> 62.0923 | CE18: 0 | CF18: 0 | CH18: 0 | CI18: 0 | CJ18: ='Master Map'!$AR$72 -> 18.6693 | CK18: 0 | CL18: ='Master Map'!$AJ$75+'Master Map'!$AL$73+'Master Map'!$AN$71+'Master Map'!$AP$71 -> 27.9937 | CM18: ='Master Map'!$AF$56+'Master Map'!$AF$58+'Master Map'!$AF$60+'Master Map'!$AF$62+'Master Map'!$AF$64+'Master Map'!$AF$66+'Master Map'!$AH$68+'Master Map'!$AJ$72 -> 30.2683 | CN18: ='Master Map'!$AF$54+'Master Map'!$AF$52 -> 4.4188 | CO18: 0 | CP18: 0 | CQ18: 0 | CR18: 0 | CS18: 0 | CT18: 0 | CU18: 0 | CV18: 0 | CW18: 0 | CX18: 0 | CY18: 0 | CZ18: 0 | DA18: 0 | DB18: 0 | DC18: 0 | DD18: 0 | DE18: 0 | DF18: 0 | DG18: 0 | DH18: 0 | DN18: 34.6871 | DO18: 0 | DP18: 0 | DQ18: 0 | DR18: 0 | DT18: 0 | DU18: 0 | DV18: 0 | DW18: 0 | DX18: 0 | DY18: ='Master Map'!$AF$56+'Master Map'!$AF$58+'Master Map'!$AF$60+'Master Map'!$AF$62+'Master Map'!$AF$64+'Master Map'!$AF$66+'Master Map'!$AH$68+'Master Map'!$AJ$72 -> 30.2683 | DZ18: ='Master Map'!$AF$54+'Master Map'!$AF$52 -> 4.4188 | EA18: 0 | EB18: 0 | EC18: 0 | ED18: 0 | EE18: 0 | EF18: 0 | EG18: 0 | EH18: 0 | EI18: 0 | EJ18: 0 | EK18: 0 | EL18: 0 | EM18: 0 | EN18: 0 | EO18: 0 | EP18: 0 | EQ18: 0 | ER18: 0 | ES18: 0 | ET18: 0 | EZ18: 62.6808 | FA18: 0 | FB18: 0 | FC18: 0 | FD18: 0 | FF18: 0 | FG18: 0 | FH18: 0 | FI18: 0 | FJ18: ='Master Map'!$AJ$75+'Master Map'!$AL$73+'Master Map'!$AN$71+'Master Map'!$AP$71 -> 27.9937 | FK18: ='Master Map'!$AF$56+'Master Map'!$AF$58+'Master Map'!$AF$60+'Master Map'!$AF$62+'Master Map'!$AF$64+'Master Map'!$AF$66+'Master Map'!$AH$68+'Master Map'!$AJ$72 -> 30.2683 | FL18: ='Master Map'!$AF$54+'Master Map'!$AF$52 -> 4.4188 | FM18: 0 | FN18: 0 | FO18: 0 | FP18: 0 | FQ18: 0 | FR18: 0 | FS18: 0 | FT18: 0 | FU18: 0 | FV18: 0 | FW18: 0 | FX18: 0 | FY18: 0 | FZ18: 0 | GA18: 0 | GB18: 0 | GC18: 0 | GD18: 0 | GE18: 0 | GF18: 0
A19: St Kilda | B19: M012 | D19: 217.9967 | P19: ='Master Map'!$Y$44+'Master Map'!$Y$46+'Master Map'!$AA$48+'Master Map'!$AB$50+'Master Map'!$AC$52+'Master Map'!$AE$53+'Master Map'!$AF$54 -> 16.0967 | AI19: ='Master Map'!$N$61 -> 143.9 | AK19: =+'Master Map'!$Q$50+'Master Map'!$Q$43+'Master Map'!$T$41 -> 58 | AP19: 731.43607 | AQ19: 0 | AR19: 0 | AS19: 0 | AT19: 0 | AV19: 0 | AW19: 0 | AX19: 0 | AY19: =+$AY$37+'Master Map'!$AQ$66 -> 92.9531 | AZ19: ='Master Map'!$AJ$75+'Master Map'!$AL$73+'Master Map'!$AN$71+'Master Map'!$AP$71 -> 27.9937 | BA19: ='Master Map'!$AJ$72+'Master Map'!$AH$68+'Master Map'!$AF$66+'Master Map'!$AF$64+'Master Map'!$AF$62+'Master Map'!$AF$60+'Master Map'!$AF$58+'Master Map'!$AF$56 -> 30.2683 | BB19: 0 | BC19: 0 | BD19: 0 | BE19: 0 | BF19: 0 | BG19: 0 | BH19: ='Master Map'!$AC$23+'Master Map'!$AC$25+'Master Map'!$AC$27+'Master Map'!$AC$29+'Master Map'!$AC$31+'Master Map'!$AC$33 -> 248.6278 | BI19: 0 | BJ19: 0 | BK19: 0 | BL19: 0 | BM19: ='Master Map'!$AD$21+'Master Map'!$AF$19+'Master Map'!$AH$17+'Master Map'!$AJ$15+'Master Map'!$AL$13+'Master Map'!$AN$11+'Master Map'!$AP$9+'Master Map'!$AR$7 -> 268.3692 | BN19: 0 | BO19: 0 | BP19: 0 | BQ19: 0 | BR19: 0 | BS19: ='Master Map'!$AT$1 -> 63.22397 | BT19: 0 | BU19: 0 | BV19: 0 | CB19: 203.7387 | CC19: ='Master Map'!$BE$68+'Master Map'!$BH$68+'Master Map'!$BJ$68+'Master Map'!$BL$68+'Master Map'!$BN$68+'Master Map'!$AY$68+'Master Map'!$BB$68 -> 64.7151 | CD19: =+'Master Map'!$AW$68+'Master Map'!$AU$70 -> 62.0923 | CE19: 0 | CF19: 0 | CH19: 0 | CI19: 0 | CJ19: ='Master Map'!$AR$72 -> 18.6693 | CK19: 0 | CL19: ='Master Map'!$AJ$75+'Master Map'!$AL$73+'Master Map'!$AN$71+'Master Map'!$AP$71 -> 27.9937 | CM19: ='Master Map'!$AF$56+'Master Map'!$AF$58+'Master Map'!$AF$60+'Master Map'!$AF$62+'Master Map'!$AF$64+'Master Map'!$AF$66+'Master Map'!$AH$68+'Master Map'!$AJ$72 -> 30.2683 | CN19: 0 | CO19: 0 | CP19: 0 | CQ19: 0 | CR19: 0 | CS19: 0 | CT19: 0 | CU19: 0 | CV19: 0 | CW19: 0 | CX19: 0 | CY19: 0 | CZ19: 0 | DA19: 0 | DB19: 0 | DC19: 0 | DD19: 0 | DE19: 0 | DF19: 0 | DG19: 0 | DH19: 0 | DN19: 30.2683 | DO19: 0 | DP19: 0 | DQ19: 0 | DR19: 0 | DT19: 0 | DU19: 0 | DV19: 0 | DW19: 0 | DX19: 0 | DY19: ='Master Map'!$AF$56+'Master Map'!$AF$58+'Master Map'!$AF$60+'Master Map'!$AF$62+'Master Map'!$AF$64+'Master Map'!$AF$66+'Master Map'!$AH$68+'Master Map'!$AJ$72 -> 30.2683 | DZ19: 0 | EA19: 0 | EB19: 0 | EC19: 0 | ED19: 0 | EE19: 0 | EF19: 0 | EG19: 0 | EH19: 0 | EI19: 0 | EJ19: 0 | EK19: 0 | EL19: 0 | EM19: 0 | EN19: 0 | EO19: 0 | EP19: 0 | EQ19: 0 | ER19: 0 | ES19: 0 | ET19: 0 | EZ19: 58.262 | FA19: 0 | FB19: 0 | FC19: 0 | FD19: 0 | FF19: 0 | FG19: 0 | FH19: 0 | FI19: 0 | FJ19: ='Master Map'!$AJ$75+'Master Map'!$AL$73+'Master Map'!$AN$71+'Master Map'!$AP$71 -> 27.9937 | FK19: ='Master Map'!$AF$56+'Master Map'!$AF$58+'Master Map'!$AF$60+'Master Map'!$AF$62+'Master Map'!$AF$64+'Master Map'!$AF$66+'Master Map'!$AH$68+'Master Map'!$AJ$72 -> 30.2683 | FL19: 0 | FM19: 0 | FN19: 0 | FO19: 0 | FP19: 0 | FQ19: 0 | FR19: 0 | FS19: 0 | FT19: 0 | FU19: 0 | FV19: 0 | FW19: 0 | FX19: 0 | FY19: 0 | FZ19: 0 | GA19: 0 | GB19: 0 | GC19: 0 | GD19: 0 | GE19: 0 | GF19: 0
A20: Spotswood | B20: M013 | D20: 206.541 | P20: ='Master Map'!$Y$44 -> 4.641 | AI20: ='Master Map'!$N$61 -> 143.9 | AK20: =+'Master Map'!$Q$50+'Master Map'!$Q$43+'Master Map'!$T$41 -> 58 | AP20: 742.89177 | AQ20: 0 | AR20: 0 | AS20: 0 | AT20: 0 | AV20: 0 | AW20: 0 | AX20: 0 | AY20: =+$AY$37+'Master Map'!$AQ$66 -> 92.9531 | AZ20: ='Master Map'!$AJ$75+'Master Map'!$AL$73+'Master Map'!$AN$71+'Master Map'!$AP$71 -> 27.9937 | BA20: ='Master Map'!$AJ$72+'Master Map'!$AH$68+'Master Map'!$AF$66+'Master Map'!$AF$64+'Master Map'!$AF$62+'Master Map'!$AF$60+'Master Map'!$AF$58+'Master Map'!$AF$56 -> 30.2683 | BB20: ='Master Map'!$AF$54+'Master Map'!$AE$53+'Master Map'!$AC$52+'Master Map'!$AB$50+'Master Map'!$AA$48+'Master Map'!$Y$46 -> 11.4557 | BC20: 0 | BD20: 0 | BE20: 0 | BF20: 0 | BG20: 0 | BH20: ='Master Map'!$AC$23+'Master Map'!$AC$25+'Master Map'!$AC$27+'Master Map'!$AC$29+'Master Map'!$AC$31+'Master Map'!$AC$33 -> 248.6278 | BI20: 0 | BJ20: 0 | BK20: 0 | BL20: 0 | BM20: ='Master Map'!$AD$21+'Master Map'!$AF$19+'Master Map'!$AH$17+'Master Map'!$AJ$15+'Master Map'!$AL$13+'Master Map'!$AN$11+'Master Map'!$AP$9+'Master Map'!$AR$7 -> 268.3692 | BN20: 0 | BO20: 0 | BP20: 0 | BQ20: 0 | BR20: 0 | BS20: ='Master Map'!$AT$1 -> 63.22397 | BT20: 0 | BU20: 0 | BV20: 0 | CB20: 215.1944 | CC20: ='Master Map'!$BE$68+'Master Map'!$BH$68+'Master Map'!$BJ$68+'Master Map'!$BL$68+'Master Map'!$BN$68+'Master Map'!$AY$68+'Master Map'!$BB$68 -> 64.7151 | CD20: =+'Master Map'!$AW$68+'Master Map'!$AU$70 -> 62.0923 | CE20: 0 | CF20: 0 | CH20: 0 | CI20: 0 | CJ20: ='Master Map'!$AR$72 -> 18.6693 | CK20: 0 | CL20: ='Master Map'!$AJ$75+'Master Map'!$AL$73+'Master Map'!$AN$71+'Master Map'!$AP$71 -> 27.9937 | CM20: ='Master Map'!$AF$56+'Master Map'!$AF$58+'Master Map'!$AF$60+'Master Map'!$AF$62+'Master Map'!$AF$64+'Master Map'!$AF$66+'Master Map'!$AH$68+'Master Map'!$AJ$72 -> 30.2683 | CN20: ='Master Map'!$Y$46+'Master Map'!$AA$48+'Master Map'!$AB$50+'Master Map'!$AC$52+'Master Map'!$AE$53+'Master Map'!$AF$54 -> 11.4557 | CO20: 0 | CP20: 0 | CQ20: 0 | CR20: 0 | CS20: 0 | CT20: 0 | CU20: 0 | CV20: 0 | CW20: 0 | CX20: 0 | CY20: 0 | CZ20: 0 | DA20: 0 | DB20: 0 | DC20: 0 | DD20: 0 | DE20: 0 | DF20: 0 | DG20: 0 | DH20: 0 | DN20: 41.724 | DO20: 0 | DP20: 0 | DQ20: 0 | DR20: 0 | DT20: 0 | DU20: 0 | DV20: 0 | DW20: 0 | DX20: 0 | DY20: ='Master Map'!$AF$56+'Master Map'!$AF$58+'Master Map'!$AF$60+'Master Map'!$AF$62+'Master Map'!$AF$64+'Master Map'!$AF$66+'Master Map'!$AH$68+'Master Map'!$AJ$72 -> 30.2683 | DZ20: =DZ28+'Master Map'!$AA$48+'Master Map'!$Y$46 -> 11.4557 | EA20: 0 | EB20: 0 | EC20: 0 | ED20: 0 | EE20: 0 | EF20: 0 | EG20: 0 | EH20: 0 | EI20: 0 | EJ20: 0 | EK20: 0 | EL20: 0 | EM20: 0 | EN20: 0 | EO20: 0 | EP20: 0 | EQ20: 0 | ER20: 0 | ES20: 0 | ET20: 0 | EZ20: 69.7177 | FA20: 0 | FB20: 0 | FC20: 0 | FD20: 0 | FF20: 0 | FG20: 0 | FH20: 0 | FI20: 0 | FJ20: ='Master Map'!$AJ$75+'Master Map'!$AL$73+'Master Map'!$AN$71+'Master Map'!$AP$71 -> 27.9937 | FK20: ='Master Map'!$AF$56+'Master Map'!$AF$58+'Master Map'!$AF$60+'Master Map'!$AF$62+'Master Map'!$AF$64+'Master Map'!$AF$66+'Master Map'!$AH$68+'Master Map'!$AJ$72 -> 30.2683 | FL20: =FL28+'Master Map'!$AA$48+'Master Map'!$Y$46 -> 11.4557 | FM20: 0 | FN20: 0 | FO20: 0 | FP20: 0 | FQ20: 0 | FR20: 0 | FS20: 0 | FT20: 0 | FU20: 0 | FV20: 0 | FW20: 0 | FX20: 0 | FY20: 0 | FZ20: 0 | GA20: 0 | GB20: 0 | GC20: 0 | GD20: 0 | GE20: 0 | GF20: 0
A21: W.Melbourne (N.Melbourne) | B21: M014 | D21: 216.8136 | P21: ='Master Map'!$Y$44+'Master Map'!$Y$46+'Master Map'!$AA$48+'Master Map'!$AB$50+'Master Map'!$AC$52+'Master Map'!$AE$53+'Master Map'!$AF$52+'Master Map'!$AF$50 -> 14.9136 | AI21: ='Master Map'!$N$61 -> 143.9 | AK21: =+'Master Map'!$Q$50+'Master Map'!$Q$43+'Master Map'!$T$41 -> 58 | AP21: 736.84637 | AQ21: 0 | AR21: 0 | AS21: 0 | AT21: 0 | AV21: 0 | AW21: 0 | AX21: 0 | AY21: =+$AY$37+'Master Map'!$AQ$66 -> 92.9531 | AZ21: ='Master Map'!$AJ$75+'Master Map'!$AL$73+'Master Map'!$AN$71+'Master Map'!$AP$71 -> 27.9937 | BA21: ='Master Map'!$AJ$72+'Master Map'!$AH$68+'Master Map'!$AF$66+'Master Map'!$AF$64+'Master Map'!$AF$62+'Master Map'!$AF$60+'Master Map'!$AF$58+'Master Map'!$AF$56 -> 30.2683 | BB21: ='Master Map'!$AF$54+'Master Map'!$AF$52+'Master Map'!$AF$50 -> 5.4103 | BC21: 0 | BD21: 0 | BE21: 0 | BF21: 0 | BG21: 0 | BH21: ='Master Map'!$AC$23+'Master Map'!$AC$25+'Master Map'!$AC$27+'Master Map'!$AC$29+'Master Map'!$AC$31+'Master Map'!$AC$33 -> 248.6278 | BI21: 0 | BJ21: 0 | BK21: 0 | BL21: 0 | BM21: ='Master Map'!$AD$21+'Master Map'!$AF$19+'Master Map'!$AH$17+'Master Map'!$AJ$15+'Master Map'!$AL$13+'Master Map'!$AN$11+'Master Map'!$AP$9+'Master Map'!$AR$7 -> 268.3692 | BN21: 0 | BO21: 0 | BP21: 0 | BQ21: 0 | BR21: 0 | BS21: ='Master Map'!$AT$1 -> 63.22397 | BT21: 0 | BU21: 0 | BV21: 0 | CB21: 209.149 | CC21: ='Master Map'!$BE$68+'Master Map'!$BH$68+'Master Map'!$BJ$68+'Master Map'!$BL$68+'Master Map'!$BN$68+'Master Map'!$AY$68+'Master Map'!$BB$68 -> 64.7151 | CD21: =+'Master Map'!$AW$68+'Master Map'!$AU$70 -> 62.0923 | CE21: 0 | CF21: 0 | CH21: 0 | CI21: 0 | CJ21: ='Master Map'!$AR$72 -> 18.6693 | CK21: 0 | CL21: ='Master Map'!$AJ$75+'Master Map'!$AL$73+'Master Map'!$AN$71+'Master Map'!$AP$71 -> 27.9937 | CM21: ='Master Map'!$AF$56+'Master Map'!$AF$58+'Master Map'!$AF$60+'Master Map'!$AF$62+'Master Map'!$AF$64+'Master Map'!$AF$66+'Master Map'!$AH$68+'Master Map'!$AJ$72 -> 30.2683 | CN21: ='Master Map'!$AF$54+'Master Map'!$AF$52+'Master Map'!$AF$50 -> 5.4103 | CO21: 0 | CP21: 0 | CQ21: 0 | CR21: 0 | CS21: 0 | CT21: 0 | CU21: 0 | CV21: 0 | CW21: 0 | CX21: 0 | CY21: 0 | CZ21: 0 | DA21: 0 | DB21: 0 | DC21: 0 | DD21: 0 | DE21: 0 | DF21: 0 | DG21: 0 | DH21: 0 | DN21: 35.6786 | DO21: 0 | DP21: 0 | DQ21: 0 | DR21: 0 | DT21: 0 | DU21: 0 | DV21: 0 | DW21: 0 | DX21: 0 | DY21: ='Master Map'!$AF$56+'Master Map'!$AF$58+'Master Map'!$AF$60+'Master Map'!$AF$62+'Master Map'!$AF$64+'Master Map'!$AF$66+'Master Map'!$AH$68+'Master Map'!$AJ$72 -> 30.2683 | DZ21: ='Master Map'!$AF$54+'Master Map'!$AF$52+'Master Map'!$AF$50 -> 5.4103 | EA21: 0 | EB21: 0 | EC21: 0 | ED21: 0 | EE21: 0 | EF21: 0 | EG21: 0 | EH21: 0 | EI21: 0 | EJ21: 0 | EK21: 0 | EL21: 0 | EM21: 0 | EN21: 0 | EO21: 0 | EP21: 0 | EQ21: 0 | ER21: 0 | ES21: 0 | ET21: 0 | EZ21: 63.6723 | FA21: 0 | FB21: 0 | FC21: 0 | FD21: 0 | FF21: 0 | FG21: 0 | FH21: 0 | FI21: 0 | FJ21: ='Master Map'!$AJ$75+'Master Map'!$AL$73+'Master Map'!$AN$71+'Master Map'!$AP$71 -> 27.9937 | FK21: ='Master Map'!$AF$56+'Master Map'!$AF$58+'Master Map'!$AF$60+'Master Map'!$AF$62+'Master Map'!$AF$64+'Master Map'!$AF$66+'Master Map'!$AH$68+'Master Map'!$AJ$72 -> 30.2683 | FL21: ='Master Map'!$AF$54+'Master Map'!$AF$52+'Master Map'!$AF$50 -> 5.4103 | FM21: 0 | FN21: 0 | FO21: 0 | FP21: 0 | FQ21: 0 | FR21: 0 | FS21: 0 | FT21: 0 | FU21: 0 | FV21: 0 | FW21: 0 | FX21: 0 | FY21: 0 | FZ21: 0 | GA21: 0 | GB21: 0 | GC21: 0 | GD21: 0 | GE21: 0 | GF21: 0
A22: Noble Park | B22: M015 | D22: 241.3959 | O22: ='Master Map'!$AF$56+'Master Map'!$AF$58+'Master Map'!$AF$60+'Master Map'!$AF$62+'Master Map'!$AF$64+'Master Map'!$AF$66 -> 23.3992 | P22: ='Master Map'!$Y$44+'Master Map'!$Y$46+'Master Map'!$AA$48+'Master Map'!$AB$50+'Master Map'!$AC$52+'Master Map'!$AE$53+'Master Map'!$AF$54 -> 16.0967 | AI22: ='Master Map'!$N$61 -> 143.9 | AK22: =+'Master Map'!$Q$50+'Master Map'!$Q$43+'Master Map'!$T$41 -> 58 | AP22: 708.03687 | AQ22: 0 | AR22: 0 | AS22: 0 | AT22: 0 | AV22: 0 | AW22: 0 | AX22: 0 | AY22: =+$AY$37+'Master Map'!$AQ$66 -> 92.9531 | AZ22: ='Master Map'!$AJ$75+'Master Map'!$AL$73+'Master Map'!$AN$71+'Master Map'!$AP$71 -> 27.9937 | BA22: ='Master Map'!$AJ$72+'Master Map'!$AH$68 -> 6.8691 | BB22: 0 | BC22: 0 | BD22: 0 | BE22: 0 | BF22: 0 | BG22: 0 | BH22: ='Master Map'!$AC$23+'Master Map'!$AC$25+'Master Map'!$AC$27+'Master Map'!$AC$29+'Master Map'!$AC$31+'Master Map'!$AC$33 -> 248.6278 | BI22: 0 | BJ22: 0 | BK22: 0 | BL22: 0 | BM22: ='Master Map'!$AD$21+'Master Map'!$AF$19+'Master Map'!$AH$17+'Master Map'!$AJ$15+'Master Map'!$AL$13+'Master Map'!$AN$11+'Master Map'!$AP$9+'Master Map'!$AR$7 -> 268.3692 | BN22: 0 | BO22: 0 | BP22: 0 | BQ22: 0 | BR22: 0 | BS22: ='Master Map'!$AT$1 -> 63.22397 | BT22: 0 | BU22: 0 | BV22: 0 | CB22: 180.3395 | CC22: ='Master Map'!$BE$68+'Master Map'!$BH$68+'Master Map'!$BJ$68+'Master Map'!$BL$68+'Master Map'!$BN$68+'Master Map'!$AY$68+'Master Map'!$BB$68 -> 64.7151 | CD22: =+'Master Map'!$AW$68+'Master Map'!$AU$70 -> 62.0923 | CE22: 0 | CF22: 0 | CH22: 0 | CI22: 0 | CJ22: ='Master Map'!$AR$72 -> 18.6693 | CK22: 0 | CL22: ='Master Map'!$AJ$75+'Master Map'!$AL$73+'Master Map'!$AN$71+'Master Map'!$AP$71 -> 27.9937 | CM22: ='Master Map'!$AJ$72+'Master Map'!$AH$68 -> 6.8691 | CN22: 0 | CO22: 0 | CP22: 0 | CQ22: 0 | CR22: 0 | CS22: 0 | CT22: 0 | CU22: 0 | CV22: 0 | CW22: 0 | CX22: 0 | CY22: 0 | CZ22: 0 | DA22: 0 | DB22: 0 | DC22: 0 | DD22: 0 | DE22: 0 | DF22: 0 | DG22: 0 | DH22: 0 | DN22: 6.8691 | DO22: 0 | DP22: 0 | DQ22: 0 | DR22: 0 | DT22: 0 | DU22: 0 | DV22: 0 | DW22: 0 | DX22: 0 | DY22: ='Master Map'!$AJ$72+'Master Map'!$AH$68 -> 6.8691 | DZ22: 0 | EA22: 0 | EB22: 0 | EC22: 0 | ED22: 0 | EE22: 0 | EF22: 0 | EG22: 0 | EH22: 0 | EI22: 0 | EJ22: 0 | EK22: 0 | EL22: 0 | EM22: 0 | EN22: 0 | EO22: 0 | EP22: 0 | EQ22: 0 | ER22: 0 | ES22: 0 | ET22: 0 | EZ22: 34.8628 | FA22: 0 | FB22: 0 | FC22: 0 | FD22: 0 | FF22: 0 | FG22: 0 | FH22: 0 | FI22: 0 | FJ22: ='Master Map'!$AJ$75+'Master Map'!$AL$73+'Master Map'!$AN$71+'Master Map'!$AP$71 -> 27.9937 | FK22: ='Master Map'!$AJ$72+'Master Map'!$AH$68 -> 6.8691 | FL22: 0 | FM22: 0 | FN22: 0 | FO22: 0 | FP22: 0 | FQ22: 0 | FR22: 0 | FS22: 0 | FT22: 0 | FU22: 0 | FV22: 0 | FW22: 0 | FX22: 0 | FY22: 0 | FZ22: 0 | GA22: 0 | GB22: 0 | GC22: 0 | GD22: 0 | GE22: 0 | GF22: 0
A23: Clayton | B23: M016 | D23: 235.8984 | O23: ='Master Map'!$AF$56+'Master Map'!$AF$58+'Master Map'!$AF$60+'Master Map'!$AF$62+'Master Map'!$AF$64 -> 17.9017 | P23: ='Master Map'!$Y$44+'Master Map'!$Y$46+'Master Map'!$AA$48+'Master Map'!$AB$50+'Master Map'!$AC$52+'Master Map'!$AE$53+'Master Map'!$AF$54 -> 16.0967 | AI23: ='Master Map'!$N$61 -> 143.9 | AK23: =+'Master Map'!$Q$50+'Master Map'!$Q$43+'Master Map'!$T$41 -> 58 | AP23: 713.53437 | AQ23: 0 | AR23: 0 | AS23: 0 | AT23: 0 | AV23: 0 | AW23: 0 | AX23: 0 | AY23: =+$AY$37+'Master Map'!$AQ$66 -> 92.9531 | AZ23: ='Master Map'!$AJ$75+'Master Map'!$AL$73+'Master Map'!$AN$71+'Master Map'!$AP$71 -> 27.9937 | BA23: ='Master Map'!$AJ$72+'Master Map'!$AH$68+'Master Map'!$AF$66 -> 12.3666 | BB23: 0 | BC23: 0 | BD23: 0 | BE23: 0 | BF23: 0 | BG23: 0 | BH23: ='Master Map'!$AC$23+'Master Map'!$AC$25+'Master Map'!$AC$27+'Master Map'!$AC$29+'Master Map'!$AC$31+'Master Map'!$AC$33 -> 248.6278 | BI23: 0 | BJ23: 0 | BK23: 0 | BL23: 0 | BM23: ='Master Map'!$AD$21+'Master Map'!$AF$19+'Master Map'!$AH$17+'Master Map'!$AJ$15+'Master Map'!$AL$13+'Master Map'!$AN$11+'Master Map'!$AP$9+'Master Map'!$AR$7 -> 268.3692 | BN23: 0 | BO23: 0 | BP23: 0 | BQ23: 0 | BR23: 0 | BS23: ='Master Map'!$AT$1 -> 63.22397 | BT23: 0 | BU23: 0 | BV23: 0 | CB23: 185.837 | CC23: ='Master Map'!$BE$68+'Master Map'!$BH$68+'Master Map'!$BJ$68+'Master Map'!$BL$68+'Master Map'!$BN$68+'Master Map'!$AY$68+'Master Map'!$BB$68 -> 64.7151 | CD23: =+'Master Map'!$AW$68+'Master Map'!$AU$70 -> 62.0923 | CE23: 0 | CF23: 0 | CH23: 0 | CI23: 0 | CJ23: ='Master Map'!$AR$72 -> 18.6693 | CK23: 0 | CL23: ='Master Map'!$AJ$75+'Master Map'!$AL$73+'Master Map'!$AN$71+'Master Map'!$AP$71 -> 27.9937 | CM23: =CM22+'Master Map'!$AF$66 -> 12.3666 | CN23: 0 | CO23: 0 | CP23: 0 | CQ23: 0 | CR23: 0 | CS23: 0 | CT23: 0 | CU23: 0 | CV23: 0 | CW23: 0 | CX23: 0 | CY23: 0 | CZ23: 0 | DA23: 0 | DB23: 0 | DC23: 0 | DD23: 0 | DE23: 0 | DF23: 0 | DG23: 0 | DH23: 0 | DN23: 12.3666 | DO23: 0 | DP23: 0 | DQ23: 0 | DR23: 0 | DT23: 0 | DU23: 0 | DV23: 0 | DW23: 0 | DX23: 0 | DY23: =DY22+'Master Map'!$AF$66 -> 12.3666 | DZ23: 0 | EA23: 0 | EB23: 0 | EC23: 0 | ED23: 0 | EE23: 0 | EF23: 0 | EG23: 0 | EH23: 0 | EI23: 0 | EJ23: 0 | EK23: 0 | EL23: 0 | EM23: 0 | EN23: 0 | EO23: 0 | EP23: 0 | EQ23: 0 | ER23: 0 | ES23: 0 | ET23: 0 | EZ23: 40.3603 | FA23: 0 | FB23: 0 | FC23: 0 | FD23: 0 | FF23: 0 | FG23: 0 | FH23: 0 | FI23: 0 | FJ23: ='Master Map'!$AJ$75+'Master Map'!$AL$73+'Master Map'!$AN$71+'Master Map'!$AP$71 -> 27.9937 | FK23: =FK22+'Master Map'!$AF$66 -> 12.3666 | FL23: 0 | FM23: 0 | FN23: 0 | FO23: 0 | FP23: 0 | FQ23: 0 | FR23: 0 | FS23: 0 | FT23: 0 | FU23: 0 | FV23: 0 | FW23: 0 | FX23: 0 | FY23: 0 | FZ23: 0 | GA23: 0 | GB23: 0 | GC23: 0 | GD23: 0 | GE23: 0 | GF23: 0
A24: Oakleigh | B24: M017 | D24: 231.1572 | O24: ='Master Map'!$AF$56+'Master Map'!$AF$58+'Master Map'!$AF$60+'Master Map'!$AF$62+'Master Map'!$AE$63 -> 13.1605 | P24: ='Master Map'!$Y$44+'Master Map'!$Y$46+'Master Map'!$AA$48+'Master Map'!$AB$50+'Master Map'!$AC$52+'Master Map'!$AE$53+'Master Map'!$AF$54 -> 16.0967 | AI24: ='Master Map'!$N$61 -> 143.9 | AK24: =+'Master Map'!$Q$50+'Master Map'!$Q$43+'Master Map'!$T$41 -> 58 | AP24: 719.57557 | AQ24: 0 | AR24: 0 | AS24: 0 | AT24: 0 | AV24: 0 | AW24: 0 | AX24: 0 | AY24: =+$AY$37+'Master Map'!$AQ$66 -> 92.9531 | AZ24: ='Master Map'!$AJ$75+'Master Map'!$AL$73+'Master Map'!$AN$71+'Master Map'!$AP$71 -> 27.9937 | BA24: ='Master Map'!$AJ$72+'Master Map'!$AH$68+'Master Map'!$AF$66+'Master Map'!$AF$64+'Master Map'!$AE$63 -> 18.4078 | BB24: 0 | BC24: 0 | BD24: 0 | BE24: 0 | BF24: 0 | BG24: 0 | BH24: ='Master Map'!$AC$23+'Master Map'!$AC$25+'Master Map'!$AC$27+'Master Map'!$AC$29+'Master Map'!$AC$31+'Master Map'!$AC$33 -> 248.6278 | BI24: 0 | BJ24: 0 | BK24: 0 | BL24: 0 | BM24: ='Master Map'!$AD$21+'Master Map'!$AF$19+'Master Map'!$AH$17+'Master Map'!$AJ$15+'Master Map'!$AL$13+'Master Map'!$AN$11+'Master Map'!$AP$9+'Master Map'!$AR$7 -> 268.3692 | BN24: 0 | BO24: 0 | BP24: 0 | BQ24: 0 | BR24: 0 | BS24: ='Master Map'!$AT$1 -> 63.22397 | BT24: 0 | BU24: 0 | BV24: 0 | CB24: 191.8782 | CC24: ='Master Map'!$BE$68+'Master Map'!$BH$68+'Master Map'!$BJ$68+'Master Map'!$BL$68+'Master Map'!$BN$68+'Master Map'!$AY$68+'Master Map'!$BB$68 -> 64.7151 | CD24: =+'Master Map'!$AW$68+'Master Map'!$AU$70 -> 62.0923 | CE24: 0 | CF24: 0 | CH24: 0 | CI24: 0 | CJ24: ='Master Map'!$AR$72 -> 18.6693 | CK24: 0 | CL24: ='Master Map'!$AJ$75+'Master Map'!$AL$73+'Master Map'!$AN$71+'Master Map'!$AP$71 -> 27.9937 | CM24: =CM23+'Master Map'!$AF$64+'Master Map'!$AE$63 -> 18.4078 | CN24: 0 | CO24: 0 | CP24: 0 | CQ24: 0 | CR24: 0 | CS24: 0 | CT24: 0 | CU24: 0 | CV24: 0 | CW24: 0 | CX24: 0 | CY24: 0 | CZ24: 0 | DA24: 0 | DB24: 0 | DC24: 0 | DD24: 0 | DE24: 0 | DF24: 0 | DG24: 0 | DH24: 0 | DN24: 18.4078 | DO24: 0 | DP24: 0 | DQ24: 0 | DR24: 0 | DT24: 0 | DU24: 0 | DV24: 0 | DW24: 0 | DX24: 0 | DY24: =DY23+'Master Map'!$AF$64+'Master Map'!$AE$63 -> 18.4078 | DZ24: 0 | EA24: 0 | EB24: 0 | EC24: 0 | ED24: 0 | EE24: 0 | EF24: 0 | EG24: 0 | EH24: 0 | EI24: 0 | EJ24: 0 | EK24: 0 | EL24: 0 | EM24: 0 | EN24: 0 | EO24: 0 | EP24: 0 | EQ24: 0 | ER24: 0 | ES24: 0 | ET24: 0 | EZ24: 46.4015 | FA24: 0 | FB24: 0 | FC24: 0 | FD24: 0 | FF24: 0 | FG24: 0 | FH24: 0 | FI24: 0 | FJ24: ='Master Map'!$AJ$75+'Master Map'!$AL$73+'Master Map'!$AN$71+'Master Map'!$AP$71 -> 27.9937 | FK24: =FK23+'Master Map'!$AF$64+'Master Map'!$AE$63 -> 18.4078 | FL24: 0 | FM24: 0 | FN24: 0 | FO24: 0 | FP24: 0 | FQ24: 0 | FR24: 0 | FS24: 0 | FT24: 0 | FU24: 0 | FV24: 0 | FW24: 0 | FX24: 0 | FY24: 0 | FZ24: 0 | GA24: 0 | GB24: 0 | GC24: 0 | GD24: 0 | GE24: 0 | GF24: 0
A25: Malvern | B25: M018 | D25: 224.254 | O25: ='Master Map'!$AF$56+'Master Map'!$AF$58 -> 6.2573 | P25: ='Master Map'!$Y$44+'Master Map'!$Y$46+'Master Map'!$AA$48+'Master Map'!$AB$50+'Master Map'!$AC$52+'Master Map'!$AE$53+'Master Map'!$AF$54 -> 16.0967 | AI25: ='Master Map'!$N$61 -> 143.9 | AK25: =+'Master Map'!$Q$50+'Master Map'!$Q$43+'Master Map'!$T$41 -> 58 | AP25: 725.17877 | AQ25: 0 | AR25: 0 | AS25: 0 | AT25: 0 | AV25: 0 | AW25: 0 | AX25: 0 | AY25: =+$AY$37+'Master Map'!$AQ$66 -> 92.9531 | AZ25: ='Master Map'!$AJ$75+'Master Map'!$AL$73+'Master Map'!$AN$71+'Master Map'!$AP$71 -> 27.9937 | BA25: ='Master Map'!$AJ$72+'Master Map'!$AH$68+'Master Map'!$AF$66+'Master Map'!$AF$64+'Master Map'!$AF$62+'Master Map'!$AF$60 -> 24.011 | BB25: 0 | BC25: 0 | BD25: 0 | BE25: 0 | BF25: 0 | BG25: 0 | BH25: ='Master Map'!$AC$23+'Master Map'!$AC$25+'Master Map'!$AC$27+'Master Map'!$AC$29+'Master Map'!$AC$31+'Master Map'!$AC$33 -> 248.6278 | BI25: 0 | BJ25: 0 | BK25: 0 | BL25: 0 | BM25: ='Master Map'!$AD$21+'Master Map'!$AF$19+'Master Map'!$AH$17+'Master Map'!$AJ$15+'Master Map'!$AL$13+'Master Map'!$AN$11+'Master Map'!$AP$9+'Master Map'!$AR$7 -> 268.3692 | BN25: 0 | BO25: 0 | BP25: 0 | BQ25: 0 | BR25: 0 | BS25: ='Master Map'!$AT$1 -> 63.22397 | BT25: 0 | BU25: 0 | BV25: 0 | CB25: 197.4814 | CC25: ='Master Map'!$BE$68+'Master Map'!$BH$68+'Master Map'!$BJ$68+'Master Map'!$BL$68+'Master Map'!$BN$68+'Master Map'!$AY$68+'Master Map'!$BB$68 -> 64.7151 | CD25: =+'Master Map'!$AW$68+'Master Map'!$AU$70 -> 62.0923 | CE25: 0 | CF25: 0 | CH25: 0 | CI25: 0 | CJ25: ='Master Map'!$AR$72 -> 18.6693 | CK25: 0 | CL25: ='Master Map'!$AJ$75+'Master Map'!$AL$73+'Master Map'!$AN$71+'Master Map'!$AP$71 -> 27.9937 | CM25: ='Master Map'!$AF$60+'Master Map'!$AF$62+'Master Map'!$AF$64+'Master Map'!$AF$66+'Master Map'!$AH$68+'Master Map'!$AJ$72 -> 24.011 | CN25: 0 | CO25: 0 | CP25: 0 | CQ25: 0 | CR25: 0 | CS25: 0 | CT25: 0 | CU25: 0 | CV25: 0 | CW25: 0 | CX25: 0 | CY25: 0 | CZ25: 0 | DA25: 0 | DB25: 0 | DC25: 0 | DD25: 0 | DE25: 0 | DF25: 0 | DG25: 0 | DH25: 0 | DN25: 24.011 | DO25: 0 | DP25: 0 | DQ25: 0 | DR25: 0 | DT25: 0 | DU25: 0 | DV25: 0 | DW25: 0 | DX25: 0 | DY25: ='Master Map'!$AJ$72+'Master Map'!$AH$68+'Master Map'!$AF$66+'Master Map'!$AF$64+'Master Map'!$AF$62+'Master Map'!$AF$60 -> 24.011 | DZ25: 0 | EA25: 0 | EB25: 0 | EC25: 0 | ED25: 0 | EE25: 0 | EF25: 0 | EG25: 0 | EH25: 0 | EI25: 0 | EJ25: 0 | EK25: 0 | EL25: 0 | EM25: 0 | EN25: 0 | EO25: 0 | EP25: 0 | EQ25: 0 | ER25: 0 | ES25: 0 | ET25: 0 | EZ25: 52.0047 | FA25: 0 | FB25: 0 | FC25: 0 | FD25: 0 | FF25: 0 | FG25: 0 | FH25: 0 | FI25: 0 | FJ25: ='Master Map'!$AJ$75+'Master Map'!$AL$73+'Master Map'!$AN$71+'Master Map'!$AP$71 -> 27.9937 | FK25: ='Master Map'!$AJ$72+'Master Map'!$AH$68+'Master Map'!$AF$66+'Master Map'!$AF$64+'Master Map'!$AF$62+'Master Map'!$AF$60 -> 24.011 | FL25: 0 | FM25: 0 | FN25: 0 | FO25: 0 | FP25: 0 | FQ25: 0 | FR25: 0 | FS25: 0 | FT25: 0 | FU25: 0 | FV25: 0 | FW25: 0 | FX25: 0 | FY25: 0 | FZ25: 0 | GA25: 0 | GB25: 0 | GC25: 0 | GD25: 0 | GE25: 0 | GF25: 0
A26: St Kilda East | B26: M019 | D26: 221.7286 | O26: ='Master Map'!$AF$56 -> 3.7319 | P26: ='Master Map'!$Y$44+'Master Map'!$Y$46+'Master Map'!$AA$48+'Master Map'!$AB$50+'Master Map'!$AC$52+'Master Map'!$AE$53+'Master Map'!$AF$54 -> 16.0967 | AI26: ='Master Map'!$N$61 -> 143.9 | AK26: =+'Master Map'!$Q$50+'Master Map'!$Q$43+'Master Map'!$T$41 -> 58 | AP26: 727.70417 | AQ26: 0 | AR26: 0 | AS26: 0 | AT26: 0 | AV26: 0 | AW26: 0 | AX26: 0 | AY26: =+$AY$37+'Master Map'!$AQ$66 -> 92.9531 | AZ26: ='Master Map'!$AJ$75+'Master Map'!$AL$73+'Master Map'!$AN$71+'Master Map'!$AP$71 -> 27.9937 | BA26: ='Master Map'!$AJ$72+'Master Map'!$AH$68+'Master Map'!$AF$66+'Master Map'!$AF$64+'Master Map'!$AF$62+'Master Map'!$AF$60+'Master Map'!$AF$58 -> 26.5364 | BB26: 0 | BC26: 0 | BD26: 0 | BE26: 0 | BF26: 0 | BG26: 0 | BH26: ='Master Map'!$AC$23+'Master Map'!$AC$25+'Master Map'!$AC$27+'Master Map'!$AC$29+'Master Map'!$AC$31+'Master Map'!$AC$33 -> 248.6278 | BI26: 0 | BJ26: 0 | BK26: 0 | BL26: 0 | BM26: ='Master Map'!$AD$21+'Master Map'!$AF$19+'Master Map'!$AH$17+'Master Map'!$AJ$15+'Master Map'!$AL$13+'Master Map'!$AN$11+'Master Map'!$AP$9+'Master Map'!$AR$7 -> 268.3692 | BN26: 0 | BO26: 0 | BP26: 0 | BQ26: 0 | BR26: 0 | BS26: ='Master Map'!$AT$1 -> 63.22397 | BT26: 0 | BU26: 0 | BV26: 0 | CB26: 200.0068 | CC26: ='Master Map'!$BE$68+'Master Map'!$BH$68+'Master Map'!$BJ$68+'Master Map'!$BL$68+'Master Map'!$BN$68+'Master Map'!$AY$68+'Master Map'!$BB$68 -> 64.7151 | CD26: =+'Master Map'!$AW$68+'Master Map'!$AU$70 -> 62.0923 | CE26: 0 | CF26: 0 | CH26: 0 | CI26: 0 | CJ26: ='Master Map'!$AR$72 -> 18.6693 | CK26: 0 | CL26: ='Master Map'!$AJ$75+'Master Map'!$AL$73+'Master Map'!$AN$71+'Master Map'!$AP$71 -> 27.9937 | CM26: ='Master Map'!$AF$58+'Master Map'!$AF$60+'Master Map'!$AF$62+'Master Map'!$AF$64+'Master Map'!$AF$66+'Master Map'!$AH$68+'Master Map'!$AJ$72 -> 26.5364 | CN26: 0 | CO26: 0 | CP26: 0 | CQ26: 0 | CR26: 0 | CS26: 0 | CT26: 0 | CU26: 0 | CV26: 0 | CW26: 0 | CX26: 0 | CY26: 0 | CZ26: 0 | DA26: 0 | DB26: 0 | DC26: 0 | DD26: 0 | DE26: 0 | DF26: 0 | DG26: 0 | DH26: 0 | DN26: 26.5364 | DO26: 0 | DP26: 0 | DQ26: 0 | DR26: 0 | DT26: 0 | DU26: 0 | DV26: 0 | DW26: 0 | DX26: 0 | DY26: ='Master Map'!$AJ$72+'Master Map'!$AH$68+'Master Map'!$AF$66+'Master Map'!$AF$64+'Master Map'!$AF$62+'Master Map'!$AF$60+'Master Map'!$AF$58 -> 26.5364 | DZ26: 0 | EA26: 0 | EB26: 0 | EC26: 0 | ED26: 0 | EE26: 0 | EF26: 0 | EG26: 0 | EH26: 0 | EI26: 0 | EJ26: 0 | EK26: 0 | EL26: 0 | EM26: 0 | EN26: 0 | EO26: 0 | EP26: 0 | EQ26: 0 | ER26: 0 | ES26: 0 | ET26: 0 | EZ26: 54.5301 | FA26: 0 | FB26: 0 | FC26: 0 | FD26: 0 | FF26: 0 | FG26: 0 | FH26: 0 | FI26: 0 | FJ26: ='Master Map'!$AJ$75+'Master Map'!$AL$73+'Master Map'!$AN$71+'Master Map'!$AP$71 -> 27.9937 | FK26: ='Master Map'!$AJ$72+'Master Map'!$AH$68+'Master Map'!$AF$66+'Master Map'!$AF$64+'Master Map'!$AF$62+'Master Map'!$AF$60+'Master Map'!$AF$58 -> 26.5364 | FL26: 0 | FM26: 0 | FN26: 0 | FO26: 0 | FP26: 0 | FQ26: 0 | FR26: 0 | FS26: 0 | FT26: 0 | FU26: 0 | FV26: 0 | FW26: 0 | FX26: 0 | FY26: 0 | FZ26: 0 | GA26: 0 | GB26: 0 | GC26: 0 | GD26: 0 | GE26: 0 | GF26: 0
A27: Port Melbourne (Howe Pde) | B27: M023 | D27: 211.10133 | P27: ='Master Map'!$Y$44+'Master Map'!$Y$46+'Master Map'!$AA$48+'Master Map'!$AB$50 -> 9.20133 | AI27: ='Master Map'!$N$61 -> 143.9 | AK27: =+'Master Map'!$Q$50+'Master Map'!$Q$43+'Master Map'!$T$41 -> 58 | AP27: 738.33144 | AQ27: 0 | AR27: 0 | AS27: 0 | AT27: 0 | AV27: 0 | AW27: 0 | AX27: 0 | AY27: =+$AY$37+'Master Map'!$AQ$66 -> 92.9531 | AZ27: ='Master Map'!$AJ$75+'Master Map'!$AL$73+'Master Map'!$AN$71+'Master Map'!$AP$71 -> 27.9937 | BA27: ='Master Map'!$AJ$72+'Master Map'!$AH$68+'Master Map'!$AF$66+'Master Map'!$AF$64+'Master Map'!$AF$62+'Master Map'!$AF$60+'Master Map'!$AF$58+'Master Map'!$AF$56 -> 30.2683 | BB27: ='Master Map'!$AF$54+'Master Map'!$AE$53+'Master Map'!$AC$52 -> 6.89537 | BC27: 0 | BD27: 0 | BE27: 0 | BF27: 0 | BG27: 0 | BH27: ='Master Map'!$AC$23+'Master Map'!$AC$25+'Master Map'!$AC$27+'Master Map'!$AC$29+'Master Map'!$AC$31+'Master Map'!$AC$33 -> 248.6278 | BI27: 0 | BJ27: 0 | BK27: 0 | BL27: 0 | BM27: ='Master Map'!$AD$21+'Master Map'!$AF$19+'Master Map'!$AH$17+'Master Map'!$AJ$15+'Master Map'!$AL$13+'Master Map'!$AN$11+'Master Map'!$AP$9+'Master Map'!$AR$7 -> 268.3692 | BN27: 0 | BO27: 0 | BP27: 0 | BQ27: 0 | BR27: 0 | BS27: ='Master Map'!$AT$1 -> 63.22397 | BT27: 0 | BU27: 0 | BV27: 0 | CB27: 210.63407 | CC27: ='Master Map'!$BE$68+'Master Map'!$BH$68+'Master Map'!$BJ$68+'Master Map'!$BL$68+'Master Map'!$BN$68+'Master Map'!$AY$68+'Master Map'!$BB$68 -> 64.7151 | CD27: =+'Master Map'!$AW$68+'Master Map'!$AU$70 -> 62.0923 | CE27: 0 | CF27: 0 | CH27: 0 | CI27: 0 | CJ27: ='Master Map'!$AR$72 -> 18.6693 | CK27: 0 | CL27: ='Master Map'!$AJ$75+'Master Map'!$AL$73+'Master Map'!$AN$71+'Master Map'!$AP$71 -> 27.9937 | CM27: ='Master Map'!$AF$56+'Master Map'!$AF$58+'Master Map'!$AF$60+'Master Map'!$AF$62+'Master Map'!$AF$64+'Master Map'!$AF$66+'Master Map'!$AH$68+'Master Map'!$AJ$72 -> 30.2683 | CN27: ='Master Map'!$AF$54+'Master Map'!$AE$53+'Master Map'!$AC$52 -> 6.89537 | CO27: 0 | CP27: 0 | CQ27: 0 | CR27: 0 | CS27: 0 | CT27: 0 | CU27: 0 | CV27: 0 | CW27: 0 | CX27: 0 | CY27: 0 | CZ27: 0 | DA27: 0 | DB27: 0 | DC27: 0 | DD27: 0 | DE27: 0 | DF27: 0 | DG27: 0 | DH27: 0 | DN27: 37.16367 | DO27: 0 | DP27: 0 | DQ27: 0 | DR27: 0 | DT27: 0 | DU27: 0 | DV27: 0 | DW27: 0 | DX27: 0 | DY27: ='Master Map'!$AF$56+'Master Map'!$AF$58+'Master Map'!$AF$60+'Master Map'!$AF$62+'Master Map'!$AF$64+'Master Map'!$AF$66+'Master Map'!$AH$68+'Master Map'!$AJ$72 -> 30.2683 | DZ27: =DZ19+'Master Map'!$AF$54+'Master Map'!$AE$53+'Master Map'!$AC$52 -> 6.89537 | EA27: 0 | EB27: 0 | EC27: 0 | ED27: 0 | EE27: 0 | EF27: 0 | EG27: 0 | EH27: 0 | EI27: 0 | EJ27: 0 | EK27: 0 | EL27: 0 | EM27: 0 | EN27: 0 | EO27: 0 | EP27: 0 | EQ27: 0 | ER27: 0 | ES27: 0 | ET27: 0 | EZ27: 65.15737 | FA27: 0 | FB27: 0 | FC27: 0 | FD27: 0 | FF27: 0 | FG27: 0 | FH27: 0 | FI27: 0 | FJ27: ='Master Map'!$AJ$75+'Master Map'!$AL$73+'Master Map'!$AN$71+'Master Map'!$AP$71 -> 27.9937 | FK27: ='Master Map'!$AF$56+'Master Map'!$AF$58+'Master Map'!$AF$60+'Master Map'!$AF$62+'Master Map'!$AF$64+'Master Map'!$AF$66+'Master Map'!$AH$68+'Master Map'!$AJ$72 -> 30.2683 | FL27: =FL19+'Master Map'!$AF$54+'Master Map'!$AE$53+'Master Map'!$AC$52 -> 6.89537 | FM27: 0 | FN27: 0 | FO27: 0 | FP27: 0 | FQ27: 0 | FR27: 0 | FS27: 0 | FT27: 0 | FU27: 0 | FV27: 0 | FW27: 0 | FX27: 0 | FY27: 0 | FZ27: 0 | GA27: 0 | GB27: 0 | GC27: 0 | GD27: 0 | GE27: 0 | GF27: 0
A28: Port Melbourne (Lorimer St) | B28: M024 | D28: 208.938 | P28: ='Master Map'!$Y$44+'Master Map'!$Y$46+'Master Map'!$AA$48 -> 7.038 | AI28: ='Master Map'!$N$61 -> 143.9 | AK28: =+'Master Map'!$Q$50+'Master Map'!$Q$43+'Master Map'!$T$41 -> 58 | AP28: 740.49477 | AQ28: 0 | AR28: 0 | AS28: 0 | AT28: 0 | AV28: 0 | AW28: 0 | AX28: 0 | AY28: =+$AY$37+'Master Map'!$AQ$66 -> 92.9531 | AZ28: ='Master Map'!$AJ$75+'Master Map'!$AL$73+'Master Map'!$AN$71+'Master Map'!$AP$71 -> 27.9937 | BA28: ='Master Map'!$AJ$72+'Master Map'!$AH$68+'Master Map'!$AF$66+'Master Map'!$AF$64+'Master Map'!$AF$62+'Master Map'!$AF$60+'Master Map'!$AF$58+'Master Map'!$AF$56 -> 30.2683 | BB28: ='Master Map'!$AF$54+'Master Map'!$AE$53+'Master Map'!$AC$52+'Master Map'!$AB$50 -> 9.0587 | BC28: 0 | BD28: 0 | BE28: 0 | BF28: 0 | BG28: 0 | BH28: ='Master Map'!$AC$23+'Master Map'!$AC$25+'Master Map'!$AC$27+'Master Map'!$AC$29+'Master Map'!$AC$31+'Master Map'!$AC$33 -> 248.6278 | BI28: 0 | BJ28: 0 | BK28: 0 | BL28: 0 | BM28: ='Master Map'!$AD$21+'Master Map'!$AF$19+'Master Map'!$AH$17+'Master Map'!$AJ$15+'Master Map'!$AL$13+'Master Map'!$AN$11+'Master Map'!$AP$9+'Master Map'!$AR$7 -> 268.3692 | BN28: 0 | BO28: 0 | BP28: 0 | BQ28: 0 | BR28: 0 | BS28: ='Master Map'!$AT$1 -> 63.22397 | BT28: 0 | BU28: 0 | BV28: 0 | CB28: 212.7974 | CC28: ='Master Map'!$BE$68+'Master Map'!$BH$68+'Master Map'!$BJ$68+'Master Map'!$BL$68+'Master Map'!$BN$68+'Master Map'!$AY$68+'Master Map'!$BB$68 -> 64.7151 | CD28: =+'Master Map'!$AW$68+'Master Map'!$AU$70 -> 62.0923 | CE28: 0 | CF28: 0 | CH28: 0 | CI28: 0 | CJ28: ='Master Map'!$AR$72 -> 18.6693 | CK28: 0 | CL28: ='Master Map'!$AJ$75+'Master Map'!$AL$73+'Master Map'!$AN$71+'Master Map'!$AP$71 -> 27.9937 | CM28: ='Master Map'!$AF$56+'Master Map'!$AF$58+'Master Map'!$AF$60+'Master Map'!$AF$62+'Master Map'!$AF$64+'Master Map'!$AF$66+'Master Map'!$AH$68+'Master Map'!$AJ$72 -> 30.2683 | CN28: ='Master Map'!$AF$54+'Master Map'!$AE$53+'Master Map'!$AC$52+'Master Map'!$AB$50 -> 9.0587 | CO28: 0 | CP28: 0 | CQ28: 0 | CR28: 0 | CS28: 0 | CT28: 0 | CU28: 0 | CV28: 0 | CW28: 0 | CX28: 0 | CY28: 0 | CZ28: 0 | DA28: 0 | DB28: 0 | DC28: 0 | DD28: 0 | DE28: 0 | DF28: 0 | DG28: 0 | DH28: 0 | DN28: 39.327 | DO28: 0 | DP28: 0 | DQ28: 0 | DR28: 0 | DT28: 0 | DU28: 0 | DV28: 0 | DW28: 0 | DX28: 0 | DY28: ='Master Map'!$AF$56+'Master Map'!$AF$58+'Master Map'!$AF$60+'Master Map'!$AF$62+'Master Map'!$AF$64+'Master Map'!$AF$66+'Master Map'!$AH$68+'Master Map'!$AJ$72 -> 30.2683 | DZ28: =DZ27+'Master Map'!$AB$50 -> 9.0587 | EA28: 0 | EB28: 0 | EC28: 0 | ED28: 0 | EE28: 0 | EF28: 0 | EG28: 0 | EH28: 0 | EI28: 0 | EJ28: 0 | EK28: 0 | EL28: 0 | EM28: 0 | EN28: 0 | EO28: 0 | EP28: 0 | EQ28: 0 | ER28: 0 | ES28: 0 | ET28: 0 | EZ28: 67.3207 | FA28: 0 | FB28: 0 | FC28: 0 | FD28: 0 | FF28: 0 | FG28: 0 | FH28: 0 | FI28: 0 | FJ28: ='Master Map'!$AJ$75+'Master Map'!$AL$73+'Master Map'!$AN$71+'Master Map'!$AP$71 -> 27.9937 | FK28: ='Master Map'!$AF$56+'Master Map'!$AF$58+'Master Map'!$AF$60+'Master Map'!$AF$62+'Master Map'!$AF$64+'Master Map'!$AF$66+'Master Map'!$AH$68+'Master Map'!$AJ$72 -> 30.2683 | FL28: =FL27+'Master Map'!$AB$50 -> 9.0587 | FM28: 0 | FN28: 0 | FO28: 0 | FP28: 0 | FQ28: 0 | FR28: 0 | FS28: 0 | FT28: 0 | FU28: 0 | FV28: 0 | FW28: 0 | FX28: 0 | FY28: 0 | FZ28: 0 | GA28: 0 | GB28: 0 | GC28: 0 | GD28: 0 | GE28: 0 | GF28: 0
A29: Derrimut | B29: M026 | D29: 196.0927 | S29: ='Master Map'!S40+'Master Map'!U40 -> 8.0927 | AI29: ='Master Map'!$N$61 -> 143.9 | AK29: =+'Master Map'!$Q$50+'Master Map'!$Q$43 -> 44.1 | AP29: 710.47739 | AQ29: 0 | AR29: 0 | AS29: 0 | AT29: 0 | AV29: 0 | AW29: 0 | AX29: 0 | AY29: 0 | AZ29: 0 | BA29: 0 | BB29: 0 | BC29: 0 | BD29: 0 | BE29: ='Master Map'!$Q$40+'Master Map'!$S$40+'Master Map'!$U$40 -> 20.4089 | BF29: ='Master Map'!$K$40+'Master Map'!$M$40+'Master Map'!$O$40 -> 40.3542 | BG29: 0 | BH29: ='Master Map'!$AC$23+'Master Map'!$AC$25+'Master Map'!$AC$27+'Master Map'!$AC$29 -> 194.09202 | BI29: ='Master Map'!$J$37+'Master Map'!$J$33 -> 39.9597 | BJ29: 0 | BK29: 0 | BL29: =+'Master Map'!$AA$30+'Master Map'!$W$30+'Master Map'!$T$30+'Master Map'!$P$30+'Master Map'!$L$30 -> 84.0694 | BM29: ='Master Map'!$AD$21+'Master Map'!$AF$19+'Master Map'!$AH$17+'Master Map'!$AJ$15+'Master Map'!$AL$13+'Master Map'!$AN$11+'Master Map'!$AP$9+'Master Map'!$AR$7 -> 268.3692 | BN29: 0 | BO29: 0 | BP29: 0 | BQ29: 0 | BR29: 0 | BS29: ='Master Map'!$AT$1 -> 63.22397 | BT29: 0 | BU29: 0 | BV29: 0 | CB29: 225.6715 | CC29: ='Master Map'!$BE$68+'Master Map'!$BH$68+'Master Map'!$BJ$68+'Master Map'!$BL$68+'Master Map'!$BN$68+'Master Map'!$AY$68+'Master Map'!$BB$68 -> 64.7151 | CD29: =+'Master Map'!$AW$68+'Master Map'!$AU$70 -> 62.0923 | CE29: 0 | CF29: 0 | CH29: 0 | CI29: 0 | CJ29: ='Master Map'!$AR$72 -> 18.6693 | CK29: 0 | CL29: ='Master Map'!$AJ$75+'Master Map'!$AL$73+'Master Map'!$AN$71+'Master Map'!$AP$71 -> 27.9937 | CM29: ='Master Map'!$AF$56+'Master Map'!$AF$58+'Master Map'!$AF$60+'Master Map'!$AF$62+'Master Map'!$AF$64+'Master Map'!$AF$66+'Master Map'!$AH$68+'Master Map'!$AJ$72 -> 30.2683 | CN29: ='Master Map'!$Y$44+'Master Map'!$Y$46+'Master Map'!$AA$48+'Master Map'!$AB$50+'Master Map'!$AC$52+'Master Map'!$AE$53+'Master Map'!$AF$54 -> 16.0967 | CO29: 0 | CP29: 0 | CQ29: ='Master Map'!$X$42 -> 5.8361 | CR29: 0 | CS29: 0 | CT29: 0 | CU29: 0 | CV29: 0 | CW29: 0 | CX29: 0 | CY29: 0 | CZ29: 0 | DA29: 0 | DB29: 0 | DC29: 0 | DD29: 0 | DE29: 0 | DF29: 0 | DG29: 0 | DH29: 0 | DN29: 52.2011 | DO29: 0 | DP29: 0 | DQ29: 0 | DR29: 0 | DT29: 0 | DU29: 0 | DV29: 0 | DW29: 0 | DX29: 0 | DY29: ='Master Map'!$AF$56+'Master Map'!$AF$58+'Master Map'!$AF$60+'Master Map'!$AF$62+'Master Map'!$AF$64+'Master Map'!$AF$66+'Master Map'!$AH$68+'Master Map'!$AJ$72 -> 30.2683 | DZ29: ='Master Map'!$AF$54+'Master Map'!$AE$53+'Master Map'!$AC$52+'Master Map'!$AB$50+'Master Map'!$AA$48+'Master Map'!$Y$46+'Master Map'!$Y$44 -> 16.0967 | EA29: 0 | EB29: 0 | EC29: ='Master Map'!$X$42 -> 5.8361 | ED29: 0 | EE29: 0 | EF29: 0 | EG29: 0 | EH29: 0 | EI29: 0 | EJ29: 0 | EK29: 0 | EL29: 0 | EM29: 0 | EN29: 0 | EO29: 0 | EP29: 0 | EQ29: 0 | ER29: 0 | ES29: 0 | ET29: 0 | EZ29: 80.1948 | FA29: 0 | FB29: 0 | FC29: 0 | FD29: 0 | FF29: 0 | FG29: 0 | FH29: 0 | FI29: 0 | FJ29: ='Master Map'!$AJ$75+'Master Map'!$AL$73+'Master Map'!$AN$71+'Master Map'!$AP$71 -> 27.9937 | FK29: ='Master Map'!$AF$56+'Master Map'!$AF$58+'Master Map'!$AF$60+'Master Map'!$AF$62+'Master Map'!$AF$64+'Master Map'!$AF$66+'Master Map'!$AH$68+'Master Map'!$AJ$72 -> 30.2683 | FL29: ='Master Map'!$AF$54+'Master Map'!$AE$53+'Master Map'!$AC$52+'Master Map'!$AB$50+'Master Map'!$AA$48+'Master Map'!$Y$46+'Master Map'!$Y$44 -> 16.0967 | FM29: 0 | FN29: 0 | FO29: ='Master Map'!$X$42 -> 5.8361 | FP29: 0 | FQ29: 0 | FR29: 0 | FS29: 0 | FT29: 0 | FU29: 0 | FV29: 0 | FW29: 0 | FX29: 0 | FY29: 0 | FZ29: 0 | GA29: 0 | GB29: 0 | GC29: 0 | GD29: 0 | GE29: 0 | GF29: 0
A30: Melton South | B30: M027 | D30: 200.3162 | S30: ='Master Map'!$Q$40 -> 12.3162 | AI30: ='Master Map'!$N$61 -> 143.9 | AK30: =+'Master Map'!$Q$50+'Master Map'!$Q$43 -> 44.1 | AP30: 690.06849 | AQ30: 0 | AR30: 0 | AS30: 0 | AT30: 0 | AV30: 0 | AW30: 0 | AX30: 0 | AY30: 0 | AZ30: 0 | BA30: 0 | BB30: 0 | BC30: 0 | BD30: 0 | BE30: 0 | BF30: ='Master Map'!$K$40+'Master Map'!$M$40+'Master Map'!$O$40 -> 40.3542 | BG30: 0 | BH30: ='Master Map'!$AC$23+'Master Map'!$AC$25+'Master Map'!$AC$27+'Master Map'!$AC$29 -> 194.09202 | BI30: ='Master Map'!$J$37+'Master Map'!$J$33 -> 39.9597 | BJ30: 0 | BK30: 0 | BL30: =+'Master Map'!$AA$30+'Master Map'!$W$30+'Master Map'!$T$30+'Master Map'!$P$30+'Master Map'!$L$30 -> 84.0694 | BM30: ='Master Map'!$AD$21+'Master Map'!$AF$19+'Master Map'!$AH$17+'Master Map'!$AJ$15+'Master Map'!$AL$13+'Master Map'!$AN$11+'Master Map'!$AP$9+'Master Map'!$AR$7 -> 268.3692 | BN30: 0 | BO30: 0 | BP30: 0 | BQ30: 0 | BR30: 0 | BS30: ='Master Map'!$AT$1 -> 63.22397 | BT30: 0 | BU30: 0 | BV30: 0 | CB30: 246.0804 | CC30: ='Master Map'!$BE$68+'Master Map'!$BH$68+'Master Map'!$BJ$68+'Master Map'!$BL$68+'Master Map'!$BN$68+'Master Map'!$AY$68+'Master Map'!$BB$68 -> 64.7151 | CD30: =+'Master Map'!$AW$68+'Master Map'!$AU$70 -> 62.0923 | CE30: 0 | CF30: 0 | CH30: 0 | CI30: 0 | CJ30: ='Master Map'!$AR$72 -> 18.6693 | CK30: 0 | CL30: ='Master Map'!$AJ$75+'Master Map'!$AL$73+'Master Map'!$AN$71+'Master Map'!$AP$71 -> 27.9937 | CM30: ='Master Map'!$AF$56+'Master Map'!$AF$58+'Master Map'!$AF$60+'Master Map'!$AF$62+'Master Map'!$AF$64+'Master Map'!$AF$66+'Master Map'!$AH$68+'Master Map'!$AJ$72 -> 30.2683 | CN30: ='Master Map'!$Y$44+'Master Map'!$Y$46+'Master Map'!$AA$48+'Master Map'!$AB$50+'Master Map'!$AC$52+'Master Map'!$AE$53+'Master Map'!$AF$54 -> 16.0967 | CO30: 0 | CP30: 0 | CQ30: =CQ114+'Master Map'!$S$40+'Master Map'!$Q$40 -> 26.245 | CR30: 0 | CS30: 0 | CT30: 0 | CU30: 0 | CV30: 0 | CW30: 0 | CX30: 0 | CY30: 0 | CZ30: 0 | DA30: 0 | DB30: 0 | DC30: 0 | DD30: 0 | DE30: 0 | DF30: 0 | DG30: 0 | DH30: 0 | DN30: 72.61 | DO30: 0 | DP30: 0 | DQ30: 0 | DR30: 0 | DT30: 0 | DU30: 0 | DV30: 0 | DW30: 0 | DX30: 0 | DY30: ='Master Map'!$AF$56+'Master Map'!$AF$58+'Master Map'!$AF$60+'Master Map'!$AF$62+'Master Map'!$AF$64+'Master Map'!$AF$66+'Master Map'!$AH$68+'Master Map'!$AJ$72 -> 30.2683 | DZ30: ='Master Map'!$AF$54+'Master Map'!$AE$53+'Master Map'!$AC$52+'Master Map'!$AB$50+'Master Map'!$AA$48+'Master Map'!$Y$46+'Master Map'!$Y$44 -> 16.0967 | EA30: 0 | EB30: 0 | EC30: =EC114+'Master Map'!$S$40+'Master Map'!$Q$40 -> 26.245 | ED30: 0 | EE30: 0 | EF30: 0 | EG30: 0 | EH30: 0 | EI30: 0 | EJ30: 0 | EK30: 0 | EL30: 0 | EM30: 0 | EN30: 0 | EO30: 0 | EP30: 0 | EQ30: 0 | ER30: 0 | ES30: 0 | ET30: 0 | EZ30: 100.6037 | FA30: 0 | FB30: 0 | FC30: 0 | FD30: 0 | FF30: 0 | FG30: 0 | FH30: 0 | FI30: 0 | FJ30: ='Master Map'!$AJ$75+'Master Map'!$AL$73+'Master Map'!$AN$71+'Master Map'!$AP$71 -> 27.9937 | FK30: ='Master Map'!$AF$56+'Master Map'!$AF$58+'Master Map'!$AF$60+'Master Map'!$AF$62+'Master Map'!$AF$64+'Master Map'!$AF$66+'Master Map'!$AH$68+'Master Map'!$AJ$72 -> 30.2683 | FL30: ='Master Map'!$AF$54+'Master Map'!$AE$53+'Master Map'!$AC$52+'Master Map'!$AB$50+'Master Map'!$AA$48+'Master Map'!$Y$46+'Master Map'!$Y$44 -> 16.0967 | FM30: 0 | FN30: 0 | FO30: =FO114+'Master Map'!$S$40+'Master Map'!$Q$40 -> 26.245 | FP30: 0 | FQ30: 0 | FR30: 0 | FS30: 0 | FT30: 0 | FU30: 0 | FV30: 0 | FW30: 0 | FX30: 0 | FY30: 0 | FZ30: 0 | GA30: 0 | GB30: 0 | GC30: 0 | GD30: 0 | GE30: 0 | GF30: 0
A31: Laverton North (Fitzgerald Rd) | B31: M028 | D31: 186.2431 | P31: =P32+'Master Map'!$U$47 -> 10.2111 | Q31: =+'Master Map'!$U$53+'Master Map'!$U$55 -> 17.5975 | R31: =+'Master Map'!$U$59+'Master Map'!$U$61+'Master Map'!$U$57 -> 14.5345 | AI31: ='Master Map'!$N$61 -> 143.9 | AP31: 720.81349 | AQ31: 0 | AR31: 0 | AS31: 0 | AT31: 0 | AV31: 0 | AW31: 0 | AX31: 0 | AY31: 0 | AZ31: 0 | BA31: 0 | BB31: ='Master Map'!$V$43++'Master Map'!$U$44 -> 4.5 | BC31: 0 | BD31: 0 | BE31: ='Master Map'!$Q$40+'Master Map'!$S$40+'Master Map'!$U$40+'Master Map'!$X$42 -> 26.245 | BF31: ='Master Map'!$K$40+'Master Map'!$M$40+'Master Map'!$O$40 -> 40.3542 | BG31: 0 | BH31: ='Master Map'!$AC$23+'Master Map'!$AC$25+'Master Map'!$AC$27+'Master Map'!$AC$29 -> 194.09202 | BI31: ='Master Map'!$J$37+'Master Map'!$J$33 -> 39.9597 | BJ31: 0 | BK31: 0 | BL31: =+'Master Map'!$AA$30+'Master Map'!$W$30+'Master Map'!$T$30+'Master Map'!$P$30+'Master Map'!$L$30 -> 84.0694 | BM31: ='Master Map'!$AD$21+'Master Map'!$AF$19+'Master Map'!$AH$17+'Master Map'!$AJ$15+'Master Map'!$AL$13+'Master Map'!$AN$11+'Master Map'!$AP$9+'Master Map'!$AR$7 -> 268.3692 | BN31: 0 | BO31: 0 | BP31: 0 | BQ31: 0 | BR31: 0 | BS31: ='Master Map'!$AT$1 -> 63.22397 | BT31: 0 | BU31: 0 | BV31: 0 | CB31: 224.3354 | CC31: ='Master Map'!$BE$68+'Master Map'!$BH$68+'Master Map'!$BJ$68+'Master Map'!$BL$68+'Master Map'!$BN$68+'Master Map'!$AY$68+'Master Map'!$BB$68 -> 64.7151 | CD31: =+'Master Map'!$AW$68+'Master Map'!$AU$70 -> 62.0923 | CE31: 0 | CF31: 0 | CH31: 0 | CI31: 0 | CJ31: ='Master Map'!$AR$72 -> 18.6693 | CK31: 0 | CL31: ='Master Map'!$AJ$75+'Master Map'!$AL$73+'Master Map'!$AN$71+'Master Map'!$AP$71 -> 27.9937 | CM31: ='Master Map'!$AF$56+'Master Map'!$AF$58+'Master Map'!$AF$60+'Master Map'!$AF$62+'Master Map'!$AF$64+'Master Map'!$AF$66+'Master Map'!$AH$68+'Master Map'!$AJ$72 -> 30.2683 | CN31: =$CN$16+'Master Map'!$V$43+'Master Map'!$U$44 -> 20.5967 | CO31: 0 | CP31: 0 | CQ31: 0 | CR31: 0 | CS31: 0 | CT31: 0 | CU31: 0 | CV31: 0 | CW31: 0 | CX31: 0 | CY31: 0 | CZ31: 0 | DA31: 0 | DB31: 0 | DC31: 0 | DD31: 0 | DE31: 0 | DF31: 0 | DG31: 0 | DH31: 0 | DN31: 50.865 | DO31: 0 | DP31: 0 | DQ31: 0 | DR31: 0 | DT31: 0 | DU31: 0 | DV31: 0 | DW31: 0 | DX31: 0 | DY31: ='Master Map'!$AF$56+'Master Map'!$AF$58+'Master Map'!$AF$60+'Master Map'!$AF$62+'Master Map'!$AF$64+'Master Map'!$AF$66+'Master Map'!$AH$68+'Master Map'!$AJ$72 -> 30.2683 | DZ31: =DZ16+'Master Map'!$V$43+'Master Map'!$U$44 -> 20.5967 | EA31: 0 | EB31: 0 | EC31: 0 | ED31: 0 | EE31: 0 | EF31: 0 | EG31: 0 | EH31: 0 | EI31: 0 | EJ31: 0 | EK31: 0 | EL31: 0 | EM31: 0 | EN31: 0 | EO31: 0 | EP31: 0 | EQ31: 0 | ER31: 0 | ES31: 0 | ET31: 0 | EZ31: 78.8587 | FA31: 0 | FB31: 0 | FC31: 0 | FD31: 0 | FF31: 0 | FG31: 0 | FH31: 0 | FI31: 0 | FJ31: ='Master Map'!$AJ$75+'Master Map'!$AL$73+'Master Map'!$AN$71+'Master Map'!$AP$71 -> 27.9937 | FK31: ='Master Map'!$AF$56+'Master Map'!$AF$58+'Master Map'!$AF$60+'Master Map'!$AF$62+'Master Map'!$AF$64+'Master Map'!$AF$66+'Master Map'!$AH$68+'Master Map'!$AJ$72 -> 30.2683 | FL31: =FL16+'Master Map'!$V$43+'Master Map'!$U$44 -> 20.5967 | FM31: 0 | FN31: 0 | FO31: 0 | FP31: 0 | FQ31: 0 | FR31: 0 | FS31: 0 | FT31: 0 | FU31: 0 | FV31: 0 | FW31: 0 | FX31: 0 | FY31: 0 | FZ31: 0 | GA31: 0 | GB31: 0 | GC31: 0 | GD31: 0 | GE31: 0 | GF31: 0
A32: Hoppers Crossing (Forsyth Rd) | B32: M029 | D32: 180.3858 | P32: =P33+'Master Map'!$U$49 -> 4.3538 | Q32: =+'Master Map'!$U$53+'Master Map'!$U$55 -> 17.5975 | R32: =+'Master Map'!$U$59+'Master Map'!$U$61+'Master Map'!$U$57 -> 14.5345 | AI32: ='Master Map'!$N$61 -> 143.9 | AP32: 726.67079 | AQ32: 0 | AR32: 0 | AS32: 0 | AT32: 0 | AV32: 0 | AW32: 0 | AX32: 0 | AY32: 0 | AZ32: 0 | BA32: 0 | BB32: ='Master Map'!$V$43++'Master Map'!$U$47+'Master Map'!$U$44 -> 10.3573 | BC32: 0 | BD32: 0 | BE32: ='Master Map'!$Q$40+'Master Map'!$S$40+'Master Map'!$U$40+'Master Map'!$X$42 -> 26.245 | BF32: ='Master Map'!$K$40+'Master Map'!$M$40+'Master Map'!$O$40 -> 40.3542 | BG32: 0 | BH32: ='Master Map'!$AC$23+'Master Map'!$AC$25+'Master Map'!$AC$27+'Master Map'!$AC$29 -> 194.09202 | BI32: ='Master Map'!$J$37+'Master Map'!$J$33 -> 39.9597 | BJ32: 0 | BK32: 0 | BL32: =+'Master Map'!$AA$30+'Master Map'!$W$30+'Master Map'!$T$30+'Master Map'!$P$30+'Master Map'!$L$30 -> 84.0694 | BM32: ='Master Map'!$AD$21+'Master Map'!$AF$19+'Master Map'!$AH$17+'Master Map'!$AJ$15+'Master Map'!$AL$13+'Master Map'!$AN$11+'Master Map'!$AP$9+'Master Map'!$AR$7 -> 268.3692 | BN32: 0 | BO32: 0 | BP32: 0 | BQ32: 0 | BR32: 0 | BS32: ='Master Map'!$AT$1 -> 63.22397 | BT32: 0 | BU32: 0 | BV32: 0 | CB32: 230.1927 | CC32: ='Master Map'!$BE$68+'Master Map'!$BH$68+'Master Map'!$BJ$68+'Master Map'!$BL$68+'Master Map'!$BN$68+'Master Map'!$AY$68+'Master Map'!$BB$68 -> 64.7151 | CD32: =+'Master Map'!$AW$68+'Master Map'!$AU$70 -> 62.0923 | CE32: 0 | CF32: 0 | CH32: 0 | CI32: 0 | CJ32: ='Master Map'!$AR$72 -> 18.6693 | CK32: 0 | CL32: ='Master Map'!$AJ$75+'Master Map'!$AL$73+'Master Map'!$AN$71+'Master Map'!$AP$71 -> 27.9937 | CM32: ='Master Map'!$AF$56+'Master Map'!$AF$58+'Master Map'!$AF$60+'Master Map'!$AF$62+'Master Map'!$AF$64+'Master Map'!$AF$66+'Master Map'!$AH$68+'Master Map'!$AJ$72 -> 30.2683 | CN32: =CN31+'Master Map'!$U$47 -> 26.454 | CO32: 0 | CP32: 0 | CQ32: 0 | CR32: 0 | CS32: 0 | CT32: 0 | CU32: 0 | CV32: 0 | CW32: 0 | CX32: 0 | CY32: 0 | CZ32: 0 | DA32: 0 | DB32: 0 | DC32: 0 | DD32: 0 | DE32: 0 | DF32: 0 | DG32: 0 | DH32: 0 | DN32: 56.7223 | DO32: 0 | DP32: 0 | DQ32: 0 | DR32: 0 | DT32: 0 | DU32: 0 | DV32: 0 | DW32: 0 | DX32: 0 | DY32: ='Master Map'!$AF$56+'Master Map'!$AF$58+'Master Map'!$AF$60+'Master Map'!$AF$62+'Master Map'!$AF$64+'Master Map'!$AF$66+'Master Map'!$AH$68+'Master Map'!$AJ$72 -> 30.2683 | DZ32: =DZ31+'Master Map'!$U$47 -> 26.454 | EA32: 0 | EB32: 0 | EC32: 0 | ED32: 0 | EE32: 0 | EF32: 0 | EG32: 0 | EH32: 0 | EI32: 0 | EJ32: 0 | EK32: 0 | EL32: 0 | EM32: 0 | EN32: 0 | EO32: 0 | EP32: 0 | EQ32: 0 | ER32: 0 | ES32: 0 | ET32: 0 | EZ32: 84.716 | FA32: 0 | FB32: 0 | FC32: 0 | FD32: 0 | FF32: 0 | FG32: 0 | FH32: 0 | FI32: 0 | FJ32: ='Master Map'!$AJ$75+'Master Map'!$AL$73+'Master Map'!$AN$71+'Master Map'!$AP$71 -> 27.9937 | FK32: ='Master Map'!$AF$56+'Master Map'!$AF$58+'Master Map'!$AF$60+'Master Map'!$AF$62+'Master Map'!$AF$64+'Master Map'!$AF$66+'Master Map'!$AH$68+'Master Map'!$AJ$72 -> 30.2683 | FL32: =FL31+'Master Map'!$U$47 -> 26.454 | FM32: 0 | FN32: 0 | FO32: 0 | FP32: 0 | FQ32: 0 | FR32: 0 | FS32: 0 | FT32: 0 | FU32: 0 | FV32: 0 | FW32: 0 | FX32: 0 | FY32: 0 | FZ32: 0 | GA32: 0 | GB32: 0 | GC32: 0 | GD32: 0 | GE32: 0 | GF32: 0
A33: Hoppers Crossing (Heaths Rd) | B33: M030 | D33: 177.556 | P33: ='Master Map'!$U$51 -> 1.524 | Q33: =+'Master Map'!$U$53+'Master Map'!$U$55 -> 17.5975 | R33: =+'Master Map'!$U$59+'Master Map'!$U$61+'Master Map'!$U$57 -> 14.5345 | AI33: ='Master Map'!$N$61 -> 143.9 | AP33: 729.50059 | AQ33: 0 | AR33: 0 | AS33: 0 | AT33: 0 | AV33: 0 | AW33: 0 | AX33: 0 | AY33: 0 | AZ33: 0 | BA33: 0 | BB33: ='Master Map'!$V$43++'Master Map'!$U$47+'Master Map'!$U$49+'Master Map'!$U$44 -> 13.1871 | BC33: 0 | BD33: 0 | BE33: ='Master Map'!$Q$40+'Master Map'!$S$40+'Master Map'!$U$40+'Master Map'!$X$42 -> 26.245 | BF33: ='Master Map'!$K$40+'Master Map'!$M$40+'Master Map'!$O$40 -> 40.3542 | BG33: 0 | BH33: ='Master Map'!$AC$23+'Master Map'!$AC$25+'Master Map'!$AC$27+'Master Map'!$AC$29 -> 194.09202 | BI33: ='Master Map'!$J$37+'Master Map'!$J$33 -> 39.9597 | BJ33: 0 | BK33: 0 | BL33: =+'Master Map'!$AA$30+'Master Map'!$W$30+'Master Map'!$T$30+'Master Map'!$P$30+'Master Map'!$L$30 -> 84.0694 | BM33: ='Master Map'!$AD$21+'Master Map'!$AF$19+'Master Map'!$AH$17+'Master Map'!$AJ$15+'Master Map'!$AL$13+'Master Map'!$AN$11+'Master Map'!$AP$9+'Master Map'!$AR$7 -> 268.3692 | BN33: 0 | BO33: 0 | BP33: 0 | BQ33: 0 | BR33: 0 | BS33: ='Master Map'!$AT$1 -> 63.22397 | BT33: 0 | BU33: 0 | BV33: 0 | CB33: 233.0225 | CC33: ='Master Map'!$BE$68+'Master Map'!$BH$68+'Master Map'!$BJ$68+'Master Map'!$BL$68+'Master Map'!$BN$68+'Master Map'!$AY$68+'Master Map'!$BB$68 -> 64.7151 | CD33: =+'Master Map'!$AW$68+'Master Map'!$AU$70 -> 62.0923 | CE33: 0 | CF33: 0 | CH33: 0 | CI33: 0 | CJ33: ='Master Map'!$AR$72 -> 18.6693 | CK33: 0 | CL33: ='Master Map'!$AJ$75+'Master Map'!$AL$73+'Master Map'!$AN$71+'Master Map'!$AP$71 -> 27.9937 | CM33: ='Master Map'!$AF$56+'Master Map'!$AF$58+'Master Map'!$AF$60+'Master Map'!$AF$62+'Master Map'!$AF$64+'Master Map'!$AF$66+'Master Map'!$AH$68+'Master Map'!$AJ$72 -> 30.2683 | CN33: =CN32+'Master Map'!$U$49 -> 29.2838 | CO33: 0 | CP33: 0 | CQ33: 0 | CR33: 0 | CS33: 0 | CT33: 0 | CU33: 0 | CV33: 0 | CW33: 0 | CX33: 0 | CY33: 0 | CZ33: 0 | DA33: 0 | DB33: 0 | DC33: 0 | DD33: 0 | DE33: 0 | DF33: 0 | DG33: 0 | DH33: 0 | DN33: 59.5521 | DO33: 0 | DP33: 0 | DQ33: 0 | DR33: 0 | DT33: 0 | DU33: 0 | DV33: 0 | DW33: 0 | DX33: 0 | DY33: ='Master Map'!$AF$56+'Master Map'!$AF$58+'Master Map'!$AF$60+'Master Map'!$AF$62+'Master Map'!$AF$64+'Master Map'!$AF$66+'Master Map'!$AH$68+'Master Map'!$AJ$72 -> 30.2683 | DZ33: =DZ32+'Master Map'!$U$49 -> 29.2838 | EA33: 0 | EB33: 0 | EC33: 0 | ED33: 0 | EE33: 0 | EF33: 0 | EG33: 0 | EH33: 0 | EI33: 0 | EJ33: 0 | EK33: 0 | EL33: 0 | EM33: 0 | EN33: 0 | EO33: 0 | EP33: 0 | EQ33: 0 | ER33: 0 | ES33: 0 | ET33: 0 | EZ33: 87.5458 | FA33: 0 | FB33: 0 | FC33: 0 | FD33: 0 | FF33: 0 | FG33: 0 | FH33: 0 | FI33: 0 | FJ33: ='Master Map'!$AJ$75+'Master Map'!$AL$73+'Master Map'!$AN$71+'Master Map'!$AP$71 -> 27.9937 | FK33: ='Master Map'!$AF$56+'Master Map'!$AF$58+'Master Map'!$AF$60+'Master Map'!$AF$62+'Master Map'!$AF$64+'Master Map'!$AF$66+'Master Map'!$AH$68+'Master Map'!$AJ$72 -> 30.2683 | FL33: =FL32+'Master Map'!$U$49 -> 29.2838 | FM33: 0 | FN33: 0 | FO33: 0 | FP33: 0 | FQ33: 0 | FR33: 0 | FS33: 0 | FT33: 0 | FU33: 0 | FV33: 0 | FW33: 0 | FX33: 0 | FY33: 0 | FZ33: 0 | GA33: 0 | GB33: 0 | GC33: 0 | GD33: 0 | GE33: 0 | GF33: 0
A34: Werribee (Old Sneydes Rd) | B34: M031 | D34: 176.032 | Q34: =+'Master Map'!$U$53+'Master Map'!$U$55 -> 17.5975 | R34: =+'Master Map'!$U$59+'Master Map'!$U$61+'Master Map'!$U$57 -> 14.5345 | AI34: ='Master Map'!$N$61 -> 143.9 | AP34: 731.02459 | AQ34: 0 | AR34: 0 | AS34: 0 | AT34: 0 | AV34: 0 | AW34: 0 | AX34: 0 | AY34: 0 | AZ34: 0 | BA34: 0 | BB34: ='Master Map'!$V$43++'Master Map'!$U$47+'Master Map'!$U$49+'Master Map'!$U$51+'Master Map'!$U$44 -> 14.7111 | BC34: 0 | BD34: 0 | BE34: ='Master Map'!$Q$40+'Master Map'!$S$40+'Master Map'!$U$40+'Master Map'!$X$42 -> 26.245 | BF34: ='Master Map'!$K$40+'Master Map'!$M$40+'Master Map'!$O$40 -> 40.3542 | BG34: 0 | BH34: ='Master Map'!$AC$23+'Master Map'!$AC$25+'Master Map'!$AC$27+'Master Map'!$AC$29 -> 194.09202 | BI34: ='Master Map'!$J$37+'Master Map'!$J$33 -> 39.9597 | BJ34: 0 | BK34: 0 | BL34: =+'Master Map'!$AA$30+'Master Map'!$W$30+'Master Map'!$T$30+'Master Map'!$P$30+'Master Map'!$L$30 -> 84.0694 | BM34: ='Master Map'!$AD$21+'Master Map'!$AF$19+'Master Map'!$AH$17+'Master Map'!$AJ$15+'Master Map'!$AL$13+'Master Map'!$AN$11+'Master Map'!$AP$9+'Master Map'!$AR$7 -> 268.3692 | BN34: 0 | BO34: 0 | BP34: 0 | BQ34: 0 | BR34: 0 | BS34: ='Master Map'!$AT$1 -> 63.22397 | BT34: 0 | BU34: 0 | BV34: 0 | CB34: 234.5465 | CC34: ='Master Map'!$BE$68+'Master Map'!$BH$68+'Master Map'!$BJ$68+'Master Map'!$BL$68+'Master Map'!$BN$68+'Master Map'!$AY$68+'Master Map'!$BB$68 -> 64.7151 | CD34: =+'Master Map'!$AW$68+'Master Map'!$AU$70 -> 62.0923 | CE34: 0 | CF34: 0 | CH34: 0 | CI34: 0 | CJ34: ='Master Map'!$AR$72 -> 18.6693 | CK34: 0 | CL34: ='Master Map'!$AJ$75+'Master Map'!$AL$73+'Master Map'!$AN$71+'Master Map'!$AP$71 -> 27.9937 | CM34: ='Master Map'!$AF$56+'Master Map'!$AF$58+'Master Map'!$AF$60+'Master Map'!$AF$62+'Master Map'!$AF$64+'Master Map'!$AF$66+'Master Map'!$AH$68+'Master Map'!$AJ$72 -> 30.2683 | CN34: =+'Master Map'!$V$43+'Master Map'!$U$44+'Master Map'!$U$47+'Master Map'!$U$49+'Master Map'!$U$51+$CN$16 -> 30.8078 | CO34: 0 | CP34: 0 | CQ34: 0 | CR34: 0 | CS34: 0 | CT34: 0 | CU34: 0 | CV34: 0 | CW34: 0 | CX34: 0 | CY34: 0 | CZ34: 0 | DA34: 0 | DB34: 0 | DC34: 0 | DD34: 0 | DE34: 0 | DF34: 0 | DG34: 0 | DH34: 0 | DN34: 61.0761 | DO34: 0 | DP34: 0 | DQ34: 0 | DR34: 0 | DT34: 0 | DU34: 0 | DV34: 0 | DW34: 0 | DX34: 0 | DY34: ='Master Map'!$AF$56+'Master Map'!$AF$58+'Master Map'!$AF$60+'Master Map'!$AF$62+'Master Map'!$AF$64+'Master Map'!$AF$66+'Master Map'!$AH$68+'Master Map'!$AJ$72 -> 30.2683 | DZ34: =+DZ33+'Master Map'!$U$51 -> 30.8078 | EA34: 0 | EB34: 0 | EC34: 0 | ED34: 0 | EE34: 0 | EF34: 0 | EG34: 0 | EH34: 0 | EI34: 0 | EJ34: 0 | EK34: 0 | EL34: 0 | EM34: 0 | EN34: 0 | EO34: 0 | EP34: 0 | EQ34: 0 | ER34: 0 | ES34: 0 | ET34: 0 | EZ34: 89.0698 | FA34: 0 | FB34: 0 | FC34: 0 | FD34: 0 | FF34: 0 | FG34: 0 | FH34: 0 | FI34: 0 | FJ34: ='Master Map'!$AJ$75+'Master Map'!$AL$73+'Master Map'!$AN$71+'Master Map'!$AP$71 -> 27.9937 | FK34: ='Master Map'!$AF$56+'Master Map'!$AF$58+'Master Map'!$AF$60+'Master Map'!$AF$62+'Master Map'!$AF$64+'Master Map'!$AF$66+'Master Map'!$AH$68+'Master Map'!$AJ$72 -> 30.2683 | FL34: =FL33+'Master Map'!$U$51 -> 30.8078 | FM34: 0 | FN34: 0 | FO34: 0 | FP34: 0 | FQ34: 0 | FR34: 0 | FS34: 0 | FT34: 0 | FU34: 0 | FV34: 0 | FW34: 0 | FX34: 0 | FY34: 0 | FZ34: 0 | GA34: 0 | GB34: 0 | GC34: 0 | GD34: 0 | GE34: 0 | GF34: 0
A35: Werribee (Lock Ave) | B35: M032 | D35: 170.9595 | Q35: ='Master Map'!$U$55 -> 12.525 | R35: =+'Master Map'!$U$59+'Master Map'!$U$61+'Master Map'!$U$57 -> 14.5345 | AI35: ='Master Map'!$N$61 -> 143.9 | AP35: 736.09709 | AQ35: 0 | AR35: 0 | AS35: 0 | AT35: 0 | AV35: 0 | AW35: 0 | AX35: 0 | AY35: 0 | AZ35: 0 | BA35: 0 | BB35: ='Master Map'!$V$43++'Master Map'!$U$47+'Master Map'!$U$49+'Master Map'!$U$51+'Master Map'!$U$44 -> 14.7111 | BC35: ='Master Map'!$U$53 -> 5.0725 | BE35: ='Master Map'!$Q$40+'Master Map'!$S$40+'Master Map'!$U$40+'Master Map'!$X$42 -> 26.245 | BF35: ='Master Map'!$K$40+'Master Map'!$M$40+'Master Map'!$O$40 -> 40.3542 | BG35: 0 | BH35: ='Master Map'!$AC$23+'Master Map'!$AC$25+'Master Map'!$AC$27+'Master Map'!$AC$29 -> 194.09202 | BI35: ='Master Map'!$J$37+'Master Map'!$J$33 -> 39.9597 | BJ35: 0 | BK35: 0 | BL35: =+'Master Map'!$AA$30+'Master Map'!$W$30+'Master Map'!$T$30+'Master Map'!$P$30+'Master Map'!$L$30 -> 84.0694 | BM35: ='Master Map'!$AD$21+'Master Map'!$AF$19+'Master Map'!$AH$17+'Master Map'!$AJ$15+'Master Map'!$AL$13+'Master Map'!$AN$11+'Master Map'!$AP$9+'Master Map'!$AR$7 -> 268.3692 | BN35: 0 | BO35: 0 | BP35: 0 | BQ35: 0 | BR35: 0 | BS35: ='Master Map'!$AT$1 -> 63.22397 | BT35: 0 | BU35: 0 | BV35: 0 | CB35: 239.619 | CC35: ='Master Map'!$BE$68+'Master Map'!$BH$68+'Master Map'!$BJ$68+'Master Map'!$BL$68+'Master Map'!$BN$68+'Master Map'!$AY$68+'Master Map'!$BB$68 -> 64.7151 | CD35: =+'Master Map'!$AW$68+'Master Map'!$AU$70 -> 62.0923 | CE35: 0 | CF35: 0 | CH35: 0 | CI35: 0 | CJ35: ='Master Map'!$AR$72 -> 18.6693 | CK35: 0 | CL35: ='Master Map'!$AJ$75+'Master Map'!$AL$73+'Master Map'!$AN$71+'Master Map'!$AP$71 -> 27.9937 | CM35: ='Master Map'!$AF$56+'Master Map'!$AF$58+'Master Map'!$AF$60+'Master Map'!$AF$62+'Master Map'!$AF$64+'Master Map'!$AF$66+'Master Map'!$AH$68+'Master Map'!$AJ$72 -> 30.2683 | CN35: =+'Master Map'!$V$43+'Master Map'!$U$44+'Master Map'!$U$47+'Master Map'!$U$49+'Master Map'!$U$51+$CN$16 -> 30.8078 | CO35: ='Master Map'!$U$53 -> 5.0725 | CQ35: 0 | CR35: 0 | CS35: 0 | CT35: 0 | CU35: 0 | CV35: 0 | CW35: 0 | CX35: 0 | CY35: 0 | CZ35: 0 | DA35: 0 | DB35: 0 | DC35: 0 | DD35: 0 | DE35: 0 | DF35: 0 | DG35: 0 | DH35: 0 | DN35: 66.1486 | DO35: 0 | DP35: 0 | DQ35: 0 | DR35: 0 | DT35: 0 | DU35: 0 | DV35: 0 | DW35: 0 | DX35: 0 | DY35: ='Master Map'!$AF$56+'Master Map'!$AF$58+'Master Map'!$AF$60+'Master Map'!$AF$62+'Master Map'!$AF$64+'Master Map'!$AF$66+'Master Map'!$AH$68+'Master Map'!$AJ$72 -> 30.2683 | DZ35: =+$DZ$34 -> 30.8078 | EA35: ='Master Map'!$U$53 -> 5.0725 | EC35: 0 | ED35: 0 | EE35: 0 | EF35: 0 | EG35: 0 | EH35: 0 | EI35: 0 | EJ35: 0 | EK35: 0 | EL35: 0 | EM35: 0 | EN35: 0 | EO35: 0 | EP35: 0 | EQ35: 0 | ER35: 0 | ES35: 0 | ET35: 0 | EZ35: 94.1423 | FA35: 0 | FB35: 0 | FC35: 0 | FD35: 0 | FF35: 0 | FG35: 0 | FH35: 0 | FI35: 0 | FJ35: ='Master Map'!$AJ$75+'Master Map'!$AL$73+'Master Map'!$AN$71+'Master Map'!$AP$71 -> 27.9937 | FK35: ='Master Map'!$AF$56+'Master Map'!$AF$58+'Master Map'!$AF$60+'Master Map'!$AF$62+'Master Map'!$AF$64+'Master Map'!$AF$66+'Master Map'!$AH$68+'Master Map'!$AJ$72 -> 30.2683 | FL35: =+$FL$34 -> 30.8078 | FM35: ='Master Map'!$U$53 -> 5.0725 | FO35: 0 | FP35: 0 | FQ35: 0 | FR35: 0 | FS35: 0 | FT35: 0 | FU35: 0 | FV35: 0 | FW35: 0 | FX35: 0 | FY35: 0 | FZ35: 0 | GA35: 0 | GB35: 0 | GC35: 0 | GD35: 0 | GE35: 0 | GF35: 0
A36: Healesville | B36: M033 | D36: 319.4118 | M36: ='Master Map'!$AQ$66+'Master Map'!$AQ$54+'Master Map'!$AQ$43 -> 43.1531 | N36: ='Master Map'!$AJ$75+'Master Map'!$AL$73+'Master Map'!$AN$71+'Master Map'!$AP$71 -> 27.9937 | O36: ='Master Map'!$AF$56+'Master Map'!$AF$58+'Master Map'!$AF$60+'Master Map'!$AF$62+'Master Map'!$AF$64+'Master Map'!$AF$66+'Master Map'!$AH$68+'Master Map'!$AJ$72 -> 30.2683 | P36: ='Master Map'!$Y$44+'Master Map'!$Y$46+'Master Map'!$AA$48+'Master Map'!$AB$50+'Master Map'!$AC$52+'Master Map'!$AE$53+'Master Map'!$AF$54 -> 16.0967 | AI36: ='Master Map'!$N$61 -> 143.9 | AK36: =+'Master Map'!$Q$50+'Master Map'!$Q$43+'Master Map'!$T$41 -> 58 | AP36: 630.02097 | AQ36: 0 | AR36: 0 | AS36: 0 | AT36: 0 | AV36: 0 | AW36: 0 | AX36: 0 | AY36: =AY132+'Master Map'!$AQ$36 -> 49.8 | AZ36: 0 | BA36: 0 | BB36: 0 | BC36: 0 | BD36: 0 | BE36: 0 | BF36: 0 | BG36: 0 | BH36: ='Master Map'!$AC$23+'Master Map'!$AC$25+'Master Map'!$AC$27+'Master Map'!$AC$29+'Master Map'!$AC$31+'Master Map'!$AC$33 -> 248.6278 | BI36: 0 | BJ36: 0 | BK36: 0 | BL36: 0 | BM36: ='Master Map'!$AD$21+'Master Map'!$AF$19+'Master Map'!$AH$17+'Master Map'!$AJ$15+'Master Map'!$AL$13+'Master Map'!$AN$11+'Master Map'!$AP$9+'Master Map'!$AR$7 -> 268.3692 | BN36: 0 | BO36: 0 | BP36: 0 | BQ36: 0 | BR36: 0 | BS36: ='Master Map'!$AT$1 -> 63.22397 | BT36: 0 | BU36: 0 | BV36: 0 | CB36: 188.6298 | CC36: ='Master Map'!$BE$68+'Master Map'!$BH$68+'Master Map'!$BJ$68+'Master Map'!$BL$68+'Master Map'!$BN$68+'Master Map'!$AY$68+'Master Map'!$BB$68 -> 64.7151 | CD36: =+'Master Map'!$AW$68+'Master Map'!$AU$70 -> 62.0923 | CE36: 0 | CF36: 0 | CH36: 0 | CI36: 0 | CJ36: ='Master Map'!$AR$72 -> 18.6693 | CK36: =+'Master Map'!$AQ$66+'Master Map'!$AQ$54+'Master Map'!$AQ$43 -> 43.1531 | CL36: 0 | CM36: 0 | CN36: 0 | CO36: 0 | CP36: 0 | CQ36: 0 | CR36: 0 | CS36: 0 | CT36: 0 | CU36: 0 | CV36: 0 | CW36: 0 | CX36: 0 | CY36: 0 | CZ36: 0 | DA36: 0 | DB36: 0 | DC36: 0 | DD36: 0 | DE36: 0 | DF36: 0 | DG36: 0 | DH36: 0 | DN36: 71.1468 | DO36: 0 | DP36: 0 | DQ36: 0 | DR36: 0 | DT36: 0 | DU36: 0 | DV36: 0 | DW36: ='Master Map'!$AQ$66+'Master Map'!$AQ$54+'Master Map'!$AQ$43 -> 43.1531 | DX36: ='Master Map'!$AJ$75+'Master Map'!$AL$73+'Master Map'!$AN$71+'Master Map'!$AP$71 -> 27.9937 | DY36: 0 | DZ36: 0 | EA36: 0 | EB36: 0 | EC36: 0 | ED36: 0 | EE36: 0 | EF36: 0 | EG36: 0 | EH36: 0 | EI36: 0 | EJ36: 0 | EK36: 0 | EL36: 0 | EM36: 0 | EN36: 0 | EO36: 0 | EP36: 0 | EQ36: 0 | ER36: 0 | ES36: 0 | ET36: 0 | EZ36: 43.1531 | FA36: 0 | FB36: 0 | FC36: 0 | FD36: 0 | FF36: 0 | FG36: 0 | FH36: 0 | FI36: =+'Master Map'!$AQ$66+'Master Map'!$AQ$54+'Master Map'!$AQ$43 -> 43.1531 | FJ36: 0 | FK36: 0 | FL36: 0 | FM36: 0 | FN36: 0 | FO36: 0 | FP36: 0 | FQ36: 0 | FR36: 0 | FS36: 0 | FT36: 0 | FU36: 0 | FV36: 0 | FW36: 0 | FX36: 0 | FY36: 0 | FZ36: 0 | GA36: 0 | GB36: 0 | GC36: 0 | GD36: 0 | GE36: 0 | GF36: 0
A37: Gembrook | B37: M034 | D37: 289.8118 | M37: ='Master Map'!$AQ$66 -> 13.5531 | N37: ='Master Map'!$AJ$75+'Master Map'!$AL$73+'Master Map'!$AN$71+'Master Map'!$AP$71 -> 27.9937 | O37: ='Master Map'!$AF$56+'Master Map'!$AF$58+'Master Map'!$AF$60+'Master Map'!$AF$62+'Master Map'!$AF$64+'Master Map'!$AF$66+'Master Map'!$AH$68+'Master Map'!$AJ$72 -> 30.2683 | P37: ='Master Map'!$Y$44+'Master Map'!$Y$46+'Master Map'!$AA$48+'Master Map'!$AB$50+'Master Map'!$AC$52+'Master Map'!$AE$53+'Master Map'!$AF$54 -> 16.0967 | AI37: ='Master Map'!$N$61 -> 143.9 | AK37: =+'Master Map'!$Q$50+'Master Map'!$Q$43+'Master Map'!$T$41 -> 58 | AP37: 659.62097 | AQ37: 0 | AR37: 0 | AS37: 0 | AT37: 0 | AV37: 0 | AW37: 0 | AX37: 0 | AY37: =+AY131+'Master Map'!$AQ$54 -> 79.4 | AZ37: 0 | BA37: 0 | BB37: 0 | BC37: 0 | BD37: 0 | BE37: 0 | BF37: 0 | BG37: 0 | BH37: ='Master Map'!$AC$23+'Master Map'!$AC$25+'Master Map'!$AC$27+'Master Map'!$AC$29+'Master Map'!$AC$31+'Master Map'!$AC$33 -> 248.6278 | BI37: 0 | BJ37: 0 | BK37: 0 | BL37: 0 | BM37: ='Master Map'!$AD$21+'Master Map'!$AF$19+'Master Map'!$AH$17+'Master Map'!$AJ$15+'Master Map'!$AL$13+'Master Map'!$AN$11+'Master Map'!$AP$9+'Master Map'!$AR$7 -> 268.3692 | BN37: 0 | BO37: 0 | BP37: 0 | BQ37: 0 | BR37: 0 | BS37: ='Master Map'!$AT$1 -> 63.22397 | BT37: 0 | BU37: 0 | BV37: 0 | CB37: 159.0298 | CC37: ='Master Map'!$BE$68+'Master Map'!$BH$68+'Master Map'!$BJ$68+'Master Map'!$BL$68+'Master Map'!$BN$68+'Master Map'!$AY$68+'Master Map'!$BB$68 -> 64.7151 | CD37: =+'Master Map'!$AW$68+'Master Map'!$AU$70 -> 62.0923 | CE37: 0 | CF37: 0 | CH37: 0 | CI37: 0 | CJ37: ='Master Map'!$AR$72 -> 18.6693 | CK37: ='Master Map'!$AQ$66 -> 13.5531 | CL37: 0 | CM37: 0 | CN37: 0 | CO37: 0 | CP37: 0 | CQ37: 0 | CR37: 0 | CS37: 0 | CT37: 0 | CU37: 0 | CV37: 0 | CW37: 0 | CX37: 0 | CY37: 0 | CZ37: 0 | DA37: 0 | DB37: 0 | DC37: 0 | DD37: 0 | DE37: 0 | DF37: 0 | DG37: 0 | DH37: 0 | DN37: 41.5468 | DO37: 0 | DP37: 0 | DQ37: 0 | DR37: 0 | DT37: 0 | DU37: 0 | DV37: 0 | DW37: ='Master Map'!$AQ$66 -> 13.5531 | DX37: ='Master Map'!$AJ$75+'Master Map'!$AL$73+'Master Map'!$AN$71+'Master Map'!$AP$71 -> 27.9937 | DY37: 0 | DZ37: 0 | EA37: 0 | EB37: 0 | EC37: 0 | ED37: 0 | EE37: 0 | EF37: 0 | EG37: 0 | EH37: 0 | EI37: 0 | EJ37: 0 | EK37: 0 | EL37: 0 | EM37: 0 | EN37: 0 | EO37: 0 | EP37: 0 | EQ37: 0 | ER37: 0 | ES37: 0 | ET37: 0 | EZ37: 13.5531 | FA37: 0 | FB37: 0 | FC37: 0 | FD37: 0 | FF37: 0 | FG37: 0 | FH37: 0 | FI37: ='Master Map'!$AQ$66 -> 13.5531 | FJ37: 0 | FK37: 0 | FL37: 0 | FM37: 0 | FN37: 0 | FO37: 0 | FP37: 0 | FQ37: 0 | FR37: 0 | FS37: 0 | FT37: 0 | FU37: 0 | FV37: 0 | FW37: 0 | FX37: 0 | FY37: 0 | FZ37: 0 | GA37: 0 | GB37: 0 | GC37: 0 | GD37: 0 | GE37: 0 | GF37: 0
A38: Lyndhurst | B38: M035 | D38: 253.179 | J38: ='Master Map'!$AJ$77 -> 4.914 | O38: ='Master Map'!$AF$56+'Master Map'!$AF$58+'Master Map'!$AF$60+'Master Map'!$AF$62+'Master Map'!$AF$64+'Master Map'!$AF$66+'Master Map'!$AH$68+'Master Map'!$AJ$72 -> 30.2683 | P38: ='Master Map'!$Y$44+'Master Map'!$Y$46+'Master Map'!$AA$48+'Master Map'!$AB$50+'Master Map'!$AC$52+'Master Map'!$AE$53+'Master Map'!$AF$54 -> 16.0967 | AI38: ='Master Map'!$N$61 -> 143.9 | AK38: =+'Master Map'!$Q$50+'Master Map'!$Q$43+'Master Map'!$T$41 -> 58 | AP38: 706.08177 | AQ38: 0 | AR38: 0 | AS38: 0 | AT38: 0 | AV38: ='Master Map'!$AJ$77 -> 4.914 | AW38: 0 | AX38: 0 | AY38: =+$AY$37+'Master Map'!$AQ$66 -> 92.9531 | AZ38: ='Master Map'!$AJ$75+'Master Map'!$AL$73+'Master Map'!$AN$71+'Master Map'!$AP$71 -> 27.9937 | BA38: 0 | BB38: 0 | BC38: 0 | BD38: 0 | BE38: 0 | BF38: 0 | BG38: 0 | BH38: ='Master Map'!$AC$23+'Master Map'!$AC$25+'Master Map'!$AC$27+'Master Map'!$AC$29+'Master Map'!$AC$31+'Master Map'!$AC$33 -> 248.6278 | BI38: 0 | BJ38: 0 | BK38: 0 | BL38: 0 | BM38: ='Master Map'!$AD$21+'Master Map'!$AF$19+'Master Map'!$AH$17+'Master Map'!$AJ$15+'Master Map'!$AL$13+'Master Map'!$AN$11+'Master Map'!$AP$9+'Master Map'!$AR$7 -> 268.3692 | BN38: 0 | BO38: 0 | BP38: 0 | BQ38: 0 | BR38: 0 | BS38: ='Master Map'!$AT$1 -> 63.22397 | BT38: 0 | BU38: 0 | BV38: 0 | CB38: 193.50316 | CC38: =CC$13 -> 57.6704 | CE38: 0 | CF38: ='Master Map'!$BE$71+'Master Map'!$BI$72+'Master Map'!$BJ$74+'Master Map'!$BJ$76 -> 20.33256 | CH38: =+'Master Map'!$AR$77+'Master Map'!$AP$77+'Master Map'!$AN$77+'Master Map'!$AL$77 -> 22.5395 | CI38: ='Master Map'!$AT$77+'Master Map'!$AV$77+'Master Map'!$AX$77+'Master Map'!$AZ$77+'Master Map'!$BB$77+'Master Map'!$BD$77+'Master Map'!$BF$77+'Master Map'!$BH$77 -> 92.9607 | CM38: =CM$13 -> 0 | CN38: 0 | CO38: 0 | CP38: 0 | CQ38: 0 | CR38: 0 | CS38: 0 | CT38: 0 | CU38: 0 | CV38: 0 | CW38: 0 | CX38: 0 | CY38: 0 | CZ38: 0 | DA38: 0 | DB38: 0 | DC38: 0 | DD38: 0 | DE38: 0 | DF38: 0 | DG38: 0 | DH38: 0 | DN38: 4.914 | DO38: 0 | DP38: 0 | DQ38: 0 | DR38: 0 | DT38: ='Master Map'!$AJ$77 -> 4.914 | DU38: 0 | DV38: 0 | DW38: 0 | DX38: 0 | DY38: 0 | DZ38: 0 | EA38: 0 | EB38: 0 | EC38: 0 | ED38: 0 | EE38: 0 | EF38: 0 | EG38: 0 | EH38: 0 | EI38: 0 | EJ38: 0 | EK38: 0 | EL38: 0 | EM38: 0 | EN38: 0 | EO38: 0 | EP38: 0 | EQ38: 0 | ER38: 0 | ES38: 0 | ET38: 0 | EZ38: 32.9077 | FA38: 0 | FB38: 0 | FC38: 0 | FD38: 0 | FF38: ='Master Map'!$AJ$77 -> 4.914 | FG38: 0 | FH38: 0 | FI38: 0 | FJ38: ='Master Map'!$AJ$75+'Master Map'!$AL$73+'Master Map'!$AN$71+'Master Map'!$AP$71 -> 27.9937 | FK38: 0 | FL38: 0 | FM38: 0 | FN38: 0 | FO38: 0 | FP38: 0 | FQ38: 0 | FR38: 0 | FS38: 0 | FT38: 0 | FU38: 0 | FV38: 0 | FW38: 0 | FX38: 0 | FY38: 0 | FZ38: 0 | GA38: 0 | GB38: 0 | GC38: 0 | GD38: 0 | GE38: 0 | GF38: 0
A39: Cranbourne (West) | B39: M036 | D39: 257.4689 | J39: =J38+'Master Map'!$AL$77 -> 9.2039 | O39: ='Master Map'!$AF$56+'Master Map'!$AF$58+'Master Map'!$AF$60+'Master Map'!$AF$62+'Master Map'!$AF$64+'Master Map'!$AF$66+'Master Map'!$AH$68+'Master Map'!$AJ$72 -> 30.2683 | P39: ='Master Map'!$Y$44+'Master Map'!$Y$46+'Master Map'!$AA$48+'Master Map'!$AB$50+'Master Map'!$AC$52+'Master Map'!$AE$53+'Master Map'!$AF$54 -> 16.0967 | AI39: ='Master Map'!$N$61 -> 143.9 | AK39: =+'Master Map'!$Q$50+'Master Map'!$Q$43+'Master Map'!$T$41 -> 58 | AP39: 710.37167 | AQ39: 0 | AR39: 0 | AS39: 0 | AT39: 0 | AV39: =AV38+'Master Map'!$AL$77 -> 9.2039 | AW39: 0 | AX39: 0 | AY39: =+$AY$37+'Master Map'!$AQ$66 -> 92.9531 | AZ39: ='Master Map'!$AJ$75+'Master Map'!$AL$73+'Master Map'!$AN$71+'Master Map'!$AP$71 -> 27.9937 | BA39: 0 | BB39: 0 | BC39: 0 | BD39: 0 | BE39: 0 | BF39: 0 | BG39: 0 | BH39: ='Master Map'!$AC$23+'Master Map'!$AC$25+'Master Map'!$AC$27+'Master Map'!$AC$29+'Master Map'!$AC$31+'Master Map'!$AC$33 -> 248.6278 | BI39: 0 | BJ39: 0 | BK39: 0 | BL39: 0 | BM39: ='Master Map'!$AD$21+'Master Map'!$AF$19+'Master Map'!$AH$17+'Master Map'!$AJ$15+'Master Map'!$AL$13+'Master Map'!$AN$11+'Master Map'!$AP$9+'Master Map'!$AR$7 -> 268.3692 | BN39: 0 | BO39: 0 | BP39: 0 | BQ39: 0 | BR39: 0 | BS39: ='Master Map'!$AT$1 -> 63.22397 | BT39: 0 | BU39: 0 | BV39: 0 | CB39: 189.21326 | CC39: =CC$13 -> 57.6704 | CE39: 0 | CF39: ='Master Map'!$BE$71+'Master Map'!$BI$72+'Master Map'!$BJ$74+'Master Map'!$BJ$76 -> 20.33256 | CH39: =+'Master Map'!$AR$77+'Master Map'!$AP$77+'Master Map'!$AN$77 -> 18.2496 | CI39: ='Master Map'!$AT$77+'Master Map'!$AV$77+'Master Map'!$AX$77+'Master Map'!$AZ$77+'Master Map'!$BB$77+'Master Map'!$BD$77+'Master Map'!$BF$77+'Master Map'!$BH$77 -> 92.9607 | CM39: =CM$13 -> 0 | CN39: 0 | CO39: 0 | CP39: 0 | CQ39: 0 | CR39: 0 | CS39: 0 | CT39: 0 | CU39: 0 | CV39: 0 | CW39: 0 | CX39: 0 | CY39: 0 | CZ39: 0 | DA39: 0 | DB39: 0 | DC39: 0 | DD39: 0 | DE39: 0 | DF39: 0 | DG39: 0 | DH39: 0 | DN39: 9.2039 | DO39: 0 | DP39: 0 | DQ39: 0 | DR39: 0 | DT39: =DT38+'Master Map'!$AL$77 -> 9.2039 | DU39: 0 | DV39: 0 | DW39: 0 | DX39: 0 | DY39: 0 | DZ39: 0 | EA39: 0 | EB39: 0 | EC39: 0 | ED39: 0 | EE39: 0 | EF39: 0 | EG39: 0 | EH39: 0 | EI39: 0 | EJ39: 0 | EK39: 0 | EL39: 0 | EM39: 0 | EN39: 0 | EO39: 0 | EP39: 0 | EQ39: 0 | ER39: 0 | ES39: 0 | ET39: 0 | EZ39: 37.1976 | FA39: 0 | FB39: 0 | FC39: 0 | FD39: 0 | FF39: =FF38+'Master Map'!$AL$77 -> 9.2039 | FG39: 0 | FH39: 0 | FI39: 0 | FJ39: ='Master Map'!$AJ$75+'Master Map'!$AL$73+'Master Map'!$AN$71+'Master Map'!$AP$71 -> 27.9937 | FK39: 0 | FL39: 0 | FM39: 0 | FN39: 0 | FO39: 0 | FP39: 0 | FQ39: 0 | FR39: 0 | FS39: 0 | FT39: 0 | FU39: 0 | FV39: 0 | FW39: 0 | FX39: 0 | FY39: 0 | FZ39: 0 | GA39: 0 | GB39: 0 | GC39: 0 | GD39: 0 | GE39: 0 | GF39: 0
A40: Cranbourne (East) | B40: M037 | D40: 258.5234 | J40: =J39+'Master Map'!$AN$77 -> 10.2584 | O40: ='Master Map'!$AF$56+'Master Map'!$AF$58+'Master Map'!$AF$60+'Master Map'!$AF$62+'Master Map'!$AF$64+'Master Map'!$AF$66+'Master Map'!$AH$68+'Master Map'!$AJ$72 -> 30.2683 | P40: ='Master Map'!$Y$44+'Master Map'!$Y$46+'Master Map'!$AA$48+'Master Map'!$AB$50+'Master Map'!$AC$52+'Master Map'!$AE$53+'Master Map'!$AF$54 -> 16.0967 | AI40: ='Master Map'!$N$61 -> 143.9 | AK40: =+'Master Map'!$Q$50+'Master Map'!$Q$43+'Master Map'!$T$41 -> 58 | AP40: 711.42617 | AQ40: 0 | AR40: 0 | AS40: 0 | AT40: 0 | AV40: =AV39+'Master Map'!$AN$77 -> 10.2584 | AW40: 0 | AX40: 0 | AY40: =+$AY$37+'Master Map'!$AQ$66 -> 92.9531 | AZ40: ='Master Map'!$AJ$75+'Master Map'!$AL$73+'Master Map'!$AN$71+'Master Map'!$AP$71 -> 27.9937 | BA40: 0 | BB40: 0 | BC40: 0 | BD40: 0 | BE40: 0 | BF40: 0 | BG40: 0 | BH40: ='Master Map'!$AC$23+'Master Map'!$AC$25+'Master Map'!$AC$27+'Master Map'!$AC$29+'Master Map'!$AC$31+'Master Map'!$AC$33 -> 248.6278 | BI40: 0 | BJ40: 0 | BK40: 0 | BL40: 0 | BM40: ='Master Map'!$AD$21+'Master Map'!$AF$19+'Master Map'!$AH$17+'Master Map'!$AJ$15+'Master Map'!$AL$13+'Master Map'!$AN$11+'Master Map'!$AP$9+'Master Map'!$AR$7 -> 268.3692 | BN40: 0 | BO40: 0 | BP40: 0 | BQ40: 0 | BR40: 0 | BS40: ='Master Map'!$AT$1 -> 63.22397 | BT40: 0 | BU40: 0 | BV40: 0 | CB40: 188.15876 | CC40: =CC$13 -> 57.6704 | CE40: 0 | CF40: ='Master Map'!$BE$71+'Master Map'!$BI$72+'Master Map'!$BJ$74+'Master Map'!$BJ$76 -> 20.33256 | CH40: =+'Master Map'!$AR$77+'Master Map'!$AP$77 -> 17.1951 | CI40: ='Master Map'!$AT$77+'Master Map'!$AV$77+'Master Map'!$AX$77+'Master Map'!$AZ$77+'Master Map'!$BB$77+'Master Map'!$BD$77+'Master Map'!$BF$77+'Master Map'!$BH$77 -> 92.9607 | CM40: 0 | CN40: 0 | CO40: 0 | CP40: 0 | CQ40: 0 | CR40: 0 | CS40: 0 | CT40: 0 | CU40: 0 | CV40: 0 | CW40: 0 | CX40: 0 | CY40: 0 | CZ40: 0 | DA40: 0 | DB40: 0 | DC40: 0 | DD40: 0 | DE40: 0 | DF40: 0 | DG40: 0 | DH40: 0 | DN40: 10.2584 | DO40: 0 | DP40: 0 | DQ40: 0 | DR40: 0 | DT40: =DT39+'Master Map'!$AN$77 -> 10.2584 | DU40: 0 | DV40: 0 | DW40: 0 | DX40: 0 | DY40: 0 | DZ40: 0 | EA40: 0 | EB40: 0 | EC40: 0 | ED40: 0 | EE40: 0 | EF40: 0 | EG40: 0 | EH40: 0 | EI40: 0 | EJ40: 0 | EK40: 0 | EL40: 0 | EM40: 0 | EN40: 0 | EO40: 0 | EP40: 0 | EQ40: 0 | ER40: 0 | ES40: 0 | ET40: 0 | EZ40: 38.2521 | FA40: 0 | FB40: 0 | FC40: 0 | FD40: 0 | FF40: =FF39+'Master Map'!$AN$77 -> 10.2584 | FG40: 0 | FH40: 0 | FI40: 0 | FJ40: ='Master Map'!$AJ$75+'Master Map'!$AL$73+'Master Map'!$AN$71+'Master Map'!$AP$71 -> 27.9937 | FK40: 0 | FL40: 0 | FM40: 0 | FN40: 0 | FO40: 0 | FP40: 0 | FQ40: 0 | FR40: 0 | FS40: 0 | FT40: 0 | FU40: 0 | FV40: 0 | FW40: 0 | FX40: 0 | FY40: 0 | FZ40: 0 | GA40: 0 | GB40: 0 | GC40: 0 | GD40: 0 | GE40: 0 | GF40: 0
A41: Clyde North | B41: M038 | D41: =SUM(E41:AN41) -> 264.66723 | J41: =J40+'Master Map'!$AP$77+'Master Map'!$AQ$78 -> 16.40223 | O41: ='Master Map'!$AF$56+'Master Map'!$AF$58+'Master Map'!$AF$60+'Master Map'!$AF$62+'Master Map'!$AF$64+'Master Map'!$AF$66+'Master Map'!$AH$68+'Master Map'!$AJ$72 -> 30.2683 | P41: ='Master Map'!$Y$44+'Master Map'!$Y$46+'Master Map'!$AA$48+'Master Map'!$AB$50+'Master Map'!$AC$52+'Master Map'!$AE$53+'Master Map'!$AF$54 -> 16.0967 | AI41: ='Master Map'!$N$61 -> 143.9 | AK41: =+'Master Map'!$Q$50+'Master Map'!$Q$43+'Master Map'!$T$41 -> 58 | AP41: =SUM(AQ41:BZ41) -> 717.57 | AQ41: 0 | AR41: 0 | AS41: 0 | AT41: 0 | AV41: =AV40+'Master Map'!$AP$77+'Master Map'!$AQ$78 -> 16.40223 | AW41: 0 | AX41: 0 | AY41: =+$AY$37+'Master Map'!$AQ$66 -> 92.9531 | AZ41: ='Master Map'!$AJ$75+'Master Map'!$AL$73+'Master Map'!$AN$71+'Master Map'!$AP$71 -> 27.9937 | BA41: 0 | BB41: 0 | BC41: 0 | BD41: 0 | BE41: 0 | BF41: 0 | BG41: 0 | BH41: ='Master Map'!$AC$23+'Master Map'!$AC$25+'Master Map'!$AC$27+'Master Map'!$AC$29+'Master Map'!$AC$31+'Master Map'!$AC$33 -> 248.6278 | BI41: 0 | BJ41: 0 | BK41: 0 | BL41: 0 | BM41: ='Master Map'!$AD$21+'Master Map'!$AF$19+'Master Map'!$AH$17+'Master Map'!$AJ$15+'Master Map'!$AL$13+'Master Map'!$AN$11+'Master Map'!$AP$9+'Master Map'!$AR$7 -> 268.3692 | BN41: 0 | BO41: 0 | BP41: 0 | BQ41: 0 | BR41: 0 | BS41: ='Master Map'!$AT$1 -> 63.22397 | BT41: 0 | BU41: 0 | BV41: 0 | CB41: 186.03879 | CC41: ='Master Map'!$BE$68+'Master Map'!$BH$68+'Master Map'!$BJ$68+'Master Map'!$BL$68+'Master Map'!$BN$68 -> 57.6704 | CD41: 0 | CE41: 0 | CF41: ='Master Map'!$BE$71+'Master Map'!$BI$72+'Master Map'!$BJ$74+'Master Map'!$BJ$76 -> 20.33256 | CH41: ='Master Map'!$AR$77+'Master Map'!$AQ$78 -> 15.07513 | CI41: ='Master Map'!$AT$77+'Master Map'!$AV$77+'Master Map'!$AX$77+'Master Map'!$AZ$77+'Master Map'!$BB$77+'Master Map'!$BD$77+'Master Map'!$BF$77+'Master Map'!$BH$77 -> 92.9607 | CJ41: 0 | CK41: 0 | CL41: 0 | CM41: 0 | CN41: 0 | CO41: 0 | CP41: 0 | CQ41: 0 | CR41: 0 | CS41: 0 | CT41: 0 | CU41: 0 | CV41: 0 | CW41: 0 | CX41: 0 | CY41: 0 | CZ41: 0 | DA41: 0 | DB41: 0 | DC41: 0 | DD41: 0 | DE41: 0 | DF41: 0 | DG41: 0 | DH41: 0 | DN41: =SUM(DO41:EX41) -> 16.40223 | DO41: 0 | DP41: 0 | DQ41: 0 | DR41: 0 | DT41: =DT40+'Master Map'!$AP$77+'Master Map'!$AQ$78 -> 16.40223 | DU41: 0 | DV41: 0 | DW41: 0 | DX41: 0 | DY41: 0 | DZ41: 0 | EA41: 0 | EB41: 0 | EC41: 0 | ED41: 0 | EE41: 0 | EF41: 0 | EG41: 0 | EH41: 0 | EI41: 0 | EJ41: 0 | EK41: 0 | EL41: 0 | EM41: 0 | EN41: 0 | EO41: 0 | EP41: 0 | EQ41: 0 | ER41: 0 | ES41: 0 | ET41: 0 | EZ41: =SUM(FA41:GJ41) -> 44.39593 | FA41: 0 | FB41: 0 | FC41: 0 | FD41: 0 | FF41: =FF40+'Master Map'!$AP$77+'Master Map'!$AQ$78 -> 16.40223 | FG41: 0 | FH41: 0 | FI41: 0 | FJ41: ='Master Map'!$AJ$75+'Master Map'!$AL$73+'Master Map'!$AN$71+'Master Map'!$AP$71 -> 27.9937 | FK41: 0 | FL41: 0 | FM41: 0 | FN41: 0 | FO41: 0 | FP41: 0 | FQ41: 0 | FR41: 0 | FS41: 0 | FT41: 0 | FU41: 0 | FV41: 0 | FW41: 0 | FX41: 0 | FY41: 0 | FZ41: 0 | GA41: 0 | GB41: 0 | GC41: 0 | GD41: 0 | GE41: 0 | GF41: 0
A42: Pakenham South | B42: M040 | D42: 276.874 | J42: ='Master Map'!$AJ$77+'Master Map'!$AL$77+'Master Map'!$AN$77+'Master Map'!$AP$77+'Master Map'!$AR$77+'Master Map'!$AS$78 -> 28.609 | O42: ='Master Map'!$AF$56+'Master Map'!$AF$58+'Master Map'!$AF$60+'Master Map'!$AF$62+'Master Map'!$AF$64+'Master Map'!$AF$66+'Master Map'!$AH$68+'Master Map'!$AJ$72 -> 30.2683 | P42: ='Master Map'!$Y$44+'Master Map'!$Y$46+'Master Map'!$AA$48+'Master Map'!$AB$50+'Master Map'!$AC$52+'Master Map'!$AE$53+'Master Map'!$AF$54 -> 16.0967 | AI42: ='Master Map'!$N$61 -> 143.9 | AK42: =+'Master Map'!$Q$50+'Master Map'!$Q$43+'Master Map'!$T$41 -> 58 | AP42: 729.77677 | AQ42: 0 | AR42: 0 | AS42: 0 | AT42: 0 | AV42: ='Master Map'!$AJ$77+'Master Map'!$AL$77+'Master Map'!$AN$77+'Master Map'!$AP$77+'Master Map'!$AR$77+'Master Map'!$AS$78 -> 28.609 | AW42: 0 | AX42: 0 | AY42: =+$AY$37+'Master Map'!$AQ$66 -> 92.9531 | AZ42: ='Master Map'!$AJ$75+'Master Map'!$AL$73+'Master Map'!$AN$71+'Master Map'!$AP$71 -> 27.9937 | BA42: 0 | BB42: 0 | BC42: 0 | BD42: 0 | BE42: 0 | BF42: 0 | BG42: 0 | BH42: ='Master Map'!$AC$23+'Master Map'!$AC$25+'Master Map'!$AC$27+'Master Map'!$AC$29+'Master Map'!$AC$31+'Master Map'!$AC$33 -> 248.6278 | BI42: 0 | BJ42: 0 | BK42: 0 | BL42: 0 | BM42: ='Master Map'!$AD$21+'Master Map'!$AF$19+'Master Map'!$AH$17+'Master Map'!$AJ$15+'Master Map'!$AL$13+'Master Map'!$AN$11+'Master Map'!$AP$9+'Master Map'!$AR$7 -> 268.3692 | BN42: 0 | BO42: 0 | BP42: 0 | BQ42: 0 | BR42: 0 | BS42: ='Master Map'!$AT$1 -> 63.22397 | BT42: 0 | BU42: 0 | BV42: 0 | CB42: =SUM(CC42:DL42) -> 172.11916 | CC42: ='Master Map'!$BE$68+'Master Map'!$BH$68+'Master Map'!$BJ$68+'Master Map'!$BL$68+'Master Map'!$BN$68 -> 57.6704 | CD42: 0 | CE42: 0 | CF42: ='Master Map'!$BE$71+'Master Map'!$BI$72+'Master Map'!$BJ$74+'Master Map'!$BJ$76 -> 20.33256 | CH42: ='Master Map'!$AS$78 -> 1.1555 | CI42: ='Master Map'!$AT$77+'Master Map'!$AV$77+'Master Map'!$AX$77+'Master Map'!$AZ$77+'Master Map'!$BB$77+'Master Map'!$BD$77+'Master Map'!$BF$77+'Master Map'!$BH$77 -> 92.9607 | CJ42: 0 | CK42: 0 | CL42: 0 | CM42: 0 | CN42: 0 | CO42: 0 | CP42: 0 | CQ42: 0 | CR42: 0 | CS42: 0 | CT42: 0 | CU42: 0 | CV42: 0 | CW42: 0 | CX42: 0 | CY42: 0 | CZ42: 0 | DA42: 0 | DB42: 0 | DC42: 0 | DD42: 0 | DE42: 0 | DF42: 0 | DG42: 0 | DH42: 0 | DN42: 28.609 | DO42: 0 | DP42: 0 | DQ42: 0 | DR42: 0 | DT42: ='Master Map'!$AJ$77+'Master Map'!$AL$77+'Master Map'!$AN$77+'Master Map'!$AP$77+'Master Map'!$AR$77+'Master Map'!$AS$78 -> 28.609 | DU42: 0 | DV42: 0 | DW42: 0 | DX42: 0 | DY42: 0 | DZ42: 0 | EA42: 0 | EB42: 0 | EC42: 0 | ED42: 0 | EE42: 0 | EF42: 0 | EG42: 0 | EH42: 0 | EI42: 0 | EJ42: 0 | EK42: 0 | EL42: 0 | EM42: 0 | EN42: 0 | EO42: 0 | EP42: 0 | EQ42: 0 | ER42: 0 | ES42: 0 | ET42: 0 | EZ42: 56.6027 | FA42: 0 | FB42: 0 | FC42: 0 | FD42: 0 | FF42: ='Master Map'!$AJ$77+'Master Map'!$AL$77+'Master Map'!$AN$77+'Master Map'!$AP$77+'Master Map'!$AR$77+'Master Map'!$AS$78 -> 28.609 | FG42: 0 | FH42: 0 | FI42: 0 | FJ42: ='Master Map'!$AJ$75+'Master Map'!$AL$73+'Master Map'!$AN$71+'Master Map'!$AP$71 -> 27.9937 | FK42: 0 | FL42: 0 | FM42: 0 | FN42: 0 | FO42: 0 | FP42: 0 | FQ42: 0 | FR42: 0 | FS42: 0 | FT42: 0 | FU42: 0 | FV42: 0 | FW42: 0 | FX42: 0 | FY42: 0 | FZ42: 0 | GA42: 0 | GB42: 0 | GC42: 0 | GD42: 0 | GE42: 0 | GF42: 0
A43: Hampton Park | B43: M042 | D43: 253.1326 | N43: ='Master Map'!$AJ$75 -> 4.8676 | O43: ='Master Map'!$AF$56+'Master Map'!$AF$58+'Master Map'!$AF$60+'Master Map'!$AF$62+'Master Map'!$AF$64+'Master Map'!$AF$66+'Master Map'!$AH$68+'Master Map'!$AJ$72 -> 30.2683 | P43: ='Master Map'!$Y$44+'Master Map'!$Y$46+'Master Map'!$AA$48+'Master Map'!$AB$50+'Master Map'!$AC$52+'Master Map'!$AE$53+'Master Map'!$AF$54 -> 16.0967 | AI43: ='Master Map'!$N$61 -> 143.9 | AK43: =+'Master Map'!$Q$50+'Master Map'!$Q$43+'Master Map'!$T$41 -> 58 | AP43: 696.30017 | AQ43: 0 | AR43: 0 | AS43: 0 | AT43: 0 | AV43: 0 | AW43: 0 | AX43: 0 | AY43: =+$AY$37+'Master Map'!$AQ$66 -> 92.9531 | AZ43: ='Master Map'!$AP$71+'Master Map'!$AN$71+'Master Map'!$AL$73 -> 23.1261 | BA43: 0 | BB43: 0 | BC43: 0 | BD43: 0 | BE43: 0 | BF43: 0 | BG43: 0 | BH43: ='Master Map'!$AC$23+'Master Map'!$AC$25+'Master Map'!$AC$27+'Master Map'!$AC$29+'Master Map'!$AC$31+'Master Map'!$AC$33 -> 248.6278 | BI43: 0 | BJ43: 0 | BK43: 0 | BL43: 0 | BM43: ='Master Map'!$AD$21+'Master Map'!$AF$19+'Master Map'!$AH$17+'Master Map'!$AJ$15+'Master Map'!$AL$13+'Master Map'!$AN$11+'Master Map'!$AP$9+'Master Map'!$AR$7 -> 268.3692 | BN43: 0 | BO43: 0 | BP43: 0 | BQ43: 0 | BR43: 0 | BS43: ='Master Map'!$AT$1 -> 63.22397 | BT43: 0 | BU43: 0 | BV43: 0 | CB43: 168.6028 | CC43: ='Master Map'!$BE$68+'Master Map'!$BH$68+'Master Map'!$BJ$68+'Master Map'!$BL$68+'Master Map'!$BN$68+'Master Map'!$AY$68+'Master Map'!$BB$68 -> 64.7151 | CD43: =+'Master Map'!$AW$68+'Master Map'!$AU$70 -> 62.0923 | CE43: 0 | CF43: 0 | CH43: 0 | CI43: 0 | CJ43: ='Master Map'!$AR$72 -> 18.6693 | CK43: 0 | CL43: ='Master Map'!$AP$71+'Master Map'!$AN$71+'Master Map'!$AL$73 -> 23.1261 | CM43: 0 | CN43: 0 | CO43: 0 | CP43: 0 | CQ43: 0 | CR43: 0 | CS43: 0 | CT43: 0 | CU43: 0 | CV43: 0 | CW43: 0 | CX43: 0 | CY43: 0 | CZ43: 0 | DA43: 0 | DB43: 0 | DC43: 0 | DD43: 0 | DE43: 0 | DF43: 0 | DG43: 0 | DH43: 0 | DN43: 4.8676 | DO43: 0 | DP43: 0 | DQ43: 0 | DR43: 0 | DT43: 0 | DU43: 0 | DV43: 0 | DW43: 0 | DX43: ='Master Map'!$AJ$75 -> 4.8676 | DY43: 0 | DZ43: 0 | EA43: 0 | EB43: 0 | EC43: 0 | ED43: 0 | EE43: 0 | EF43: 0 | EG43: 0 | EH43: 0 | EI43: 0 | EJ43: 0 | EK43: 0 | EL43: 0 | EM43: 0 | EN43: 0 | EO43: 0 | EP43: 0 | EQ43: 0 | ER43: 0 | ES43: 0 | ET43: 0 | EZ43: 23.1261 | FA43: 0 | FB43: 0 | FC43: 0 | FD43: 0 | FF43: 0 | FG43: 0 | FH43: 0 | FI43: 0 | FJ43: ='Master Map'!$AL$73+'Master Map'!$AN$71+'Master Map'!$AP$71 -> 23.1261 | FK43: 0 | FL43: 0 | FM43: 0 | FN43: 0 | FO43: 0 | FP43: 0 | FQ43: 0 | FR43: 0 | FS43: 0 | FT43: 0 | FU43: 0 | FV43: 0 | FW43: 0 | FX43: 0 | FY43: 0 | FZ43: 0 | GA43: 0 | GB43: 0 | GC43: 0 | GD43: 0 | GE43: 0 | GF43: 0
A44: Narre Warren | B44: M043 | D44: 256.4471 | N44: =N43+'Master Map'!$AL$73 -> 8.1821 | O44: ='Master Map'!$AF$56+'Master Map'!$AF$58+'Master Map'!$AF$60+'Master Map'!$AF$62+'Master Map'!$AF$64+'Master Map'!$AF$66+'Master Map'!$AH$68+'Master Map'!$AJ$72 -> 30.2683 | P44: ='Master Map'!$Y$44+'Master Map'!$Y$46+'Master Map'!$AA$48+'Master Map'!$AB$50+'Master Map'!$AC$52+'Master Map'!$AE$53+'Master Map'!$AF$54 -> 16.0967 | AI44: ='Master Map'!$N$61 -> 143.9 | AK44: =+'Master Map'!$Q$50+'Master Map'!$Q$43+'Master Map'!$T$41 -> 58 | AP44: 692.98567 | AQ44: 0 | AR44: 0 | AS44: 0 | AT44: 0 | AV44: 0 | AW44: 0 | AX44: 0 | AY44: =+$AY$37+'Master Map'!$AQ$66 -> 92.9531 | AZ44: ='Master Map'!$AP$71+'Master Map'!$AN$71 -> 19.8116 | BA44: 0 | BB44: 0 | BC44: 0 | BD44: 0 | BE44: 0 | BF44: 0 | BG44: 0 | BH44: ='Master Map'!$AC$23+'Master Map'!$AC$25+'Master Map'!$AC$27+'Master Map'!$AC$29+'Master Map'!$AC$31+'Master Map'!$AC$33 -> 248.6278 | BI44: 0 | BJ44: 0 | BK44: 0 | BL44: 0 | BM44: ='Master Map'!$AD$21+'Master Map'!$AF$19+'Master Map'!$AH$17+'Master Map'!$AJ$15+'Master Map'!$AL$13+'Master Map'!$AN$11+'Master Map'!$AP$9+'Master Map'!$AR$7 -> 268.3692 | BN44: 0 | BO44: 0 | BP44: 0 | BQ44: 0 | BR44: 0 | BS44: ='Master Map'!$AT$1 -> 63.22397 | BT44: 0 | BU44: 0 | BV44: 0 | CB44: 165.2883 | CC44: ='Master Map'!$BE$68+'Master Map'!$BH$68+'Master Map'!$BJ$68+'Master Map'!$BL$68+'Master Map'!$BN$68+'Master Map'!$AY$68+'Master Map'!$BB$68 -> 64.7151 | CD44: =+'Master Map'!$AW$68+'Master Map'!$AU$70 -> 62.0923 | CE44: 0 | CF44: 0 | CH44: 0 | CI44: 0 | CJ44: ='Master Map'!$AR$72 -> 18.6693 | CK44: 0 | CL44: ='Master Map'!$AP$71+'Master Map'!$AN$71 -> 19.8116 | CM44: 0 | CN44: 0 | CO44: 0 | CP44: 0 | CQ44: 0 | CR44: 0 | CS44: 0 | CT44: 0 | CU44: 0 | CV44: 0 | CW44: 0 | CX44: 0 | CY44: 0 | CZ44: 0 | DA44: 0 | DB44: 0 | DC44: 0 | DD44: 0 | DE44: 0 | DF44: 0 | DG44: 0 | DH44: 0 | DN44: 8.1821 | DO44: 0 | DP44: 0 | DQ44: 0 | DR44: 0 | DT44: 0 | DU44: 0 | DV44: 0 | DW44: 0 | DX44: =DX43+'Master Map'!$AL$73 -> 8.1821 | DY44: 0 | DZ44: 0 | EA44: 0 | EB44: 0 | EC44: 0 | ED44: 0 | EE44: 0 | EF44: 0 | EG44: 0 | EH44: 0 | EI44: 0 | EJ44: 0 | EK44: 0 | EL44: 0 | EM44: 0 | EN44: 0 | EO44: 0 | EP44: 0 | EQ44: 0 | ER44: 0 | ES44: 0 | ET44: 0 | EZ44: 19.8116 | FA44: 0 | FB44: 0 | FC44: 0 | FD44: 0 | FF44: 0 | FG44: 0 | FH44: 0 | FI44: 0 | FJ44: ='Master Map'!$AN$71+'Master Map'!$AP$71 -> 19.8116 | FK44: 0 | FL44: 0 | FM44: 0 | FN44: 0 | FO44: 0 | FP44: 0 | FQ44: 0 | FR44: 0 | FS44: 0 | FT44: 0 | FU44: 0 | FV44: 0 | FW44: 0 | FX44: 0 | FY44: 0 | FZ44: 0 | GA44: 0 | GB44: 0 | GC44: 0 | GD44: 0 | GE44: 0 | GF44: 0
A45: Berwick | B45: M044 | D45: 259.7776 | N45: =N44+'Master Map'!$AN$71 -> 11.5126 | O45: ='Master Map'!$AF$56+'Master Map'!$AF$58+'Master Map'!$AF$60+'Master Map'!$AF$62+'Master Map'!$AF$64+'Master Map'!$AF$66+'Master Map'!$AH$68+'Master Map'!$AJ$72 -> 30.2683 | P45: ='Master Map'!$Y$44+'Master Map'!$Y$46+'Master Map'!$AA$48+'Master Map'!$AB$50+'Master Map'!$AC$52+'Master Map'!$AE$53+'Master Map'!$AF$54 -> 16.0967 | AI45: ='Master Map'!$N$61 -> 143.9 | AK45: =+'Master Map'!$Q$50+'Master Map'!$Q$43+'Master Map'!$T$41 -> 58 | AP45: 689.65517 | AQ45: 0 | AR45: 0 | AS45: 0 | AT45: 0 | AV45: 0 | AW45: 0 | AX45: 0 | AY45: =+$AY$37+'Master Map'!$AQ$66 -> 92.9531 | AZ45: ='Master Map'!$AP$71 -> 16.4811 | BA45: 0 | BB45: 0 | BC45: 0 | BD45: 0 | BE45: 0 | BF45: 0 | BG45: 0 | BH45: ='Master Map'!$AC$23+'Master Map'!$AC$25+'Master Map'!$AC$27+'Master Map'!$AC$29+'Master Map'!$AC$31+'Master Map'!$AC$33 -> 248.6278 | BI45: 0 | BJ45: 0 | BK45: 0 | BL45: 0 | BM45: ='Master Map'!$AD$21+'Master Map'!$AF$19+'Master Map'!$AH$17+'Master Map'!$AJ$15+'Master Map'!$AL$13+'Master Map'!$AN$11+'Master Map'!$AP$9+'Master Map'!$AR$7 -> 268.3692 | BN45: 0 | BO45: 0 | BP45: 0 | BQ45: 0 | BR45: 0 | BS45: ='Master Map'!$AT$1 -> 63.22397 | BT45: 0 | BU45: 0 | BV45: 0 | CB45: 161.9578 | CC45: ='Master Map'!$BE$68+'Master Map'!$BH$68+'Master Map'!$BJ$68+'Master Map'!$BL$68+'Master Map'!$BN$68+'Master Map'!$AY$68+'Master Map'!$BB$68 -> 64.7151 | CD45: =+'Master Map'!$AW$68+'Master Map'!$AU$70 -> 62.0923 | CE45: 0 | CF45: 0 | CH45: 0 | CI45: 0 | CJ45: ='Master Map'!$AR$72 -> 18.6693 | CK45: 0 | CL45: ='Master Map'!$AP$71 -> 16.4811 | CM45: 0 | CN45: 0 | CO45: 0 | CP45: 0 | CQ45: 0 | CR45: 0 | CS45: 0 | CT45: 0 | CU45: 0 | CV45: 0 | CW45: 0 | CX45: 0 | CY45: 0 | CZ45: 0 | DA45: 0 | DB45: 0 | DC45: 0 | DD45: 0 | DE45: 0 | DF45: 0 | DG45: 0 | DH45: 0 | DN45: 11.5126 | DO45: 0 | DP45: 0 | DQ45: 0 | DR45: 0 | DT45: 0 | DU45: 0 | DV45: 0 | DW45: 0 | DX45: =DX44+'Master Map'!$AN$71 -> 11.5126 | DY45: 0 | DZ45: 0 | EA45: 0 | EB45: 0 | EC45: 0 | ED45: 0 | EE45: 0 | EF45: 0 | EG45: 0 | EH45: 0 | EI45: 0 | EJ45: 0 | EK45: 0 | EL45: 0 | EM45: 0 | EN45: 0 | EO45: 0 | EP45: 0 | EQ45: 0 | ER45: 0 | ES45: 0 | ET45: 0 | EZ45: 16.4811 | FA45: 0 | FB45: 0 | FC45: 0 | FD45: 0 | FF45: 0 | FG45: 0 | FH45: 0 | FI45: 0 | FJ45: ='Master Map'!$AP$71 -> 16.4811 | FK45: 0 | FL45: 0 | FM45: 0 | FN45: 0 | FO45: 0 | FP45: 0 | FQ45: 0 | FR45: 0 | FS45: 0 | FT45: 0 | FU45: 0 | FV45: 0 | FW45: 0 | FX45: 0 | FY45: 0 | FZ45: 0 | GA45: 0 | GB45: 0 | GC45: 0 | GD45: 0 | GE45: 0 | GF45: 0
A46: Sunbury | B46: M045 | D46: 212.0279 | AE46: ='Master Map'!$R$32 -> 24.0279 | AI46: ='Master Map'!$N$61 -> 143.9 | AK46: =+'Master Map'!$Q$50+'Master Map'!$Q$43 -> 44.1 | AP46: 726.41259 | AQ46: 0 | AR46: 0 | AS46: 0 | AT46: 0 | AV46: 0 | AW46: 0 | AX46: 0 | AY46: 0 | AZ46: 0 | BA46: 0 | BB46: 0 | BC46: 0 | BD46: 0 | BE46: ='Master Map'!$Q$40 -> 12.3162 | BF46: ='Master Map'!$K$40+'Master Map'!$M$40+'Master Map'!$O$40 -> 40.3542 | BG46: 0 | BH46: ='Master Map'!$AC$23+'Master Map'!$AC$25+'Master Map'!$AC$27+'Master Map'!$AC$29 -> 194.09202 | BI46: ='Master Map'!$J$37+'Master Map'!$J$33 -> 39.9597 | BJ46: 0 | BK46: 0 | BL46: =+'Master Map'!$AA$30+'Master Map'!$W$30+'Master Map'!$T$30+'Master Map'!$P$30+'Master Map'!$L$30 -> 84.0694 | BM46: ='Master Map'!$AD$21+'Master Map'!$AF$19+'Master Map'!$AH$17+'Master Map'!$AJ$15+'Master Map'!$AL$13+'Master Map'!$AN$11+'Master Map'!$AP$9+'Master Map'!$AR$7 -> 268.3692 | BN46: 0 | BO46: 0 | BP46: 0 | BQ46: ='Master Map'!$R$32 -> 24.0279 | BR46: 0 | BS46: ='Master Map'!$AT$1 -> 63.22397 | BT46: 0 | BU46: 0 | BV46: 0 | CB46: 257.7921 | CC46: ='Master Map'!$BE$68+'Master Map'!$BH$68+'Master Map'!$BJ$68+'Master Map'!$BL$68+'Master Map'!$BN$68+'Master Map'!$AY$68+'Master Map'!$BB$68 -> 64.7151 | CD46: =+'Master Map'!$AW$68+'Master Map'!$AU$70 -> 62.0923 | CE46: 0 | CF46: 0 | CH46: 0 | CI46: 0 | CJ46: ='Master Map'!$AR$72 -> 18.6693 | CK46: 0 | CL46: ='Master Map'!$AJ$75+'Master Map'!$AL$73+'Master Map'!$AN$71+'Master Map'!$AP$71 -> 27.9937 | CM46: ='Master Map'!$AF$56+'Master Map'!$AF$58+'Master Map'!$AF$60+'Master Map'!$AF$62+'Master Map'!$AF$64+'Master Map'!$AF$66+'Master Map'!$AH$68+'Master Map'!$AJ$72 -> 30.2683 | CN46: ='Master Map'!$Y$44+'Master Map'!$Y$46+'Master Map'!$AA$48+'Master Map'!$AB$50+'Master Map'!$AC$52+'Master Map'!$AE$53+'Master Map'!$AF$54 -> 16.0967 | CO46: 0 | CP46: 0 | CQ46: ='Master Map'!$X$42+'Master Map'!$U$40+'Master Map'!$S$40 -> 13.9288 | CR46: 0 | CS46: 0 | CT46: 0 | CU46: 0 | CV46: 0 | CW46: 0 | CX46: 0 | CY46: 0 | CZ46: 0 | DA46: 0 | DB46: 0 | DC46: ='Master Map'!$R$32 -> 24.0279 | DD46: 0 | DE46: 0 | DF46: 0 | DG46: 0 | DH46: 0 | DN46: 84.3217 | DO46: 0 | DP46: 0 | DQ46: 0 | DR46: 0 | DT46: 0 | DU46: 0 | DV46: 0 | DW46: 0 | DX46: 0 | DY46: ='Master Map'!$AF$56+'Master Map'!$AF$58+'Master Map'!$AF$60+'Master Map'!$AF$62+'Master Map'!$AF$64+'Master Map'!$AF$66+'Master Map'!$AH$68+'Master Map'!$AJ$72 -> 30.2683 | DZ46: ='Master Map'!$AF$54+'Master Map'!$AE$53+'Master Map'!$AC$52+'Master Map'!$AB$50+'Master Map'!$AA$48+'Master Map'!$Y$46+'Master Map'!$Y$44 -> 16.0967 | EA46: 0 | EB46: 0 | EC46: ='Master Map'!$X$42+'Master Map'!$U$40+'Master Map'!$S$40 -> 13.9288 | ED46: 0 | EE46: 0 | EF46: 0 | EG46: 0 | EH46: 0 | EI46: 0 | EJ46: 0 | EK46: 0 | EL46: 0 | EM46: 0 | EN46: 0 | EO46: ='Master Map'!$R$32 -> 24.0279 | EP46: 0 | EQ46: 0 | ER46: 0 | ES46: 0 | ET46: 0 | EZ46: 112.3154 | FA46: 0 | FB46: 0 | FC46: 0 | FD46: 0 | FF46: 0 | FG46: 0 | FH46: 0 | FI46: 0 | FJ46: ='Master Map'!$AJ$75+'Master Map'!$AL$73+'Master Map'!$AN$71+'Master Map'!$AP$71 -> 27.9937 | FK46: ='Master Map'!$AF$56+'Master Map'!$AF$58+'Master Map'!$AF$60+'Master Map'!$AF$62+'Master Map'!$AF$64+'Master Map'!$AF$66+'Master Map'!$AH$68+'Master Map'!$AJ$72 -> 30.2683 | FL46: ='Master Map'!$AF$54+'Master Map'!$AE$53+'Master Map'!$AC$52+'Master Map'!$AB$50+'Master Map'!$AA$48+'Master Map'!$Y$46+'Master Map'!$Y$44 -> 16.0967 | FM46: 0 | FN46: 0 | FO46: ='Master Map'!$X$42+'Master Map'!$U$40+'Master Map'!$S$40 -> 13.9288 | FP46: 0 | FQ46: 0 | FR46: 0 | FS46: 0 | FT46: 0 | FU46: 0 | FV46: 0 | FW46: 0 | FX46: 0 | FY46: 0 | FZ46: 0 | GA46: ='Master Map'!$R$32 -> 24.0279 | GB46: 0 | GC46: 0 | GD46: 0 | GE46: 0 | GF46: 0
A47: Diggers Rest | B47: M048 | D47: 208.7718 | AE47: ='Master Map'!$R$39+'Master Map'!$R$37 -> 20.7718 | AI47: ='Master Map'!$N$61 -> 143.9 | AK47: =+'Master Map'!$Q$50+'Master Map'!$Q$43 -> 44.1 | AP47: 723.15649 | AQ47: 0 | AR47: 0 | AS47: 0 | AT47: 0 | AV47: 0 | AW47: 0 | AX47: 0 | AY47: 0 | AZ47: 0 | BA47: 0 | BB47: 0 | BC47: 0 | BD47: 0 | BE47: ='Master Map'!$Q$40 -> 12.3162 | BF47: ='Master Map'!$K$40+'Master Map'!$M$40+'Master Map'!$O$40 -> 40.3542 | BG47: 0 | BH47: ='Master Map'!$AC$23+'Master Map'!$AC$25+'Master Map'!$AC$27+'Master Map'!$AC$29 -> 194.09202 | BI47: ='Master Map'!$J$37+'Master Map'!$J$33 -> 39.9597 | BJ47: 0 | BK47: 0 | BL47: =+'Master Map'!$AA$30+'Master Map'!$W$30+'Master Map'!$T$30+'Master Map'!$P$30+'Master Map'!$L$30 -> 84.0694 | BM47: ='Master Map'!$AD$21+'Master Map'!$AF$19+'Master Map'!$AH$17+'Master Map'!$AJ$15+'Master Map'!$AL$13+'Master Map'!$AN$11+'Master Map'!$AP$9+'Master Map'!$AR$7 -> 268.3692 | BN47: 0 | BO47: 0 | BP47: 0 | BQ47: ='Master Map'!$R$39+'Master Map'!$R$37 -> 20.7718 | BR47: 0 | BS47: ='Master Map'!$AT$1 -> 63.22397 | BT47: 0 | BU47: 0 | BV47: 0 | CB47: 254.536 | CC47: ='Master Map'!$BE$68+'Master Map'!$BH$68+'Master Map'!$BJ$68+'Master Map'!$BL$68+'Master Map'!$BN$68+'Master Map'!$AY$68+'Master Map'!$BB$68 -> 64.7151 | CD47: =+'Master Map'!$AW$68+'Master Map'!$AU$70 -> 62.0923 | CE47: 0 | CF47: 0 | CH47: 0 | CI47: 0 | CJ47: ='Master Map'!$AR$72 -> 18.6693 | CK47: 0 | CL47: ='Master Map'!$AJ$75+'Master Map'!$AL$73+'Master Map'!$AN$71+'Master Map'!$AP$71 -> 27.9937 | CM47: ='Master Map'!$AF$56+'Master Map'!$AF$58+'Master Map'!$AF$60+'Master Map'!$AF$62+'Master Map'!$AF$64+'Master Map'!$AF$66+'Master Map'!$AH$68+'Master Map'!$AJ$72 -> 30.2683 | CN47: ='Master Map'!$Y$44+'Master Map'!$Y$46+'Master Map'!$AA$48+'Master Map'!$AB$50+'Master Map'!$AC$52+'Master Map'!$AE$53+'Master Map'!$AF$54 -> 16.0967 | CO47: 0 | CP47: 0 | CQ47: ='Master Map'!$X$42+'Master Map'!$U$40+'Master Map'!$S$40 -> 13.9288 | CR47: 0 | CS47: 0 | CT47: 0 | CU47: 0 | CV47: 0 | CW47: 0 | CX47: 0 | CY47: 0 | CZ47: 0 | DA47: 0 | DB47: 0 | DC47: ='Master Map'!$R$39+'Master Map'!$R$37 -> 20.7718 | DD47: 0 | DE47: 0 | DF47: 0 | DG47: 0 | DH47: 0 | DN47: 81.0656 | DO47: 0 | DP47: 0 | DQ47: 0 | DR47: 0 | DT47: 0 | DU47: 0 | DV47: 0 | DW47: 0 | DX47: 0 | DY47: ='Master Map'!$AF$56+'Master Map'!$AF$58+'Master Map'!$AF$60+'Master Map'!$AF$62+'Master Map'!$AF$64+'Master Map'!$AF$66+'Master Map'!$AH$68+'Master Map'!$AJ$72 -> 30.2683 | DZ47: ='Master Map'!$AF$54+'Master Map'!$AE$53+'Master Map'!$AC$52+'Master Map'!$AB$50+'Master Map'!$AA$48+'Master Map'!$Y$46+'Master Map'!$Y$44 -> 16.0967 | EA47: 0 | EB47: 0 | EC47: ='Master Map'!$X$42+'Master Map'!$U$40+'Master Map'!$S$40 -> 13.9288 | ED47: 0 | EE47: 0 | EF47: 0 | EG47: 0 | EH47: 0 | EI47: 0 | EJ47: 0 | EK47: 0 | EL47: 0 | EM47: 0 | EN47: 0 | EO47: ='Master Map'!$R$39+'Master Map'!$R$37 -> 20.7718 | EP47: 0 | EQ47: 0 | ER47: 0 | ES47: 0 | ET47: 0 | EZ47: 109.0593 | FA47: 0 | FB47: 0 | FC47: 0 | FD47: 0 | FF47: 0 | FG47: 0 | FH47: 0 | FI47: 0 | FJ47: ='Master Map'!$AJ$75+'Master Map'!$AL$73+'Master Map'!$AN$71+'Master Map'!$AP$71 -> 27.9937 | FK47: ='Master Map'!$AF$56+'Master Map'!$AF$58+'Master Map'!$AF$60+'Master Map'!$AF$62+'Master Map'!$AF$64+'Master Map'!$AF$66+'Master Map'!$AH$68+'Master Map'!$AJ$72 -> 30.2683 | FL47: ='Master Map'!$AF$54+'Master Map'!$AE$53+'Master Map'!$AC$52+'Master Map'!$AB$50+'Master Map'!$AA$48+'Master Map'!$Y$46+'Master Map'!$Y$44 -> 16.0967 | FM47: 0 | FN47: 0 | FO47: ='Master Map'!$X$42+'Master Map'!$U$40+'Master Map'!$S$40 -> 13.9288 | FP47: 0 | FQ47: 0 | FR47: 0 | FS47: 0 | FT47: 0 | FU47: 0 | FV47: 0 | FW47: 0 | FX47: 0 | FY47: 0 | FZ47: 0 | GA47: ='Master Map'!$R$39+'Master Map'!$R$37 -> 20.7718 | GB47: 0 | GC47: 0 | GD47: 0 | GE47: 0 | GF47: 0
A48: Sydenham | B48: M049 | D48: 199.7159 | AE48: ='Master Map'!$R$39 -> 11.7159 | AI48: ='Master Map'!$N$61 -> 143.9 | AK48: =+'Master Map'!$Q$50+'Master Map'!$Q$43 -> 44.1 | AP48: 714.10059 | AQ48: 0 | AR48: 0 | AS48: 0 | AT48: 0 | AV48: 0 | AW48: 0 | AX48: 0 | AY48: 0 | AZ48: 0 | BA48: 0 | BB48: 0 | BC48: 0 | BD48: 0 | BE48: ='Master Map'!$Q$40 -> 12.3162 | BF48: ='Master Map'!$K$40+'Master Map'!$M$40+'Master Map'!$O$40 -> 40.3542 | BG48: 0 | BH48: ='Master Map'!$AC$23+'Master Map'!$AC$25+'Master Map'!$AC$27+'Master Map'!$AC$29 -> 194.09202 | BI48: ='Master Map'!$J$37+'Master Map'!$J$33 -> 39.9597 | BJ48: 0 | BK48: 0 | BL48: =+'Master Map'!$AA$30+'Master Map'!$W$30+'Master Map'!$T$30+'Master Map'!$P$30+'Master Map'!$L$30 -> 84.0694 | BM48: ='Master Map'!$AD$21+'Master Map'!$AF$19+'Master Map'!$AH$17+'Master Map'!$AJ$15+'Master Map'!$AL$13+'Master Map'!$AN$11+'Master Map'!$AP$9+'Master Map'!$AR$7 -> 268.3692 | BN48: 0 | BO48: 0 | BP48: 0 | BQ48: ='Master Map'!$R$39 -> 11.7159 | BR48: 0 | BS48: ='Master Map'!$AT$1 -> 63.22397 | BT48: 0 | BU48: 0 | BV48: 0 | CB48: 245.4801 | CC48: ='Master Map'!$BE$68+'Master Map'!$BH$68+'Master Map'!$BJ$68+'Master Map'!$BL$68+'Master Map'!$BN$68+'Master Map'!$AY$68+'Master Map'!$BB$68 -> 64.7151 | CD48: =+'Master Map'!$AW$68+'Master Map'!$AU$70 -> 62.0923 | CE48: 0 | CF48: 0 | CH48: 0 | CI48: 0 | CJ48: ='Master Map'!$AR$72 -> 18.6693 | CK48: 0 | CL48: ='Master Map'!$AJ$75+'Master Map'!$AL$73+'Master Map'!$AN$71+'Master Map'!$AP$71 -> 27.9937 | CM48: ='Master Map'!$AF$56+'Master Map'!$AF$58+'Master Map'!$AF$60+'Master Map'!$AF$62+'Master Map'!$AF$64+'Master Map'!$AF$66+'Master Map'!$AH$68+'Master Map'!$AJ$72 -> 30.2683 | CN48: ='Master Map'!$Y$44+'Master Map'!$Y$46+'Master Map'!$AA$48+'Master Map'!$AB$50+'Master Map'!$AC$52+'Master Map'!$AE$53+'Master Map'!$AF$54 -> 16.0967 | CO48: 0 | CP48: 0 | CQ48: ='Master Map'!$X$42+'Master Map'!$U$40+'Master Map'!$S$40 -> 13.9288 | CR48: 0 | CS48: 0 | CT48: 0 | CU48: 0 | CV48: 0 | CW48: 0 | CX48: 0 | CY48: 0 | CZ48: 0 | DA48: 0 | DB48: 0 | DC48: ='Master Map'!$R$39 -> 11.7159 | DD48: 0 | DE48: 0 | DF48: 0 | DG48: 0 | DH48: 0 | DN48: 72.0097 | DO48: 0 | DP48: 0 | DQ48: 0 | DR48: 0 | DT48: 0 | DU48: 0 | DV48: 0 | DW48: 0 | DX48: 0 | DY48: ='Master Map'!$AF$56+'Master Map'!$AF$58+'Master Map'!$AF$60+'Master Map'!$AF$62+'Master Map'!$AF$64+'Master Map'!$AF$66+'Master Map'!$AH$68+'Master Map'!$AJ$72 -> 30.2683 | DZ48: ='Master Map'!$AF$54+'Master Map'!$AE$53+'Master Map'!$AC$52+'Master Map'!$AB$50+'Master Map'!$AA$48+'Master Map'!$Y$46+'Master Map'!$Y$44 -> 16.0967 | EA48: 0 | EB48: 0 | EC48: ='Master Map'!$X$42+'Master Map'!$U$40+'Master Map'!$S$40 -> 13.9288 | ED48: 0 | EE48: 0 | EF48: 0 | EG48: 0 | EH48: 0 | EI48: 0 | EJ48: 0 | EK48: 0 | EL48: 0 | EM48: 0 | EN48: 0 | EO48: ='Master Map'!$R$39 -> 11.7159 | EP48: 0 | EQ48: 0 | ER48: 0 | ES48: 0 | ET48: 0 | EZ48: 100.0034 | FA48: 0 | FB48: 0 | FC48: 0 | FD48: 0 | FF48: 0 | FG48: 0 | FH48: 0 | FI48: 0 | FJ48: ='Master Map'!$AJ$75+'Master Map'!$AL$73+'Master Map'!$AN$71+'Master Map'!$AP$71 -> 27.9937 | FK48: ='Master Map'!$AF$56+'Master Map'!$AF$58+'Master Map'!$AF$60+'Master Map'!$AF$62+'Master Map'!$AF$64+'Master Map'!$AF$66+'Master Map'!$AH$68+'Master Map'!$AJ$72 -> 30.2683 | FL48: ='Master Map'!$AF$54+'Master Map'!$AE$53+'Master Map'!$AC$52+'Master Map'!$AB$50+'Master Map'!$AA$48+'Master Map'!$Y$46+'Master Map'!$Y$44 -> 16.0967 | FM48: 0 | FN48: 0 | FO48: ='Master Map'!$X$42+'Master Map'!$U$40+'Master Map'!$S$40 -> 13.9288 | FP48: 0 | FQ48: 0 | FR48: 0 | FS48: 0 | FT48: 0 | FU48: 0 | FV48: 0 | FW48: 0 | FX48: 0 | FY48: 0 | FZ48: 0 | GA48: ='Master Map'!$R$39 -> 11.7159 | GB48: 0 | GC48: 0 | GD48: 0 | GE48: 0 | GF48: 0
A49: Avalon | B49: M051 | D49: 149.9595 | R49: =+'Master Map'!$U$59+'Master Map'!$U$61 -> 6.0595 | AI49: ='Master Map'!$N$61 -> 143.9 | AK49: 0 | AP49: 757.09709 | AQ49: 0 | AR49: 0 | AS49: 0 | AT49: 0 | AV49: 0 | AW49: 0 | AX49: 0 | AY49: 0 | AZ49: 0 | BA49: 0 | BB49: ='Master Map'!$V$43++'Master Map'!$U$47+'Master Map'!$U$49+'Master Map'!$U$51+'Master Map'!$U$44 -> 14.7111 | BC49: =+'Master Map'!$U$53+'Master Map'!$U$55 -> 17.5975 | BD49: =+'Master Map'!$U$57 -> 8.475 | BE49: ='Master Map'!$Q$40+'Master Map'!$S$40+'Master Map'!$U$40+'Master Map'!$X$42 -> 26.245 | BF49: ='Master Map'!$K$40+'Master Map'!$M$40+'Master Map'!$O$40 -> 40.3542 | BG49: 0 | BH49: ='Master Map'!$AC$23+'Master Map'!$AC$25+'Master Map'!$AC$27+'Master Map'!$AC$29 -> 194.09202 | BI49: ='Master Map'!$J$37+'Master Map'!$J$33 -> 39.9597 | BJ49: 0 | BK49: 0 | BL49: =+'Master Map'!$AA$30+'Master Map'!$W$30+'Master Map'!$T$30+'Master Map'!$P$30+'Master Map'!$L$30 -> 84.0694 | BM49: ='Master Map'!$AD$21+'Master Map'!$AF$19+'Master Map'!$AH$17+'Master Map'!$AJ$15+'Master Map'!$AL$13+'Master Map'!$AN$11+'Master Map'!$AP$9+'Master Map'!$AR$7 -> 268.3692 | BN49: 0 | BO49: 0 | BP49: 0 | BQ49: 0 | BR49: 0 | BS49: ='Master Map'!$AT$1 -> 63.22397 | BT49: 0 | BU49: 0 | BV49: 0 | CB49: 260.619 | CC49: ='Master Map'!$BE$68+'Master Map'!$BH$68+'Master Map'!$BJ$68+'Master Map'!$BL$68+'Master Map'!$BN$68+'Master Map'!$AY$68+'Master Map'!$BB$68 -> 64.7151 | CD49: =+'Master Map'!$AW$68+'Master Map'!$AU$70 -> 62.0923 | CE49: 0 | CF49: 0 | CH49: 0 | CI49: 0 | CJ49: ='Master Map'!$AR$72 -> 18.6693 | CK49: 0 | CL49: ='Master Map'!$AJ$75+'Master Map'!$AL$73+'Master Map'!$AN$71+'Master Map'!$AP$71 -> 27.9937 | CM49: ='Master Map'!$AF$56+'Master Map'!$AF$58+'Master Map'!$AF$60+'Master Map'!$AF$62+'Master Map'!$AF$64+'Master Map'!$AF$66+'Master Map'!$AH$68+'Master Map'!$AJ$72 -> 30.2683 | CN49: =+'Master Map'!$V$43+'Master Map'!$U$44+'Master Map'!$U$47+'Master Map'!$U$49+'Master Map'!$U$51+$CN$16 -> 30.8078 | CO49: =+'Master Map'!$U$53+'Master Map'!$U$55 -> 17.5975 | CP49: =+'Master Map'!$U$57 -> 8.475 | CQ49: 0 | CR49: 0 | CS49: 0 | CT49: 0 | CU49: 0 | CV49: 0 | CW49: 0 | CX49: 0 | CY49: 0 | CZ49: 0 | DA49: 0 | DB49: 0 | DC49: 0 | DD49: 0 | DE49: 0 | DF49: 0 | DG49: 0 | DH49: 0 | DN49: 87.1486 | DO49: 0 | DP49: 0 | DQ49: 0 | DR49: 0 | DT49: 0 | DU49: 0 | DV49: 0 | DW49: 0 | DX49: 0 | DY49: ='Master Map'!$AF$56+'Master Map'!$AF$58+'Master Map'!$AF$60+'Master Map'!$AF$62+'Master Map'!$AF$64+'Master Map'!$AF$66+'Master Map'!$AH$68+'Master Map'!$AJ$72 -> 30.2683 | DZ49: =+$DZ$34 -> 30.8078 | EA49: =+'Master Map'!$U$53+'Master Map'!$U$55 -> 17.5975 | EB49: =+'Master Map'!$U$57 -> 8.475 | EC49: 0 | ED49: 0 | EE49: 0 | EF49: 0 | EG49: 0 | EH49: 0 | EI49: 0 | EJ49: 0 | EK49: 0 | EL49: 0 | EM49: 0 | EN49: 0 | EO49: 0 | EP49: 0 | EQ49: 0 | ER49: 0 | ES49: 0 | ET49: 0 | EZ49: 115.1423 | FA49: 0 | FB49: 0 | FC49: 0 | FD49: 0 | FF49: 0 | FG49: 0 | FH49: 0 | FI49: 0 | FJ49: ='Master Map'!$AJ$75+'Master Map'!$AL$73+'Master Map'!$AN$71+'Master Map'!$AP$71 -> 27.9937 | FK49: ='Master Map'!$AF$56+'Master Map'!$AF$58+'Master Map'!$AF$60+'Master Map'!$AF$62+'Master Map'!$AF$64+'Master Map'!$AF$66+'Master Map'!$AH$68+'Master Map'!$AJ$72 -> 30.2683 | FL49: =+$FL$34 -> 30.8078 | FM49: =+'Master Map'!$U$55+'Master Map'!$U$53 -> 17.5975 | FN49: =+'Master Map'!$U$57 -> 8.475 | FO49: 0 | FP49: 0 | FQ49: 0 | FR49: 0 | FS49: 0 | FT49: 0 | FU49: 0 | FV49: 0 | FW49: 0 | FX49: 0 | FY49: 0 | FZ49: 0 | GA49: 0 | GB49: 0 | GC49: 0 | GD49: 0 | GE49: 0 | GF49: 0
A50: Bacchus Marsh | B50: M052 | D50: 228.0536 | S50: ='Master Map'!$Q$40 -> 12.3162 | T50: ='Master Map'!$O$40 -> 13.8374 | AI50: ='Master Map'!$N$61 -> 143.9 | AK50: =+'Master Map'!$Q$50+'Master Map'!$Q$43+'Master Map'!$T$41 -> 58 | AP50: 676.23109 | AQ50: 0 | AR50: 0 | AS50: 0 | AT50: 0 | AV50: 0 | AW50: 0 | AX50: 0 | AY50: 0 | AZ50: 0 | BA50: 0 | BB50: 0 | BC50: 0 | BD50: 0 | BE50: 0 | BF50: ='Master Map'!$K$40+'Master Map'!$M$40 -> 26.5168 | BG50: 0 | BH50: ='Master Map'!$AC$23+'Master Map'!$AC$25+'Master Map'!$AC$27+'Master Map'!$AC$29 -> 194.09202 | BI50: ='Master Map'!$J$37+'Master Map'!$J$33 -> 39.9597 | BJ50: 0 | BK50: 0 | BL50: =+'Master Map'!$AA$30+'Master Map'!$W$30+'Master Map'!$T$30+'Master Map'!$P$30+'Master Map'!$L$30 -> 84.0694 | BM50: ='Master Map'!$AD$21+'Master Map'!$AF$19+'Master Map'!$AH$17+'Master Map'!$AJ$15+'Master Map'!$AL$13+'Master Map'!$AN$11+'Master Map'!$AP$9+'Master Map'!$AR$7 -> 268.3692 | BN50: 0 | BO50: 0 | BP50: 0 | BQ50: 0 | BR50: 0 | BS50: ='Master Map'!$AT$1 -> 63.22397 | BT50: 0 | BU50: 0 | BV50: 0 | CB50: 259.9178 | CC50: ='Master Map'!$BE$68+'Master Map'!$BH$68+'Master Map'!$BJ$68+'Master Map'!$BL$68+'Master Map'!$BN$68+'Master Map'!$AY$68+'Master Map'!$BB$68 -> 64.7151 | CD50: =+'Master Map'!$AW$68+'Master Map'!$AU$70 -> 62.0923 | CE50: 0 | CF50: 0 | CH50: 0 | CI50: 0 | CJ50: ='Master Map'!$AR$72 -> 18.6693 | CK50: 0 | CL50: ='Master Map'!$AJ$75+'Master Map'!$AL$73+'Master Map'!$AN$71+'Master Map'!$AP$71 -> 27.9937 | CM50: ='Master Map'!$AF$56+'Master Map'!$AF$58+'Master Map'!$AF$60+'Master Map'!$AF$62+'Master Map'!$AF$64+'Master Map'!$AF$66+'Master Map'!$AH$68+'Master Map'!$AJ$72 -> 30.2683 | CN50: ='Master Map'!$Y$44+'Master Map'!$Y$46+'Master Map'!$AA$48+'Master Map'!$AB$50+'Master Map'!$AC$52+'Master Map'!$AE$53+'Master Map'!$AF$54 -> 16.0967 | CO50: 0 | CP50: 0 | CQ50: ='Master Map'!$X$42+'Master Map'!$U$40+'Master Map'!$S$40+'Master Map'!$Q$40 -> 26.245 | CR50: ='Master Map'!$O$40 -> 13.8374 | CS50: 0 | CT50: 0 | CU50: 0 | CV50: 0 | CW50: 0 | CX50: 0 | CY50: 0 | CZ50: 0 | DA50: 0 | DB50: 0 | DC50: 0 | DD50: 0 | DE50: 0 | DF50: 0 | DG50: 0 | DH50: 0 | DN50: 86.4474 | DO50: 0 | DP50: 0 | DQ50: 0 | DR50: 0 | DT50: 0 | DU50: 0 | DV50: 0 | DW50: 0 | DX50: 0 | DY50: ='Master Map'!$AF$56+'Master Map'!$AF$58+'Master Map'!$AF$60+'Master Map'!$AF$62+'Master Map'!$AF$64+'Master Map'!$AF$66+'Master Map'!$AH$68+'Master Map'!$AJ$72 -> 30.2683 | DZ50: ='Master Map'!$AF$54+'Master Map'!$AE$53+'Master Map'!$AC$52+'Master Map'!$AB$50+'Master Map'!$AA$48+'Master Map'!$Y$46+'Master Map'!$Y$44 -> 16.0967 | EA50: 0 | EB50: 0 | EC50: ='Master Map'!$Q$40+'Master Map'!$S$40+'Master Map'!$U$40+'Master Map'!$X$42 -> 26.245 | ED50: ='Master Map'!$O$40 -> 13.8374 | EE50: 0 | EF50: 0 | EG50: 0 | EH50: 0 | EI50: 0 | EJ50: 0 | EK50: 0 | EL50: 0 | EM50: 0 | EN50: 0 | EO50: 0 | EP50: 0 | EQ50: 0 | ER50: 0 | ES50: 0 | ET50: 0 | EZ50: 114.4411 | FA50: 0 | FB50: 0 | FC50: 0 | FD50: 0 | FF50: 0 | FG50: 0 | FH50: 0 | FI50: 0 | FJ50: ='Master Map'!$AJ$75+'Master Map'!$AL$73+'Master Map'!$AN$71+'Master Map'!$AP$71 -> 27.9937 | FK50: ='Master Map'!$AF$56+'Master Map'!$AF$58+'Master Map'!$AF$60+'Master Map'!$AF$62+'Master Map'!$AF$64+'Master Map'!$AF$66+'Master Map'!$AH$68+'Master Map'!$AJ$72 -> 30.2683 | FL50: ='Master Map'!$AF$54+'Master Map'!$AE$53+'Master Map'!$AC$52+'Master Map'!$AB$50+'Master Map'!$AA$48+'Master Map'!$Y$46+'Master Map'!$Y$44 -> 16.0967 | FM50: 0 | FN50: 0 | FO50: ='Master Map'!$Q$40+'Master Map'!$S$40+'Master Map'!$U$40+'Master Map'!$X$42 -> 26.245 | FP50: ='Master Map'!$O$40 -> 13.8374 | FQ50: 0 | FR50: 0 | FS50: 0 | FT50: 0 | FU50: 0 | FV50: 0 | FW50: 0 | FX50: 0 | FY50: 0 | FZ50: 0 | GA50: 0 | GB50: 0 | GC50: 0 | GD50: 0 | GE50: 0 | GF50: 0
A51: Ballan | B51: M053 | D51: 250.4735 | S51: ='Master Map'!$Q$40 -> 12.3162 | T51: ='Master Map'!$O$40+'Master Map'!$M$40 -> 36.2573 | AI51: ='Master Map'!$N$61 -> 143.9 | AK51: =+'Master Map'!$Q$50+'Master Map'!$Q$43+'Master Map'!$T$41 -> 58 | AP51: 653.81119 | AQ51: 0 | AR51: 0 | AS51: 0 | AT51: 0 | AV51: 0 | AW51: 0 | AX51: 0 | AY51: 0 | AZ51: 0 | BA51: 0 | BB51: 0 | BC51: 0 | BD51: 0 | BE51: 0 | BF51: ='Master Map'!$K$40 -> 4.0969 | BG51: 0 | BH51: ='Master Map'!$AC$23+'Master Map'!$AC$25+'Master Map'!$AC$27+'Master Map'!$AC$29 -> 194.09202 | BI51: ='Master Map'!$J$33+'Master Map'!$J$37 -> 39.9597 | BJ51: 0 | BK51: 0 | BL51: =+'Master Map'!$AA$30+'Master Map'!$W$30+'Master Map'!$T$30+'Master Map'!$P$30+'Master Map'!$L$30 -> 84.0694 | BM51: ='Master Map'!$AD$21+'Master Map'!$AF$19+'Master Map'!$AH$17+'Master Map'!$AJ$15+'Master Map'!$AL$13+'Master Map'!$AN$11+'Master Map'!$AP$9+'Master Map'!$AR$7 -> 268.3692 | BN51: 0 | BO51: 0 | BP51: 0 | BQ51: 0 | BR51: 0 | BS51: ='Master Map'!$AT$1 -> 63.22397 | BT51: 0 | BU51: 0 | BV51: 0 | CB51: 282.3377 | CC51: ='Master Map'!$BE$68+'Master Map'!$BH$68+'Master Map'!$BJ$68+'Master Map'!$BL$68+'Master Map'!$BN$68+'Master Map'!$AY$68+'Master Map'!$BB$68 -> 64.7151 | CD51: =+'Master Map'!$AW$68+'Master Map'!$AU$70 -> 62.0923 | CE51: 0 | CF51: 0 | CH51: 0 | CI51: 0 | CJ51: ='Master Map'!$AR$72 -> 18.6693 | CK51: 0 | CL51: ='Master Map'!$AJ$75+'Master Map'!$AL$73+'Master Map'!$AN$71+'Master Map'!$AP$71 -> 27.9937 | CM51: ='Master Map'!$AF$56+'Master Map'!$AF$58+'Master Map'!$AF$60+'Master Map'!$AF$62+'Master Map'!$AF$64+'Master Map'!$AF$66+'Master Map'!$AH$68+'Master Map'!$AJ$72 -> 30.2683 | CN51: ='Master Map'!$Y$44+'Master Map'!$Y$46+'Master Map'!$AA$48+'Master Map'!$AB$50+'Master Map'!$AC$52+'Master Map'!$AE$53+'Master Map'!$AF$54 -> 16.0967 | CO51: 0 | CP51: 0 | CQ51: ='Master Map'!$X$42+'Master Map'!$U$40+'Master Map'!$S$40+'Master Map'!$Q$40 -> 26.245 | CR51: ='Master Map'!$O$40+'Master Map'!$M$40 -> 36.2573 | CS51: 0 | CT51: 0 | CU51: 0 | CV51: 0 | CW51: 0 | CX51: 0 | CY51: 0 | CZ51: 0 | DA51: 0 | DB51: 0 | DC51: 0 | DD51: 0 | DE51: 0 | DF51: 0 | DG51: 0 | DH51: 0 | DN51: 108.8673 | DO51: 0 | DP51: 0 | DQ51: 0 | DR51: 0 | DT51: 0 | DU51: 0 | DV51: 0 | DW51: 0 | DX51: 0 | DY51: ='Master Map'!$AF$56+'Master Map'!$AF$58+'Master Map'!$AF$60+'Master Map'!$AF$62+'Master Map'!$AF$64+'Master Map'!$AF$66+'Master Map'!$AH$68+'Master Map'!$AJ$72 -> 30.2683 | DZ51: ='Master Map'!$AF$54+'Master Map'!$AE$53+'Master Map'!$AC$52+'Master Map'!$AB$50+'Master Map'!$AA$48+'Master Map'!$Y$46+'Master Map'!$Y$44 -> 16.0967 | EA51: 0 | EB51: 0 | EC51: ='Master Map'!$Q$40+'Master Map'!$S$40+'Master Map'!$U$40+'Master Map'!$X$42 -> 26.245 | ED51: ='Master Map'!$O$40+'Master Map'!$M$40 -> 36.2573 | EE51: 0 | EF51: 0 | EG51: 0 | EH51: 0 | EI51: 0 | EJ51: 0 | EK51: 0 | EL51: 0 | EM51: 0 | EN51: 0 | EO51: 0 | EP51: 0 | EQ51: 0 | ER51: 0 | ES51: 0 | ET51: 0 | EZ51: 136.861 | FA51: 0 | FB51: 0 | FC51: 0 | FD51: 0 | FF51: 0 | FG51: 0 | FH51: 0 | FI51: 0 | FJ51: ='Master Map'!$AJ$75+'Master Map'!$AL$73+'Master Map'!$AN$71+'Master Map'!$AP$71 -> 27.9937 | FK51: ='Master Map'!$AF$56+'Master Map'!$AF$58+'Master Map'!$AF$60+'Master Map'!$AF$62+'Master Map'!$AF$64+'Master Map'!$AF$66+'Master Map'!$AH$68+'Master Map'!$AJ$72 -> 30.2683 | FL51: ='Master Map'!$AF$54+'Master Map'!$AE$53+'Master Map'!$AC$52+'Master Map'!$AB$50+'Master Map'!$AA$48+'Master Map'!$Y$46+'Master Map'!$Y$44 -> 16.0967 | FM51: 0 | FN51: 0 | FO51: ='Master Map'!$Q$40+'Master Map'!$S$40+'Master Map'!$U$40+'Master Map'!$X$42 -> 26.245 | FP51: ='Master Map'!$O$40+'Master Map'!$M$40 -> 36.2573 | FQ51: 0 | FR51: 0 | FS51: 0 | FT51: 0 | FU51: 0 | FV51: 0 | FW51: 0 | FX51: 0 | FY51: 0 | FZ51: 0 | GA51: 0 | GB51: 0 | GC51: 0 | GD51: 0 | GE51: 0 | GF51: 0
A52: Ballarat | B52: M054 | D52: 263.2708 | S52: ='Master Map'!$Q$40 -> 12.3162 | T52: ='Master Map'!$O$40+'Master Map'!$M$40+'Master Map'!$K$40 -> 40.3542 | U52: ='Master Map'!$C$41 -> 22.6004 | AI52: ='Master Map'!$N$61 -> 143.9 | AK52: =+'Master Map'!$Q$50+'Master Map'!$Q$43 -> 44.1 | AP52: 672.31469 | AQ52: 0 | AR52: 0 | AS52: 0 | AT52: 0 | AV52: 0 | AW52: 0 | AX52: 0 | AY52: 0 | AZ52: 0 | BA52: 0 | BB52: 0 | BC52: 0 | BD52: 0 | BE52: 0 | BF52: 0 | BG52: ='Master Map'!$C$41 -> 22.6004 | BH52: ='Master Map'!$AC$23+'Master Map'!$AC$25+'Master Map'!$AC$27+'Master Map'!$AC$29 -> 194.09202 | BI52: ='Master Map'!$J$33+'Master Map'!$J$37 -> 39.9597 | BJ52: 0 | BK52: 0 | BL52: =+'Master Map'!$AA$30+'Master Map'!$W$30+'Master Map'!$T$30+'Master Map'!$P$30+'Master Map'!$L$30 -> 84.0694 | BM52: ='Master Map'!$AD$21+'Master Map'!$AF$19+'Master Map'!$AH$17+'Master Map'!$AJ$15+'Master Map'!$AL$13+'Master Map'!$AN$11+'Master Map'!$AP$9+'Master Map'!$AR$7 -> 268.3692 | BN52: 0 | BO52: 0 | BP52: 0 | BQ52: 0 | BR52: 0 | BS52: ='Master Map'!$AT$1 -> 63.22397 | BT52: 0 | BU52: 0 | BV52: 0 | CB52: 309.035 | CC52: ='Master Map'!$BE$68+'Master Map'!$BH$68+'Master Map'!$BJ$68+'Master Map'!$BL$68+'Master Map'!$BN$68+'Master Map'!$AY$68+'Master Map'!$BB$68 -> 64.7151 | CD52: =+'Master Map'!$AW$68+'Master Map'!$AU$70 -> 62.0923 | CE52: 0 | CF52: 0 | CH52: 0 | CI52: 0 | CJ52: ='Master Map'!$AR$72 -> 18.6693 | CK52: 0 | CL52: ='Master Map'!$AJ$75+'Master Map'!$AL$73+'Master Map'!$AN$71+'Master Map'!$AP$71 -> 27.9937 | CM52: ='Master Map'!$AF$56+'Master Map'!$AF$58+'Master Map'!$AF$60+'Master Map'!$AF$62+'Master Map'!$AF$64+'Master Map'!$AF$66+'Master Map'!$AH$68+'Master Map'!$AJ$72 -> 30.2683 | CN52: ='Master Map'!$Y$44+'Master Map'!$Y$46+'Master Map'!$AA$48+'Master Map'!$AB$50+'Master Map'!$AC$52+'Master Map'!$AE$53+'Master Map'!$AF$54 -> 16.0967 | CO52: 0 | CP52: 0 | CQ52: ='Master Map'!$X$42+'Master Map'!$U$40+'Master Map'!$S$40+'Master Map'!$Q$40 -> 26.245 | CR52: ='Master Map'!$O$40+'Master Map'!$M$40+'Master Map'!$K$40 -> 40.3542 | CS52: ='Master Map'!$C$41 -> 22.6004 | CT52: 0 | CU52: 0 | CV52: 0 | CW52: 0 | CX52: 0 | CY52: 0 | CZ52: 0 | DA52: 0 | DB52: 0 | DC52: 0 | DD52: 0 | DE52: 0 | DF52: 0 | DG52: 0 | DH52: 0 | DN52: 135.5646 | DO52: 0 | DP52: 0 | DQ52: 0 | DR52: 0 | DT52: 0 | DU52: 0 | DV52: 0 | DW52: 0 | DX52: 0 | DY52: ='Master Map'!$AF$56+'Master Map'!$AF$58+'Master Map'!$AF$60+'Master Map'!$AF$62+'Master Map'!$AF$64+'Master Map'!$AF$66+'Master Map'!$AH$68+'Master Map'!$AJ$72 -> 30.2683 | DZ52: ='Master Map'!$AF$54+'Master Map'!$AE$53+'Master Map'!$AC$52+'Master Map'!$AB$50+'Master Map'!$AA$48+'Master Map'!$Y$46+'Master Map'!$Y$44 -> 16.0967 | EA52: 0 | EB52: 0 | EC52: ='Master Map'!$Q$40+'Master Map'!$S$40+'Master Map'!$U$40+'Master Map'!$X$42 -> 26.245 | ED52: ='Master Map'!$O$40+'Master Map'!$M$40+'Master Map'!$K$40 -> 40.3542 | EE52: ='Master Map'!$C$41 -> 22.6004 | EF52: 0 | EG52: 0 | EH52: 0 | EI52: 0 | EJ52: 0 | EK52: 0 | EL52: 0 | EM52: 0 | EN52: 0 | EO52: 0 | EP52: 0 | EQ52: 0 | ER52: 0 | ES52: 0 | ET52: 0 | EZ52: 163.5583 | FA52: 0 | FB52: 0 | FC52: 0 | FD52: 0 | FF52: 0 | FG52: 0 | FH52: 0 | FI52: 0 | FJ52: ='Master Map'!$AJ$75+'Master Map'!$AL$73+'Master Map'!$AN$71+'Master Map'!$AP$71 -> 27.9937 | FK52: ='Master Map'!$AF$56+'Master Map'!$AF$58+'Master Map'!$AF$60+'Master Map'!$AF$62+'Master Map'!$AF$64+'Master Map'!$AF$66+'Master Map'!$AH$68+'Master Map'!$AJ$72 -> 30.2683 | FL52: ='Master Map'!$AF$54+'Master Map'!$AE$53+'Master Map'!$AC$52+'Master Map'!$AB$50+'Master Map'!$AA$48+'Master Map'!$Y$46+'Master Map'!$Y$44 -> 16.0967 | FM52: 0 | FN52: 0 | FO52: ='Master Map'!$Q$40+'Master Map'!$S$40+'Master Map'!$U$40+'Master Map'!$X$42 -> 26.245 | FP52: ='Master Map'!$O$40+'Master Map'!$M$40+'Master Map'!$K$40 -> 40.3542 | FQ52: ='Master Map'!$C$41 -> 22.6004 | FR52: 0 | FS52: 0 | FT52: 0 | FU52: 0 | FV52: 0 | FW52: 0 | FX52: 0 | FY52: 0 | FZ52: 0 | GA52: 0 | GB52: 0 | GC52: 0 | GD52: 0 | GE52: 0 | GF52: 0
A53: Benalla | B53: M055 | D53: 761.5942 | M53: ='Master Map'!$AQ$66+'Master Map'!$AQ$54+'Master Map'!$AQ$43+'Master Map'!$AQ$36+'Master Map'!$AE$34+'Master Map'!$AI$34+'Master Map'!$AM$34 -> 92.9531 | N53: ='Master Map'!$AJ$75+'Master Map'!$AL$73+'Master Map'!$AN$71+'Master Map'!$AP$71 -> 27.9937 | O53: ='Master Map'!$AF$56+'Master Map'!$AF$58+'Master Map'!$AF$60+'Master Map'!$AF$62+'Master Map'!$AF$64+'Master Map'!$AF$66+'Master Map'!$AH$68+'Master Map'!$AJ$72 -> 30.2683 | P53: ='Master Map'!$Y$44+'Master Map'!$Y$46+'Master Map'!$AA$48+'Master Map'!$AB$50+'Master Map'!$AC$52+'Master Map'!$AE$53+'Master Map'!$AF$54 -> 16.0967 | V53: ='Master Map'!$AC$33+'Master Map'!$AC$31+'Master Map'!$AC$29+'Master Map'!$AC$27+'Master Map'!$AC$25+'Master Map'!$AC$23 -> 248.6278 | AA53: ='Master Map'!$AD$21 -> 92.5546 | AI53: ='Master Map'!$N$61 -> 143.9 | AK53: =+'Master Map'!$Q$50+'Master Map'!$Q$43+'Master Map'!$T$41 -> 58 | AL53: =+'Asset Groups'!$K$106 -> 51.2 | AP53: 239.03857 | AQ53: 0 | AR53: 0 | AS53: 0 | AT53: 0 | AV53: 0 | AW53: 0 | AX53: 0 | AY53: 0 | AZ53: 0 | BA53: 0 | BB53: 0 | BC53: 0 | BD53: 0 | BE53: 0 | BF53: 0 | BG53: 0 | BH53: 0 | BI53: 0 | BJ53: 0 | BK53: 0 | BL53: 0 | BM53: =BM54+'Master Map'!$AF$19 -> 175.8146 | BN53: 0 | BO53: 0 | BP53: 0 | BQ53: 0 | BR53: 0 | BS53: ='Master Map'!$AT$1 -> 63.22397 | BT53: 0 | BU53: 0 | BV53: 0 | CB53: 579.6122 | CC53: ='Master Map'!$BE$68+'Master Map'!$BH$68+'Master Map'!$BJ$68+'Master Map'!$BL$68+'Master Map'!$BN$68+'Master Map'!$AY$68+'Master Map'!$BB$68 -> 64.7151 | CD53: =+'Master Map'!$AW$68+'Master Map'!$AU$70 -> 62.0923 | CE53: 0 | CF53: 0 | CH53: 0 | CI53: 0 | CJ53: ='Master Map'!$AR$72 -> 18.6693 | CK53: =+'Master Map'!$AQ$66+'Master Map'!$AQ$54+'Master Map'!$AQ$43+'Master Map'!$AQ$36+'Master Map'!$AM$34+'Master Map'!$AI$34+'Master Map'!$AE$34 -> 92.9531 | CL53: 0 | CM53: 0 | CN53: 0 | CO53: 0 | CP53: 0 | CQ53: 0 | CR53: 0 | CS53: 0 | CT53: ='Master Map'!$AC$33+'Master Map'!$AC$31+'Master Map'!$AC$29+'Master Map'!$AC$27+'Master Map'!$AC$25+'Master Map'!$AC$23 -> 248.6278 | CU53: 0 | CV53: 0 | CW53: 0 | CX53: 0 | CY53: ='Master Map'!$AD$21 -> 92.5546 | CZ53: 0 | DA53: 0 | DB53: 0 | DC53: 0 | DD53: 0 | DE53: 0 | DF53: 0 | DG53: 0 | DH53: 0 | DN53: 462.1292 | DO53: 0 | DP53: 0 | DQ53: 0 | DR53: 0 | DT53: 0 | DU53: 0 | DV53: 0 | DW53: ='Master Map'!$AQ$66+'Master Map'!$AQ$54+'Master Map'!$AQ$43+'Master Map'!$AQ$36+'Master Map'!$AM$34+'Master Map'!$AI$34+'Master Map'!$AE$34 -> 92.9531 | DX53: ='Master Map'!$AJ$75+'Master Map'!$AL$73+'Master Map'!$AN$71+'Master Map'!$AP$71 -> 27.9937 | DY53: 0 | DZ53: 0 | EA53: 0 | EB53: 0 | EC53: 0 | ED53: 0 | EE53: 0 | EF53: ='Master Map'!$AC$33+'Master Map'!$AC$31+'Master Map'!$AC$29+'Master Map'!$AC$27+'Master Map'!$AC$25+'Master Map'!$AC$23 -> 248.6278 | EG53: 0 | EH53: 0 | EI53: 0 | EJ53: 0 | EK53: ='Master Map'!$AD$21 -> 92.5546 | EL53: 0 | EM53: 0 | EN53: 0 | EO53: 0 | EP53: 0 | EQ53: 0 | ER53: 0 | ES53: 0 | ET53: 0 | EZ53: 434.1355 | FA53: 0 | FB53: 0 | FC53: 0 | FD53: 0 | FF53: 0 | FG53: 0 | FH53: 0 | FI53: =+'Master Map'!$AQ$66+'Master Map'!$AQ$54+'Master Map'!$AQ$43+'Master Map'!$AQ$36+'Master Map'!$AM$34+'Master Map'!$AI$34+'Master Map'!$AE$34 -> 92.9531 | FJ53: 0 | FK53: 0 | FL53: 0 | FM53: 0 | FN53: 0 | FO53: 0 | FP53: 0 | FQ53: 0 | FR53: ='Master Map'!$AC$33+'Master Map'!$AC$31+'Master Map'!$AC$29+'Master Map'!$AC$27+'Master Map'!$AC$25+'Master Map'!$AC$23 -> 248.6278 | FS53: 0 | FT53: 0 | FU53: 0 | FV53: 0 | FW53: ='Master Map'!$AD$21 -> 92.5546 | FX53: 0 | FY53: 0 | FZ53: 0 | GA53: 0 | GB53: 0 | GC53: 0 | GD53: 0 | GE53: 0 | GF53: 0
A54: Monsbent | B54: M056 | D54: 773.2272 | M54: ='Master Map'!$AQ$66+'Master Map'!$AQ$54+'Master Map'!$AQ$43+'Master Map'!$AQ$36+'Master Map'!$AE$34+'Master Map'!$AI$34+'Master Map'!$AM$34 -> 92.9531 | N54: ='Master Map'!$AJ$75+'Master Map'!$AL$73+'Master Map'!$AN$71+'Master Map'!$AP$71 -> 27.9937 | O54: ='Master Map'!$AF$56+'Master Map'!$AF$58+'Master Map'!$AF$60+'Master Map'!$AF$62+'Master Map'!$AF$64+'Master Map'!$AF$66+'Master Map'!$AH$68+'Master Map'!$AJ$72 -> 30.2683 | P54: ='Master Map'!$Y$44+'Master Map'!$Y$46+'Master Map'!$AA$48+'Master Map'!$AB$50+'Master Map'!$AC$52+'Master Map'!$AE$53+'Master Map'!$AF$54 -> 16.0967 | V54: ='Master Map'!$AC$33+'Master Map'!$AC$31+'Master Map'!$AC$29+'Master Map'!$AC$27+'Master Map'!$AC$25+'Master Map'!$AC$23 -> 248.6278 | AA54: =AA53+'Master Map'!$AF$19 -> 104.1876 | AI54: ='Master Map'!$N$61 -> 143.9 | AK54: =+'Master Map'!$Q$50+'Master Map'!$Q$43+'Master Map'!$T$41 -> 58 | AL54: =+'Asset Groups'!$K$106 -> 51.2 | AP54: 227.40557 | AQ54: 0 | AR54: 0 | AS54: 0 | AT54: 0 | AV54: 0 | AW54: 0 | AX54: 0 | AY54: 0 | AZ54: 0 | BA54: 0 | BB54: 0 | BC54: 0 | BD54: 0 | BE54: 0 | BF54: 0 | BG54: 0 | BH54: 0 | BI54: 0 | BJ54: 0 | BK54: 0 | BL54: 0 | BM54: =BM85+'Master Map'!$AH$17 -> 164.1816 | BN54: 0 | BO54: 0 | BP54: 0 | BQ54: 0 | BR54: 0 | BS54: ='Master Map'!$AT$1 -> 63.22397 | BT54: 0 | BU54: 0 | BV54: 0 | CB54: 591.2452 | CC54: ='Master Map'!$BE$68+'Master Map'!$BH$68+'Master Map'!$BJ$68+'Master Map'!$BL$68+'Master Map'!$BN$68+'Master Map'!$AY$68+'Master Map'!$BB$68 -> 64.7151 | CD54: =+'Master Map'!$AW$68+'Master Map'!$AU$70 -> 62.0923 | CE54: 0 | CF54: 0 | CH54: 0 | CI54: 0 | CJ54: ='Master Map'!$AR$72 -> 18.6693 | CK54: =+'Master Map'!$AQ$66+'Master Map'!$AQ$54+'Master Map'!$AQ$43+'Master Map'!$AQ$36+'Master Map'!$AM$34+'Master Map'!$AI$34+'Master Map'!$AE$34 -> 92.9531 | CL54: 0 | CM54: 0 | CN54: 0 | CO54: 0 | CP54: 0 | CQ54: 0 | CR54: 0 | CS54: 0 | CT54: ='Master Map'!$AC$33+'Master Map'!$AC$31+'Master Map'!$AC$29+'Master Map'!$AC$27+'Master Map'!$AC$25+'Master Map'!$AC$23 -> 248.6278 | CU54: 0 | CV54: 0 | CW54: 0 | CX54: 0 | CY54: =CY53+'Master Map'!$AF$19 -> 104.1876 | CZ54: 0 | DA54: 0 | DB54: 0 | DC54: 0 | DD54: 0 | DE54: 0 | DF54: 0 | DG54: 0 | DH54: 0 | DN54: 473.7622 | DO54: 0 | DP54: 0 | DQ54: 0 | DR54: 0 | DT54: 0 | DU54: 0 | DV54: 0 | DW54: ='Master Map'!$AQ$66+'Master Map'!$AQ$54+'Master Map'!$AQ$43+'Master Map'!$AQ$36+'Master Map'!$AM$34+'Master Map'!$AI$34+'Master Map'!$AE$34 -> 92.9531 | DX54: ='Master Map'!$AJ$75+'Master Map'!$AL$73+'Master Map'!$AN$71+'Master Map'!$AP$71 -> 27.9937 | DY54: 0 | DZ54: 0 | EA54: 0 | EB54: 0 | EC54: 0 | ED54: 0 | EE54: 0 | EF54: ='Master Map'!$AC$33+'Master Map'!$AC$31+'Master Map'!$AC$29+'Master Map'!$AC$27+'Master Map'!$AC$25+'Master Map'!$AC$23 -> 248.6278 | EG54: 0 | EH54: 0 | EI54: 0 | EJ54: 0 | EK54: =EK53+'Master Map'!$AF$19 -> 104.1876 | EL54: 0 | EM54: 0 | EN54: 0 | EO54: 0 | EP54: 0 | EQ54: 0 | ER54: 0 | ES54: 0 | ET54: 0 | EZ54: 445.7685 | FA54: 0 | FB54: 0 | FC54: 0 | FD54: 0 | FF54: 0 | FG54: 0 | FH54: 0 | FI54: =+'Master Map'!$AQ$66+'Master Map'!$AQ$54+'Master Map'!$AQ$43+'Master Map'!$AQ$36+'Master Map'!$AM$34+'Master Map'!$AI$34+'Master Map'!$AE$34 -> 92.9531 | FJ54: 0 | FK54: 0 | FL54: 0 | FM54: 0 | FN54: 0 | FO54: 0 | FP54: 0 | FQ54: 0 | FR54: ='Master Map'!$AC$33+'Master Map'!$AC$31+'Master Map'!$AC$29+'Master Map'!$AC$27+'Master Map'!$AC$25+'Master Map'!$AC$23 -> 248.6278 | FS54: 0 | FT54: 0 | FU54: 0 | FV54: 0 | FW54: =FW53+'Master Map'!$AF$19 -> 104.1876 | FX54: 0 | FY54: 0 | FZ54: 0 | GA54: 0 | GB54: 0 | GC54: 0 | GD54: 0 | GE54: 0 | GF54: 0
A55: Bendigo | B55: M057 | D55: 382.5247 | S55: ='Master Map'!$Q$40 -> 12.3162 | T55: ='Master Map'!$O$40+'Master Map'!$M$40+'Master Map'!$K$40 -> 40.3542 | W55: ='Master Map'!$J$37+'Master Map'!$J$33 -> 39.9597 | X55: ='Master Map'!$K$20+'Master Map'!$K$24+'Master Map'!$K$28 -> 50.6946 | AI55: ='Master Map'!$N$61 -> 143.9 | AK55: =+'Master Map'!$Q$50+'Master Map'!$Q$43 -> 44.1 | AL55: =+'Asset Groups'!$K$106 -> 51.2 | AP55: 660.44919 | AQ55: 0 | AR55: 0 | AS55: 0 | AT55: 0 | AV55: 0 | AW55: 0 | AX55: 0 | AY55: 0 | AZ55: 0 | BA55: 0 | BB55: 0 | BC55: 0 | BD55: 0 | BE55: 0 | BF55: 0 | BG55: 0 | BH55: ='Master Map'!$AC$23+'Master Map'!$AC$25+'Master Map'!$AC$27+'Master Map'!$AC$29 -> 194.09202 | BI55: 0 | BJ55: ='Master Map'!$K$20+'Master Map'!$K$24+'Master Map'!$K$28 -> 50.6946 | BK55: 0 | BL55: =+'Master Map'!$AA$30+'Master Map'!$W$30+'Master Map'!$T$30+'Master Map'!$P$30+'Master Map'!$L$30 -> 84.0694 | BM55: ='Master Map'!$AD$21+'Master Map'!$AF$19+'Master Map'!$AH$17+'Master Map'!$AJ$15+'Master Map'!$AL$13+'Master Map'!$AN$11+'Master Map'!$AP$9+'Master Map'!$AR$7 -> 268.3692 | BN55: 0 | BO55: 0 | BP55: 0 | BQ55: 0 | BR55: 0 | BS55: ='Master Map'!$AT$1 -> 63.22397 | BT55: 0 | BU55: 0 | BV55: 0 | CB55: 427.72958 | CC55: ='Master Map'!$BE$68+'Master Map'!$BH$68+'Master Map'!$BJ$68+'Master Map'!$BL$68+'Master Map'!$BN$68+'Master Map'!$AY$68+'Master Map'!$BB$68 -> 64.7151 | CD55: =+'Master Map'!$AW$68+'Master Map'!$AU$70 -> 62.0923 | CE55: 0 | CF55: 0 | CH55: 0 | CI55: 0 | CJ55: ='Master Map'!$AR$72 -> 18.6693 | CK55: =+'Master Map'!$AQ$66+'Master Map'!$AQ$54+'Master Map'!$AQ$43+'Master Map'!$AQ$36+'Master Map'!$AM$34+'Master Map'!$AI$34+'Master Map'!$AE$34 -> 92.9531 | CO55: 0 | CP55: 0 | CS55: 0 | CT55: ='Master Map'!$AC$33+'Master Map'!$AC$31 -> 54.53578 | CV55: =+'Master Map'!$K$28+'Master Map'!$K$24+'Master Map'!$K$20 -> 50.6946 | CW55: 0 | CX55: =+'Master Map'!$AA$30+'Master Map'!$W$30+'Master Map'!$T$30+'Master Map'!$P$30+'Master Map'!$L$30 -> 84.0694 | CY55: 0 | CZ55: 0 | DA55: 0 | DB55: 0 | DD55: 0 | DE55: 0 | DF55: 0 | DG55: 0 | DH55: 0 | DN55: 203.6185 | DO55: 0 | DP55: 0 | DQ55: 0 | DR55: 0 | DT55: 0 | DU55: 0 | DV55: 0 | DW55: 0 | DX55: 0 | DY55: ='Master Map'!$AF$56+'Master Map'!$AF$58+'Master Map'!$AF$60+'Master Map'!$AF$62+'Master Map'!$AF$64+'Master Map'!$AF$66+'Master Map'!$AH$68+'Master Map'!$AJ$72 -> 30.2683 | DZ55: ='Master Map'!$AF$54+'Master Map'!$AE$53+'Master Map'!$AC$52+'Master Map'!$AB$50+'Master Map'!$AA$48+'Master Map'!$Y$46+'Master Map'!$Y$44 -> 16.0967 | EA55: 0 | EB55: 0 | EC55: ='Master Map'!$Q$40+'Master Map'!$S$40+'Master Map'!$U$40+'Master Map'!$X$42 -> 26.245 | ED55: ='Master Map'!$O$40+'Master Map'!$M$40+'Master Map'!$K$40 -> 40.3542 | EE55: 0 | EF55: 0 | EG55: ='Master Map'!$J$37+'Master Map'!$J$33 -> 39.9597 | EH55: ='Master Map'!$K$20+'Master Map'!$K$24+'Master Map'!$K$28 -> 50.6946 | EI55: 0 | EJ55: 0 | EK55: 0 | EL55: 0 | EM55: 0 | EN55: 0 | EO55: 0 | EP55: 0 | EQ55: 0 | ER55: 0 | ES55: 0 | ET55: 0 | EZ55: 231.6122 | FA55: 0 | FB55: 0 | FC55: 0 | FD55: 0 | FF55: 0 | FG55: 0 | FH55: 0 | FI55: 0 | FJ55: ='Master Map'!$AJ$75+'Master Map'!$AL$73+'Master Map'!$AN$71+'Master Map'!$AP$71 -> 27.9937 | FK55: ='Master Map'!$AF$56+'Master Map'!$AF$58+'Master Map'!$AF$60+'Master Map'!$AF$62+'Master Map'!$AF$64+'Master Map'!$AF$66+'Master Map'!$AH$68+'Master Map'!$AJ$72 -> 30.2683 | FL55: ='Master Map'!$AF$54+'Master Map'!$AE$53+'Master Map'!$AC$52+'Master Map'!$AB$50+'Master Map'!$AA$48+'Master Map'!$Y$46+'Master Map'!$Y$44 -> 16.0967 | FM55: 0 | FN55: 0 | FO55: ='Master Map'!$Q$40+'Master Map'!$S$40+'Master Map'!$U$40+'Master Map'!$X$42 -> 26.245 | FP55: ='Master Map'!$O$40+'Master Map'!$M$40+'Master Map'!$K$40 -> 40.3542 | FQ55: 0 | FR55: 0 | FS55: ='Master Map'!$J$37+'Master Map'!$J$33 -> 39.9597 | FT55: ='Master Map'!$K$20+'Master Map'!$K$24+'Master Map'!$K$28 -> 50.6946 | FU55: 0 | FV55: 0 | FW55: 0 | FX55: 0 | FY55: 0 | FZ55: 0 | GA55: 0 | GB55: 0 | GC55: 0 | GD55: 0 | GE55: 0 | GF55: 0
A56: Broadford | B56: M058 | D56: 509.542 | M56: ='Master Map'!$AQ$66+'Master Map'!$AQ$54+'Master Map'!$AQ$43+'Master Map'!$AQ$36+'Master Map'!$AE$34+'Master Map'!$AI$34+'Master Map'!$AM$34 -> 92.9531 | N56: ='Master Map'!$AJ$75+'Master Map'!$AL$73+'Master Map'!$AN$71+'Master Map'!$AP$71 -> 27.9937 | O56: ='Master Map'!$AF$56+'Master Map'!$AF$58+'Master Map'!$AF$60+'Master Map'!$AF$62+'Master Map'!$AF$64+'Master Map'!$AF$66+'Master Map'!$AH$68+'Master Map'!$AJ$72 -> 30.2683 | P56: ='Master Map'!$Y$44+'Master Map'!$Y$46+'Master Map'!$AA$48+'Master Map'!$AB$50+'Master Map'!$AC$52+'Master Map'!$AE$53+'Master Map'!$AF$54 -> 16.0967 | V56: =V84+'Master Map'!$AC$31+'Master Map'!$AC$29 -> 89.1302 | AI56: ='Master Map'!$N$61 -> 143.9 | AK56: =+'Master Map'!$Q$50+'Master Map'!$Q$43+'Master Map'!$T$41 -> 58 | AL56: =+'Asset Groups'!$K$106 -> 51.2 | AP56: 491.09077 | AQ56: 0 | AR56: 0 | AS56: 0 | AT56: 0 | AV56: 0 | AW56: 0 | AX56: 0 | AY56: 0 | AZ56: 0 | BA56: 0 | BB56: 0 | BC56: 0 | BD56: 0 | BE56: 0 | BF56: 0 | BG56: 0 | BH56: ='Master Map'!$AC$23+'Master Map'!$AC$25+'Master Map'!$AC$27 -> 159.4976 | BI56: 0 | BJ56: 0 | BK56: 0 | BL56: 0 | BM56: ='Master Map'!$AD$21+'Master Map'!$AF$19+'Master Map'!$AH$17+'Master Map'!$AJ$15+'Master Map'!$AL$13+'Master Map'!$AN$11+'Master Map'!$AP$9+'Master Map'!$AR$7 -> 268.3692 | BN56: 0 | BO56: 0 | BP56: 0 | BQ56: 0 | BR56: 0 | BS56: ='Master Map'!$AT$1 -> 63.22397 | BT56: 0 | BU56: 0 | BV56: 0 | CB56: 327.56 | CC56: ='Master Map'!$BE$68+'Master Map'!$BH$68+'Master Map'!$BJ$68+'Master Map'!$BL$68+'Master Map'!$BN$68+'Master Map'!$AY$68+'Master Map'!$BB$68 -> 64.7151 | CD56: =+'Master Map'!$AW$68+'Master Map'!$AU$70 -> 62.0923 | CE56: 0 | CF56: 0 | CH56: 0 | CI56: 0 | CJ56: ='Master Map'!$AR$72 -> 18.6693 | CK56: =+'Master Map'!$AQ$66+'Master Map'!$AQ$54+'Master Map'!$AQ$43+'Master Map'!$AQ$36+'Master Map'!$AM$34+'Master Map'!$AI$34+'Master Map'!$AE$34 -> 92.9531 | CL56: 0 | CM56: 0 | CN56: 0 | CO56: 0 | CP56: 0 | CQ56: 0 | CR56: 0 | CS56: 0 | CT56: =CT84+'Master Map'!$AC$31+'Master Map'!$AC$29 -> 89.1302 | CU56: 0 | CV56: 0 | CW56: 0 | CX56: 0 | CY56: 0 | CZ56: 0 | DA56: 0 | DB56: 0 | DC56: 0 | DD56: 0 | DE56: 0 | DF56: 0 | DG56: 0 | DH56: 0 | DN56: 210.077 | DO56: 0 | DP56: 0 | DQ56: 0 | DR56: 0 | DT56: 0 | DU56: 0 | DV56: 0 | DW56: ='Master Map'!$AQ$66+'Master Map'!$AQ$54+'Master Map'!$AQ$43+'Master Map'!$AQ$36+'Master Map'!$AM$34+'Master Map'!$AI$34+'Master Map'!$AE$34 -> 92.9531 | DX56: ='Master Map'!$AJ$75+'Master Map'!$AL$73+'Master Map'!$AN$71+'Master Map'!$AP$71 -> 27.9937 | DY56: 0 | DZ56: 0 | EA56: 0 | EB56: 0 | EC56: 0 | ED56: 0 | EE56: 0 | EF56: =EF84+'Master Map'!$AC$31+'Master Map'!$AC$29 -> 89.1302 | EG56: 0 | EH56: 0 | EI56: 0 | EJ56: 0 | EK56: 0 | EL56: 0 | EM56: 0 | EN56: 0 | EO56: 0 | EP56: 0 | EQ56: 0 | ER56: 0 | ES56: 0 | ET56: 0 | EZ56: 182.0833 | FA56: 0 | FB56: 0 | FC56: 0 | FD56: 0 | FF56: 0 | FG56: 0 | FH56: 0 | FI56: =+'Master Map'!$AQ$66+'Master Map'!$AQ$54+'Master Map'!$AQ$43+'Master Map'!$AQ$36+'Master Map'!$AM$34+'Master Map'!$AI$34+'Master Map'!$AE$34 -> 92.9531 | FJ56: 0 | FK56: 0 | FL56: 0 | FM56: 0 | FN56: 0 | FO56: 0 | FP56: 0 | FQ56: 0 | FR56: =FR84+'Master Map'!$AC$31+'Master Map'!$AC$29 -> 89.1302 | FS56: 0 | FT56: 0 | FU56: 0 | FV56: 0 | FW56: 0 | FX56: 0 | FY56: 0 | FZ56: 0 | GA56: 0 | GB56: 0 | GC56: 0 | GD56: 0 | GE56: 0 | GF56: 0
A57: Castlemaine | B57: M059 | D57: 356.6515 | S57: ='Master Map'!$Q$40 -> 12.3162 | T57: ='Master Map'!$O$40+'Master Map'!$M$40+'Master Map'!$K$40 -> 40.3542 | W57: ='Master Map'!$J$37+'Master Map'!$J$33 -> 39.9597 | X57: ='Master Map'!$K$28+'Master Map'!$K$24 -> 24.8214 | AI57: ='Master Map'!$N$61 -> 143.9 | AK57: =+'Master Map'!$Q$50+'Master Map'!$Q$43 -> 44.1 | AL57: =+'Asset Groups'!$K$106 -> 51.2 | AP57: 634.57599 | AQ57: 0 | AR57: 0 | AS57: 0 | AT57: 0 | AV57: 0 | AW57: 0 | AX57: 0 | AY57: 0 | AZ57: 0 | BA57: 0 | BB57: 0 | BC57: 0 | BD57: 0 | BE57: 0 | BF57: 0 | BG57: 0 | BH57: ='Master Map'!$AC$23+'Master Map'!$AC$25+'Master Map'!$AC$27+'Master Map'!$AC$29 -> 194.09202 | BI57: 0 | BJ57: ='Master Map'!$K$28+'Master Map'!$K$24 -> 24.8214 | BK57: 0 | BL57: =+'Master Map'!$AA$30+'Master Map'!$W$30+'Master Map'!$T$30+'Master Map'!$P$30+'Master Map'!$L$30 -> 84.0694 | BM57: ='Master Map'!$AD$21+'Master Map'!$AF$19+'Master Map'!$AH$17+'Master Map'!$AJ$15+'Master Map'!$AL$13+'Master Map'!$AN$11+'Master Map'!$AP$9+'Master Map'!$AR$7 -> 268.3692 | BN57: 0 | BO57: 0 | BP57: 0 | BQ57: 0 | BR57: 0 | BS57: ='Master Map'!$AT$1 -> 63.22397 | BT57: 0 | BU57: 0 | BV57: 0 | CB57: 401.85638 | CC57: ='Master Map'!$BE$68+'Master Map'!$BH$68+'Master Map'!$BJ$68+'Master Map'!$BL$68+'Master Map'!$BN$68+'Master Map'!$AY$68+'Master Map'!$BB$68 -> 64.7151 | CD57: =+'Master Map'!$AW$68+'Master Map'!$AU$70 -> 62.0923 | CE57: 0 | CF57: 0 | CH57: 0 | CI57: 0 | CJ57: ='Master Map'!$AR$72 -> 18.6693 | CK57: =+'Master Map'!$AQ$66+'Master Map'!$AQ$54+'Master Map'!$AQ$43+'Master Map'!$AQ$36+'Master Map'!$AM$34+'Master Map'!$AI$34+'Master Map'!$AE$34 -> 92.9531 | CO57: 0 | CP57: 0 | CS57: 0 | CT57: ='Master Map'!$AC$33+'Master Map'!$AC$31 -> 54.53578 | CV57: =+'Master Map'!$K$28+'Master Map'!$K$24 -> 24.8214 | CW57: 0 | CX57: =+'Master Map'!$AA$30+'Master Map'!$W$30+'Master Map'!$T$30+'Master Map'!$P$30+'Master Map'!$L$30 -> 84.0694 | CY57: 0 | CZ57: 0 | DA57: 0 | DB57: 0 | DD57: 0 | DE57: 0 | DF57: 0 | DG57: 0 | DH57: 0 | DN57: 177.7453 | DO57: 0 | DP57: 0 | DQ57: 0 | DR57: 0 | DT57: 0 | DU57: 0 | DV57: 0 | DW57: 0 | DX57: 0 | DY57: ='Master Map'!$AF$56+'Master Map'!$AF$58+'Master Map'!$AF$60+'Master Map'!$AF$62+'Master Map'!$AF$64+'Master Map'!$AF$66+'Master Map'!$AH$68+'Master Map'!$AJ$72 -> 30.2683 | DZ57: ='Master Map'!$AF$54+'Master Map'!$AE$53+'Master Map'!$AC$52+'Master Map'!$AB$50+'Master Map'!$AA$48+'Master Map'!$Y$46+'Master Map'!$Y$44 -> 16.0967 | EA57: 0 | EB57: 0 | EC57: ='Master Map'!$Q$40+'Master Map'!$S$40+'Master Map'!$U$40+'Master Map'!$X$42 -> 26.245 | ED57: ='Master Map'!$O$40+'Master Map'!$M$40+'Master Map'!$K$40 -> 40.3542 | EE57: 0 | EF57: 0 | EG57: ='Master Map'!$J$37+'Master Map'!$J$33 -> 39.9597 | EH57: ='Master Map'!$K$28+'Master Map'!$K$24 -> 24.8214 | EI57: 0 | EJ57: 0 | EK57: 0 | EL57: 0 | EM57: 0 | EN57: 0 | EO57: 0 | EP57: 0 | EQ57: 0 | ER57: 0 | ES57: 0 | ET57: 0 | EZ57: 205.739 | FA57: 0 | FB57: 0 | FC57: 0 | FD57: 0 | FF57: 0 | FG57: 0 | FH57: 0 | FI57: 0 | FJ57: ='Master Map'!$AJ$75+'Master Map'!$AL$73+'Master Map'!$AN$71+'Master Map'!$AP$71 -> 27.9937 | FK57: ='Master Map'!$AF$56+'Master Map'!$AF$58+'Master Map'!$AF$60+'Master Map'!$AF$62+'Master Map'!$AF$64+'Master Map'!$AF$66+'Master Map'!$AH$68+'Master Map'!$AJ$72 -> 30.2683 | FL57: ='Master Map'!$AF$54+'Master Map'!$AE$53+'Master Map'!$AC$52+'Master Map'!$AB$50+'Master Map'!$AA$48+'Master Map'!$Y$46+'Master Map'!$Y$44 -> 16.0967 | FM57: 0 | FN57: 0 | FO57: ='Master Map'!$Q$40+'Master Map'!$S$40+'Master Map'!$U$40+'Master Map'!$X$42 -> 26.245 | FP57: ='Master Map'!$O$40+'Master Map'!$M$40+'Master Map'!$K$40 -> 40.3542 | FQ57: 0 | FR57: 0 | FS57: ='Master Map'!$J$37+'Master Map'!$J$33 -> 39.9597 | FT57: ='Master Map'!$K$28+'Master Map'!$K$24 -> 24.8214 | FU57: 0 | FV57: 0 | FW57: 0 | FX57: 0 | FY57: 0 | FZ57: 0 | GA57: 0 | GB57: 0 | GC57: 0 | GD57: 0 | GE57: 0 | GF57: 0
A58: Churchill | B58: M060 | D58: 368.6792 | J58: ='Master Map'!$AJ$77+'Master Map'!$AL$77+'Master Map'!$AN$77+'Master Map'!$AP$77+'Master Map'!$AR$77 -> 27.4535 | K58: ='Master Map'!$AT$77+'Master Map'!$AV$77+'Master Map'!$AX$77+'Master Map'!$AZ$77+'Master Map'!$BB$77+'Master Map'!$BD$77+'Master Map'!$BF$77+'Master Map'!$BH$77 -> 92.9607 | O58: ='Master Map'!$AF$56+'Master Map'!$AF$58+'Master Map'!$AF$60+'Master Map'!$AF$62+'Master Map'!$AF$64+'Master Map'!$AF$66+'Master Map'!$AH$68+'Master Map'!$AJ$72 -> 30.2683 | P58: ='Master Map'!$Y$44+'Master Map'!$Y$46+'Master Map'!$AA$48+'Master Map'!$AB$50+'Master Map'!$AC$52+'Master Map'!$AE$53+'Master Map'!$AF$54 -> 16.0967 | AI58: ='Master Map'!$N$61 -> 143.9 | AK58: =+'Master Map'!$Q$50+'Master Map'!$Q$43+'Master Map'!$T$41 -> 58 | AP58: 781.31293 | AQ58: =+'Master Map'!$AY$68+'Master Map'!$BB$68 -> 7.0447 | AR58: ='Master Map'!$AU$70+'Master Map'!$AW$68 -> 62.0923 | AS58: 0 | AT58: ='Master Map'!$BE$71+'Master Map'!$BI$72+'Master Map'!$BJ$74+'Master Map'!$BJ$76 -> 20.33256 | AV58: 0 | AW58: 0 | AX58: ='Master Map'!$AR$72 -> 18.6693 | AY58: =+$AY$37+'Master Map'!$AQ$66 -> 92.9531 | AZ58: 0 | BA58: 0 | BB58: 0 | BC58: 0 | BD58: 0 | BE58: 0 | BF58: 0 | BG58: 0 | BH58: ='Master Map'!$AC$23+'Master Map'!$AC$25+'Master Map'!$AC$27+'Master Map'!$AC$29+'Master Map'!$AC$31+'Master Map'!$AC$33 -> 248.6278 | BI58: 0 | BJ58: 0 | BK58: 0 | BL58: 0 | BM58: ='Master Map'!$AD$21+'Master Map'!$AF$19+'Master Map'!$AH$17+'Master Map'!$AJ$15+'Master Map'!$AL$13+'Master Map'!$AN$11+'Master Map'!$AP$9+'Master Map'!$AR$7 -> 268.3692 | BN58: 0 | BO58: 0 | BP58: 0 | BQ58: 0 | BR58: 0 | BS58: ='Master Map'!$AT$1 -> 63.22397 | BT58: 0 | BU58: 0 | BV58: 0 | CB58: 78.00296 | CC58: ='Master Map'!$BE$68+'Master Map'!$BH$68+'Master Map'!$BJ$68+'Master Map'!$BL$68+'Master Map'!$BN$68 -> 57.6704 | CD58: 0 | CE58: 0 | CF58: =CF73+'Master Map'!$BJ$74+'Master Map'!$BJ$76 -> 20.33256 | CH58: 0 | CI58: 0 | CJ58: 0 | CK58: 0 | CL58: 0 | CM58: 0 | CN58: 0 | CO58: 0 | CP58: 0 | CQ58: 0 | CR58: 0 | CS58: 0 | CT58: 0 | CU58: 0 | CV58: 0 | CW58: 0 | CX58: 0 | CY58: 0 | CZ58: 0 | DA58: 0 | DB58: 0 | DC58: 0 | DD58: 0 | DE58: 0 | DF58: 0 | DG58: 0 | DH58: 0 | DN58: 120.4142 | DO58: 0 | DP58: 0 | DQ58: 0 | DR58: 0 | DT58: ='Master Map'!$AJ$77+'Master Map'!$AL$77+'Master Map'!$AN$77+'Master Map'!$AP$77+'Master Map'!$AR$77 -> 27.4535 | DU58: ='Master Map'!$AT$77+'Master Map'!$AV$77+'Master Map'!$AX$77+'Master Map'!$AZ$77+'Master Map'!$BB$77+'Master Map'!$BD$77+'Master Map'!$BF$77+'Master Map'!$BH$77 -> 92.9607 | DV58: 0 | DW58: 0 | DX58: 0 | DY58: 0 | DZ58: 0 | EA58: 0 | EB58: 0 | EC58: 0 | ED58: 0 | EE58: 0 | EF58: 0 | EG58: 0 | EH58: 0 | EI58: 0 | EJ58: 0 | EK58: 0 | EL58: 0 | EM58: 0 | EN58: 0 | EO58: 0 | EP58: 0 | EQ58: 0 | ER58: 0 | ES58: 0 | ET58: 0 | EZ58: 108.13886 | FA58: ='Master Map'!$AY$68+'Master Map'!$BB$68 -> 7.0447 | FB58: ='Master Map'!$AU$70+'Master Map'!$AW$68 -> 62.0923 | FC58: 0 | FD58: ='Master Map'!$BE$71+'Master Map'!$BI$72+'Master Map'!$BJ$74+'Master Map'!$BJ$76 -> 20.33256 | FF58: 0 | FG58: 0 | FH58: ='Master Map'!$AR$72 -> 18.6693 | FI58: 0 | FJ58: 0 | FK58: 0 | FL58: 0 | FM58: 0 | FN58: 0 | FO58: 0 | FP58: 0 | FQ58: 0 | FR58: 0 | FS58: 0 | FT58: 0 | FU58: 0 | FV58: 0 | FW58: 0 | FX58: 0 | FY58: 0 | FZ58: 0 | GA58: 0 | GB58: 0 | GC58: 0 | GD58: 0 | GE58: 0 | GF58: 0
A59: Daylesford | B59: M061 | D59: 271.6541 | S59: ='Master Map'!$Q$40 -> 12.3162 | T59: ='Master Map'!$O$40+'Master Map'!$M$40+'Master Map'!$K$40 -> 40.3542 | W59: ='Master Map'!$J$37 -> 30.9837 | AI59: ='Master Map'!$N$61 -> 143.9 | AK59: =+'Master Map'!$Q$50+'Master Map'!$Q$43 -> 44.1 | AP59: 618.73059 | AQ59: 0 | AR59: 0 | AS59: 0 | AT59: 0 | AV59: 0 | AW59: 0 | AX59: 0 | AY59: 0 | AZ59: 0 | BA59: 0 | BB59: 0 | BC59: 0 | BD59: 0 | BE59: 0 | BF59: 0 | BG59: 0 | BH59: ='Master Map'!$AC$23+'Master Map'!$AC$25+'Master Map'!$AC$27+'Master Map'!$AC$29 -> 194.09202 | BI59: =+'Master Map'!J33 -> 8.976 | BJ59: 0 | BK59: 0 | BL59: =+'Master Map'!$AA$30+'Master Map'!$W$30+'Master Map'!$T$30+'Master Map'!$P$30+'Master Map'!$L$30 -> 84.0694 | BM59: ='Master Map'!$AD$21+'Master Map'!$AF$19+'Master Map'!$AH$17+'Master Map'!$AJ$15+'Master Map'!$AL$13+'Master Map'!$AN$11+'Master Map'!$AP$9+'Master Map'!$AR$7 -> 268.3692 | BN59: 0 | BO59: 0 | BP59: 0 | BQ59: 0 | BR59: 0 | BS59: ='Master Map'!$AT$1 -> 63.22397 | BT59: 0 | BU59: 0 | BV59: 0 | CB59: 386.01098 | CC59: ='Master Map'!$BE$68+'Master Map'!$BH$68+'Master Map'!$BJ$68+'Master Map'!$BL$68+'Master Map'!$BN$68+'Master Map'!$AY$68+'Master Map'!$BB$68 -> 64.7151 | CD59: =+'Master Map'!$AW$68+'Master Map'!$AU$70 -> 62.0923 | CE59: 0 | CF59: 0 | CH59: 0 | CI59: 0 | CJ59: ='Master Map'!$AR$72 -> 18.6693 | CK59: =+'Master Map'!$AQ$66+'Master Map'!$AQ$54+'Master Map'!$AQ$43+'Master Map'!$AQ$36+'Master Map'!$AM$34+'Master Map'!$AI$34+'Master Map'!$AE$34 -> 92.9531 | CL59: 0 | CM59: 0 | CN59: 0 | CO59: 0 | CP59: 0 | CQ59: 0 | CR59: 0 | CS59: 0 | CT59: ='Master Map'!$AC$33+'Master Map'!$AC$31 -> 54.53578 | CU59: =+'Master Map'!J33 -> 8.976 | CV59: 0 | CW59: 0 | CX59: =+'Master Map'!$P$30+'Master Map'!$T$30+'Master Map'!$W$30+'Master Map'!$AA$30+'Master Map'!L30 -> 84.0694 | CY59: 0 | CZ59: 0 | DA59: 0 | DB59: 0 | DC59: 0 | DD59: 0 | DE59: 0 | DF59: 0 | DG59: 0 | DH59: 0 | DN59: 143.9479 | DO59: 0 | DP59: 0 | DQ59: 0 | DR59: 0 | DT59: 0 | DU59: 0 | DV59: 0 | DW59: 0 | DX59: 0 | DY59: ='Master Map'!$AF$56+'Master Map'!$AF$58+'Master Map'!$AF$60+'Master Map'!$AF$62+'Master Map'!$AF$64+'Master Map'!$AF$66+'Master Map'!$AH$68+'Master Map'!$AJ$72 -> 30.2683 | DZ59: ='Master Map'!$AF$54+'Master Map'!$AE$53+'Master Map'!$AC$52+'Master Map'!$AB$50+'Master Map'!$AA$48+'Master Map'!$Y$46+'Master Map'!$Y$44 -> 16.0967 | EA59: 0 | EB59: 0 | EC59: ='Master Map'!$Q$40+'Master Map'!$S$40+'Master Map'!$U$40+'Master Map'!$X$42 -> 26.245 | ED59: ='Master Map'!$O$40+'Master Map'!$M$40+'Master Map'!$K$40 -> 40.3542 | EE59: 0 | EF59: 0 | EG59: ='Master Map'!$J$37 -> 30.9837 | EH59: 0 | EI59: 0 | EJ59: 0 | EK59: 0 | EL59: 0 | EM59: 0 | EN59: 0 | EO59: 0 | EP59: 0 | EQ59: 0 | ER59: 0 | ES59: 0 | ET59: 0 | EZ59: 171.9416 | FA59: 0 | FB59: 0 | FC59: 0 | FD59: 0 | FF59: 0 | FG59: 0 | FH59: 0 | FI59: 0 | FJ59: ='Master Map'!$AJ$75+'Master Map'!$AL$73+'Master Map'!$AN$71+'Master Map'!$AP$71 -> 27.9937 | FK59: ='Master Map'!$AF$56+'Master Map'!$AF$58+'Master Map'!$AF$60+'Master Map'!$AF$62+'Master Map'!$AF$64+'Master Map'!$AF$66+'Master Map'!$AH$68+'Master Map'!$AJ$72 -> 30.2683 | FL59: ='Master Map'!$AF$54+'Master Map'!$AE$53+'Master Map'!$AC$52+'Master Map'!$AB$50+'Master Map'!$AA$48+'Master Map'!$Y$46+'Master Map'!$Y$44 -> 16.0967 | FM59: 0 | FN59: 0 | FO59: ='Master Map'!$Q$40+'Master Map'!$S$40+'Master Map'!$U$40+'Master Map'!$X$42 -> 26.245 | FP59: ='Master Map'!$O$40+'Master Map'!$M$40+'Master Map'!$K$40 -> 40.3542 | FQ59: 0 | FR59: 0 | FS59: ='Master Map'!$J$37 -> 30.9837 | FT59: 0 | FU59: 0 | FV59: 0 | FW59: 0 | FX59: 0 | FY59: 0 | FZ59: 0 | GA59: 0 | GB59: 0 | GC59: 0 | GD59: 0 | GE59: 0 | GF59: 0
A60: Drouin | B60: M062 | D60: 307.5364 | J60: ='Master Map'!$AJ$77+'Master Map'!$AL$77+'Master Map'!$AN$77+'Master Map'!$AP$77+'Master Map'!$AR$77 -> 27.4535 | K60: ='Master Map'!$AT$77+'Master Map'!$AV$77 -> 31.8179 | O60: ='Master Map'!$AF$56+'Master Map'!$AF$58+'Master Map'!$AF$60+'Master Map'!$AF$62+'Master Map'!$AF$64+'Master Map'!$AF$66+'Master Map'!$AH$68+'Master Map'!$AJ$72 -> 30.2683 | P60: ='Master Map'!$Y$44+'Master Map'!$Y$46+'Master Map'!$AA$48+'Master Map'!$AB$50+'Master Map'!$AC$52+'Master Map'!$AE$53+'Master Map'!$AF$54 -> 16.0967 | AI60: ='Master Map'!$N$61 -> 143.9 | AK60: =+'Master Map'!$Q$50+'Master Map'!$Q$43+'Master Map'!$T$41 -> 58 | AP60: 760.43917 | AQ60: 0 | AR60: 0 | AS60: 0 | AT60: 0 | AV60: ='Master Map'!$AJ$77+'Master Map'!$AL$77+'Master Map'!$AN$77+'Master Map'!$AP$77+'Master Map'!$AR$77 -> 27.4535 | AW60: ='Master Map'!$AT$77+'Master Map'!$AV$77 -> 31.8179 | AX60: 0 | AY60: =+$AY$37+'Master Map'!$AQ$66 -> 92.9531 | AZ60: ='Master Map'!$AJ$75+'Master Map'!$AL$73+'Master Map'!$AN$71+'Master Map'!$AP$71 -> 27.9937 | BA60: 0 | BB60: 0 | BC60: 0 | BD60: 0 | BE60: 0 | BF60: 0 | BG60: 0 | BH60: ='Master Map'!$AC$23+'Master Map'!$AC$25+'Master Map'!$AC$27+'Master Map'!$AC$29+'Master Map'!$AC$31+'Master Map'!$AC$33 -> 248.6278 | BI60: 0 | BJ60: 0 | BK60: 0 | BL60: 0 | BM60: ='Master Map'!$AD$21+'Master Map'!$AF$19+'Master Map'!$AH$17+'Master Map'!$AJ$15+'Master Map'!$AL$13+'Master Map'!$AN$11+'Master Map'!$AP$9+'Master Map'!$AR$7 -> 268.3692 | BN60: 0 | BO60: 0 | BP60: 0 | BQ60: 0 | BR60: 0 | BS60: ='Master Map'!$AT$1 -> 63.22397 | BT60: 0 | BU60: 0 | BV60: 0 | CB60: 139.14576 | CC60: ='Master Map'!$BE$68+'Master Map'!$BH$68+'Master Map'!$BJ$68+'Master Map'!$BL$68+'Master Map'!$BN$68 -> 57.6704 | CD60: 0 | CE60: 0 | CF60: ='Master Map'!$BE$71+'Master Map'!$BI$72+'Master Map'!$BJ$74+'Master Map'!$BJ$76 -> 20.33256 | CH60: 0 | CI60: ='Master Map'!$AX$77+'Master Map'!$AZ$77+'Master Map'!$BB$77+'Master Map'!$BD$77+'Master Map'!$BF$77+'Master Map'!$BH$77 -> 61.1428 | CJ60: 0 | CK60: 0 | CL60: 0 | CM60: 0 | CN60: 0 | CO60: 0 | CP60: 0 | CQ60: 0 | CR60: 0 | CS60: 0 | CT60: 0 | CU60: 0 | CV60: 0 | CW60: 0 | CX60: 0 | CY60: 0 | CZ60: 0 | DA60: 0 | DB60: 0 | DC60: 0 | DD60: 0 | DE60: 0 | DF60: 0 | DG60: 0 | DH60: 0 | DN60: 59.2714 | DO60: 0 | DP60: 0 | DQ60: 0 | DR60: 0 | DT60: ='Master Map'!$AJ$77+'Master Map'!$AL$77+'Master Map'!$AN$77+'Master Map'!$AP$77+'Master Map'!$AR$77 -> 27.4535 | DU60: ='Master Map'!$AT$77+'Master Map'!$AV$77 -> 31.8179 | DV60: 0 | DW60: 0 | DX60: 0 | DY60: 0 | DZ60: 0 | EA60: 0 | EB60: 0 | EC60: 0 | ED60: 0 | EE60: 0 | EF60: 0 | EG60: 0 | EH60: 0 | EI60: 0 | EJ60: 0 | EK60: 0 | EL60: 0 | EM60: 0 | EN60: 0 | EO60: 0 | EP60: 0 | EQ60: 0 | ER60: 0 | ES60: 0 | ET60: 0 | EZ60: 87.2651 | FA60: 0 | FB60: 0 | FC60: 0 | FD60: 0 | FF60: ='Master Map'!$AJ$77+'Master Map'!$AL$77+'Master Map'!$AN$77+'Master Map'!$AP$77+'Master Map'!$AR$77 -> 27.4535 | FG60: ='Master Map'!$AT$77+'Master Map'!$AV$77 -> 31.8179 | FH60: 0 | FI60: 0 | FJ60: ='Master Map'!$AJ$75+'Master Map'!$AL$73+'Master Map'!$AN$71+'Master Map'!$AP$71 -> 27.9937 | FK60: 0 | FL60: 0 | FM60: 0 | FN60: 0 | FO60: 0 | FP60: 0 | FQ60: 0 | FR60: 0 | FS60: 0 | FT60: 0 | FU60: 0 | FV60: 0 | FW60: 0 | FX60: 0 | FY60: 0 | FZ60: 0 | GA60: 0 | GB60: 0 | GC60: 0 | GD60: 0 | GE60: 0 | GF60: 0
A61: Echuca | B61: M063 | D61: 771.6089 | M61: ='Master Map'!$AQ$66+'Master Map'!$AQ$54+'Master Map'!$AQ$43+'Master Map'!$AQ$36+'Master Map'!$AE$34+'Master Map'!$AI$34+'Master Map'!$AM$34 -> 92.9531 | N61: ='Master Map'!$AJ$75+'Master Map'!$AL$73+'Master Map'!$AN$71+'Master Map'!$AP$71 -> 27.9937 | O61: ='Master Map'!$AF$56+'Master Map'!$AF$58+'Master Map'!$AF$60+'Master Map'!$AF$62+'Master Map'!$AF$64+'Master Map'!$AF$66+'Master Map'!$AH$68+'Master Map'!$AJ$72 -> 30.2683 | P61: ='Master Map'!$Y$44+'Master Map'!$Y$46+'Master Map'!$AA$48+'Master Map'!$AB$50+'Master Map'!$AC$52+'Master Map'!$AE$53+'Master Map'!$AF$54 -> 16.0967 | V61: ='Master Map'!$AC$33+'Master Map'!$AC$31+'Master Map'!$AC$29+'Master Map'!$AC$27+'Master Map'!$AC$25+'Master Map'!$AC$23 -> 248.6278 | AB61: ='Master Map'!$AA$18+'Master Map'!$T$12 -> 71.9217 | AC61: ='Master Map'!$S$13+'Master Map'!$Q$11 -> 30.6476 | AI61: ='Master Map'!$N$61 -> 143.9 | AK61: =+'Master Map'!$Q$50+'Master Map'!$Q$43+'Master Map'!$T$41 -> 58 | AL61: =+'Asset Groups'!$K$106 -> 51.2 | AP61: 434.16247 | AQ61: 0 | AR61: 0 | AS61: 0 | AT61: 0 | AV61: 0 | AW61: 0 | AX61: 0 | AY61: 0 | AZ61: 0 | BA61: 0 | BB61: 0 | BC61: 0 | BD61: 0 | BE61: 0 | BF61: 0 | BG61: 0 | BH61: 0 | BI61: 0 | BJ61: 0 | BK61: 0 | BL61: 0 | BM61: ='Master Map'!$AD$21+'Master Map'!$AF$19+'Master Map'!$AH$17+'Master Map'!$AJ$15+'Master Map'!$AL$13+'Master Map'!$AN$11+'Master Map'!$AP$9+'Master Map'!$AR$7 -> 268.3692 | BN61: ='Master Map'!$AB$21+'Master Map'!$Z$19+'Master Map'!$X$17+'Master Map'!$U$15 -> 71.9217 | BO61: ='Master Map'!$S$13+'Master Map'!$Q$11 -> 30.6476 | BP61: 0 | BQ61: 0 | BR61: 0 | BS61: ='Master Map'!$AT$1 -> 63.22397 | BT61: 0 | BU61: 0 | BV61: 0 | CB61: 589.6269 | CC61: ='Master Map'!$BE$68+'Master Map'!$BH$68+'Master Map'!$BJ$68+'Master Map'!$BL$68+'Master Map'!$BN$68+'Master Map'!$AY$68+'Master Map'!$BB$68 -> 64.7151 | CD61: =+'Master Map'!$AW$68+'Master Map'!$AU$70 -> 62.0923 | CE61: 0 | CF61: 0 | CH61: 0 | CI61: 0 | CJ61: ='Master Map'!$AR$72 -> 18.6693 | CK61: =+'Master Map'!$AQ$66+'Master Map'!$AQ$54+'Master Map'!$AQ$43+'Master Map'!$AQ$36+'Master Map'!$AM$34+'Master Map'!$AI$34+'Master Map'!$AE$34 -> 92.9531 | CL61: 0 | CM61: 0 | CN61: 0 | CO61: 0 | CP61: 0 | CQ61: 0 | CR61: 0 | CS61: 0 | CT61: ='Master Map'!$AC$33+'Master Map'!$AC$31+'Master Map'!$AC$29+'Master Map'!$AC$27+'Master Map'!$AC$25+'Master Map'!$AC$23 -> 248.6278 | CU61: 0 | CV61: 0 | CW61: 0 | CX61: 0 | CY61: 0 | CZ61: ='Master Map'!$AB$21+'Master Map'!$Z$19+'Master Map'!$X$17+'Master Map'!$U$15 -> 71.9217 | DA61: ='Master Map'!$S$13+'Master Map'!$Q$11 -> 30.6476 | DB61: 0 | DC61: 0 | DD61: 0 | DE61: 0 | DF61: 0 | DG61: 0 | DH61: 0 | DN61: 472.1439 | DO61: 0 | DP61: 0 | DQ61: 0 | DR61: 0 | DT61: 0 | DU61: 0 | DV61: 0 | DW61: ='Master Map'!$AQ$66+'Master Map'!$AQ$54+'Master Map'!$AQ$43+'Master Map'!$AQ$36+'Master Map'!$AM$34+'Master Map'!$AI$34+'Master Map'!$AE$34 -> 92.9531 | DX61: ='Master Map'!$AJ$75+'Master Map'!$AL$73+'Master Map'!$AN$71+'Master Map'!$AP$71 -> 27.9937 | DY61: 0 | DZ61: 0 | EA61: 0 | EB61: 0 | EC61: 0 | ED61: 0 | EE61: 0 | EF61: ='Master Map'!$AC$33+'Master Map'!$AC$31+'Master Map'!$AC$29+'Master Map'!$AC$27+'Master Map'!$AC$25+'Master Map'!$AC$23 -> 248.6278 | EG61: 0 | EH61: 0 | EI61: 0 | EJ61: 0 | EK61: 0 | EL61: ='Master Map'!$AB$21+'Master Map'!$Z$19+'Master Map'!$X$17+'Master Map'!$U$15 -> 71.9217 | EM61: ='Master Map'!$S$13+'Master Map'!$Q$11 -> 30.6476 | EN61: 0 | EO61: 0 | EP61: 0 | EQ61: 0 | ER61: 0 | ES61: 0 | ET61: 0 | EZ61: 444.1502 | FA61: 0 | FB61: 0 | FC61: 0 | FD61: 0 | FF61: 0 | FG61: 0 | FH61: 0 | FI61: =+'Master Map'!$AQ$66+'Master Map'!$AQ$54+'Master Map'!$AQ$43+'Master Map'!$AQ$36+'Master Map'!$AM$34+'Master Map'!$AI$34+'Master Map'!$AE$34 -> 92.9531 | FJ61: 0 | FK61: 0 | FL61: 0 | FM61: 0 | FN61: 0 | FO61: 0 | FP61: 0 | FQ61: 0 | FR61: ='Master Map'!$AC$33+'Master Map'!$AC$31+'Master Map'!$AC$29+'Master Map'!$AC$27+'Master Map'!$AC$25+'Master Map'!$AC$23 -> 248.6278 | FS61: 0 | FT61: 0 | FU61: 0 | FV61: 0 | FW61: 0 | FX61: ='Master Map'!$AB$21+'Master Map'!$Z$19+'Master Map'!$X$17+'Master Map'!$U$15 -> 71.9217 | FY61: ='Master Map'!$S$13+'Master Map'!$Q$11 -> 30.6476 | FZ61: 0 | GA61: 0 | GB61: 0 | GC61: 0 | GD61: 0 | GE61: 0 | GF61: 0
A62: Euroa | B62: M064 | D62: 669.0396 | M62: ='Master Map'!$AQ$66+'Master Map'!$AQ$54+'Master Map'!$AQ$43+'Master Map'!$AQ$36+'Master Map'!$AE$34+'Master Map'!$AI$34+'Master Map'!$AM$34 -> 92.9531 | N62: ='Master Map'!$AJ$75+'Master Map'!$AL$73+'Master Map'!$AN$71+'Master Map'!$AP$71 -> 27.9937 | O62: ='Master Map'!$AF$56+'Master Map'!$AF$58+'Master Map'!$AF$60+'Master Map'!$AF$62+'Master Map'!$AF$64+'Master Map'!$AF$66+'Master Map'!$AH$68+'Master Map'!$AJ$72 -> 30.2683 | P62: ='Master Map'!$Y$44+'Master Map'!$Y$46+'Master Map'!$AA$48+'Master Map'!$AB$50+'Master Map'!$AC$52+'Master Map'!$AE$53+'Master Map'!$AF$54 -> 16.0967 | V62: ='Master Map'!$AC$33+'Master Map'!$AC$31+'Master Map'!$AC$29+'Master Map'!$AC$27+'Master Map'!$AC$25+'Master Map'!$AC$23 -> 248.6278 | AI62: ='Master Map'!$N$61 -> 143.9 | AK62: =+'Master Map'!$Q$50+'Master Map'!$Q$43+'Master Map'!$T$41 -> 58 | AL62: =+'Asset Groups'!$K$106 -> 51.2 | AP62: 331.59317 | AQ62: 0 | AR62: 0 | AS62: 0 | AT62: 0 | AV62: 0 | AW62: 0 | AX62: 0 | AY62: 0 | AZ62: 0 | BA62: 0 | BB62: 0 | BC62: 0 | BD62: 0 | BE62: 0 | BF62: 0 | BG62: 0 | BH62: 0 | BI62: 0 | BJ62: 0 | BK62: 0 | BL62: 0 | BM62: ='Master Map'!$AD$21+'Master Map'!$AF$19+'Master Map'!$AH$17+'Master Map'!$AJ$15+'Master Map'!$AL$13+'Master Map'!$AN$11+'Master Map'!$AP$9+'Master Map'!$AR$7 -> 268.3692 | BN62: 0 | BO62: 0 | BP62: 0 | BQ62: 0 | BR62: 0 | BS62: ='Master Map'!$AT$1 -> 63.22397 | BT62: 0 | BU62: 0 | BV62: 0 | CB62: 487.0576 | CC62: ='Master Map'!$BE$68+'Master Map'!$BH$68+'Master Map'!$BJ$68+'Master Map'!$BL$68+'Master Map'!$BN$68+'Master Map'!$AY$68+'Master Map'!$BB$68 -> 64.7151 | CD62: =+'Master Map'!$AW$68+'Master Map'!$AU$70 -> 62.0923 | CE62: 0 | CF62: 0 | CH62: 0 | CI62: 0 | CJ62: ='Master Map'!$AR$72 -> 18.6693 | CK62: =+'Master Map'!$AQ$66+'Master Map'!$AQ$54+'Master Map'!$AQ$43+'Master Map'!$AQ$36+'Master Map'!$AM$34+'Master Map'!$AI$34+'Master Map'!$AE$34 -> 92.9531 | CL62: 0 | CM62: 0 | CN62: 0 | CO62: 0 | CP62: 0 | CQ62: 0 | CR62: 0 | CS62: 0 | CT62: ='Master Map'!$AC$33+'Master Map'!$AC$31+'Master Map'!$AC$29+'Master Map'!$AC$27+'Master Map'!$AC$25+'Master Map'!$AC$23 -> 248.6278 | CU62: 0 | CV62: 0 | CW62: 0 | CX62: 0 | CY62: 0 | CZ62: 0 | DA62: 0 | DB62: 0 | DC62: 0 | DD62: 0 | DE62: 0 | DF62: 0 | DG62: 0 | DH62: 0 | DN62: 369.5746 | DO62: 0 | DP62: 0 | DQ62: 0 | DR62: 0 | DT62: 0 | DU62: 0 | DV62: 0 | DW62: ='Master Map'!$AQ$66+'Master Map'!$AQ$54+'Master Map'!$AQ$43+'Master Map'!$AQ$36+'Master Map'!$AM$34+'Master Map'!$AI$34+'Master Map'!$AE$34 -> 92.9531 | DX62: ='Master Map'!$AJ$75+'Master Map'!$AL$73+'Master Map'!$AN$71+'Master Map'!$AP$71 -> 27.9937 | DY62: 0 | DZ62: 0 | EA62: 0 | EB62: 0 | EC62: 0 | ED62: 0 | EE62: 0 | EF62: ='Master Map'!$AC$33+'Master Map'!$AC$31+'Master Map'!$AC$29+'Master Map'!$AC$27+'Master Map'!$AC$25+'Master Map'!$AC$23 -> 248.6278 | EG62: 0 | EH62: 0 | EI62: 0 | EJ62: 0 | EK62: 0 | EL62: 0 | EM62: 0 | EN62: 0 | EO62: 0 | EP62: 0 | EQ62: 0 | ER62: 0 | ES62: 0 | ET62: 0 | EZ62: 341.5809 | FA62: 0 | FB62: 0 | FC62: 0 | FD62: 0 | FF62: 0 | FG62: 0 | FH62: 0 | FI62: =+'Master Map'!$AQ$66+'Master Map'!$AQ$54+'Master Map'!$AQ$43+'Master Map'!$AQ$36+'Master Map'!$AM$34+'Master Map'!$AI$34+'Master Map'!$AE$34 -> 92.9531 | FJ62: 0 | FK62: 0 | FL62: 0 | FM62: 0 | FN62: 0 | FO62: 0 | FP62: 0 | FQ62: 0 | FR62: ='Master Map'!$AC$33+'Master Map'!$AC$31+'Master Map'!$AC$29+'Master Map'!$AC$27+'Master Map'!$AC$25+'Master Map'!$AC$23 -> 248.6278 | FS62: 0 | FT62: 0 | FU62: 0 | FV62: 0 | FW62: 0 | FX62: 0 | FY62: 0 | FZ62: 0 | GA62: 0 | GB62: 0 | GC62: 0 | GD62: 0 | GE62: 0 | GF62: 0
A63: Geelong | B63: M065 | D63: 147.4932 | R63: ='Master Map'!$U$64 -> 3.5932 | AI63: ='Master Map'!$N$61 -> 143.9 | AK63: 0 | AP63: 815.17789 | AQ63: 0 | AR63: 0 | AS63: 0 | AT63: 0 | AV63: 0 | AW63: 0 | AX63: 0 | AY63: 0 | AZ63: 0 | BA63: 0 | BD63: =+'Master Map'!$U$64 -> 3.5932 | BE63: ='Master Map'!$Q$40 -> 12.3162 | BF63: ='Master Map'!$K$40+'Master Map'!$M$40+'Master Map'!$O$40 -> 40.3542 | BG63: 0 | BH63: ='Master Map'!$AC$23+'Master Map'!$AC$25+'Master Map'!$AC$27+'Master Map'!$AC$29 -> 194.09202 | BI63: ='Master Map'!$J$37+'Master Map'!$J$33 -> 39.9597 | BJ63: 0 | BK63: 0 | BL63: =+'Master Map'!$AA$30+'Master Map'!$W$30+'Master Map'!$T$30+'Master Map'!$P$30+'Master Map'!$L$30 -> 84.0694 | BM63: ='Master Map'!$AD$21+'Master Map'!$AF$19+'Master Map'!$AH$17+'Master Map'!$AJ$15+'Master Map'!$AL$13+'Master Map'!$AN$11+'Master Map'!$AP$9+'Master Map'!$AR$7 -> 268.3692 | BN63: 0 | BO63: 0 | BP63: 0 | BQ63: 0 | BR63: 0 | BS63: ='Master Map'!$AT$1 -> 63.22397 | BT63: 0 | BU63: 0 | BV63: 0 | BW63: =+'Master Map'!$Q$50+'Master Map'!$Q$43+'Master Map'!$T$41 -> 58 | BX63: =+'Asset Groups'!$K$106 -> 51.2 | CB63: 270.2717 | CC63: ='Master Map'!$BE$68+'Master Map'!$BH$68+'Master Map'!$BJ$68+'Master Map'!$BL$68+'Master Map'!$BN$68+'Master Map'!$AY$68+'Master Map'!$BB$68 -> 64.7151 | CD63: =+'Master Map'!$AW$68+'Master Map'!$AU$70 -> 62.0923 | CE63: 0 | CF63: 0 | CH63: 0 | CI63: 0 | CJ63: ='Master Map'!$AR$72 -> 18.6693 | CK63: 0 | CL63: ='Master Map'!$AJ$75+'Master Map'!$AL$73+'Master Map'!$AN$71+'Master Map'!$AP$71 -> 27.9937 | CM63: ='Master Map'!$AF$56+'Master Map'!$AF$58+'Master Map'!$AF$60+'Master Map'!$AF$62+'Master Map'!$AF$64+'Master Map'!$AF$66+'Master Map'!$AH$68+'Master Map'!$AJ$72 -> 30.2683 | CN63: =+'Master Map'!$V$43+'Master Map'!$U$44+'Master Map'!$U$47+'Master Map'!$U$49+'Master Map'!$U$51+$CN$16 -> 30.8078 | CO63: =+'Master Map'!$U$53+'Master Map'!$U$55 -> 17.5975 | CP63: =+'Master Map'!$U$57+'Master Map'!$U$59+'Master Map'!$U$61+'Master Map'!$U$64 -> 18.1277 | CQ63: 0 | CR63: 0 | CS63: 0 | CT63: 0 | CU63: 0 | CV63: 0 | CW63: 0 | CX63: 0 | CY63: 0 | CZ63: 0 | DA63: 0 | DB63: 0 | DC63: 0 | DD63: 0 | DE63: 0 | DF63: 0 | DG63: 0 | DH63: 0 | DN63: 96.8013 | DO63: 0 | DP63: 0 | DQ63: 0 | DR63: 0 | DT63: 0 | DU63: 0 | DV63: 0 | DW63: 0 | DX63: 0 | DY63: ='Master Map'!$AF$56+'Master Map'!$AF$58+'Master Map'!$AF$60+'Master Map'!$AF$62+'Master Map'!$AF$64+'Master Map'!$AF$66+'Master Map'!$AH$68+'Master Map'!$AJ$72 -> 30.2683 | DZ63: =+$DZ$34 -> 30.8078 | EA63: =+'Master Map'!$U$53+'Master Map'!$U$55 -> 17.5975 | EB63: =+'Master Map'!$U$57+'Master Map'!$U$59+'Master Map'!$U$61+'Master Map'!$U$64 -> 18.1277 | EC63: 0 | ED63: 0 | EE63: 0 | EF63: 0 | EG63: 0 | EH63: 0 | EI63: 0 | EJ63: 0 | EK63: 0 | EL63: 0 | EM63: 0 | EN63: 0 | EO63: 0 | EP63: 0 | EQ63: 0 | ER63: 0 | ES63: 0 | ET63: 0 | EZ63: 124.795 | FA63: 0 | FB63: 0 | FC63: 0 | FD63: 0 | FF63: 0 | FG63: 0 | FH63: 0 | FI63: 0 | FJ63: ='Master Map'!$AJ$75+'Master Map'!$AL$73+'Master Map'!$AN$71+'Master Map'!$AP$71 -> 27.9937 | FK63: ='Master Map'!$AF$56+'Master Map'!$AF$58+'Master Map'!$AF$60+'Master Map'!$AF$62+'Master Map'!$AF$64+'Master Map'!$AF$66+'Master Map'!$AH$68+'Master Map'!$AJ$72 -> 30.2683 | FL63: =+$FL$34 -> 30.8078 | FM63: =+'Master Map'!$U$55+'Master Map'!$U$53 -> 17.5975 | FN63: =+'Master Map'!$U$57+'Master Map'!$U$59+'Master Map'!$U$61+'Master Map'!$U$64 -> 18.1277 | FO63: 0 | FP63: 0 | FQ63: 0 | FR63: 0 | FS63: 0 | FT63: 0 | FU63: 0 | FV63: 0 | FW63: 0 | FX63: 0 | FY63: 0 | FZ63: 0 | GA63: 0 | GB63: 0 | GC63: 0 | GD63: 0 | GE63: 0 | GF63: 0
A64: Kilmore | B64: M066 | D64: 449.5184 | P64: ='Master Map'!$Y$44+'Master Map'!$Y$46+'Master Map'!$AA$48+'Master Map'!$AB$50+'Master Map'!$AC$52+'Master Map'!$AE$53+'Master Map'!$AF$54 -> 16.0967 | S64: ='Master Map'!$Q$40+'Master Map'!$S$40+'Master Map'!$U$40+'Master Map'!$X$42 -> 26.245 | T64: ='Master Map'!$O$40+'Master Map'!$M$40+'Master Map'!$K$40 -> 40.3542 | W64: ='Master Map'!$J$37+'Master Map'!$J$33 -> 39.9597 | Z64: =+'Master Map'!$L$30+'Master Map'!$T$30+'Master Map'!$P$30+'Master Map'!W30 -> 73.7628 | AI64: ='Master Map'!$N$61 -> 143.9 | AK64: =+'Master Map'!$Q$50+'Master Map'!$Q$43+'Master Map'!$T$41 -> 58 | AL64: =+'Asset Groups'!$K$106 -> 51.2 | AP64: 535.99179 | AQ64: 0 | AR64: 0 | AS64: 0 | AT64: 0 | AV64: 0 | AW64: 0 | AX64: 0 | AY64: 0 | AZ64: 0 | BA64: 0 | BB64: 0 | BC64: 0 | BD64: 0 | BE64: 0 | BF64: 0 | BG64: 0 | BH64: ='Master Map'!$AC$23+'Master Map'!$AC$25+'Master Map'!$AC$27+'Master Map'!$AC$29 -> 194.09202 | BI64: 0 | BJ64: 0 | BK64: 0 | BL64: ='Master Map'!$AA$30 -> 10.3066 | BM64: ='Master Map'!$AD$21+'Master Map'!$AF$19+'Master Map'!$AH$17+'Master Map'!$AJ$15+'Master Map'!$AL$13+'Master Map'!$AN$11+'Master Map'!$AP$9+'Master Map'!$AR$7 -> 268.3692 | BN64: 0 | BO64: 0 | BP64: 0 | BQ64: 0 | BR64: 0 | BS64: ='Master Map'!$AT$1 -> 63.22397 | BT64: 0 | BU64: 0 | BV64: 0 | CB64: 303.27218 | CC64: ='Master Map'!$BE$68+'Master Map'!$BH$68+'Master Map'!$BJ$68+'Master Map'!$BL$68+'Master Map'!$BN$68+'Master Map'!$AY$68+'Master Map'!$BB$68 -> 64.7151 | CD64: =+'Master Map'!$AW$68+'Master Map'!$AU$70 -> 62.0923 | CE64: 0 | CF64: 0 | CH64: 0 | CI64: 0 | CJ64: ='Master Map'!$AR$72 -> 18.6693 | CK64: =+'Master Map'!$AQ$66+'Master Map'!$AQ$54+'Master Map'!$AQ$43+'Master Map'!$AQ$36+'Master Map'!$AM$34+'Master Map'!$AI$34+'Master Map'!$AE$34 -> 92.9531 | CL64: 0 | CM64: 0 | CN64: 0 | CO64: 0 | CP64: 0 | CQ64: 0 | CR64: 0 | CS64: 0 | CT64: ='Master Map'!$AC$33+'Master Map'!$AC$31 -> 54.53578 | CU64: 0 | CV64: 0 | CW64: 0 | CX64: ='Master Map'!$AA$30 -> 10.3066 | CY64: 0 | CZ64: 0 | DA64: 0 | DB64: 0 | DC64: 0 | DD64: 0 | DE64: 0 | DF64: 0 | DG64: 0 | DH64: 0 | DN64: 185.78918 | DO64: 0 | DP64: 0 | DQ64: 0 | DR64: 0 | DT64: 0 | DU64: 0 | DV64: 0 | DW64: ='Master Map'!$AQ$66+'Master Map'!$AQ$54+'Master Map'!$AQ$43+'Master Map'!$AQ$36+'Master Map'!$AM$34+'Master Map'!$AI$34+'Master Map'!$AE$34 -> 92.9531 | DX64: ='Master Map'!$AJ$75+'Master Map'!$AL$73+'Master Map'!$AN$71+'Master Map'!$AP$71 -> 27.9937 | DY64: 0 | DZ64: 0 | EA64: 0 | EB64: 0 | EC64: 0 | ED64: 0 | EE64: 0 | EF64: ='Master Map'!$AC$33+'Master Map'!$AC$31 -> 54.53578 | EG64: 0 | EH64: 0 | EI64: 0 | EJ64: ='Master Map'!$AA$30 -> 10.3066 | EK64: 0 | EL64: 0 | EM64: 0 | EN64: 0 | EO64: 0 | EP64: 0 | EQ64: 0 | ER64: 0 | ES64: 0 | ET64: 0 | EZ64: 157.79548 | FA64: 0 | FB64: 0 | FC64: 0 | FD64: 0 | FF64: 0 | FG64: 0 | FH64: 0 | FI64: =+'Master Map'!$AQ$66+'Master Map'!$AQ$54+'Master Map'!$AQ$43+'Master Map'!$AQ$36+'Master Map'!$AM$34+'Master Map'!$AI$34+'Master Map'!$AE$34 -> 92.9531 | FJ64: 0 | FK64: 0 | FL64: 0 | FM64: 0 | FN64: 0 | FO64: 0 | FP64: 0 | FQ64: 0 | FR64: ='Master Map'!$AC$33+'Master Map'!$AC$31 -> 54.53578 | FS64: 0 | FT64: 0 | FU64: 0 | FV64: ='Master Map'!$AA$30 -> 10.3066 | FW64: 0 | FX64: 0 | FY64: 0 | FZ64: 0 | GA64: 0 | GB64: 0 | GC64: 0 | GD64: 0 | GE64: 0 | GF64: 0
A65: Kyabram | B65: M067 | D65: 740.9613 | M65: ='Master Map'!$AQ$66+'Master Map'!$AQ$54+'Master Map'!$AQ$43+'Master Map'!$AQ$36+'Master Map'!$AE$34+'Master Map'!$AI$34+'Master Map'!$AM$34 -> 92.9531 | N65: ='Master Map'!$AJ$75+'Master Map'!$AL$73+'Master Map'!$AN$71+'Master Map'!$AP$71 -> 27.9937 | O65: ='Master Map'!$AF$56+'Master Map'!$AF$58+'Master Map'!$AF$60+'Master Map'!$AF$62+'Master Map'!$AF$64+'Master Map'!$AF$66+'Master Map'!$AH$68+'Master Map'!$AJ$72 -> 30.2683 | P65: ='Master Map'!$Y$44+'Master Map'!$Y$46+'Master Map'!$AA$48+'Master Map'!$AB$50+'Master Map'!$AC$52+'Master Map'!$AE$53+'Master Map'!$AF$54 -> 16.0967 | V65: ='Master Map'!$AC$33+'Master Map'!$AC$31+'Master Map'!$AC$29+'Master Map'!$AC$27+'Master Map'!$AC$25+'Master Map'!$AC$23 -> 248.6278 | AB65: ='Master Map'!$AB$21+'Master Map'!$Z$19+'Master Map'!$X$17+'Master Map'!$U$15 -> 71.9217 | AI65: ='Master Map'!$N$61 -> 143.9 | AK65: =+'Master Map'!$Q$50+'Master Map'!$Q$43+'Master Map'!$T$41 -> 58 | AL65: =+'Asset Groups'!$K$106 -> 51.2 | AP65: 403.51487 | AQ65: 0 | AR65: 0 | AS65: 0 | AT65: 0 | AV65: 0 | AW65: 0 | AX65: 0 | AY65: 0 | AZ65: 0 | BA65: 0 | BB65: 0 | BC65: 0 | BD65: 0 | BE65: 0 | BF65: 0 | BG65: 0 | BH65: 0 | BI65: 0 | BJ65: 0 | BK65: 0 | BL65: 0 | BM65: ='Master Map'!$AD$21+'Master Map'!$AF$19+'Master Map'!$AH$17+'Master Map'!$AJ$15+'Master Map'!$AL$13+'Master Map'!$AN$11+'Master Map'!$AP$9+'Master Map'!$AR$7 -> 268.3692 | BN65: ='Master Map'!$AB$21+'Master Map'!$Z$19+'Master Map'!$X$17+'Master Map'!$U$15 -> 71.9217 | BO65: 0 | BP65: 0 | BQ65: 0 | BR65: 0 | BS65: ='Master Map'!$AT$1 -> 63.22397 | BT65: 0 | BU65: 0 | BV65: 0 | CB65: 558.9793 | CC65: ='Master Map'!$BE$68+'Master Map'!$BH$68+'Master Map'!$BJ$68+'Master Map'!$BL$68+'Master Map'!$BN$68+'Master Map'!$AY$68+'Master Map'!$BB$68 -> 64.7151 | CD65: =+'Master Map'!$AW$68+'Master Map'!$AU$70 -> 62.0923 | CE65: 0 | CF65: 0 | CH65: 0 | CI65: 0 | CJ65: ='Master Map'!$AR$72 -> 18.6693 | CK65: =+'Master Map'!$AQ$66+'Master Map'!$AQ$54+'Master Map'!$AQ$43+'Master Map'!$AQ$36+'Master Map'!$AM$34+'Master Map'!$AI$34+'Master Map'!$AE$34 -> 92.9531 | CL65: 0 | CM65: 0 | CN65: 0 | CO65: 0 | CP65: 0 | CQ65: 0 | CR65: 0 | CS65: 0 | CT65: ='Master Map'!$AC$33+'Master Map'!$AC$31+'Master Map'!$AC$29+'Master Map'!$AC$27+'Master Map'!$AC$25+'Master Map'!$AC$23 -> 248.6278 | CU65: 0 | CV65: 0 | CW65: 0 | CX65: 0 | CY65: 0 | CZ65: ='Master Map'!$AB$21+'Master Map'!$Z$19+'Master Map'!$X$17+'Master Map'!$U$15 -> 71.9217 | DA65: 0 | DB65: 0 | DC65: 0 | DD65: 0 | DE65: 0 | DF65: 0 | DG65: 0 | DH65: 0 | DN65: 441.4963 | DO65: 0 | DP65: 0 | DQ65: 0 | DR65: 0 | DT65: 0 | DU65: 0 | DV65: 0 | DW65: ='Master Map'!$AQ$66+'Master Map'!$AQ$54+'Master Map'!$AQ$43+'Master Map'!$AQ$36+'Master Map'!$AM$34+'Master Map'!$AI$34+'Master Map'!$AE$34 -> 92.9531 | DX65: ='Master Map'!$AJ$75+'Master Map'!$AL$73+'Master Map'!$AN$71+'Master Map'!$AP$71 -> 27.9937 | DY65: 0 | DZ65: 0 | EA65: 0 | EB65: 0 | EC65: 0 | ED65: 0 | EE65: 0 | EF65: ='Master Map'!$AC$33+'Master Map'!$AC$31+'Master Map'!$AC$29+'Master Map'!$AC$27+'Master Map'!$AC$25+'Master Map'!$AC$23 -> 248.6278 | EG65: 0 | EH65: 0 | EI65: 0 | EJ65: 0 | EK65: 0 | EL65: ='Master Map'!$AB$21+'Master Map'!$Z$19+'Master Map'!$X$17+'Master Map'!$U$15 -> 71.9217 | EM65: 0 | EN65: 0 | EO65: 0 | EP65: 0 | EQ65: 0 | ER65: 0 | ES65: 0 | ET65: 0 | EZ65: 413.5026 | FA65: 0 | FB65: 0 | FC65: 0 | FD65: 0 | FF65: 0 | FG65: 0 | FH65: 0 | FI65: =+'Master Map'!$AQ$66+'Master Map'!$AQ$54+'Master Map'!$AQ$43+'Master Map'!$AQ$36+'Master Map'!$AM$34+'Master Map'!$AI$34+'Master Map'!$AE$34 -> 92.9531 | FJ65: 0 | FK65: 0 | FL65: 0 | FM65: 0 | FN65: 0 | FO65: 0 | FP65: 0 | FQ65: 0 | FR65: ='Master Map'!$AC$33+'Master Map'!$AC$31+'Master Map'!$AC$29+'Master Map'!$AC$27+'Master Map'!$AC$25+'Master Map'!$AC$23 -> 248.6278 | FS65: 0 | FT65: 0 | FU65: 0 | FV65: 0 | FW65: 0 | FX65: ='Master Map'!$AB$21+'Master Map'!$Z$19+'Master Map'!$X$17+'Master Map'!$U$15 -> 71.9217 | FY65: 0 | FZ65: 0 | GA65: 0 | GB65: 0 | GC65: 0 | GD65: 0 | GE65: 0 | GF65: 0
A66: Kyneton | B66: M068 | D66: 356.3929 | S66: ='Master Map'!$Q$40 -> 12.3162 | T66: ='Master Map'!$O$40+'Master Map'!$M$40+'Master Map'!$K$40 -> 40.3542 | W66: ='Master Map'!$J$37+'Master Map'!$J$33 -> 39.9597 | Z66: =+'Master Map'!$L$30 -> 24.5628 | AI66: ='Master Map'!$N$61 -> 143.9 | AK66: =+'Master Map'!$Q$50+'Master Map'!$Q$43 -> 44.1 | AL66: =+'Asset Groups'!$K$106 -> 51.2 | AP66: 585.19179 | AQ66: 0 | AR66: 0 | AS66: 0 | AT66: 0 | AV66: 0 | AW66: 0 | AX66: 0 | AY66: 0 | AZ66: 0 | BA66: 0 | BB66: 0 | BC66: 0 | BD66: 0 | BE66: 0 | BF66: 0 | BG66: 0 | BH66: ='Master Map'!$AC$23+'Master Map'!$AC$25+'Master Map'!$AC$27+'Master Map'!$AC$29 -> 194.09202 | BI66: 0 | BJ66: 0 | BK66: 0 | BL66: =BL134+'Master Map'!$P$30 -> 59.5066 | BM66: ='Master Map'!$AD$21+'Master Map'!$AF$19+'Master Map'!$AH$17+'Master Map'!$AJ$15+'Master Map'!$AL$13+'Master Map'!$AN$11+'Master Map'!$AP$9+'Master Map'!$AR$7 -> 268.3692 | BN66: 0 | BO66: 0 | BP66: 0 | BQ66: 0 | BR66: 0 | BS66: ='Master Map'!$AT$1 -> 63.22397 | BT66: 0 | BU66: 0 | BV66: 0 | CB66: 352.47218 | CC66: ='Master Map'!$BE$68+'Master Map'!$BH$68+'Master Map'!$BJ$68+'Master Map'!$BL$68+'Master Map'!$BN$68+'Master Map'!$AY$68+'Master Map'!$BB$68 -> 64.7151 | CD66: =+'Master Map'!$AW$68+'Master Map'!$AU$70 -> 62.0923 | CE66: 0 | CF66: 0 | CH66: 0 | CI66: 0 | CJ66: ='Master Map'!$AR$72 -> 18.6693 | CK66: =+'Master Map'!$AQ$66+'Master Map'!$AQ$54+'Master Map'!$AQ$43+'Master Map'!$AQ$36+'Master Map'!$AM$34+'Master Map'!$AI$34+'Master Map'!$AE$34 -> 92.9531 | CL66: 0 | CM66: 0 | CN66: 0 | CO66: 0 | CP66: 0 | CQ66: 0 | CR66: 0 | CS66: 0 | CT66: ='Master Map'!$AC$33+'Master Map'!$AC$31 -> 54.53578 | CU66: 0 | CV66: 0 | CW66: 0 | CX66: =+'Master Map'!$P$30+'Master Map'!$T$30+'Master Map'!$W$30+'Master Map'!$AA$30 -> 59.5066 | CY66: 0 | CZ66: 0 | DA66: 0 | DB66: 0 | DC66: 0 | DD66: 0 | DE66: 0 | DF66: 0 | DG66: 0 | DH66: 0 | DN66: 177.4867 | DO66: 0 | DP66: 0 | DQ66: 0 | DR66: 0 | DT66: 0 | DU66: 0 | DV66: 0 | DW66: 0 | DX66: 0 | DY66: ='Master Map'!$AF$56+'Master Map'!$AF$58+'Master Map'!$AF$60+'Master Map'!$AF$62+'Master Map'!$AF$64+'Master Map'!$AF$66+'Master Map'!$AH$68+'Master Map'!$AJ$72 -> 30.2683 | DZ66: ='Master Map'!$AF$54+'Master Map'!$AE$53+'Master Map'!$AC$52+'Master Map'!$AB$50+'Master Map'!$AA$48+'Master Map'!$Y$46+'Master Map'!$Y$44 -> 16.0967 | EA66: 0 | EB66: 0 | EC66: ='Master Map'!$Q$40+'Master Map'!$S$40+'Master Map'!$U$40+'Master Map'!$X$42 -> 26.245 | ED66: ='Master Map'!$O$40+'Master Map'!$M$40+'Master Map'!$K$40 -> 40.3542 | EE66: 0 | EF66: 0 | EG66: ='Master Map'!$J$37+'Master Map'!$J$33 -> 39.9597 | EH66: 0 | EI66: 0 | EJ66: ='Master Map'!$L$30 -> 24.5628 | EK66: 0 | EL66: 0 | EM66: 0 | EN66: 0 | EO66: 0 | EP66: 0 | EQ66: 0 | ER66: 0 | ES66: 0 | ET66: 0 | EZ66: 206.99548 | FA66: 0 | FB66: 0 | FC66: 0 | FD66: 0 | FF66: 0 | FG66: 0 | FH66: 0 | FI66: =+'Master Map'!$AQ$66+'Master Map'!$AQ$54+'Master Map'!$AQ$43+'Master Map'!$AQ$36+'Master Map'!$AM$34+'Master Map'!$AI$34+'Master Map'!$AE$34 -> 92.9531 | FJ66: 0 | FK66: 0 | FL66: 0 | FM66: 0 | FN66: 0 | FO66: 0 | FP66: 0 | FQ66: 0 | FR66: ='Master Map'!$AC$33+'Master Map'!$AC$31 -> 54.53578 | FS66: 0 | FT66: 0 | FU66: 0 | FV66: =+'Master Map'!$AA$30+'Master Map'!$W$30+'Master Map'!$T$30+'Master Map'!$P$30 -> 59.5066 | FW66: 0 | FX66: 0 | FY66: 0 | FZ66: 0 | GA66: 0 | GB66: 0 | GC66: 0 | GD66: 0 | GE66: 0 | GF66: 0
A67: Lara | B67: M069 | D67: 144.8245 | R67: =+'Master Map'!$U$61 -> 0.9245 | AI67: ='Master Map'!$N$61 -> 143.9 | AK67: 0 | AP67: 826.43799 | AQ67: 0 | AR67: 0 | AS67: 0 | AT67: 0 | AV67: 0 | AW67: 0 | AX67: 0 | AY67: 0 | AZ67: 0 | BA67: 0 | BD67: =+'Master Map'!$U$61 -> 0.9245 | BE67: ='Master Map'!$Q$40+'Master Map'!$S$40+'Master Map'!$U$40+'Master Map'!$X$42 -> 26.245 | BF67: ='Master Map'!$K$40+'Master Map'!$M$40+'Master Map'!$O$40 -> 40.3542 | BG67: 0 | BH67: ='Master Map'!$AC$23+'Master Map'!$AC$25+'Master Map'!$AC$27+'Master Map'!$AC$29 -> 194.09202 | BI67: ='Master Map'!$J$37+'Master Map'!$J$33 -> 39.9597 | BJ67: 0 | BK67: 0 | BL67: =+'Master Map'!$AA$30+'Master Map'!$W$30+'Master Map'!$T$30+'Master Map'!$P$30+'Master Map'!$L$30 -> 84.0694 | BM67: ='Master Map'!$AD$21+'Master Map'!$AF$19+'Master Map'!$AH$17+'Master Map'!$AJ$15+'Master Map'!$AL$13+'Master Map'!$AN$11+'Master Map'!$AP$9+'Master Map'!$AR$7 -> 268.3692 | BN67: 0 | BO67: 0 | BP67: 0 | BQ67: 0 | BR67: 0 | BS67: ='Master Map'!$AT$1 -> 63.22397 | BT67: 0 | BU67: 0 | BV67: 0 | BW67: =+'Master Map'!$Q$50+'Master Map'!$Q$43+'Master Map'!$T$41 -> 58 | BX67: =+'Asset Groups'!$K$106 -> 51.2 | CB67: 265.754 | CC67: ='Master Map'!$BE$68+'Master Map'!$BH$68+'Master Map'!$BJ$68+'Master Map'!$BL$68+'Master Map'!$BN$68+'Master Map'!$AY$68+'Master Map'!$BB$68 -> 64.7151 | CD67: =+'Master Map'!$AW$68+'Master Map'!$AU$70 -> 62.0923 | CE67: 0 | CF67: 0 | CH67: 0 | CI67: 0 | CJ67: ='Master Map'!$AR$72 -> 18.6693 | CK67: 0 | CL67: ='Master Map'!$AJ$75+'Master Map'!$AL$73+'Master Map'!$AN$71+'Master Map'!$AP$71 -> 27.9937 | CM67: ='Master Map'!$AF$56+'Master Map'!$AF$58+'Master Map'!$AF$60+'Master Map'!$AF$62+'Master Map'!$AF$64+'Master Map'!$AF$66+'Master Map'!$AH$68+'Master Map'!$AJ$72 -> 30.2683 | CN67: =+'Master Map'!$V$43+'Master Map'!$U$44+'Master Map'!$U$47+'Master Map'!$U$49+'Master Map'!$U$51+$CN$16 -> 30.8078 | CO67: =+'Master Map'!$U$53+'Master Map'!$U$55 -> 17.5975 | CP67: =+'Master Map'!$U$57+'Master Map'!$U$59 -> 13.61 | CQ67: 0 | CR67: 0 | CS67: 0 | CT67: 0 | CU67: 0 | CV67: 0 | CW67: 0 | CX67: 0 | CY67: 0 | CZ67: 0 | DA67: 0 | DB67: 0 | DC67: 0 | DD67: 0 | DE67: 0 | DF67: 0 | DG67: 0 | DH67: 0 | DN67: 92.2836 | DO67: 0 | DP67: 0 | DQ67: 0 | DR67: 0 | DT67: 0 | DU67: 0 | DV67: 0 | DW67: 0 | DX67: 0 | DY67: ='Master Map'!$AF$56+'Master Map'!$AF$58+'Master Map'!$AF$60+'Master Map'!$AF$62+'Master Map'!$AF$64+'Master Map'!$AF$66+'Master Map'!$AH$68+'Master Map'!$AJ$72 -> 30.2683 | DZ67: =+$DZ$34 -> 30.8078 | EA67: =+'Master Map'!$U$53+'Master Map'!$U$55 -> 17.5975 | EB67: =+'Master Map'!$U$57+'Master Map'!$U$59 -> 13.61 | EC67: 0 | ED67: 0 | EE67: 0 | EF67: 0 | EG67: 0 | EH67: 0 | EI67: 0 | EJ67: 0 | EK67: 0 | EL67: 0 | EM67: 0 | EN67: 0 | EO67: 0 | EP67: 0 | EQ67: 0 | ER67: 0 | ES67: 0 | ET67: 0 | EZ67: 120.2773 | FA67: 0 | FB67: 0 | FC67: 0 | FD67: 0 | FF67: 0 | FG67: 0 | FH67: 0 | FI67: 0 | FJ67: ='Master Map'!$AJ$75+'Master Map'!$AL$73+'Master Map'!$AN$71+'Master Map'!$AP$71 -> 27.9937 | FK67: ='Master Map'!$AF$56+'Master Map'!$AF$58+'Master Map'!$AF$60+'Master Map'!$AF$62+'Master Map'!$AF$64+'Master Map'!$AF$66+'Master Map'!$AH$68+'Master Map'!$AJ$72 -> 30.2683 | FL67: =+$FL$34 -> 30.8078 | FM67: =+'Master Map'!$U$55+'Master Map'!$U$53 -> 17.5975 | FN67: =+'Master Map'!$U$57+'Master Map'!$U$59 -> 13.61 | FO67: 0 | FP67: 0 | FQ67: 0 | FR67: 0 | FS67: 0 | FT67: 0 | FU67: 0 | FV67: 0 | FW67: 0 | FX67: 0 | FY67: 0 | FZ67: 0 | GA67: 0 | GB67: 0 | GC67: 0 | GD67: 0 | GE67: 0 | GF67: 0
A68: Longwarry | B68: M070 | D68: 301.6093 | J68: ='Master Map'!$AJ$77+'Master Map'!$AL$77+'Master Map'!$AN$77+'Master Map'!$AP$77+'Master Map'!$AR$77 -> 27.4535 | K68: ='Master Map'!$AT$77 -> 25.8908 | O68: ='Master Map'!$AF$56+'Master Map'!$AF$58+'Master Map'!$AF$60+'Master Map'!$AF$62+'Master Map'!$AF$64+'Master Map'!$AF$66+'Master Map'!$AH$68+'Master Map'!$AJ$72 -> 30.2683 | P68: ='Master Map'!$Y$44+'Master Map'!$Y$46+'Master Map'!$AA$48+'Master Map'!$AB$50+'Master Map'!$AC$52+'Master Map'!$AE$53+'Master Map'!$AF$54 -> 16.0967 | AI68: ='Master Map'!$N$61 -> 143.9 | AK68: =+'Master Map'!$Q$50+'Master Map'!$Q$43+'Master Map'!$T$41 -> 58 | AP68: 754.51207 | AQ68: 0 | AR68: 0 | AS68: 0 | AT68: 0 | AV68: ='Master Map'!$AJ$77+'Master Map'!$AL$77+'Master Map'!$AN$77+'Master Map'!$AP$77+'Master Map'!$AR$77 -> 27.4535 | AW68: ='Master Map'!$AT$77 -> 25.8908 | AX68: 0 | AY68: =+$AY$37+'Master Map'!$AQ$66 -> 92.9531 | AZ68: ='Master Map'!$AJ$75+'Master Map'!$AL$73+'Master Map'!$AN$71+'Master Map'!$AP$71 -> 27.9937 | BA68: 0 | BB68: 0 | BC68: 0 | BD68: 0 | BE68: 0 | BF68: 0 | BG68: 0 | BH68: ='Master Map'!$AC$23+'Master Map'!$AC$25+'Master Map'!$AC$27+'Master Map'!$AC$29+'Master Map'!$AC$31+'Master Map'!$AC$33 -> 248.6278 | BI68: 0 | BJ68: 0 | BK68: 0 | BL68: 0 | BM68: ='Master Map'!$AD$21+'Master Map'!$AF$19+'Master Map'!$AH$17+'Master Map'!$AJ$15+'Master Map'!$AL$13+'Master Map'!$AN$11+'Master Map'!$AP$9+'Master Map'!$AR$7 -> 268.3692 | BN68: 0 | BO68: 0 | BP68: 0 | BQ68: 0 | BR68: 0 | BS68: ='Master Map'!$AT$1 -> 63.22397 | BT68: 0 | BU68: 0 | BV68: 0 | CB68: 145.07286 | CC68: ='Master Map'!$BE$68+'Master Map'!$BH$68+'Master Map'!$BJ$68+'Master Map'!$BL$68+'Master Map'!$BN$68 -> 57.6704 | CD68: 0 | CE68: 0 | CF68: ='Master Map'!$BE$71+'Master Map'!$BI$72+'Master Map'!$BJ$74+'Master Map'!$BJ$76 -> 20.33256 | CH68: 0 | CI68: ='Master Map'!$AV$77+'Master Map'!$AX$77+'Master Map'!$AZ$77+'Master Map'!$BB$77+'Master Map'!$BD$77+'Master Map'!$BF$77+'Master Map'!$BH$77 -> 67.0699 | CJ68: 0 | CK68: 0 | CL68: 0 | CM68: 0 | CN68: 0 | CO68: 0 | CP68: 0 | CQ68: 0 | CR68: 0 | CS68: 0 | CT68: 0 | CU68: 0 | CV68: 0 | CW68: 0 | CX68: 0 | CY68: 0 | CZ68: 0 | DA68: 0 | DB68: 0 | DC68: 0 | DD68: 0 | DE68: 0 | DF68: 0 | DG68: 0 | DH68: 0 | DN68: 53.3443 | DO68: 0 | DP68: 0 | DQ68: 0 | DR68: 0 | DT68: ='Master Map'!$AJ$77+'Master Map'!$AL$77+'Master Map'!$AN$77+'Master Map'!$AP$77+'Master Map'!$AR$77 -> 27.4535 | DU68: ='Master Map'!$AT$77 -> 25.8908 | DV68: 0 | DW68: 0 | DX68: 0 | DY68: 0 | DZ68: 0 | EA68: 0 | EB68: 0 | EC68: 0 | ED68: 0 | EE68: 0 | EF68: 0 | EG68: 0 | EH68: 0 | EI68: 0 | EJ68: 0 | EK68: 0 | EL68: 0 | EM68: 0 | EN68: 0 | EO68: 0 | EP68: 0 | EQ68: 0 | ER68: 0 | ES68: 0 | ET68: 0 | EZ68: 81.338 | FA68: 0 | FB68: 0 | FC68: 0 | FD68: 0 | FF68: ='Master Map'!$AJ$77+'Master Map'!$AL$77+'Master Map'!$AN$77+'Master Map'!$AP$77+'Master Map'!$AR$77 -> 27.4535 | FG68: ='Master Map'!$AT$77 -> 25.8908 | FH68: 0 | FI68: 0 | FJ68: ='Master Map'!$AJ$75+'Master Map'!$AL$73+'Master Map'!$AN$71+'Master Map'!$AP$71 -> 27.9937 | FK68: 0 | FL68: 0 | FM68: 0 | FN68: 0 | FO68: 0 | FP68: 0 | FQ68: 0 | FR68: 0 | FS68: 0 | FT68: 0 | FU68: 0 | FV68: 0 | FW68: 0 | FX68: 0 | FY68: 0 | FZ68: 0 | GA68: 0 | GB68: 0 | GC68: 0 | GD68: 0 | GE68: 0 | GF68: 0
A69: Morwell (Loy Yang) | B69: M071 | D69: 375.76369 | H69: =H73+'Master Map'!$BI$72 -> 7.08449 | J69: ='Master Map'!$AJ$77+'Master Map'!$AL$77+'Master Map'!$AN$77+'Master Map'!$AP$77+'Master Map'!$AR$77 -> 27.4535 | K69: ='Master Map'!$AT$77+'Master Map'!$AV$77+'Master Map'!$AX$77+'Master Map'!$AZ$77+'Master Map'!$BB$77+'Master Map'!$BD$77+'Master Map'!$BF$77+'Master Map'!$BH$77 -> 92.9607 | O69: ='Master Map'!$AF$56+'Master Map'!$AF$58+'Master Map'!$AF$60+'Master Map'!$AF$62+'Master Map'!$AF$64+'Master Map'!$AF$66+'Master Map'!$AH$68+'Master Map'!$AJ$72 -> 30.2683 | P69: ='Master Map'!$Y$44+'Master Map'!$Y$46+'Master Map'!$AA$48+'Master Map'!$AB$50+'Master Map'!$AC$52+'Master Map'!$AE$53+'Master Map'!$AF$54 -> 16.0967 | AI69: ='Master Map'!$N$61 -> 143.9 | AK69: =+'Master Map'!$Q$50+'Master Map'!$Q$43+'Master Map'!$T$41 -> 58 | AP69: 774.22844 | AQ69: =+'Master Map'!$AY$68+'Master Map'!$BB$68 -> 7.0447 | AR69: ='Master Map'!$AU$70+'Master Map'!$AW$68 -> 62.0923 | AS69: 0 | AT69: ='Master Map'!$BE$71 -> 13.24807 | AV69: 0 | AW69: 0 | AX69: ='Master Map'!$AR$72 -> 18.6693 | AY69: =+$AY$37+'Master Map'!$AQ$66 -> 92.9531 | AZ69: 0 | BA69: 0 | BB69: 0 | BC69: 0 | BD69: 0 | BE69: 0 | BF69: 0 | BG69: 0 | BH69: ='Master Map'!$AC$23+'Master Map'!$AC$25+'Master Map'!$AC$27+'Master Map'!$AC$29+'Master Map'!$AC$31+'Master Map'!$AC$33 -> 248.6278 | BI69: 0 | BJ69: 0 | BK69: 0 | BL69: 0 | BM69: ='Master Map'!$AD$21+'Master Map'!$AF$19+'Master Map'!$AH$17+'Master Map'!$AJ$15+'Master Map'!$AL$13+'Master Map'!$AN$11+'Master Map'!$AP$9+'Master Map'!$AR$7 -> 268.3692 | BN69: 0 | BO69: 0 | BP69: 0 | BQ69: 0 | BR69: 0 | BS69: ='Master Map'!$AT$1 -> 63.22397 | BT69: 0 | BU69: 0 | BV69: 0 | CB69: 70.91847 | CC69: ='Master Map'!$BE$68+'Master Map'!$BH$68+'Master Map'!$BJ$68+'Master Map'!$BL$68+'Master Map'!$BN$68 -> 57.6704 | CD69: 0 | CE69: 0 | CF69: ='Master Map'!$BE$71 -> 13.24807 | CH69: 0 | CI69: 0 | CJ69: 0 | CK69: 0 | CL69: 0 | CM69: 0 | CN69: 0 | CO69: 0 | CP69: 0 | CQ69: 0 | CR69: 0 | CS69: 0 | CT69: 0 | CU69: 0 | CV69: 0 | CW69: 0 | CX69: 0 | CY69: 0 | CZ69: 0 | DA69: 0 | DB69: 0 | DC69: 0 | DD69: 0 | DE69: 0 | DF69: 0 | DG69: 0 | DH69: 0 | DN69: 127.49869 | DO69: 0 | DP69: 0 | DQ69: 0 | DR69: =DR73+'Master Map'!$BI$72 -> 7.08449 | DT69: ='Master Map'!$AJ$77+'Master Map'!$AL$77+'Master Map'!$AN$77+'Master Map'!$AP$77+'Master Map'!$AR$77 -> 27.4535 | DU69: ='Master Map'!$AT$77+'Master Map'!$AV$77+'Master Map'!$AX$77+'Master Map'!$AZ$77+'Master Map'!$BB$77+'Master Map'!$BD$77+'Master Map'!$BF$77+'Master Map'!$BH$77 -> 92.9607 | DV69: 0 | DW69: 0 | DX69: 0 | DY69: 0 | DZ69: 0 | EA69: 0 | EB69: 0 | EC69: 0 | ED69: 0 | EE69: 0 | EF69: 0 | EG69: 0 | EH69: 0 | EI69: 0 | EJ69: 0 | EK69: 0 | EL69: 0 | EM69: 0 | EN69: 0 | EO69: 0 | EP69: 0 | EQ69: 0 | ER69: 0 | ES69: 0 | ET69: 0 | EZ69: 101.05437 | FA69: ='Master Map'!$AY$68+'Master Map'!$BB$68 -> 7.0447 | FB69: ='Master Map'!$AU$70+'Master Map'!$AW$68 -> 62.0923 | FC69: 0 | FD69: ='Master Map'!$BE$71 -> 13.24807 | FF69: 0 | FG69: 0 | FH69: ='Master Map'!$AR$72 -> 18.6693 | FI69: 0 | FJ69: 0 | FK69: 0 | FL69: 0 | FM69: 0 | FN69: 0 | FO69: 0 | FP69: 0 | FQ69: 0 | FR69: 0 | FS69: 0 | FT69: 0 | FU69: 0 | FV69: 0 | FW69: 0 | FX69: 0 | FY69: 0 | FZ69: 0 | GA69: 0 | GB69: 0 | GC69: 0 | GD69: 0 | GE69: 0 | GF69: 0
A70: Maryborough | B70: M073 | D70: 375.9206 | S70: ='Master Map'!$Q$40 -> 12.3162 | T70: ='Master Map'!$O$40+'Master Map'!$M$40+'Master Map'!$K$40 -> 40.3542 | W70: ='Master Map'!$J$37+'Master Map'!$J$33 -> 39.9597 | X70: ='Master Map'!$K$28 -> 12.7237 | Y70: ='Master Map'!$H$26 -> 31.3668 | AI70: ='Master Map'!$N$61 -> 143.9 | AK70: =+'Master Map'!$Q$50+'Master Map'!$Q$43 -> 44.1 | AL70: =+'Asset Groups'!$K$106 -> 51.2 | AP70: 653.84509 | AQ70: 0 | AR70: 0 | AS70: 0 | AT70: 0 | AV70: 0 | AW70: 0 | AX70: 0 | AY70: 0 | AZ70: 0 | BA70: 0 | BB70: 0 | BC70: 0 | BD70: 0 | BE70: 0 | BF70: 0 | BG70: 0 | BH70: ='Master Map'!$AC$23+'Master Map'!$AC$25+'Master Map'!$AC$27+'Master Map'!$AC$29 -> 194.09202 | BI70: 0 | BJ70: ='Master Map'!$K$28 -> 12.7237 | BK70: ='Master Map'!$H$26 -> 31.3668 | BL70: =+'Master Map'!$AA$30+'Master Map'!$W$30+'Master Map'!$T$30+'Master Map'!$P$30+'Master Map'!$L$30 -> 84.0694 | BM70: ='Master Map'!$AD$21+'Master Map'!$AF$19+'Master Map'!$AH$17+'Master Map'!$AJ$15+'Master Map'!$AL$13+'Master Map'!$AN$11+'Master Map'!$AP$9+'Master Map'!$AR$7 -> 268.3692 | BN70: 0 | BO70: 0 | BP70: 0 | BQ70: 0 | BR70: 0 | BS70: ='Master Map'!$AT$1 -> 63.22397 | BT70: 0 | BU70: 0 | BV70: 0 | CB70: 421.12548 | CC70: ='Master Map'!$BE$68+'Master Map'!$BH$68+'Master Map'!$BJ$68+'Master Map'!$BL$68+'Master Map'!$BN$68+'Master Map'!$AY$68+'Master Map'!$BB$68 -> 64.7151 | CD70: =+'Master Map'!$AW$68+'Master Map'!$AU$70 -> 62.0923 | CE70: 0 | CF70: 0 | CH70: 0 | CI70: 0 | CJ70: ='Master Map'!$AR$72 -> 18.6693 | CK70: =+'Master Map'!$AQ$66+'Master Map'!$AQ$54+'Master Map'!$AQ$43+'Master Map'!$AQ$36+'Master Map'!$AM$34+'Master Map'!$AI$34+'Master Map'!$AE$34 -> 92.9531 | CO70: 0 | CP70: 0 | CS70: 0 | CT70: ='Master Map'!$AC$33+'Master Map'!$AC$31 -> 54.53578 | CV70: =+'Master Map'!$K$28 -> 12.7237 | CW70: =+'Master Map'!$H$26 -> 31.3668 | CX70: =+'Master Map'!$AA$30+'Master Map'!$W$30+'Master Map'!$T$30+'Master Map'!$P$30+'Master Map'!$L$30 -> 84.0694 | CY70: 0 | CZ70: 0 | DA70: 0 | DB70: 0 | DD70: 0 | DE70: 0 | DF70: 0 | DG70: 0 | DH70: 0 | DN70: 197.0144 | DO70: 0 | DP70: 0 | DQ70: 0 | DR70: 0 | DT70: 0 | DU70: 0 | DV70: 0 | DW70: 0 | DX70: 0 | DY70: ='Master Map'!$AF$56+'Master Map'!$AF$58+'Master Map'!$AF$60+'Master Map'!$AF$62+'Master Map'!$AF$64+'Master Map'!$AF$66+'Master Map'!$AH$68+'Master Map'!$AJ$72 -> 30.2683 | DZ70: ='Master Map'!$AF$54+'Master Map'!$AE$53+'Master Map'!$AC$52+'Master Map'!$AB$50+'Master Map'!$AA$48+'Master Map'!$Y$46+'Master Map'!$Y$44 -> 16.0967 | EA70: 0 | EB70: 0 | EC70: ='Master Map'!$Q$40+'Master Map'!$S$40+'Master Map'!$U$40+'Master Map'!$X$42 -> 26.245 | ED70: ='Master Map'!$O$40+'Master Map'!$M$40+'Master Map'!$K$40 -> 40.3542 | EE70: 0 | EF70: 0 | EG70: ='Master Map'!$J$37+'Master Map'!$J$33 -> 39.9597 | EH70: ='Master Map'!$K$28 -> 12.7237 | EI70: ='Master Map'!$H$26 -> 31.3668 | EJ70: 0 | EK70: 0 | EL70: 0 | EM70: 0 | EN70: 0 | EO70: 0 | EP70: 0 | EQ70: 0 | ER70: 0 | ES70: 0 | ET70: 0 | EZ70: 225.0081 | FA70: 0 | FB70: 0 | FC70: 0 | FD70: 0 | FF70: 0 | FG70: 0 | FH70: 0 | FI70: 0 | FJ70: ='Master Map'!$AJ$75+'Master Map'!$AL$73+'Master Map'!$AN$71+'Master Map'!$AP$71 -> 27.9937 | FK70: ='Master Map'!$AF$56+'Master Map'!$AF$58+'Master Map'!$AF$60+'Master Map'!$AF$62+'Master Map'!$AF$64+'Master Map'!$AF$66+'Master Map'!$AH$68+'Master Map'!$AJ$72 -> 30.2683 | FL70: ='Master Map'!$AF$54+'Master Map'!$AE$53+'Master Map'!$AC$52+'Master Map'!$AB$50+'Master Map'!$AA$48+'Master Map'!$Y$46+'Master Map'!$Y$44 -> 16.0967 | FM70: 0 | FN70: 0 | FO70: ='Master Map'!$Q$40+'Master Map'!$S$40+'Master Map'!$U$40+'Master Map'!$X$42 -> 26.245 | FP70: ='Master Map'!$O$40+'Master Map'!$M$40+'Master Map'!$K$40 -> 40.3542 | FQ70: 0 | FR70: 0 | FS70: ='Master Map'!$J$37+'Master Map'!$J$33 -> 39.9597 | FT70: ='Master Map'!$K$28 -> 12.7237 | FU70: ='Master Map'!$H$26 -> 31.3668 | FV70: 0 | FW70: 0 | FX70: 0 | FY70: 0 | FZ70: 0 | GA70: 0 | GB70: 0 | GC70: 0 | GD70: 0 | GE70: 0 | GF70: 0
A71: Merrigum | B71: M074 | D71: 730.2174 | M71: ='Master Map'!$AQ$66+'Master Map'!$AQ$54+'Master Map'!$AQ$43+'Master Map'!$AQ$36+'Master Map'!$AE$34+'Master Map'!$AI$34+'Master Map'!$AM$34 -> 92.9531 | N71: ='Master Map'!$AJ$75+'Master Map'!$AL$73+'Master Map'!$AN$71+'Master Map'!$AP$71 -> 27.9937 | O71: ='Master Map'!$AF$56+'Master Map'!$AF$58+'Master Map'!$AF$60+'Master Map'!$AF$62+'Master Map'!$AF$64+'Master Map'!$AF$66+'Master Map'!$AH$68+'Master Map'!$AJ$72 -> 30.2683 | P71: ='Master Map'!$Y$44+'Master Map'!$Y$46+'Master Map'!$AA$48+'Master Map'!$AB$50+'Master Map'!$AC$52+'Master Map'!$AE$53+'Master Map'!$AF$54 -> 16.0967 | V71: ='Master Map'!$AC$33+'Master Map'!$AC$31+'Master Map'!$AC$29+'Master Map'!$AC$27+'Master Map'!$AC$25+'Master Map'!$AC$23 -> 248.6278 | AB71: ='Master Map'!$AB$21+'Master Map'!$Z$19+'Master Map'!$X$17 -> 61.1778 | AI71: ='Master Map'!$N$61 -> 143.9 | AK71: =+'Master Map'!$Q$50+'Master Map'!$Q$43+'Master Map'!$T$41 -> 58 | AL71: =+'Asset Groups'!$K$106 -> 51.2 | AP71: 392.77097 | AQ71: 0 | AR71: 0 | AS71: 0 | AT71: 0 | AV71: 0 | AW71: 0 | AX71: 0 | AY71: 0 | AZ71: 0 | BA71: 0 | BB71: 0 | BC71: 0 | BD71: 0 | BE71: 0 | BF71: 0 | BG71: 0 | BH71: 0 | BI71: 0 | BJ71: 0 | BK71: 0 | BL71: 0 | BM71: ='Master Map'!$AD$21+'Master Map'!$AF$19+'Master Map'!$AH$17+'Master Map'!$AJ$15+'Master Map'!$AL$13+'Master Map'!$AN$11+'Master Map'!$AP$9+'Master Map'!$AR$7 -> 268.3692 | BN71: ='Master Map'!$AB$21+'Master Map'!$Z$19+'Master Map'!$X$17 -> 61.1778 | BO71: 0 | BP71: 0 | BQ71: 0 | BR71: 0 | BS71: ='Master Map'!$AT$1 -> 63.22397 | BT71: 0 | BU71: 0 | BV71: 0 | CB71: 548.2354 | CC71: ='Master Map'!$BE$68+'Master Map'!$BH$68+'Master Map'!$BJ$68+'Master Map'!$BL$68+'Master Map'!$BN$68+'Master Map'!$AY$68+'Master Map'!$BB$68 -> 64.7151 | CD71: =+'Master Map'!$AW$68+'Master Map'!$AU$70 -> 62.0923 | CE71: 0 | CF71: 0 | CH71: 0 | CI71: 0 | CJ71: ='Master Map'!$AR$72 -> 18.6693 | CK71: =+'Master Map'!$AQ$66+'Master Map'!$AQ$54+'Master Map'!$AQ$43+'Master Map'!$AQ$36+'Master Map'!$AM$34+'Master Map'!$AI$34+'Master Map'!$AE$34 -> 92.9531 | CL71: 0 | CM71: 0 | CN71: 0 | CO71: 0 | CP71: 0 | CQ71: 0 | CR71: 0 | CS71: 0 | CT71: ='Master Map'!$AC$33+'Master Map'!$AC$31+'Master Map'!$AC$29+'Master Map'!$AC$27+'Master Map'!$AC$25+'Master Map'!$AC$23 -> 248.6278 | CU71: 0 | CV71: 0 | CW71: 0 | CX71: 0 | CY71: 0 | CZ71: ='Master Map'!$AB$21+'Master Map'!$Z$19+'Master Map'!$X$17 -> 61.1778 | DA71: 0 | DB71: 0 | DC71: 0 | DD71: 0 | DE71: 0 | DF71: 0 | DG71: 0 | DH71: 0 | DN71: 430.7524 | DO71: 0 | DP71: 0 | DQ71: 0 | DR71: 0 | DT71: 0 | DU71: 0 | DV71: 0 | DW71: ='Master Map'!$AQ$66+'Master Map'!$AQ$54+'Master Map'!$AQ$43+'Master Map'!$AQ$36+'Master Map'!$AM$34+'Master Map'!$AI$34+'Master Map'!$AE$34 -> 92.9531 | DX71: ='Master Map'!$AJ$75+'Master Map'!$AL$73+'Master Map'!$AN$71+'Master Map'!$AP$71 -> 27.9937 | DY71: 0 | DZ71: 0 | EA71: 0 | EB71: 0 | EC71: 0 | ED71: 0 | EE71: 0 | EF71: ='Master Map'!$AC$33+'Master Map'!$AC$31+'Master Map'!$AC$29+'Master Map'!$AC$27+'Master Map'!$AC$25+'Master Map'!$AC$23 -> 248.6278 | EG71: 0 | EH71: 0 | EI71: 0 | EJ71: 0 | EK71: 0 | EL71: ='Master Map'!$AB$21+'Master Map'!$Z$19+'Master Map'!$X$17 -> 61.1778 | EM71: 0 | EN71: 0 | EO71: 0 | EP71: 0 | EQ71: 0 | ER71: 0 | ES71: 0 | ET71: 0 | EZ71: 402.7587 | FA71: 0 | FB71: 0 | FC71: 0 | FD71: 0 | FF71: 0 | FG71: 0 | FH71: 0 | FI71: =+'Master Map'!$AQ$66+'Master Map'!$AQ$54+'Master Map'!$AQ$43+'Master Map'!$AQ$36+'Master Map'!$AM$34+'Master Map'!$AI$34+'Master Map'!$AE$34 -> 92.9531 | FJ71: 0 | FK71: 0 | FL71: 0 | FM71: 0 | FN71: 0 | FO71: 0 | FP71: 0 | FQ71: 0 | FR71: ='Master Map'!$AC$33+'Master Map'!$AC$31+'Master Map'!$AC$29+'Master Map'!$AC$27+'Master Map'!$AC$25+'Master Map'!$AC$23 -> 248.6278 | FS71: 0 | FT71: 0 | FU71: 0 | FV71: 0 | FW71: 0 | FX71: ='Master Map'!$AB$21+'Master Map'!$Z$19+'Master Map'!$X$17 -> 61.1778 | FY71: 0 | FZ71: 0 | GA71: 0 | GB71: 0 | GC71: 0 | GD71: 0 | GE71: 0 | GF71: 0
A72: Moe | B72: M075 | D72: 348.842 | J72: ='Master Map'!$AJ$77+'Master Map'!$AL$77+'Master Map'!$AN$77+'Master Map'!$AP$77+'Master Map'!$AR$77 -> 27.4535 | K72: ='Master Map'!$AT$77+'Master Map'!$AV$77+'Master Map'!$AX$77+'Master Map'!$AZ$77+'Master Map'!$BB$77+'Master Map'!$BD$77+'Master Map'!$BF$77 -> 73.1235 | O72: ='Master Map'!$AF$56+'Master Map'!$AF$58+'Master Map'!$AF$60+'Master Map'!$AF$62+'Master Map'!$AF$64+'Master Map'!$AF$66+'Master Map'!$AH$68+'Master Map'!$AJ$72 -> 30.2683 | P72: ='Master Map'!$Y$44+'Master Map'!$Y$46+'Master Map'!$AA$48+'Master Map'!$AB$50+'Master Map'!$AC$52+'Master Map'!$AE$53+'Master Map'!$AF$54 -> 16.0967 | AI72: ='Master Map'!$N$61 -> 143.9 | AK72: =+'Master Map'!$Q$50+'Master Map'!$Q$43+'Master Map'!$T$41 -> 58 | AP72: 801.15013 | AQ72: =+'Master Map'!$AY$68+'Master Map'!$BB$68 -> 7.0447 | AR72: ='Master Map'!$AU$70+'Master Map'!$AW$68 -> 62.0923 | AS72: 0 | AT72: ='Master Map'!$BE$71+'Master Map'!$BI$72+'Master Map'!$BJ$74+'Master Map'!$BJ$76 -> 20.33256 | AV72: 0 | AW72: ='Master Map'!$BH$77 -> 19.8372 | AX72: ='Master Map'!$AR$72 -> 18.6693 | AY72: =+$AY$37+'Master Map'!$AQ$66 -> 92.9531 | AZ72: 0 | BA72: 0 | BB72: 0 | BC72: 0 | BD72: 0 | BE72: 0 | BF72: 0 | BG72: 0 | BH72: ='Master Map'!$AC$23+'Master Map'!$AC$25+'Master Map'!$AC$27+'Master Map'!$AC$29+'Master Map'!$AC$31+'Master Map'!$AC$33 -> 248.6278 | BI72: 0 | BJ72: 0 | BK72: 0 | BL72: 0 | BM72: ='Master Map'!$AD$21+'Master Map'!$AF$19+'Master Map'!$AH$17+'Master Map'!$AJ$15+'Master Map'!$AL$13+'Master Map'!$AN$11+'Master Map'!$AP$9+'Master Map'!$AR$7 -> 268.3692 | BN72: 0 | BO72: 0 | BP72: 0 | BQ72: 0 | BR72: 0 | BS72: ='Master Map'!$AT$1 -> 63.22397 | BT72: 0 | BU72: 0 | BV72: 0 | CB72: 97.84016 | CC72: ='Master Map'!$BE$68+'Master Map'!$BH$68+'Master Map'!$BJ$68+'Master Map'!$BL$68+'Master Map'!$BN$68 -> 57.6704 | CD72: 0 | CE72: 0 | CF72: ='Master Map'!$BE$71+'Master Map'!$BI$72+'Master Map'!$BJ$74+'Master Map'!$BJ$76 -> 20.33256 | CH72: 0 | CI72: ='Master Map'!$BH$77 -> 19.8372 | CJ72: 0 | CK72: 0 | CL72: 0 | CM72: 0 | CN72: 0 | CO72: 0 | CP72: 0 | CQ72: 0 | CR72: 0 | CS72: 0 | CT72: 0 | CU72: 0 | CV72: 0 | CW72: 0 | CX72: 0 | CY72: 0 | CZ72: 0 | DA72: 0 | DB72: 0 | DC72: 0 | DD72: 0 | DE72: 0 | DF72: 0 | DG72: 0 | DH72: 0 | DN72: 100.577 | DO72: 0 | DP72: 0 | DQ72: 0 | DR72: 0 | DT72: ='Master Map'!$AJ$77+'Master Map'!$AL$77+'Master Map'!$AN$77+'Master Map'!$AP$77+'Master Map'!$AR$77 -> 27.4535 | DU72: ='Master Map'!$AT$77+'Master Map'!$AV$77+'Master Map'!$AX$77+'Master Map'!$AZ$77+'Master Map'!$BB$77+'Master Map'!$BD$77+'Master Map'!$BF$77 -> 73.1235 | DV72: 0 | DW72: 0 | DX72: 0 | DY72: 0 | DZ72: 0 | EA72: 0 | EB72: 0 | EC72: 0 | ED72: 0 | EE72: 0 | EF72: 0 | EG72: 0 | EH72: 0 | EI72: 0 | EJ72: 0 | EK72: 0 | EL72: 0 | EM72: 0 | EN72: 0 | EO72: 0 | EP72: 0 | EQ72: 0 | ER72: 0 | ES72: 0 | ET72: 0 | EZ72: 127.97606 | FA72: ='Master Map'!$AY$68+'Master Map'!$BB$68 -> 7.0447 | FB72: ='Master Map'!$AU$70+'Master Map'!$AW$68 -> 62.0923 | FC72: 0 | FD72: ='Master Map'!$BE$71+'Master Map'!$BI$72+'Master Map'!$BJ$74+'Master Map'!$BJ$76 -> 20.33256 | FF72: 0 | FG72: ='Master Map'!$BH$77 -> 19.8372 | FH72: ='Master Map'!$AR$72 -> 18.6693 | FI72: 0 | FJ72: 0 | FK72: 0 | FL72: 0 | FM72: 0 | FN72: 0 | FO72: 0 | FP72: 0 | FQ72: 0 | FR72: 0 | FS72: 0 | FT72: 0 | FU72: 0 | FV72: 0 | FW72: 0 | FX72: 0 | FY72: 0 | FZ72: 0 | GA72: 0 | GB72: 0 | GC72: 0 | GD72: 0 | GE72: 0 | GF72: 0
A73: Morwell (Porters Rd) | B73: M076 | D73: =SUM(E73:AN73) -> 373.86176 | H73: ='Master Map'!$BJ$76+'Master Map'!$BJ$74 -> 5.18256 | J73: ='Master Map'!$AJ$77+'Master Map'!$AL$77+'Master Map'!$AN$77+'Master Map'!$AP$77+'Master Map'!$AR$77 -> 27.4535 | K73: ='Master Map'!$AT$77+'Master Map'!$AV$77+'Master Map'!$AX$77+'Master Map'!$AZ$77+'Master Map'!$BB$77+'Master Map'!$BD$77+'Master Map'!$BF$77+'Master Map'!$BH$77 -> 92.9607 | O73: ='Master Map'!$AF$56+'Master Map'!$AF$58+'Master Map'!$AF$60+'Master Map'!$AF$62+'Master Map'!$AF$64+'Master Map'!$AF$66+'Master Map'!$AH$68+'Master Map'!$AJ$72 -> 30.2683 | P73: ='Master Map'!$Y$44+'Master Map'!$Y$46+'Master Map'!$AA$48+'Master Map'!$AB$50+'Master Map'!$AC$52+'Master Map'!$AE$53+'Master Map'!$AF$54 -> 16.0967 | AI73: ='Master Map'!$N$61 -> 143.9 | AK73: =+'Master Map'!$Q$50+'Master Map'!$Q$43+'Master Map'!$T$41 -> 58 | AP73: =SUM(AQ73:BZ73) -> 776.13037 | AQ73: =+'Master Map'!$AY$68+'Master Map'!$BB$68 -> 7.0447 | AR73: ='Master Map'!$AU$70+'Master Map'!$AW$68 -> 62.0923 | AS73: 0 | AT73: ='Master Map'!$BE$71+'Master Map'!$BI$72 -> 15.15 | AV73: 0 | AW73: 0 | AX73: ='Master Map'!$AR$72 -> 18.6693 | AY73: =+$AY$37+'Master Map'!$AQ$66 -> 92.9531 | AZ73: 0 | BA73: 0 | BB73: 0 | BC73: 0 | BD73: 0 | BE73: 0 | BF73: 0 | BG73: 0 | BH73: ='Master Map'!$AC$23+'Master Map'!$AC$25+'Master Map'!$AC$27+'Master Map'!$AC$29+'Master Map'!$AC$31+'Master Map'!$AC$33 -> 248.6278 | BI73: 0 | BJ73: 0 | BK73: 0 | BL73: 0 | BM73: ='Master Map'!$AD$21+'Master Map'!$AF$19+'Master Map'!$AH$17+'Master Map'!$AJ$15+'Master Map'!$AL$13+'Master Map'!$AN$11+'Master Map'!$AP$9+'Master Map'!$AR$7 -> 268.3692 | BN73: 0 | BO73: 0 | BP73: 0 | BQ73: 0 | BR73: 0 | BS73: ='Master Map'!$AT$1 -> 63.22397 | BT73: 0 | BU73: 0 | BV73: 0 | CB73: 72.8204 | CC73: ='Master Map'!$BE$68+'Master Map'!$BH$68+'Master Map'!$BJ$68+'Master Map'!$BL$68+'Master Map'!$BN$68 -> 57.6704 | CD73: 0 | CE73: 0 | CF73: =CF69+'Master Map'!$BI$72 -> 15.15 | CH73: 0 | CI73: 0 | CJ73: 0 | CK73: 0 | CL73: 0 | CM73: 0 | CN73: 0 | CO73: 0 | CP73: 0 | CQ73: 0 | CR73: 0 | CS73: 0 | CT73: 0 | CU73: 0 | CV73: 0 | CW73: 0 | CX73: 0 | CY73: 0 | CZ73: 0 | DA73: 0 | DB73: 0 | DC73: 0 | DD73: 0 | DE73: 0 | DF73: 0 | DG73: 0 | DH73: 0 | DN73: =SUM(DO73:EX73) -> 125.59676 | DO73: 0 | DP73: 0 | DQ73: 0 | DR73: ='Master Map'!$BJ$76+'Master Map'!$BJ$74 -> 5.18256 | DT73: ='Master Map'!$AJ$77+'Master Map'!$AL$77+'Master Map'!$AN$77+'Master Map'!$AP$77+'Master Map'!$AR$77 -> 27.4535 | DU73: ='Master Map'!$AT$77+'Master Map'!$AV$77+'Master Map'!$AX$77+'Master Map'!$AZ$77+'Master Map'!$BB$77+'Master Map'!$BD$77+'Master Map'!$BF$77+'Master Map'!$BH$77 -> 92.9607 | DV73: 0 | DW73: 0 | DX73: 0 | DY73: 0 | DZ73: 0 | EA73: 0 | EB73: 0 | EC73: 0 | ED73: 0 | EE73: 0 | EF73: 0 | EG73: 0 | EH73: 0 | EI73: 0 | EJ73: 0 | EK73: 0 | EL73: 0 | EM73: 0 | EN73: 0 | EO73: 0 | EP73: 0 | EQ73: 0 | ER73: 0 | ES73: 0 | ET73: 0 | EZ73: =SUM(FA73:GJ73) -> 102.9563 | FA73: ='Master Map'!$AY$68+'Master Map'!$BB$68 -> 7.0447 | FB73: ='Master Map'!$AU$70+'Master Map'!$AW$68 -> 62.0923 | FC73: 0 | FD73: ='Master Map'!$BE$71+'Master Map'!$BI$72 -> 15.15 | FF73: 0 | FG73: 0 | FH73: ='Master Map'!$AR$72 -> 18.6693 | FI73: 0 | FJ73: 0 | FK73: 0 | FL73: 0 | FM73: 0 | FN73: 0 | FO73: 0 | FP73: 0 | FQ73: 0 | FR73: 0 | FS73: 0 | FT73: 0 | FU73: 0 | FV73: 0 | FW73: 0 | FX73: 0 | FY73: 0 | FZ73: 0 | GA73: 0 | GB73: 0 | GC73: 0 | GD73: 0 | GE73: 0 | GF73: 0
A74: Tallarook | B74: M077 | D74: 538.6526 | M74: ='Master Map'!$AQ$66+'Master Map'!$AQ$54+'Master Map'!$AQ$43+'Master Map'!$AQ$36+'Master Map'!$AE$34+'Master Map'!$AI$34+'Master Map'!$AM$34 -> 92.9531 | N74: ='Master Map'!$AJ$75+'Master Map'!$AL$73+'Master Map'!$AN$71+'Master Map'!$AP$71 -> 27.9937 | O74: ='Master Map'!$AF$56+'Master Map'!$AF$58+'Master Map'!$AF$60+'Master Map'!$AF$62+'Master Map'!$AF$64+'Master Map'!$AF$66+'Master Map'!$AH$68+'Master Map'!$AJ$72 -> 30.2683 | P74: ='Master Map'!$Y$44+'Master Map'!$Y$46+'Master Map'!$AA$48+'Master Map'!$AB$50+'Master Map'!$AC$52+'Master Map'!$AE$53+'Master Map'!$AF$54 -> 16.0967 | V74: =V56+'Master Map'!$AC$27 -> 118.2408 | AI74: ='Master Map'!$N$61 -> 143.9 | AK74: =+'Master Map'!$Q$50+'Master Map'!$Q$43+'Master Map'!$T$41 -> 58 | AL74: =+'Asset Groups'!$K$106 -> 51.2 | AP74: 461.98017 | AQ74: 0 | AR74: 0 | AS74: 0 | AT74: 0 | AV74: 0 | AW74: 0 | AX74: 0 | AY74: 0 | AZ74: 0 | BA74: 0 | BB74: 0 | BC74: 0 | BD74: 0 | BE74: 0 | BF74: 0 | BG74: 0 | BH74: ='Master Map'!$AC$23+'Master Map'!$AC$25 -> 130.387 | BI74: 0 | BJ74: 0 | BK74: 0 | BL74: 0 | BM74: ='Master Map'!$AD$21+'Master Map'!$AF$19+'Master Map'!$AH$17+'Master Map'!$AJ$15+'Master Map'!$AL$13+'Master Map'!$AN$11+'Master Map'!$AP$9+'Master Map'!$AR$7 -> 268.3692 | BN74: 0 | BO74: 0 | BP74: 0 | BQ74: 0 | BR74: 0 | BS74: ='Master Map'!$AT$1 -> 63.22397 | BT74: 0 | BU74: 0 | BV74: 0 | CB74: =SUM(CC74:DL74) -> 356.6706 | CC74: ='Master Map'!$BE$68+'Master Map'!$BH$68+'Master Map'!$BJ$68+'Master Map'!$BL$68+'Master Map'!$BN$68+'Master Map'!$AY$68+'Master Map'!$BB$68 -> 64.7151 | CD74: =+'Master Map'!$AW$68+'Master Map'!$AU$70 -> 62.0923 | CE74: 0 | CF74: 0 | CH74: 0 | CI74: 0 | CJ74: ='Master Map'!$AR$72 -> 18.6693 | CK74: =+'Master Map'!$AQ$66+'Master Map'!$AQ$54+'Master Map'!$AQ$43+'Master Map'!$AQ$36+'Master Map'!$AM$34+'Master Map'!$AI$34+'Master Map'!$AE$34 -> 92.9531 | CL74: 0 | CM74: 0 | CN74: 0 | CO74: 0 | CP74: 0 | CQ74: 0 | CR74: 0 | CS74: 0 | CT74: =CT56+'Master Map'!$AC$27 -> 118.2408 | CU74: 0 | CV74: 0 | CW74: 0 | CX74: 0 | CY74: 0 | CZ74: 0 | DA74: 0 | DB74: 0 | DC74: 0 | DD74: 0 | DE74: 0 | DF74: 0 | DG74: 0 | DH74: 0 | DN74: 239.1876 | DO74: 0 | DP74: 0 | DQ74: 0 | DR74: 0 | DT74: 0 | DU74: 0 | DV74: 0 | DW74: ='Master Map'!$AQ$66+'Master Map'!$AQ$54+'Master Map'!$AQ$43+'Master Map'!$AQ$36+'Master Map'!$AM$34+'Master Map'!$AI$34+'Master Map'!$AE$34 -> 92.9531 | DX74: ='Master Map'!$AJ$75+'Master Map'!$AL$73+'Master Map'!$AN$71+'Master Map'!$AP$71 -> 27.9937 | DY74: 0 | DZ74: 0 | EA74: 0 | EB74: 0 | EC74: 0 | ED74: 0 | EE74: 0 | EF74: =EF56+'Master Map'!$AC$27 -> 118.2408 | EG74: 0 | EH74: 0 | EI74: 0 | EJ74: 0 | EK74: 0 | EL74: 0 | EM74: 0 | EN74: 0 | EO74: 0 | EP74: 0 | EQ74: 0 | ER74: 0 | ES74: 0 | ET74: 0 | EZ74: 211.1939 | FA74: 0 | FB74: 0 | FC74: 0 | FD74: 0 | FF74: 0 | FG74: 0 | FH74: 0 | FI74: =+'Master Map'!$AQ$66+'Master Map'!$AQ$54+'Master Map'!$AQ$43+'Master Map'!$AQ$36+'Master Map'!$AM$34+'Master Map'!$AI$34+'Master Map'!$AE$34 -> 92.9531 | FJ74: 0 | FK74: 0 | FL74: 0 | FM74: 0 | FN74: 0 | FO74: 0 | FP74: 0 | FQ74: 0 | FR74: =FR56+'Master Map'!$AC$27 -> 118.2408 | FS74: 0 | FT74: 0 | FU74: 0 | FV74: 0 | FW74: 0 | FX74: 0 | FY74: 0 | FZ74: 0 | GA74: 0 | GB74: 0 | GC74: 0 | GD74: 0 | GE74: 0 | GF74: 0
A75: Rosedale | B75: M078 | D75: 388.0857 | E75: =E124+'Master Map'!$BJ$68 -> 31.0654 | F75: ='Master Map'!$AU$70+'Master Map'!$AW$68 -> 62.0923 | L75: ='Master Map'!$AR$72 -> 18.6693 | N75: ='Master Map'!$AJ$75+'Master Map'!$AL$73+'Master Map'!$AN$71+'Master Map'!$AP$71 -> 27.9937 | O75: ='Master Map'!$AF$56+'Master Map'!$AF$58+'Master Map'!$AF$60+'Master Map'!$AF$62+'Master Map'!$AF$64+'Master Map'!$AF$66+'Master Map'!$AH$68+'Master Map'!$AJ$72 -> 30.2683 | P75: ='Master Map'!$Y$44+'Master Map'!$Y$46+'Master Map'!$AA$48+'Master Map'!$AB$50+'Master Map'!$AC$52+'Master Map'!$AE$53+'Master Map'!$AF$54 -> 16.0967 | AI75: ='Master Map'!$N$61 -> 143.9 | AK75: =+'Master Map'!$Q$50+'Master Map'!$Q$43+'Master Map'!$T$41 -> 58 | AP75: 785.00107 | AQ75: =AQ124+'Master Map'!$BJ$68 -> 31.0654 | AR75: ='Master Map'!$AU$70+'Master Map'!$AW$68 -> 62.0923 | AS75: 0 | AT75: 0 | AV75: 0 | AW75: 0 | AX75: ='Master Map'!$AR$72 -> 18.6693 | AY75: =+$AY$37+'Master Map'!$AQ$66 -> 92.9531 | AZ75: 0 | BA75: 0 | BB75: 0 | BC75: 0 | BD75: 0 | BE75: 0 | BF75: 0 | BG75: 0 | BH75: ='Master Map'!$AC$23+'Master Map'!$AC$25+'Master Map'!$AC$27+'Master Map'!$AC$29+'Master Map'!$AC$31+'Master Map'!$AC$33 -> 248.6278 | BI75: 0 | BJ75: 0 | BK75: 0 | BL75: 0 | BM75: ='Master Map'!$AD$21+'Master Map'!$AF$19+'Master Map'!$AH$17+'Master Map'!$AJ$15+'Master Map'!$AL$13+'Master Map'!$AN$11+'Master Map'!$AP$9+'Master Map'!$AR$7 -> 268.3692 | BN75: 0 | BO75: 0 | BP75: 0 | BQ75: 0 | BR75: 0 | BS75: ='Master Map'!$AT$1 -> 63.22397 | BT75: 0 | BU75: 0 | BV75: 0 | CB75: 33.6497 | CC75: =CC76+'Master Map'!$BL$68 -> 33.6497 | CD75: 0 | CE75: 0 | CF75: 0 | CH75: 0 | CI75: 0 | CJ75: 0 | CK75: 0 | CL75: 0 | CM75: 0 | CN75: 0 | CO75: 0 | CP75: 0 | CQ75: 0 | CR75: 0 | CS75: 0 | CT75: 0 | CU75: 0 | CV75: 0 | CW75: 0 | CX75: 0 | CY75: 0 | CZ75: 0 | DA75: 0 | DB75: 0 | DC75: 0 | DD75: 0 | DE75: 0 | DF75: 0 | DG75: 0 | DH75: 0 | DN75: 139.8207 | DO75: =DO124+'Master Map'!$BJ$68 -> 31.0654 | DP75: ='Master Map'!$AU$70+'Master Map'!$AW$68 -> 62.0923 | DQ75: 0 | DR75: 0 | DT75: 0 | DU75: 0 | DV75: ='Master Map'!$AR$72 -> 18.6693 | DW75: 0 | DX75: ='Master Map'!$AJ$75+'Master Map'!$AL$73+'Master Map'!$AN$71+'Master Map'!$AP$71 -> 27.9937 | DY75: 0 | DZ75: 0 | EA75: 0 | EB75: 0 | EC75: 0 | ED75: 0 | EE75: 0 | EF75: 0 | EG75: 0 | EH75: 0 | EI75: 0 | EJ75: 0 | EK75: 0 | EL75: 0 | EM75: 0 | EN75: 0 | EO75: 0 | EP75: 0 | EQ75: 0 | ER75: 0 | ES75: 0 | ET75: 0 | EZ75: 111.827 | FA75: =FA124+'Master Map'!$BJ$68 -> 31.0654 | FB75: ='Master Map'!$AU$70+'Master Map'!$AW$68 -> 62.0923 | FC75: 0 | FD75: 0 | FF75: 0 | FG75: 0 | FH75: ='Master Map'!$AR$72 -> 18.6693 | FI75: 0 | FJ75: 0 | FK75: 0 | FL75: 0 | FM75: 0 | FN75: 0 | FO75: 0 | FP75: 0 | FQ75: 0 | FR75: 0 | FS75: 0 | FT75: 0 | FU75: 0 | FV75: 0 | FW75: 0 | FX75: 0 | FY75: 0 | FZ75: 0 | GA75: 0 | GB75: 0 | GC75: 0 | GD75: 0 | GE75: 0 | GF75: 0
A76: Sale | B76: M079 | D76: 412.8568 | E76: =E75+'Master Map'!$BL$68 -> 55.8365 | F76: ='Master Map'!$AU$70+'Master Map'!$AW$68 -> 62.0923 | L76: ='Master Map'!$AR$72 -> 18.6693 | N76: ='Master Map'!$AJ$75+'Master Map'!$AL$73+'Master Map'!$AN$71+'Master Map'!$AP$71 -> 27.9937 | O76: ='Master Map'!$AF$56+'Master Map'!$AF$58+'Master Map'!$AF$60+'Master Map'!$AF$62+'Master Map'!$AF$64+'Master Map'!$AF$66+'Master Map'!$AH$68+'Master Map'!$AJ$72 -> 30.2683 | P76: ='Master Map'!$Y$44+'Master Map'!$Y$46+'Master Map'!$AA$48+'Master Map'!$AB$50+'Master Map'!$AC$52+'Master Map'!$AE$53+'Master Map'!$AF$54 -> 16.0967 | AI76: ='Master Map'!$N$61 -> 143.9 | AK76: =+'Master Map'!$Q$50+'Master Map'!$Q$43+'Master Map'!$T$41 -> 58 | AP76: 809.77217 | AQ76: =AQ75+'Master Map'!$BL$68 -> 55.8365 | AR76: ='Master Map'!$AU$70+'Master Map'!$AW$68 -> 62.0923 | AS76: 0 | AT76: 0 | AV76: 0 | AW76: 0 | AX76: ='Master Map'!$AR$72 -> 18.6693 | AY76: =+$AY$37+'Master Map'!$AQ$66 -> 92.9531 | AZ76: 0 | BA76: 0 | BB76: 0 | BC76: 0 | BD76: 0 | BE76: 0 | BF76: 0 | BG76: 0 | BH76: ='Master Map'!$AC$23+'Master Map'!$AC$25+'Master Map'!$AC$27+'Master Map'!$AC$29+'Master Map'!$AC$31+'Master Map'!$AC$33 -> 248.6278 | BI76: 0 | BJ76: 0 | BK76: 0 | BL76: 0 | BM76: ='Master Map'!$AD$21+'Master Map'!$AF$19+'Master Map'!$AH$17+'Master Map'!$AJ$15+'Master Map'!$AL$13+'Master Map'!$AN$11+'Master Map'!$AP$9+'Master Map'!$AR$7 -> 268.3692 | BN76: 0 | BO76: 0 | BP76: 0 | BQ76: 0 | BR76: 0 | BS76: ='Master Map'!$AT$1 -> 63.22397 | BT76: 0 | BU76: 0 | BV76: 0 | CB76: 8.8786 | CC76: ='Master Map'!$BN$68 -> 8.8786 | CD76: 0 | CE76: 0 | CF76: 0 | CH76: 0 | CI76: 0 | CJ76: 0 | CK76: 0 | CL76: 0 | CM76: 0 | CN76: 0 | CO76: 0 | CP76: 0 | CQ76: 0 | CR76: 0 | CS76: 0 | CT76: 0 | CU76: 0 | CV76: 0 | CW76: 0 | CX76: 0 | CY76: 0 | CZ76: 0 | DA76: 0 | DB76: 0 | DC76: 0 | DD76: 0 | DE76: 0 | DF76: 0 | DG76: 0 | DH76: 0 | DN76: 164.5918 | DO76: =DO75+'Master Map'!$BL$68 -> 55.8365 | DP76: ='Master Map'!$AU$70+'Master Map'!$AW$68 -> 62.0923 | DQ76: 0 | DR76: 0 | DT76: 0 | DU76: 0 | DV76: ='Master Map'!$AR$72 -> 18.6693 | DW76: 0 | DX76: ='Master Map'!$AJ$75+'Master Map'!$AL$73+'Master Map'!$AN$71+'Master Map'!$AP$71 -> 27.9937 | DY76: 0 | DZ76: 0 | EA76: 0 | EB76: 0 | EC76: 0 | ED76: 0 | EE76: 0 | EF76: 0 | EG76: 0 | EH76: 0 | EI76: 0 | EJ76: 0 | EK76: 0 | EL76: 0 | EM76: 0 | EN76: 0 | EO76: 0 | EP76: 0 | EQ76: 0 | ER76: 0 | ES76: 0 | ET76: 0 | EZ76: 136.5981 | FA76: =FA75+'Master Map'!$BL$68 -> 55.8365 | FB76: ='Master Map'!$AU$70+'Master Map'!$AW$68 -> 62.0923 | FC76: 0 | FD76: 0 | FF76: 0 | FG76: 0 | FH76: ='Master Map'!$AR$72 -> 18.6693 | FI76: 0 | FJ76: 0 | FK76: 0 | FL76: 0 | FM76: 0 | FN76: 0 | FO76: 0 | FP76: 0 | FQ76: 0 | FR76: 0 | FS76: 0 | FT76: 0 | FU76: 0 | FV76: 0 | FW76: 0 | FX76: 0 | FY76: 0 | FZ76: 0 | GA76: 0 | GB76: 0 | GC76: 0 | GD76: 0 | GE76: 0 | GF76: 0
A77: Seymour | B77: M080 | D77: 553.8854 | M77: ='Master Map'!$AQ$66+'Master Map'!$AQ$54+'Master Map'!$AQ$43+'Master Map'!$AQ$36+'Master Map'!$AE$34+'Master Map'!$AI$34+'Master Map'!$AM$34 -> 92.9531 | N77: ='Master Map'!$AJ$75+'Master Map'!$AL$73+'Master Map'!$AN$71+'Master Map'!$AP$71 -> 27.9937 | O77: ='Master Map'!$AF$56+'Master Map'!$AF$58+'Master Map'!$AF$60+'Master Map'!$AF$62+'Master Map'!$AF$64+'Master Map'!$AF$66+'Master Map'!$AH$68+'Master Map'!$AJ$72 -> 30.2683 | P77: ='Master Map'!$Y$44+'Master Map'!$Y$46+'Master Map'!$AA$48+'Master Map'!$AB$50+'Master Map'!$AC$52+'Master Map'!$AE$53+'Master Map'!$AF$54 -> 16.0967 | V77: =V74+'Master Map'!$AC$25 -> 133.4736 | AI77: ='Master Map'!$N$61 -> 143.9 | AK77: =+'Master Map'!$Q$50+'Master Map'!$Q$43+'Master Map'!$T$41 -> 58 | AL77: =+'Asset Groups'!$K$106 -> 51.2 | AP77: 446.74737 | AQ77: 0 | AR77: 0 | AS77: 0 | AT77: 0 | AV77: 0 | AW77: 0 | AX77: 0 | AY77: 0 | AZ77: 0 | BA77: 0 | BB77: 0 | BC77: 0 | BD77: 0 | BE77: 0 | BF77: 0 | BG77: 0 | BH77: ='Master Map'!$AC$23 -> 115.1542 | BI77: 0 | BJ77: 0 | BK77: 0 | BL77: 0 | BM77: ='Master Map'!$AD$21+'Master Map'!$AF$19+'Master Map'!$AH$17+'Master Map'!$AJ$15+'Master Map'!$AL$13+'Master Map'!$AN$11+'Master Map'!$AP$9+'Master Map'!$AR$7 -> 268.3692 | BN77: 0 | BO77: 0 | BP77: 0 | BQ77: 0 | BR77: 0 | BS77: ='Master Map'!$AT$1 -> 63.22397 | BT77: 0 | BU77: 0 | BV77: 0 | CB77: 371.9034 | CC77: ='Master Map'!$BE$68+'Master Map'!$BH$68+'Master Map'!$BJ$68+'Master Map'!$BL$68+'Master Map'!$BN$68+'Master Map'!$AY$68+'Master Map'!$BB$68 -> 64.7151 | CD77: =+'Master Map'!$AW$68+'Master Map'!$AU$70 -> 62.0923 | CE77: 0 | CF77: 0 | CH77: 0 | CI77: 0 | CJ77: ='Master Map'!$AR$72 -> 18.6693 | CK77: =+'Master Map'!$AQ$66+'Master Map'!$AQ$54+'Master Map'!$AQ$43+'Master Map'!$AQ$36+'Master Map'!$AM$34+'Master Map'!$AI$34+'Master Map'!$AE$34 -> 92.9531 | CL77: 0 | CM77: 0 | CN77: 0 | CO77: 0 | CP77: 0 | CQ77: 0 | CR77: 0 | CS77: 0 | CT77: =CT74+'Master Map'!$AC$25 -> 133.4736 | CU77: 0 | CV77: 0 | CW77: 0 | CX77: 0 | CY77: 0 | CZ77: 0 | DA77: 0 | DB77: 0 | DC77: 0 | DD77: 0 | DE77: 0 | DF77: 0 | DG77: 0 | DH77: 0 | DN77: 254.4204 | DO77: 0 | DP77: 0 | DQ77: 0 | DR77: 0 | DT77: 0 | DU77: 0 | DV77: 0 | DW77: ='Master Map'!$AQ$66+'Master Map'!$AQ$54+'Master Map'!$AQ$43+'Master Map'!$AQ$36+'Master Map'!$AM$34+'Master Map'!$AI$34+'Master Map'!$AE$34 -> 92.9531 | DX77: ='Master Map'!$AJ$75+'Master Map'!$AL$73+'Master Map'!$AN$71+'Master Map'!$AP$71 -> 27.9937 | DY77: 0 | DZ77: 0 | EA77: 0 | EB77: 0 | EC77: 0 | ED77: 0 | EE77: 0 | EF77: =EF74+'Master Map'!$AC$25 -> 133.4736 | EG77: 0 | EH77: 0 | EI77: 0 | EJ77: 0 | EK77: 0 | EL77: 0 | EM77: 0 | EN77: 0 | EO77: 0 | EP77: 0 | EQ77: 0 | ER77: 0 | ES77: 0 | ET77: 0 | EZ77: 226.4267 | FA77: 0 | FB77: 0 | FC77: 0 | FD77: 0 | FF77: 0 | FG77: 0 | FH77: 0 | FI77: =+'Master Map'!$AQ$66+'Master Map'!$AQ$54+'Master Map'!$AQ$43+'Master Map'!$AQ$36+'Master Map'!$AM$34+'Master Map'!$AI$34+'Master Map'!$AE$34 -> 92.9531 | FJ77: 0 | FK77: 0 | FL77: 0 | FM77: 0 | FN77: 0 | FO77: 0 | FP77: 0 | FQ77: 0 | FR77: =FR74+'Master Map'!$AC$25 -> 133.4736 | FS77: 0 | FT77: 0 | FU77: 0 | FV77: 0 | FW77: 0 | FX77: 0 | FY77: 0 | FZ77: 0 | GA77: 0 | GB77: 0 | GC77: 0 | GD77: 0 | GE77: 0 | GF77: 0
A78: Shepparton | B78: M081 | D78: 703.4965 | M78: ='Master Map'!$AQ$66+'Master Map'!$AQ$54+'Master Map'!$AQ$43+'Master Map'!$AQ$36+'Master Map'!$AE$34+'Master Map'!$AI$34+'Master Map'!$AM$34 -> 92.9531 | N78: ='Master Map'!$AJ$75+'Master Map'!$AL$73+'Master Map'!$AN$71+'Master Map'!$AP$71 -> 27.9937 | O78: ='Master Map'!$AF$56+'Master Map'!$AF$58+'Master Map'!$AF$60+'Master Map'!$AF$62+'Master Map'!$AF$64+'Master Map'!$AF$66+'Master Map'!$AH$68+'Master Map'!$AJ$72 -> 30.2683 | P78: ='Master Map'!$Y$44+'Master Map'!$Y$46+'Master Map'!$AA$48+'Master Map'!$AB$50+'Master Map'!$AC$52+'Master Map'!$AE$53+'Master Map'!$AF$54 -> 16.0967 | V78: ='Master Map'!$AC$33+'Master Map'!$AC$31+'Master Map'!$AC$29+'Master Map'!$AC$27+'Master Map'!$AC$25+'Master Map'!$AC$23 -> 248.6278 | AB78: ='Master Map'!$AB$21 -> 34.4569 | AI78: ='Master Map'!$N$61 -> 143.9 | AK78: =+'Master Map'!$Q$50+'Master Map'!$Q$43+'Master Map'!$T$41 -> 58 | AL78: =+'Asset Groups'!$K$106 -> 51.2 | AP78: 366.05007 | AQ78: 0 | AR78: 0 | AS78: 0 | AT78: 0 | AV78: 0 | AW78: 0 | AX78: 0 | AY78: 0 | AZ78: 0 | BA78: 0 | BB78: 0 | BC78: 0 | BD78: 0 | BE78: 0 | BF78: 0 | BG78: 0 | BH78: 0 | BI78: 0 | BJ78: 0 | BK78: 0 | BL78: 0 | BM78: ='Master Map'!$AD$21+'Master Map'!$AF$19+'Master Map'!$AH$17+'Master Map'!$AJ$15+'Master Map'!$AL$13+'Master Map'!$AN$11+'Master Map'!$AP$9+'Master Map'!$AR$7 -> 268.3692 | BN78: ='Master Map'!$AB$21 -> 34.4569 | BO78: 0 | BP78: 0 | BQ78: 0 | BR78: 0 | BS78: ='Master Map'!$AT$1 -> 63.22397 | BT78: 0 | BU78: 0 | BV78: 0 | CB78: 521.5145 | CC78: ='Master Map'!$BE$68+'Master Map'!$BH$68+'Master Map'!$BJ$68+'Master Map'!$BL$68+'Master Map'!$BN$68+'Master Map'!$AY$68+'Master Map'!$BB$68 -> 64.7151 | CD78: =+'Master Map'!$AW$68+'Master Map'!$AU$70 -> 62.0923 | CE78: 0 | CF78: 0 | CH78: 0 | CI78: 0 | CJ78: ='Master Map'!$AR$72 -> 18.6693 | CK78: =+'Master Map'!$AQ$66+'Master Map'!$AQ$54+'Master Map'!$AQ$43+'Master Map'!$AQ$36+'Master Map'!$AM$34+'Master Map'!$AI$34+'Master Map'!$AE$34 -> 92.9531 | CL78: 0 | CM78: 0 | CN78: 0 | CO78: 0 | CP78: 0 | CQ78: 0 | CR78: 0 | CS78: 0 | CT78: ='Master Map'!$AC$33+'Master Map'!$AC$31+'Master Map'!$AC$29+'Master Map'!$AC$27+'Master Map'!$AC$25+'Master Map'!$AC$23 -> 248.6278 | CU78: 0 | CV78: 0 | CW78: 0 | CX78: 0 | CY78: 0 | CZ78: ='Master Map'!$AB$21 -> 34.4569 | DA78: 0 | DB78: 0 | DC78: 0 | DD78: 0 | DE78: 0 | DF78: 0 | DG78: 0 | DH78: 0 | DN78: 404.0315 | DO78: 0 | DP78: 0 | DQ78: 0 | DR78: 0 | DT78: 0 | DU78: 0 | DV78: 0 | DW78: ='Master Map'!$AQ$66+'Master Map'!$AQ$54+'Master Map'!$AQ$43+'Master Map'!$AQ$36+'Master Map'!$AM$34+'Master Map'!$AI$34+'Master Map'!$AE$34 -> 92.9531 | DX78: ='Master Map'!$AJ$75+'Master Map'!$AL$73+'Master Map'!$AN$71+'Master Map'!$AP$71 -> 27.9937 | DY78: 0 | DZ78: 0 | EA78: 0 | EB78: 0 | EC78: 0 | ED78: 0 | EE78: 0 | EF78: ='Master Map'!$AC$33+'Master Map'!$AC$31+'Master Map'!$AC$29+'Master Map'!$AC$27+'Master Map'!$AC$25+'Master Map'!$AC$23 -> 248.6278 | EG78: 0 | EH78: 0 | EI78: 0 | EJ78: 0 | EK78: 0 | EL78: ='Master Map'!$AB$21 -> 34.4569 | EM78: 0 | EN78: 0 | EO78: 0 | EP78: 0 | EQ78: 0 | ER78: 0 | ES78: 0 | ET78: 0 | EZ78: 376.0378 | FA78: 0 | FB78: 0 | FC78: 0 | FD78: 0 | FF78: 0 | FG78: 0 | FH78: 0 | FI78: =+'Master Map'!$AQ$66+'Master Map'!$AQ$54+'Master Map'!$AQ$43+'Master Map'!$AQ$36+'Master Map'!$AM$34+'Master Map'!$AI$34+'Master Map'!$AE$34 -> 92.9531 | FJ78: 0 | FK78: 0 | FL78: 0 | FM78: 0 | FN78: 0 | FO78: 0 | FP78: 0 | FQ78: 0 | FR78: ='Master Map'!$AC$33+'Master Map'!$AC$31+'Master Map'!$AC$29+'Master Map'!$AC$27+'Master Map'!$AC$25+'Master Map'!$AC$23 -> 248.6278 | FS78: 0 | FT78: 0 | FU78: 0 | FV78: 0 | FW78: 0 | FX78: ='Master Map'!$AB$21 -> 34.4569 | FY78: 0 | FZ78: 0 | GA78: 0 | GB78: 0 | GC78: 0 | GD78: 0 | GE78: 0 | GF78: 0
A79: Tatura | B79: M082 | D79: 719.7391 | M79: ='Master Map'!$AQ$66+'Master Map'!$AQ$54+'Master Map'!$AQ$43+'Master Map'!$AQ$36+'Master Map'!$AE$34+'Master Map'!$AI$34+'Master Map'!$AM$34 -> 92.9531 | N79: ='Master Map'!$AJ$75+'Master Map'!$AL$73+'Master Map'!$AN$71+'Master Map'!$AP$71 -> 27.9937 | O79: ='Master Map'!$AF$56+'Master Map'!$AF$58+'Master Map'!$AF$60+'Master Map'!$AF$62+'Master Map'!$AF$64+'Master Map'!$AF$66+'Master Map'!$AH$68+'Master Map'!$AJ$72 -> 30.2683 | P79: ='Master Map'!$Y$44+'Master Map'!$Y$46+'Master Map'!$AA$48+'Master Map'!$AB$50+'Master Map'!$AC$52+'Master Map'!$AE$53+'Master Map'!$AF$54 -> 16.0967 | V79: ='Master Map'!$AC$33+'Master Map'!$AC$31+'Master Map'!$AC$29+'Master Map'!$AC$27+'Master Map'!$AC$25+'Master Map'!$AC$23 -> 248.6278 | AB79: ='Master Map'!$AB$21+'Master Map'!$Z$19 -> 50.6995 | AI79: ='Master Map'!$N$61 -> 143.9 | AK79: =+'Master Map'!$Q$50+'Master Map'!$Q$43+'Master Map'!$T$41 -> 58 | AL79: =+'Asset Groups'!$K$106 -> 51.2 | AP79: 382.29267 | AQ79: 0 | AR79: 0 | AS79: 0 | AT79: 0 | AV79: 0 | AW79: 0 | AX79: 0 | AY79: 0 | AZ79: 0 | BA79: 0 | BB79: 0 | BC79: 0 | BD79: 0 | BE79: 0 | BF79: 0 | BG79: 0 | BH79: 0 | BI79: 0 | BJ79: 0 | BK79: 0 | BL79: 0 | BM79: ='Master Map'!$AD$21+'Master Map'!$AF$19+'Master Map'!$AH$17+'Master Map'!$AJ$15+'Master Map'!$AL$13+'Master Map'!$AN$11+'Master Map'!$AP$9+'Master Map'!$AR$7 -> 268.3692 | BN79: ='Master Map'!$AB$21+'Master Map'!$Z$19 -> 50.6995 | BO79: 0 | BP79: 0 | BQ79: 0 | BR79: 0 | BS79: ='Master Map'!$AT$1 -> 63.22397 | BT79: 0 | BU79: 0 | BV79: 0 | CB79: 537.7571 | CC79: ='Master Map'!$BE$68+'Master Map'!$BH$68+'Master Map'!$BJ$68+'Master Map'!$BL$68+'Master Map'!$BN$68+'Master Map'!$AY$68+'Master Map'!$BB$68 -> 64.7151 | CD79: =+'Master Map'!$AW$68+'Master Map'!$AU$70 -> 62.0923 | CE79: 0 | CF79: 0 | CH79: 0 | CI79: 0 | CJ79: ='Master Map'!$AR$72 -> 18.6693 | CK79: =+'Master Map'!$AQ$66+'Master Map'!$AQ$54+'Master Map'!$AQ$43+'Master Map'!$AQ$36+'Master Map'!$AM$34+'Master Map'!$AI$34+'Master Map'!$AE$34 -> 92.9531 | CL79: 0 | CM79: 0 | CN79: 0 | CO79: 0 | CP79: 0 | CQ79: 0 | CR79: 0 | CS79: 0 | CT79: ='Master Map'!$AC$33+'Master Map'!$AC$31+'Master Map'!$AC$29+'Master Map'!$AC$27+'Master Map'!$AC$25+'Master Map'!$AC$23 -> 248.6278 | CU79: 0 | CV79: 0 | CW79: 0 | CX79: 0 | CY79: 0 | CZ79: ='Master Map'!$AB$21+'Master Map'!$Z$19 -> 50.6995 | DA79: 0 | DB79: 0 | DC79: 0 | DD79: 0 | DE79: 0 | DF79: 0 | DG79: 0 | DH79: 0 | DN79: 420.2741 | DO79: 0 | DP79: 0 | DQ79: 0 | DR79: 0 | DT79: 0 | DU79: 0 | DV79: 0 | DW79: ='Master Map'!$AQ$66+'Master Map'!$AQ$54+'Master Map'!$AQ$43+'Master Map'!$AQ$36+'Master Map'!$AM$34+'Master Map'!$AI$34+'Master Map'!$AE$34 -> 92.9531 | DX79: ='Master Map'!$AJ$75+'Master Map'!$AL$73+'Master Map'!$AN$71+'Master Map'!$AP$71 -> 27.9937 | DY79: 0 | DZ79: 0 | EA79: 0 | EB79: 0 | EC79: 0 | ED79: 0 | EE79: 0 | EF79: ='Master Map'!$AC$33+'Master Map'!$AC$31+'Master Map'!$AC$29+'Master Map'!$AC$27+'Master Map'!$AC$25+'Master Map'!$AC$23 -> 248.6278 | EG79: 0 | EH79: 0 | EI79: 0 | EJ79: 0 | EK79: 0 | EL79: ='Master Map'!$AB$21+'Master Map'!$Z$19 -> 50.6995 | EM79: 0 | EN79: 0 | EO79: 0 | EP79: 0 | EQ79: 0 | ER79: 0 | ES79: 0 | ET79: 0 | EZ79: 392.2804 | FA79: 0 | FB79: 0 | FC79: 0 | FD79: 0 | FF79: 0 | FG79: 0 | FH79: 0 | FI79: =+'Master Map'!$AQ$66+'Master Map'!$AQ$54+'Master Map'!$AQ$43+'Master Map'!$AQ$36+'Master Map'!$AM$34+'Master Map'!$AI$34+'Master Map'!$AE$34 -> 92.9531 | FJ79: 0 | FK79: 0 | FL79: 0 | FM79: 0 | FN79: 0 | FO79: 0 | FP79: 0 | FQ79: 0 | FR79: ='Master Map'!$AC$33+'Master Map'!$AC$31+'Master Map'!$AC$29+'Master Map'!$AC$27+'Master Map'!$AC$25+'Master Map'!$AC$23 -> 248.6278 | FS79: 0 | FT79: 0 | FU79: 0 | FV79: 0 | FW79: 0 | FX79: ='Master Map'!$AB$21+'Master Map'!$Z$19 -> 50.6995 | FY79: 0 | FZ79: 0 | GA79: 0 | GB79: 0 | GC79: 0 | GD79: 0 | GE79: 0 | GF79: 0
A80: Tongala | B80: M083 | D80: 749.286 | M80: ='Master Map'!$AQ$66+'Master Map'!$AQ$54+'Master Map'!$AQ$43+'Master Map'!$AQ$36+'Master Map'!$AE$34+'Master Map'!$AI$34+'Master Map'!$AM$34 -> 92.9531 | N80: ='Master Map'!$AJ$75+'Master Map'!$AL$73+'Master Map'!$AN$71+'Master Map'!$AP$71 -> 27.9937 | O80: ='Master Map'!$AF$56+'Master Map'!$AF$58+'Master Map'!$AF$60+'Master Map'!$AF$62+'Master Map'!$AF$64+'Master Map'!$AF$66+'Master Map'!$AH$68+'Master Map'!$AJ$72 -> 30.2683 | P80: ='Master Map'!$Y$44+'Master Map'!$Y$46+'Master Map'!$AA$48+'Master Map'!$AB$50+'Master Map'!$AC$52+'Master Map'!$AE$53+'Master Map'!$AF$54 -> 16.0967 | V80: ='Master Map'!$AC$33+'Master Map'!$AC$31+'Master Map'!$AC$29+'Master Map'!$AC$27+'Master Map'!$AC$25+'Master Map'!$AC$23 -> 248.6278 | AB80: ='Master Map'!$AA$18+'Master Map'!$T$12 -> 71.9217 | AC80: ='Master Map'!$S$13 -> 8.3247 | AI80: ='Master Map'!$N$61 -> 143.9 | AK80: =+'Master Map'!$Q$50+'Master Map'!$Q$43+'Master Map'!$T$41 -> 58 | AL80: =+'Asset Groups'!$K$106 -> 51.2 | AP80: 411.83957 | AQ80: 0 | AR80: 0 | AS80: 0 | AT80: 0 | AV80: 0 | AW80: 0 | AX80: 0 | AY80: 0 | AZ80: 0 | BA80: 0 | BB80: 0 | BC80: 0 | BD80: 0 | BE80: 0 | BF80: 0 | BG80: 0 | BH80: 0 | BI80: 0 | BJ80: 0 | BK80: 0 | BL80: 0 | BM80: ='Master Map'!$AD$21+'Master Map'!$AF$19+'Master Map'!$AH$17+'Master Map'!$AJ$15+'Master Map'!$AL$13+'Master Map'!$AN$11+'Master Map'!$AP$9+'Master Map'!$AR$7 -> 268.3692 | BN80: ='Master Map'!$AB$21+'Master Map'!$Z$19+'Master Map'!$X$17+'Master Map'!$U$15 -> 71.9217 | BO80: ='Master Map'!$S$13 -> 8.3247 | BP80: 0 | BQ80: 0 | BR80: 0 | BS80: ='Master Map'!$AT$1 -> 63.22397 | BT80: 0 | BU80: 0 | BV80: 0 | CB80: 567.304 | CC80: ='Master Map'!$BE$68+'Master Map'!$BH$68+'Master Map'!$BJ$68+'Master Map'!$BL$68+'Master Map'!$BN$68+'Master Map'!$AY$68+'Master Map'!$BB$68 -> 64.7151 | CD80: =+'Master Map'!$AW$68+'Master Map'!$AU$70 -> 62.0923 | CE80: 0 | CF80: 0 | CH80: 0 | CI80: 0 | CJ80: ='Master Map'!$AR$72 -> 18.6693 | CK80: =+'Master Map'!$AQ$66+'Master Map'!$AQ$54+'Master Map'!$AQ$43+'Master Map'!$AQ$36+'Master Map'!$AM$34+'Master Map'!$AI$34+'Master Map'!$AE$34 -> 92.9531 | CL80: 0 | CM80: 0 | CN80: 0 | CO80: 0 | CP80: 0 | CQ80: 0 | CR80: 0 | CS80: 0 | CT80: ='Master Map'!$AC$33+'Master Map'!$AC$31+'Master Map'!$AC$29+'Master Map'!$AC$27+'Master Map'!$AC$25+'Master Map'!$AC$23 -> 248.6278 | CU80: 0 | CV80: 0 | CW80: 0 | CX80: 0 | CY80: 0 | CZ80: ='Master Map'!$AB$21+'Master Map'!$Z$19+'Master Map'!$X$17+'Master Map'!$U$15 -> 71.9217 | DA80: ='Master Map'!$S$13 -> 8.3247 | DB80: 0 | DC80: 0 | DD80: 0 | DE80: 0 | DF80: 0 | DG80: 0 | DH80: 0 | DN80: 449.821 | DO80: 0 | DP80: 0 | DQ80: 0 | DR80: 0 | DT80: 0 | DU80: 0 | DV80: 0 | DW80: ='Master Map'!$AQ$66+'Master Map'!$AQ$54+'Master Map'!$AQ$43+'Master Map'!$AQ$36+'Master Map'!$AM$34+'Master Map'!$AI$34+'Master Map'!$AE$34 -> 92.9531 | DX80: ='Master Map'!$AJ$75+'Master Map'!$AL$73+'Master Map'!$AN$71+'Master Map'!$AP$71 -> 27.9937 | DY80: 0 | DZ80: 0 | EA80: 0 | EB80: 0 | EC80: 0 | ED80: 0 | EE80: 0 | EF80: ='Master Map'!$AC$33+'Master Map'!$AC$31+'Master Map'!$AC$29+'Master Map'!$AC$27+'Master Map'!$AC$25+'Master Map'!$AC$23 -> 248.6278 | EG80: 0 | EH80: 0 | EI80: 0 | EJ80: 0 | EK80: 0 | EL80: ='Master Map'!$AB$21+'Master Map'!$Z$19+'Master Map'!$X$17+'Master Map'!$U$15 -> 71.9217 | EM80: ='Master Map'!$S$13 -> 8.3247 | EN80: 0 | EO80: 0 | EP80: 0 | EQ80: 0 | ER80: 0 | ES80: 0 | ET80: 0 | EZ80: 421.8273 | FA80: 0 | FB80: 0 | FC80: 0 | FD80: 0 | FF80: 0 | FG80: 0 | FH80: 0 | FI80: =+'Master Map'!$AQ$66+'Master Map'!$AQ$54+'Master Map'!$AQ$43+'Master Map'!$AQ$36+'Master Map'!$AM$34+'Master Map'!$AI$34+'Master Map'!$AE$34 -> 92.9531 | FJ80: 0 | FK80: 0 | FL80: 0 | FM80: 0 | FN80: 0 | FO80: 0 | FP80: 0 | FQ80: 0 | FR80: ='Master Map'!$AC$33+'Master Map'!$AC$31+'Master Map'!$AC$29+'Master Map'!$AC$27+'Master Map'!$AC$25+'Master Map'!$AC$23 -> 248.6278 | FS80: 0 | FT80: 0 | FU80: 0 | FV80: 0 | FW80: 0 | FX80: ='Master Map'!$AB$21+'Master Map'!$Z$19+'Master Map'!$X$17+'Master Map'!$U$15 -> 71.9217 | FY80: ='Master Map'!$S$13 -> 8.3247 | FZ80: 0 | GA80: 0 | GB80: 0 | GC80: 0 | GD80: 0 | GE80: 0 | GF80: 0
A81: Trafalgar | B81: M084 | D81: 338.1437 | J81: ='Master Map'!$AJ$77+'Master Map'!$AL$77+'Master Map'!$AN$77+'Master Map'!$AP$77+'Master Map'!$AR$77 -> 27.4535 | K81: ='Master Map'!$AT$77+'Master Map'!$AV$77+'Master Map'!$AX$77+'Master Map'!$AZ$77+'Master Map'!$BB$77+'Master Map'!$BD$77 -> 62.4252 | O81: ='Master Map'!$AF$56+'Master Map'!$AF$58+'Master Map'!$AF$60+'Master Map'!$AF$62+'Master Map'!$AF$64+'Master Map'!$AF$66+'Master Map'!$AH$68+'Master Map'!$AJ$72 -> 30.2683 | P81: ='Master Map'!$Y$44+'Master Map'!$Y$46+'Master Map'!$AA$48+'Master Map'!$AB$50+'Master Map'!$AC$52+'Master Map'!$AE$53+'Master Map'!$AF$54 -> 16.0967 | AI81: ='Master Map'!$N$61 -> 143.9 | AK81: =+'Master Map'!$Q$50+'Master Map'!$Q$43+'Master Map'!$T$41 -> 58 | AP81: 791.04647 | AQ81: 0 | AR81: 0 | AS81: 0 | AT81: 0 | AV81: ='Master Map'!$AJ$77+'Master Map'!$AL$77+'Master Map'!$AN$77+'Master Map'!$AP$77+'Master Map'!$AR$77 -> 27.4535 | AW81: ='Master Map'!$AT$77+'Master Map'!$AV$77+'Master Map'!$AX$77+'Master Map'!$AZ$77+'Master Map'!$BB$77+'Master Map'!$BD$77 -> 62.4252 | AX81: 0 | AY81: =+$AY$37+'Master Map'!$AQ$66 -> 92.9531 | AZ81: ='Master Map'!$AJ$75+'Master Map'!$AL$73+'Master Map'!$AN$71+'Master Map'!$AP$71 -> 27.9937 | BA81: 0 | BB81: 0 | BC81: 0 | BD81: 0 | BE81: 0 | BF81: 0 | BG81: 0 | BH81: ='Master Map'!$AC$23+'Master Map'!$AC$25+'Master Map'!$AC$27+'Master Map'!$AC$29+'Master Map'!$AC$31+'Master Map'!$AC$33 -> 248.6278 | BI81: 0 | BJ81: 0 | BK81: 0 | BL81: 0 | BM81: ='Master Map'!$AD$21+'Master Map'!$AF$19+'Master Map'!$AH$17+'Master Map'!$AJ$15+'Master Map'!$AL$13+'Master Map'!$AN$11+'Master Map'!$AP$9+'Master Map'!$AR$7 -> 268.3692 | BN81: 0 | BO81: 0 | BP81: 0 | BQ81: 0 | BR81: 0 | BS81: ='Master Map'!$AT$1 -> 63.22397 | BT81: 0 | BU81: 0 | BV81: 0 | CB81: 108.53846 | CC81: ='Master Map'!$BE$68+'Master Map'!$BH$68+'Master Map'!$BJ$68+'Master Map'!$BL$68+'Master Map'!$BN$68 -> 57.6704 | CD81: 0 | CE81: 0 | CF81: ='Master Map'!$BE$71+'Master Map'!$BI$72+'Master Map'!$BJ$74+'Master Map'!$BJ$76 -> 20.33256 | CH81: 0 | CI81: =CI72+'Master Map'!$BF$77 -> 30.5355 | CJ81: 0 | CK81: 0 | CL81: 0 | CM81: 0 | CN81: 0 | CO81: 0 | CP81: 0 | CQ81: 0 | CR81: 0 | CS81: 0 | CT81: 0 | CU81: 0 | CV81: 0 | CW81: 0 | CX81: 0 | CY81: 0 | CZ81: 0 | DA81: 0 | DB81: 0 | DC81: 0 | DD81: 0 | DE81: 0 | DF81: 0 | DG81: 0 | DH81: 0 | DN81: 89.8787 | DO81: 0 | DP81: 0 | DQ81: 0 | DR81: 0 | DT81: ='Master Map'!$AJ$77+'Master Map'!$AL$77+'Master Map'!$AN$77+'Master Map'!$AP$77+'Master Map'!$AR$77 -> 27.4535 | DU81: ='Master Map'!$AT$77+'Master Map'!$AV$77+'Master Map'!$AX$77+'Master Map'!$AZ$77+'Master Map'!$BB$77+'Master Map'!$BD$77 -> 62.4252 | DV81: 0 | DW81: 0 | DX81: 0 | DY81: 0 | DZ81: 0 | EA81: 0 | EB81: 0 | EC81: 0 | ED81: 0 | EE81: 0 | EF81: 0 | EG81: 0 | EH81: 0 | EI81: 0 | EJ81: 0 | EK81: 0 | EL81: 0 | EM81: 0 | EN81: 0 | EO81: 0 | EP81: 0 | EQ81: 0 | ER81: 0 | ES81: 0 | ET81: 0 | EZ81: 117.8724 | FA81: 0 | FB81: 0 | FC81: 0 | FD81: 0 | FF81: ='Master Map'!$AJ$77+'Master Map'!$AL$77+'Master Map'!$AN$77+'Master Map'!$AP$77+'Master Map'!$AR$77 -> 27.4535 | FG81: ='Master Map'!$AT$77+'Master Map'!$AV$77+'Master Map'!$AX$77+'Master Map'!$AZ$77+'Master Map'!$BB$77+'Master Map'!$BD$77 -> 62.4252 | FH81: 0 | FI81: 0 | FJ81: ='Master Map'!$AJ$75+'Master Map'!$AL$73+'Master Map'!$AN$71+'Master Map'!$AP$71 -> 27.9937 | FK81: 0 | FL81: 0 | FM81: 0 | FN81: 0 | FO81: 0 | FP81: 0 | FQ81: 0 | FR81: 0 | FS81: 0 | FT81: 0 | FU81: 0 | FV81: 0 | FW81: 0 | FX81: 0 | FY81: 0 | FZ81: 0 | GA81: 0 | GB81: 0 | GC81: 0 | GD81: 0 | GE81: 0 | GF81: 0
A82: Traralgon | B82: M085 | D82: 368.7681 | E82: =+'Master Map'!AY68+'Master Map'!BB68+'Master Map'!BE68 -> 11.7478 | F82: ='Master Map'!$AU$70+'Master Map'!$AW$68 -> 62.0923 | L82: ='Master Map'!$AR$72 -> 18.6693 | N82: ='Master Map'!$AJ$75+'Master Map'!$AL$73+'Master Map'!$AN$71+'Master Map'!$AP$71 -> 27.9937 | O82: ='Master Map'!$AF$56+'Master Map'!$AF$58+'Master Map'!$AF$60+'Master Map'!$AF$62+'Master Map'!$AF$64+'Master Map'!$AF$66+'Master Map'!$AH$68+'Master Map'!$AJ$72 -> 30.2683 | P82: ='Master Map'!$Y$44+'Master Map'!$Y$46+'Master Map'!$AA$48+'Master Map'!$AB$50+'Master Map'!$AC$52+'Master Map'!$AE$53+'Master Map'!$AF$54 -> 16.0967 | AI82: ='Master Map'!$N$61 -> 143.9 | AK82: =+'Master Map'!$Q$50+'Master Map'!$Q$43+'Master Map'!$T$41 -> 58 | AP82: 765.68347 | AQ82: ='Master Map'!$BE$68+'Master Map'!$AY$68+'Master Map'!$BB$68 -> 11.7478 | AR82: ='Master Map'!$AU$70+'Master Map'!$AW$68 -> 62.0923 | AS82: 0 | AT82: 0 | AV82: 0 | AW82: 0 | AX82: ='Master Map'!$AR$72 -> 18.6693 | AY82: =+$AY$37+'Master Map'!$AQ$66 -> 92.9531 | AZ82: 0 | BA82: 0 | BB82: 0 | BC82: 0 | BD82: 0 | BE82: 0 | BF82: 0 | BG82: 0 | BH82: ='Master Map'!$AC$23+'Master Map'!$AC$25+'Master Map'!$AC$27+'Master Map'!$AC$29+'Master Map'!$AC$31+'Master Map'!$AC$33 -> 248.6278 | BI82: 0 | BJ82: 0 | BK82: 0 | BL82: 0 | BM82: ='Master Map'!$AD$21+'Master Map'!$AF$19+'Master Map'!$AH$17+'Master Map'!$AJ$15+'Master Map'!$AL$13+'Master Map'!$AN$11+'Master Map'!$AP$9+'Master Map'!$AR$7 -> 268.3692 | BN82: 0 | BO82: 0 | BP82: 0 | BQ82: 0 | BR82: 0 | BS82: ='Master Map'!$AT$1 -> 63.22397 | BT82: 0 | BU82: 0 | BV82: 0 | CB82: 52.9673 | CC82: =CC124+'Master Map'!$BH$68 -> 52.9673 | CD82: 0 | CE82: 0 | CF82: 0 | CH82: 0 | CI82: 0 | CJ82: 0 | CK82: 0 | CL82: 0 | CM82: 0 | CN82: 0 | CO82: 0 | CP82: 0 | CQ82: 0 | CR82: 0 | CS82: 0 | CT82: 0 | CU82: 0 | CV82: 0 | CW82: 0 | CX82: 0 | CY82: 0 | CZ82: 0 | DA82: 0 | DB82: 0 | DC82: 0 | DD82: 0 | DE82: 0 | DF82: 0 | DG82: 0 | DH82: 0 | DN82: 120.5031 | DO82: ='Master Map'!$BE$68+'Master Map'!$AY$68+'Master Map'!$BB$68 -> 11.7478 | DP82: ='Master Map'!$AU$70+'Master Map'!$AW$68 -> 62.0923 | DQ82: 0 | DR82: 0 | DT82: 0 | DU82: 0 | DV82: ='Master Map'!$AR$72 -> 18.6693 | DW82: 0 | DX82: ='Master Map'!$AJ$75+'Master Map'!$AL$73+'Master Map'!$AN$71+'Master Map'!$AP$71 -> 27.9937 | DY82: 0 | DZ82: 0 | EA82: 0 | EB82: 0 | EC82: 0 | ED82: 0 | EE82: 0 | EF82: 0 | EG82: 0 | EH82: 0 | EI82: 0 | EJ82: 0 | EK82: 0 | EL82: 0 | EM82: 0 | EN82: 0 | EO82: 0 | EP82: 0 | EQ82: 0 | ER82: 0 | ES82: 0 | ET82: 0 | EZ82: 92.5094 | FA82: =+'Master Map'!AY68+'Master Map'!BB68+'Master Map'!BE68 -> 11.7478 | FB82: ='Master Map'!$AU$70+'Master Map'!$AW$68 -> 62.0923 | FC82: 0 | FD82: 0 | FF82: 0 | FG82: 0 | FH82: ='Master Map'!$AR$72 -> 18.6693 | FI82: 0 | FJ82: 0 | FK82: 0 | FL82: 0 | FM82: 0 | FN82: 0 | FO82: 0 | FP82: 0 | FQ82: 0 | FR82: 0 | FS82: 0 | FT82: 0 | FU82: 0 | FV82: 0 | FW82: 0 | FX82: 0 | FY82: 0 | FZ82: 0 | GA82: 0 | GB82: 0 | GC82: 0 | GD82: 0 | GE82: 0 | GF82: 0
A83: Wallace | B83: M086 | D83: 253.1055 | S83: ='Master Map'!$Q$40 -> 12.3162 | T83: ='Master Map'!$O$40+'Master Map'!$M$40+'Master Map'!$K$40 -> 40.3542 | U83: ='Master Map'!$H$41 -> 12.4351 | AI83: ='Master Map'!$N$61 -> 143.9 | AK83: =+'Master Map'!$Q$50+'Master Map'!$Q$43 -> 44.1 | AP83: 662.14939 | AQ83: 0 | AR83: 0 | AS83: 0 | AT83: 0 | AV83: 0 | AW83: 0 | AX83: 0 | AY83: 0 | AZ83: 0 | BA83: 0 | BB83: 0 | BC83: 0 | BD83: 0 | BE83: 0 | BF83: 0 | BG83: ='Master Map'!$H$41 -> 12.4351 | BH83: ='Master Map'!$AC$23+'Master Map'!$AC$25+'Master Map'!$AC$27+'Master Map'!$AC$29 -> 194.09202 | BI83: ='Master Map'!$J$33+'Master Map'!$J$37 -> 39.9597 | BJ83: 0 | BK83: 0 | BL83: =+'Master Map'!$AA$30+'Master Map'!$W$30+'Master Map'!$T$30+'Master Map'!$P$30+'Master Map'!$L$30 -> 84.0694 | BM83: ='Master Map'!$AD$21+'Master Map'!$AF$19+'Master Map'!$AH$17+'Master Map'!$AJ$15+'Master Map'!$AL$13+'Master Map'!$AN$11+'Master Map'!$AP$9+'Master Map'!$AR$7 -> 268.3692 | BN83: 0 | BO83: 0 | BP83: 0 | BQ83: 0 | BR83: 0 | BS83: ='Master Map'!$AT$1 -> 63.22397 | BT83: 0 | BU83: 0 | BV83: 0 | CB83: 298.8697 | CC83: ='Master Map'!$BE$68+'Master Map'!$BH$68+'Master Map'!$BJ$68+'Master Map'!$BL$68+'Master Map'!$BN$68+'Master Map'!$AY$68+'Master Map'!$BB$68 -> 64.7151 | CD83: =+'Master Map'!$AW$68+'Master Map'!$AU$70 -> 62.0923 | CE83: 0 | CF83: 0 | CH83: 0 | CI83: 0 | CJ83: ='Master Map'!$AR$72 -> 18.6693 | CK83: 0 | CL83: ='Master Map'!$AJ$75+'Master Map'!$AL$73+'Master Map'!$AN$71+'Master Map'!$AP$71 -> 27.9937 | CM83: ='Master Map'!$AF$56+'Master Map'!$AF$58+'Master Map'!$AF$60+'Master Map'!$AF$62+'Master Map'!$AF$64+'Master Map'!$AF$66+'Master Map'!$AH$68+'Master Map'!$AJ$72 -> 30.2683 | CN83: ='Master Map'!$Y$44+'Master Map'!$Y$46+'Master Map'!$AA$48+'Master Map'!$AB$50+'Master Map'!$AC$52+'Master Map'!$AE$53+'Master Map'!$AF$54 -> 16.0967 | CO83: 0 | CP83: 0 | CQ83: ='Master Map'!$X$42+'Master Map'!$U$40+'Master Map'!$S$40+'Master Map'!$Q$40 -> 26.245 | CR83: ='Master Map'!$O$40+'Master Map'!$M$40+'Master Map'!$K$40 -> 40.3542 | CS83: ='Master Map'!$H$41 -> 12.4351 | CT83: 0 | CU83: 0 | CV83: 0 | CW83: 0 | CX83: 0 | CY83: 0 | CZ83: 0 | DA83: 0 | DB83: 0 | DC83: 0 | DD83: 0 | DE83: 0 | DF83: 0 | DG83: 0 | DH83: 0 | DN83: 125.3993 | DO83: 0 | DP83: 0 | DQ83: 0 | DR83: 0 | DT83: 0 | DU83: 0 | DV83: 0 | DW83: 0 | DX83: 0 | DY83: ='Master Map'!$AF$56+'Master Map'!$AF$58+'Master Map'!$AF$60+'Master Map'!$AF$62+'Master Map'!$AF$64+'Master Map'!$AF$66+'Master Map'!$AH$68+'Master Map'!$AJ$72 -> 30.2683 | DZ83: ='Master Map'!$AF$54+'Master Map'!$AE$53+'Master Map'!$AC$52+'Master Map'!$AB$50+'Master Map'!$AA$48+'Master Map'!$Y$46+'Master Map'!$Y$44 -> 16.0967 | EA83: 0 | EB83: 0 | EC83: ='Master Map'!$Q$40+'Master Map'!$S$40+'Master Map'!$U$40+'Master Map'!$X$42 -> 26.245 | ED83: ='Master Map'!$O$40+'Master Map'!$M$40+'Master Map'!$K$40 -> 40.3542 | EE83: ='Master Map'!$H$41 -> 12.4351 | EF83: 0 | EG83: 0 | EH83: 0 | EI83: 0 | EJ83: 0 | EK83: 0 | EL83: 0 | EM83: 0 | EN83: 0 | EO83: 0 | EP83: 0 | EQ83: 0 | ER83: 0 | ES83: 0 | ET83: 0 | EZ83: 153.393 | FA83: 0 | FB83: 0 | FC83: 0 | FD83: 0 | FF83: 0 | FG83: 0 | FH83: 0 | FI83: 0 | FJ83: ='Master Map'!$AJ$75+'Master Map'!$AL$73+'Master Map'!$AN$71+'Master Map'!$AP$71 -> 27.9937 | FK83: ='Master Map'!$AF$56+'Master Map'!$AF$58+'Master Map'!$AF$60+'Master Map'!$AF$62+'Master Map'!$AF$64+'Master Map'!$AF$66+'Master Map'!$AH$68+'Master Map'!$AJ$72 -> 30.2683 | FL83: ='Master Map'!$AF$54+'Master Map'!$AE$53+'Master Map'!$AC$52+'Master Map'!$AB$50+'Master Map'!$AA$48+'Master Map'!$Y$46+'Master Map'!$Y$44 -> 16.0967 | FM83: 0 | FN83: 0 | FO83: ='Master Map'!$Q$40+'Master Map'!$S$40+'Master Map'!$U$40+'Master Map'!$X$42 -> 26.245 | FP83: ='Master Map'!$O$40+'Master Map'!$M$40+'Master Map'!$K$40 -> 40.3542 | FQ83: ='Master Map'!$H$41 -> 12.4351 | FR83: 0 | FS83: 0 | FT83: 0 | FU83: 0 | FV83: 0 | FW83: 0 | FX83: 0 | FY83: 0 | FZ83: 0 | GA83: 0 | GB83: 0 | GC83: 0 | GD83: 0 | GE83: 0 | GF83: 0
A84: Wallan | B84: M087 | D84: 455.2562 | M84: ='Master Map'!$AQ$66+'Master Map'!$AQ$54+'Master Map'!$AQ$43+'Master Map'!$AQ$36+'Master Map'!$AE$34+'Master Map'!$AI$34+'Master Map'!$AM$34 -> 92.9531 | N84: ='Master Map'!$AJ$75+'Master Map'!$AL$73+'Master Map'!$AN$71+'Master Map'!$AP$71 -> 27.9937 | O84: ='Master Map'!$AF$56+'Master Map'!$AF$58+'Master Map'!$AF$60+'Master Map'!$AF$62+'Master Map'!$AF$64+'Master Map'!$AF$66+'Master Map'!$AH$68+'Master Map'!$AJ$72 -> 30.2683 | P84: ='Master Map'!$Y$44+'Master Map'!$Y$46+'Master Map'!$AA$48+'Master Map'!$AB$50+'Master Map'!$AC$52+'Master Map'!$AE$53+'Master Map'!$AF$54 -> 16.0967 | V84: ='Master Map'!$AC$33 -> 34.8444 | AI84: ='Master Map'!$N$61 -> 143.9 | AK84: =+'Master Map'!$Q$50+'Master Map'!$Q$43+'Master Map'!$T$41 -> 58 | AL84: =+'Asset Groups'!$K$106 -> 51.2 | AP84: 545.37657 | AQ84: 0 | AR84: 0 | AS84: 0 | AT84: 0 | AV84: 0 | AW84: 0 | AX84: 0 | AY84: 0 | AZ84: 0 | BA84: 0 | BB84: 0 | BC84: 0 | BD84: 0 | BE84: 0 | BF84: 0 | BG84: 0 | BH84: ='Master Map'!$AC$23+'Master Map'!$AC$25+'Master Map'!$AC$27+'Master Map'!$AC$29+'Master Map'!$AC$31 -> 213.7834 | BI84: 0 | BJ84: 0 | BK84: 0 | BL84: 0 | BM84: ='Master Map'!$AD$21+'Master Map'!$AF$19+'Master Map'!$AH$17+'Master Map'!$AJ$15+'Master Map'!$AL$13+'Master Map'!$AN$11+'Master Map'!$AP$9+'Master Map'!$AR$7 -> 268.3692 | BN84: 0 | BO84: 0 | BP84: 0 | BQ84: 0 | BR84: 0 | BS84: ='Master Map'!$AT$1 -> 63.22397 | BT84: 0 | BU84: 0 | BV84: 0 | CB84: 273.2742 | CC84: ='Master Map'!$BE$68+'Master Map'!$BH$68+'Master Map'!$BJ$68+'Master Map'!$BL$68+'Master Map'!$BN$68+'Master Map'!$AY$68+'Master Map'!$BB$68 -> 64.7151 | CD84: =+'Master Map'!$AW$68+'Master Map'!$AU$70 -> 62.0923 | CE84: 0 | CF84: 0 | CH84: 0 | CI84: 0 | CJ84: ='Master Map'!$AR$72 -> 18.6693 | CK84: =+'Master Map'!$AQ$66+'Master Map'!$AQ$54+'Master Map'!$AQ$43+'Master Map'!$AQ$36+'Master Map'!$AM$34+'Master Map'!$AI$34+'Master Map'!$AE$34 -> 92.9531 | CL84: 0 | CM84: 0 | CN84: 0 | CO84: 0 | CP84: 0 | CQ84: 0 | CR84: 0 | CS84: 0 | CT84: ='Master Map'!$AC$33 -> 34.8444 | CU84: 0 | CV84: 0 | CW84: 0 | CX84: 0 | CY84: 0 | CZ84: 0 | DA84: 0 | DB84: 0 | DC84: 0 | DD84: 0 | DE84: 0 | DF84: 0 | DG84: 0 | DH84: 0 | DN84: 155.7912 | DO84: 0 | DP84: 0 | DQ84: 0 | DR84: 0 | DT84: 0 | DU84: 0 | DV84: 0 | DW84: ='Master Map'!$AQ$66+'Master Map'!$AQ$54+'Master Map'!$AQ$43+'Master Map'!$AQ$36+'Master Map'!$AM$34+'Master Map'!$AI$34+'Master Map'!$AE$34 -> 92.9531 | DX84: ='Master Map'!$AJ$75+'Master Map'!$AL$73+'Master Map'!$AN$71+'Master Map'!$AP$71 -> 27.9937 | DY84: 0 | DZ84: 0 | EA84: 0 | EB84: 0 | EC84: 0 | ED84: 0 | EE84: 0 | EF84: ='Master Map'!$AC$33 -> 34.8444 | EG84: 0 | EH84: 0 | EI84: 0 | EJ84: 0 | EK84: 0 | EL84: 0 | EM84: 0 | EN84: 0 | EO84: 0 | EP84: 0 | EQ84: 0 | ER84: 0 | ES84: 0 | ET84: 0 | EZ84: 127.7975 | FA84: 0 | FB84: 0 | FC84: 0 | FD84: 0 | FF84: 0 | FG84: 0 | FH84: 0 | FI84: =+'Master Map'!$AQ$66+'Master Map'!$AQ$54+'Master Map'!$AQ$43+'Master Map'!$AQ$36+'Master Map'!$AM$34+'Master Map'!$AI$34+'Master Map'!$AE$34 -> 92.9531 | FJ84: 0 | FK84: 0 | FL84: 0 | FM84: 0 | FN84: 0 | FO84: 0 | FP84: 0 | FQ84: 0 | FR84: ='Master Map'!$AC$33 -> 34.8444 | FS84: 0 | FT84: 0 | FU84: 0 | FV84: 0 | FW84: 0 | FX84: 0 | FY84: 0 | FZ84: 0 | GA84: 0 | GB84: 0 | GC84: 0 | GD84: 0 | GE84: 0 | GF84: 0
A85: Wangaratta | B85: M088 | D85: 837.47092 | M85: ='Master Map'!$AQ$66+'Master Map'!$AQ$54+'Master Map'!$AQ$43+'Master Map'!$AQ$36+'Master Map'!$AE$34+'Master Map'!$AI$34+'Master Map'!$AM$34 -> 92.9531 | N85: ='Master Map'!$AJ$75+'Master Map'!$AL$73+'Master Map'!$AN$71+'Master Map'!$AP$71 -> 27.9937 | O85: ='Master Map'!$AF$56+'Master Map'!$AF$58+'Master Map'!$AF$60+'Master Map'!$AF$62+'Master Map'!$AF$64+'Master Map'!$AF$66+'Master Map'!$AH$68+'Master Map'!$AJ$72 -> 30.2683 | P85: ='Master Map'!$Y$44+'Master Map'!$Y$46+'Master Map'!$AA$48+'Master Map'!$AB$50+'Master Map'!$AC$52+'Master Map'!$AE$53+'Master Map'!$AF$54 -> 16.0967 | V85: ='Master Map'!$AC$33+'Master Map'!$AC$31+'Master Map'!$AC$29+'Master Map'!$AC$27+'Master Map'!$AC$25+'Master Map'!$AC$23 -> 248.6278 | AA85: =AA54+'Master Map'!$AH$17 -> 168.43132 | AI85: ='Master Map'!$N$61 -> 143.9 | AK85: =+'Master Map'!$Q$50+'Master Map'!$Q$43+'Master Map'!$T$41 -> 58 | AL85: =+'Asset Groups'!$K$106 -> 51.2 | AP85: 163.16185 | AQ85: 0 | AR85: 0 | AS85: 0 | AT85: 0 | AV85: 0 | AW85: 0 | AX85: 0 | AY85: 0 | AZ85: 0 | BA85: 0 | BB85: 0 | BC85: 0 | BD85: 0 | BE85: 0 | BF85: 0 | BG85: 0 | BH85: 0 | BI85: 0 | BJ85: 0 | BK85: 0 | BL85: 0 | BM85: =BM86+'Master Map'!$AJ$15 -> 99.93788 | BN85: 0 | BO85: 0 | BP85: 0 | BQ85: 0 | BR85: 0 | BS85: ='Master Map'!$AT$1 -> 63.22397 | BT85: 0 | BU85: 0 | BV85: 0 | CB85: 655.48892 | CC85: ='Master Map'!$BE$68+'Master Map'!$BH$68+'Master Map'!$BJ$68+'Master Map'!$BL$68+'Master Map'!$BN$68+'Master Map'!$AY$68+'Master Map'!$BB$68 -> 64.7151 | CD85: =+'Master Map'!$AW$68+'Master Map'!$AU$70 -> 62.0923 | CE85: 0 | CF85: 0 | CH85: 0 | CI85: 0 | CJ85: ='Master Map'!$AR$72 -> 18.6693 | CK85: =+'Master Map'!$AQ$66+'Master Map'!$AQ$54+'Master Map'!$AQ$43+'Master Map'!$AQ$36+'Master Map'!$AM$34+'Master Map'!$AI$34+'Master Map'!$AE$34 -> 92.9531 | CL85: 0 | CM85: 0 | CN85: 0 | CO85: 0 | CP85: 0 | CQ85: 0 | CR85: 0 | CS85: 0 | CT85: ='Master Map'!$AC$33+'Master Map'!$AC$31+'Master Map'!$AC$29+'Master Map'!$AC$27+'Master Map'!$AC$25+'Master Map'!$AC$23 -> 248.6278 | CU85: 0 | CV85: 0 | CW85: 0 | CX85: 0 | CY85: =CY54+'Master Map'!$AH$17 -> 168.43132 | CZ85: 0 | DA85: 0 | DB85: 0 | DC85: 0 | DD85: 0 | DE85: 0 | DF85: 0 | DG85: 0 | DH85: 0 | DN85: 538.00592 | DO85: 0 | DP85: 0 | DQ85: 0 | DR85: 0 | DT85: 0 | DU85: 0 | DV85: 0 | DW85: ='Master Map'!$AQ$66+'Master Map'!$AQ$54+'Master Map'!$AQ$43+'Master Map'!$AQ$36+'Master Map'!$AM$34+'Master Map'!$AI$34+'Master Map'!$AE$34 -> 92.9531 | DX85: ='Master Map'!$AJ$75+'Master Map'!$AL$73+'Master Map'!$AN$71+'Master Map'!$AP$71 -> 27.9937 | DY85: 0 | DZ85: 0 | EA85: 0 | EB85: 0 | EC85: 0 | ED85: 0 | EE85: 0 | EF85: ='Master Map'!$AC$33+'Master Map'!$AC$31+'Master Map'!$AC$29+'Master Map'!$AC$27+'Master Map'!$AC$25+'Master Map'!$AC$23 -> 248.6278 | EG85: 0 | EH85: 0 | EI85: 0 | EJ85: 0 | EK85: =EK54+'Master Map'!$AH$17 -> 168.43132 | EL85: 0 | EM85: 0 | EN85: 0 | EO85: 0 | EP85: 0 | EQ85: 0 | ER85: 0 | ES85: 0 | ET85: 0 | EZ85: 510.01222 | FA85: 0 | FB85: 0 | FC85: 0 | FD85: 0 | FF85: 0 | FG85: 0 | FH85: 0 | FI85: =+'Master Map'!$AQ$66+'Master Map'!$AQ$54+'Master Map'!$AQ$43+'Master Map'!$AQ$36+'Master Map'!$AM$34+'Master Map'!$AI$34+'Master Map'!$AE$34 -> 92.9531 | FJ85: 0 | FK85: 0 | FL85: 0 | FM85: 0 | FN85: 0 | FO85: 0 | FP85: 0 | FQ85: 0 | FR85: ='Master Map'!$AC$33+'Master Map'!$AC$31+'Master Map'!$AC$29+'Master Map'!$AC$27+'Master Map'!$AC$25+'Master Map'!$AC$23 -> 248.6278 | FS85: 0 | FT85: 0 | FU85: 0 | FV85: 0 | FW85: =FW54+'Master Map'!$AH$17 -> 168.43132 | FX85: 0 | FY85: 0 | FZ85: 0 | GA85: 0 | GB85: 0 | GC85: 0 | GD85: 0 | GE85: 0 | GF85: 0
